Workbook

Sheet Title Page
G1: SERA TR 056-06-02b-ATT1

Sheet Note

Sheet TOC
A2: N | B2: Worksheet Name | C2: Study | D2: Subgroup
A3: 4 | B3: Dermal Abs | C3: Dermal Absorption Rates | D3: Table, Figure and Statistics
A4: 5 | B4: Cessna and Grover 2002 | C4: Cessna and Grover 2002 | D4: Bromoxynil, ground broadcast
A5: 6 | B5: Chester et al. 1987 | C5: Chester et al. 1987 | D5: Mixer-loaders for aerial application of cypermethrin
A6: 7 | B6: Cowell et al. 1991 | C6: Cowell et al. 1991 | D6: Lawn care applications, three cities combined.
A7: 8 | B7: Cruz Marquez et al. 2001 | C7: Cruz Marquez et al. 2001 | D7: Malation, greenhouse foliar spray
A8: 9 | B8: Dubelman and Cowell 1989-1 | C8: Dubelman and Cowell 1989 | D8: Canada, Open-cab, surface application, mixer/loader/applicator. Table VI, p. 247
A9: 10 | B9: Dubelman and Cowell 1989-2 | C9: Dubelman and Cowell 1989 | D9: Indiana, Closed-cab, soil incorporation, mixer/loader/applicator. Table VI, p. 247
A10: 11 | B10: Dubelman and Cowell 1989-3 | C10: Dubelman and Cowell 1989 | D10: Missouri, Closed-cab, ground broadcast, mixer/loader/applicator. Table VI, p. 247
A11: 12 | B11: Dubelman and Cowell 1989-4 | C11: Dubelman and Cowell 1989 | D11: ANOVA of 3 Groups
A12: 13 | B12: Dubelman and Cowell 1989-5 | C12: Dubelman and Cowell 1989 | D12: All data combinded
A13: 14 | B13: Franklin et al. 1981 | C13: Franklin et al. 1981 | D13: All workers
A14: 15 | B14: Grover et al. 1986-1 | C14: Grover et al. 1986 | D14: Ground broadcast, no day adjustment
A15: 16 | B15: Grover et al. 1986-2 | C15: Grover et al. 1986 | D15: Ground broadcast, with day adjustment
A16: 17 | B16: Lavy et al. 1982-1 | C16: Lavy et al. 1982 | D16: Aerial, pilots, T1 and T2 combined
A17: 18 | B17: Lavy et al. 1982-2 | C17: Lavy et al. 1982 | D17: Aerial, pilots, T1
A18: 19 | B18: Lavy et al. 1982-3 | C18: Lavy et al. 1982 | D18: Mixer/Loaders and pilots, T1 and T2 combined
A19: 20 | B19: Lavy et al. 1987-1 | C19: Lavy et al. 1987 | D19: Backpack, dichlorprop, T1
A20: 21 | B20: Lavy et al. 1987-2 | C20: Lavy et al. 1987 | D20: Backpack, dichlorprop, T2
A21: 22 | B21: Lavy et al. 1987-1&2 | C21: Lavy et al. 1987 | D21: Backpack, dichlorprop, T1 and T2 Combined
A22: 23 | B22: Lavy et al. 1987-3 | C22: Lavy et al. 1987 | D22: Backpack, 2,4-D, T1
A23: 24 | B23: Lavy et al. 1987-4 | C23: Lavy et al. 1987 | D23: Backpack, 2,4-D, T2
A24: 25 | B24: Lavy et al. 1987-3&4 | C24: Lavy et al. 1987 | D24: Backpack, 2,4-D, T1 and T2 combined
A25: 26 | B25: Lavy et al. 1987-5 | C25: Lavy et al. 1987 | D25: Hack-and-Squirt, 2,4-D, T1
A26: 27 | B26: Lavy et al. 1987-6a | C26: Lavy et al. 1987 | D26: Hack-and-Squirt, 2,4-D, T2 (using 1/2 min. for non-detects)
A27: 28 | B27: Lavy et al. 1987-6b | C27: Lavy et al. 1987 | D27: Hack-and-Squirt, 2,4-D, T2 (using trimmed mean).
A28: 29 | B28: Lavy et al. 1987-7 | C28: Lavy et al. 1987 | D28: Hack-and-Squirt T1 vs T2.
A29: 30 | B29: Lavy et al. 1987-8 | C29: Lavy et al. 1987 | D29: Comparisions based on Margins of Safety
A30: 31 | B30: Lavy et al. 1987-9 | C30: Lavy et al. 1987 | D30: Analysis of Variance for 2,4-D and Dichlorprop, T1 and T2 combined
A31: 32 | B31: Lavy et al. 1987-10 | C31: Lavy et al. 1987 | D31: Correlation of Workers in 2,4-D and Dichlorprop, T1 vs T2
A32: 33 | B32: Libich et al. 1984-1 | C32: Libich et al. 1984 | D32: Comparisions of 2,4-D/Picloram mixture spray
A33: 34 | B33: Libich et al. 1984-2 | C33: Libich et al. 1984 | D33: Analysis of ratios
A34: 35 | B34: Lunchick et al. 2005-1 | C34: Lunchick et al. 2005 | D34: All applicator groups in Table 1 of study
A35: 36 | B35: Lunchick et al. 2005-2 | C35: Lunchick et al. 2005 | D35: Censoring extreme outlier.
A36: 37 | B36: Middendorf 1992a-1 | C36: Middendorf 1992a | D36: Basal bark, All
A37: 38 | B37: Middendorf 1992a-2 | C37: Middendorf 1992a | D37: Basal bark, gloves
A38: 39 | B38: Middendorf 1992a-3 | C38: Middendorf 1992a | D38: Basal bark, no gloves
A39: 40 | B39: Middendorf 1992a-4 | C39: Middendorf 1992a | D39: Gloves vs No Gloves
A40: 41 | B40: Middendorf 1992a-5 | C40: Middendorf 1992a | D40: Compasion Basal Bark (with gloves) to Middendorf 1992b foliar study
A41: 42 | B41: Middendorf 1992b-1 | C41: Middendorf 1992b | D41: All workers, all sites
A42: 43 | B42: Middendorf 1992b-2 | C42: Middendorf 1992b | D42: Sites 1, 2, and 4 (medium to low brush height)
A43: 44 | B43: Middendorf 1992b-3 | C43: Middendorf 1992b | D43: Site 3, high bush height and poor PPE
A44: 45 | B44: Middendorf 1992b-4 | C44: Middendorf 1992b | D44: Site 1, low to medium bush, leather gloves
A45: 46 | B45: Middendorf 1992b-5 | C45: Middendorf 1992b | D45: Sites 2 and 4, low to medium bush height, latex or nitrile gloves
A46: 47 | B46: Middendorf 1992b-6 | C46: Middendorf 1992b | D46: ANOVA on groups with leather, nitrile, and latex gloves
A47: 48 | B47: Middendorf 1993 | C47: Middendorf 1993 | D47: All groups combined
A48: 49 | B48: Nash et al. 1982-1 | C48: Nash et al. 1982 | D48: Mixer/loaders in aerial application of 2,4-D
A49: 50 | B49: Nash et al. 1982-2 | C49: Nash et al. 1982 | D49: Pilots in aerial application of 2,4-D
A50: 51 | B50: Nash et al. 1982-3 | C50: Nash et al. 1982 | D50: Ground broadcast application of 2,4-D, Applicators only
A51: 52 | B51: Nash et al. 1982-4 | C51: Nash et al. 1982 | D51: Ground broadcast application of 2,4-D, Mixer/Loader/Applicators only
A52: 53 | B52: Nash et al. 1982-5 | C52: Nash et al. 1982 | D52: Ground broadcast application of 2,4-D, Applicators & M/L/A combined
A53: 54 | B53: Nash et al. 1982-6 | C53: Nash et al. 1982 | D53: Ground broadcast application of 2,4-D, Mixer/Loaders only
A54: 55 | B54: Nigg and Stamper 1983a | C54: Nigg and Stamper 1983a | D54: Aquatic applications of 2,4-D amine
A55: 56 | B55: Spenser et al. 2000-1 | C55: Spenser et al. 2000 | D55: Backpack, directed foliar, triclopyr BEE. Day 1 and 2 combined. See plot.
A56: 57 | B56: Spenser et al. 2000-2 | C56: Spenser et al. 2000 | D56: Check of Table IX in report for mg/kg dose (not rate) Day 2 only.
A57: 59 | B57: Zhang et al. 2011-2 Triclopyr | C57: Zhang et al. 2011 | D57: Applicators, Triclopyr
A58: 60 | B58: Zhang et al. 2011-3 2,4-D | C58: Zhang et al. 2011 | D58: Applicators, 2,4-D
A59: 61 | B59: Zhang et al. 2011-4 | C59: Zhang et al. 2011 | D59: Comparison of Exposure Rates for 2,4-D and Triclopyr
A60: 62 | B60: BkPkComposite | C60: Composite Middendorf, Spenser, and Zhang | D60: Triclopyr BEE Middendorf low to medium bush, Spenser, and Zhang individaul measurements.
A61: 63 | B61: 2,4-D GrndPool | C61: t-test for 2,4-2 Ground Broadcast | D61: Grover et al. 1986 and Nashet al. 1982, Applicators & MLA
A62: 64 | B62: GrndComposite | C62: Composite | D62: Grover et al. 1986 and Nash et al. 1982
A63: 65 | B63: PilotComposite | C63: All pilot data | D63: Lavy et al. 1982 (T1&T2) and Nash et al. 1982
A64: 66 | B64: MxLdAerialComp | C64: All aerial mixer/loaders | D64: Chester, Lavy et al. 1982 and Nash et al. 1982
A65: 67 | B65: RelRatesMixData | C65: Relative Exposure Rates, Mixture Data | D65: Data on relative exposure rates from mixture studies
A66: 68 | B66: RelRatesMixAnal | C66: Relative Exposure Rates, Mixture Data | D66: Analysis of Mixture Data (linear)
A67: 69 | B67: BackpackTypFolDerm1a-1 | C67: Backpack Foliar | D67: Dermal Abs Rate vs Worker Exposure Rate (untransformed, constrained regression)
A68: 70 | B68: BackpackTypFolDerm1a-2 | C68: Backpack Foliar | D68: Dermal Abs Rate vs Worker Exposure Rate (untransformed, unconstrained regression)
A69: 71 | B69: BackpackTypFolDerm1b1 | C69: Backpack Foliar | D69: Relative Dermal Abs Rate vs Worker Exposure Rate (constrained regression) - Eq. 3 in report
A70: 72 | B70: BackpackTypFolDerm1b2 | C70: Backpack Foliar | D70: Relative Dermal Abs Rate vs Worker Exposure Rate (constrained regression) - Eq. 3 in report - censoring Middendorf 1992b
A71: 73 | B71: BackpackTypFolDerm1c | C71: Backpack Foliar | D71: Relative Dermal Abs Rate vs Relative Worker Exposure Rate (constrained regression) - Eq. 4 in report
A72: 74 | B72: BackpackTypFolDerm1d | C72: Relative Directed Foliar | D72: As in 1c but adding Lavy et al. 1987 Dicloprop Backpack, T1 and T2 (from RelRatesMixData)
A73: 75 | B73: RelRatesComposite | C73: Relative Directed Foliar | D73: As in 1c but adding Lavy et al. 1987 Dicloprop Backpack, T1 and T2 and Picloram Libich 1984 geo. mean (from RelRatesMixData)
A74: 76 | B74: BroadcastAnal-1a | C74: Broadcast Applications | D74: Correlation with Best Available Dermal Absorption Rates
A75: 77 | B75: BroadcastAnal-1b | C75: Broadcast Applications | D75: As in 1a but censoring the data on azinphos-methyl (orchard air blast)
A76: 78 | B76: BroadcastAnal-1c | C76: Broadcast Applications | D76: As in 1b but using log transformation

Sheet Dermal Abs
B1: Dermal Absorption Rates
A2: Subgroup: | B2: Table, Figure and Statistics | N2: All data
A3: This is simply an illustration of the measured and estimated first-order dermal absorption rate coefficients | N3: SUMMARY OUTPUT
A5: Chemical | B5: ka | E5: Prop. Dev. | F5: Reference for Measured ka | I5: Log regression with all (link below fig) | N5: Regression Statistics
B6: Measured | C6: Estimated | D6: Species | I6: Obs (x) | J6: Pred (y) | N6: Multiple R | O6: 0.5713525129
A7: 2,4-D acid | B7: 0.00066 | C7: 0.0012 | D7: Humans | E7: =1/(B7/C7) -> 1.818181818 | F7: Feldmann and Maibach 1974 /SERA (2006a) | I7: =LOG10(B7) -> -3.180456064 | J7: =LOG10(C7) -> -2.920818754 | N7: R Square | O7: 0.326443694
A8: Alachlor | B8: 0.0229 | C8: 0.00629 | D8: Monkeys | E8: =B8/C8 -> 3.640699523 | F8: U.S. EPA/OPP 1998b | I8: =LOG10(B8) -> -1.640164518 | J8: =LOG10(C8) -> -2.201349355 | N8: Adjusted R Square | O8: 0.2422491557
A9: Azinphos-methyl | B9: 0.0227 | C9: 0.00199 | D9: Rats | E9: =B9/C9 -> 11.40703518 | F9: U.S. EPA/OPP 2001 | I9: -1.643974143 | J9: -2.701146924 | N9: Standard Error | O9: 0.2570231756
A10: Bromoxynil (alcohol) | B10: 0.0019 | C10: 0.0054 | D10: Rats | E10: =1/(B10/C10) -> 2.842105263 | F10: U.S. EPA/OPP 1998a | I10: -2.721246399 | J10: -2.26760624 | N10: Observations | O10: 10
A11: Bromoxynil octanoate | B11: 0.011 | C11: 0.00304 | D11: Rats | E11: 3.618421053 | F11: U.S. EPA/OPP 1998a | I11: -1.958607315 | J11: -2.517126416
A12: Cypermethrin | B12: 0.0011 | C12: 0.0036 | D12: Rats | E12: =1/(B12/C12) -> 3.272727273 | F12: U.S. EPA/OPP 2006b | I12: -2.958607315 | J12: -2.443697499 | N12: ANOVA
A13: Glyphosate | B13: 0.00041 | C13: 0.00074 | D13: Monkeys | E13: =1/(B13/C13) -> 1.804878049 | F13: Wester et al. 1991/SERA (2010a) | I13: -3.387216143 | J13: -3.13076828 | O13: df | P13: SS | Q13: MS | R13: F | S13: Significance F
A14: Malathion | B14: 0.0036 | C14: 0.0019 | D14: Humans | E14: 1.894736842 | F14: Feldmann and Maibach 1974 /SERA 2008a | I14: -2.443697499 | J14: -2.721246399 | N14: Regression | O14: 1 | P14: 0.2561350041 | Q14: 0.2561350041 | R14: 3.877254995 | S14: 0.08446445641
A15: Picloram acid | B15: 5e-05 | C15: 0.00134 | D15: Humans | E15: =1/(B15/C15) -> 26.8 | F15: Nolan et al. 1984/SERA 2011a | I15: -4.301029996 | J15: -2.872895202 | N15: Residual | O15: 8 | P15: 0.5284873025 | Q15: 0.06606091281
A16: Triclopyr BEE | B16: 0.0021 | C16: 0.00309 | D16: Humans | E16: =1/(B16/C16) -> 1.471428571 | F16: Carmichael et al. 1989/SERA 2011d | I16: -2.677780705 | J16: -2.510041521 | N16: Total | O16: 9 | P16: 0.7846223066
O18: Coefficients | P18: Standard Error | Q18: t Stat | R18: P-value | S18: Lower 95% | T18: Upper 95% | U18: Lower 95.0% | V18: Upper 95.0%
N19: Intercept | O19: -2.081094326 | P19: 0.2897219865 | Q19: -7.183073506 | R19: 9.399370505e-05 | S19: -2.749194424 | T19: -1.412994227 | U19: -2.749194424 | V19: -1.412994227
N20: Obs (x) | O20: 0.2034629389 | P20: 0.1033292153 | Q20: 1.969074654 | R20: 0.08446445641 | S20: -0.03481465865 | T20: 0.4417405364 | U20: -0.03481465865 | V20: 0.4417405364
I22: Log regression without picloram and azinphos | N22: No picloram and azinphos
I23: =I6 -> Obs (x) | J23: Pred (y) | N23: SUMMARY OUTPUT
H24: 2,4-D acid | I24: =I7 -> -3.180456064 | J24: -2.920818754
H25: Alachlor | I25: -1.640164518 | J25: -2.201349355 | N25: Regression Statistics
H26: Bromoxynil (alcohol) | I26: =I10 -> -2.721246399 | J26: -2.26760624 | N26: Multiple R | O26: 0.6971022317
H27: Bromoxynil octanoate | I27: -1.958607315 | J27: -2.517126416 | N27: R Square | O27: 0.4859515214
H28: Cypermethrin | I28: -2.958607315 | J28: -2.443697499 | N28: Adjusted R Square | O28: 0.4002767749
H29: Glyphosate | I29: -3.387216143 | J29: -3.13076828 | N29: Standard Error | O29: 0.2461461995
H30: Malathion | I30: -2.443697499 | J30: -2.721246399 | N30: Observations | O30: 8
H31: Triclopyr BEE | I31: =I16 -> -2.677780705 | J31: =J16 -> -2.510041521
N32: ANOVA
O33: df | P33: SS | Q33: MS | R33: F | S33: Significance F
N34: Regression | O34: 1 | P34: 0.3436579442 | Q34: 0.3436579442 | R34: 5.672050885 | S34: 0.05464821115
N35: Residual | O35: 6 | P35: 0.3635277093 | Q35: 0.06058795155
B36: 1e-05 | C36: 1e-05 | N36: Total | O36: 7 | P36: 0.7071856535
B37: 0.1 | C37: 0.1
O38: Coefficients | P38: Standard Error | Q38: t Stat | R38: P-value | S38: Lower 95% | T38: Upper 95% | U38: Lower 95.0% | V38: Upper 95.0%
N39: Intercept | O39: -1.609375096 | P39: 0.42046835 | Q39: -3.827577262 | R39: 0.008683641176 | S39: -2.638224083 | T39: -0.5805261093 | U39: -2.638224083 | V39: -0.5805261093
N40: Obs (x) | O40: 0.3737951851 | P40: 0.1569508398 | Q40: 2.381606786 | R40: 0.05464821115 | S40: -0.010249684 | T40: 0.7578400543 | U40: -0.010249684 | V40: 0.7578400543
B43: 1e-05 | C43: 1e-05
B44: 0.1 | C44: 0.1

Sheet Cessna and Grover 2002
B1: Cessna and Grover 2002
A2: Subgroup: | B2: Bromoxynil, ground broadcast
B3: See study notes
B4: Cannot get individual measurements but can get medians and range.
B5: See Table 8 of paper | H5: Calculated
B6: Estimate | C6: ug p.e. | D6: ug/g creatine | E6: ng p.e./g creatinine/kg BW | F6: ng/g creatinine/kg (p.e.) | G6: ng/g creatinine/kg BW /kg (p.e.) | I6: g creatine (ug p.e./g creatine to ug p.e.) | J6: ng p.e./kg bw | K6: ng p.e./kg bw per kg p.e. | L6: ng p.e./kg bw per lb p.e. | M6: ug p.e./kg bw per lb p.e. | N6: mg p.e./kg bw per lb p.e. | O6: Urinary correction factor | P6: Corrected mg p.e./kg bw per lb p.e. | R6: n
B7: With Gloves | R7: 5
B8: Minimum | C8: 1.62 | D8: 0.167 | E8: 2.53 | F8: 18.6 | G8: 0.28 | I8: =C8/D8 -> 9.700598802 | J8: =E8*I8 -> 24.54251497 | K8: =G8*I8 -> 2.716167665 | L8: =K8*$K$18 -> 1.232053653 | M8: =L8/1000 -> 0.001232053653 | N8: =M8/1000 -> 1.232053653e-06 | O8: 0.9 | P8: =N8/O8 -> 1.368948503e-06 | Q8: Minimum
B9: Maximum | C9: 38 | D9: 2.68 | E9: 27.4 | F9: 305 | G9: 3.04 | I9: =C9/D9 -> 14.17910448 | J9: =E9*I9 -> 388.5074627 | K9: =G9*I9 -> 43.10447761 | L9: =K9*$K$18 -> 19.55219104 | M9: =L9/1000 -> 0.01955219104 | N9: 1.955219104e-05 | O9: 0.75 | P9: =N9/O9 -> 2.606958806e-05 | Q9: Maximum
B10: Median | C10: 4.99 | D10: 0.388 | E10: 5.24 | F10: 53 | G10: 0.62 | I10: 12.86082474 | J10: 67.39072165 | K10: 7.97371134 | L10: 3.616875464 | M10: 0.003616875464 | N10: 3.616875464e-06 | O10: 0.8 | P10: 4.52109433e-06 | Q10: Median
B11: Withour Gloves | R11: 8
B12: Minimum | C12: 13.5 | D12: 0.739 | E12: 8.4 | F12: 82.1 | G12: 0.93 | I12: =C12/D12 -> 18.26792963 | J12: =E12*I12 -> 153.4506089 | K12: =G12*I12 -> 16.98917456 | L12: =K12*$K$18 -> 7.706289581 | M12: =L12/1000 -> 0.007706289581 | N12: =M12/1000 -> 7.706289581e-06 | O12: 0.9 | P12: =N12/O12 -> 8.562543978e-06
B13: Maximum | C13: 187 | D13: 9.98 | E13: 119 | F13: 1110 | G13: 13.2 | I13: 18.73747495 | J13: =E13*I13 -> 2229.759519 | K13: =G13*I13 -> 247.3346693 | L13: =K13*$K$18 -> 112.191006 | M13: =L13/1000 -> 0.112191006 | N13: 0.000112191006 | O13: 0.75 | P13: =N13/O13 -> 0.000149588008
B14: Median | C14: 55.7 | D14: 3.15 | E14: 28.9 | F14: 350 | G14: 3.51 | I14: 17.68253968 | J14: 511.0253968 | K14: 62.06571429 | L14: 28.153008 | M14: 0.028153008 | N14: 2.8153008e-05 | O14: 0.8 | P14: 3.519126e-05 | Q14: Median
P16: Weighted ave. | Q16: =((P8*$R$7) + (P12*$R$11))/($R$7+$R$11) -> 5.795776488e-06 | R16: Minimum
Q17: =((P9*$R$7) + (P13*$R$11))/($R$7+$R$11) -> 0.0001020809234 | R17: Maximum
J18: lb/kg | K18: 0.4536 | Q18: 2.339504243e-05 | R18: Median

Sheet Chester et al. 1987
B1: Chester et al. 1987
A2: Subgroup: | B2: Mixer-loaders for aerial application of cypermethrin
C3: Confidence Intervals
C4: Arithmetic | G4: Geometric (Log10)
C5: Mean | D5: Lower Limit | E5: Upper Limit | G5: Mean | H5: Lower Limit | I5: Upper Limit
C6: =IF(C15>0,AVERAGE(B24:B29), "") -> 2.420634921e-05 | D6: =IF(C15>1, C6-C20, "") -> 8.34061918e-06 | E6: =IF(C15>1, C6+C20, "") -> 4.007207923e-05 | F6: Inverse log | G6: =IF(C15>0, 10^G7, "") -> 2.365017042e-05 | H6: =IF(C15>1,10^H7, "") -> 1.22688315e-05 | I6: =IF(C15>1, 10^I7, "") -> 4.558955437e-05
F7: Log | G7: =IF(C15>0, AVERAGE(G24:G29), "") -> -4.626165725 | H7: =IF(C15>1, G7-G20, "") -> -4.911196798 | I7: =IF(C15>1, G7+G20, "") -> -4.341134653
C9: Prediction Intervals
C10: Arithmetic | G10: Geometric (Log10)
C11: Mean | D11: Lower Limit | E11: Upper Limit | G11: Mean | H11: Lower Limit | I11: Upper Limit
C12: =IF(C15>0,AVERAGE(B24:B29), "") -> 2.420634921e-05 | D12: =IF(C15>1, C12-C21, "") -> -7.525110846e-06 | E12: =IF(C15>1, C12+C21, "") -> 5.593780926e-05 | F12: Inverse log | G12: =IF($C$15>0, 10^G13, "") -> 2.365017042e-05 | H12: =IF($C$15>0, 10^H13, "") -> 6.364614875e-06 | I12: 8.788128926e-05
F13: Log | G13: =IF(C15>0, AVERAGE(G24:G29), "") -> -4.626165725 | H13: =IF(C15>1, G13-G21, "") -> -5.19622787 | I13: =IF(C15>1, G13+G21, "") -> -4.05610358 | L13: ='t-values'!A3 -> 95% Confidence Interval
B15: n: | C15: =COUNTA(B24:B29) -> 3 | L15: ='t-values'!A4 -> alpha = 0.025
B16: SSE: | C16: =IF(C15>0, SUM(C24:C29), "") -> 8.15696649e-11 | D16: Check | F16: SSE: | G16: =IF(C15>0, SUM(H24:H29), "") -> 0.02632649072 | H16: Check | L16: ='t-values'!A5 -> n | M16: ='t-values'!B5 -> t-value
B17: Variance (s2): | C17: =IF(C15>1, C16/(C15-1), "") -> 4.078483245e-11 | D17: =IF(C15>1, VAR(B24:B29), "") -> 4.078483245e-11 | E17: =IF(C15>1, C17-D17, "") -> 0 | F17: Variance (s2): | G17: =IF(C15>1, G16/(C15-1), "") -> 0.01316324536 | H17: =IF(C15>1, VAR(G24:G29), "") -> 0.01316324536 | I17: =IF(C15>1, G17-H17, "") -> 0 | L17: ='t-values'!A6 -> 2 | M17: ='t-values'!B6 -> 12.706
B18: Std Dev (s): | C18: =IF(C15>1, C17^0.5, "") -> 6.386300373e-06 | D18: =IF(C15>1, STDEV(B24:B29), "") -> 6.386300373e-06 | E18: =IF(C15>1, C18-D18, "") -> 0 | F18: Std Dev (s): | G18: =IF(C15>1, G17^0.5, "") -> 0.1147311874 | H18: =IF(C15>1, STDEV(G24:G26), "") -> 0.1147311874 | I18: =IF(C15>1, G18-H18, "") -> 0 | L18: ='t-values'!A7 -> 3 | M18: ='t-values'!B7 -> 4.303
B19: t-value: | C19: =IF(C15>1, IF(C15<31, OFFSET(M16, C15-1, 0), 1.96), "") -> 4.303 | F19: t-value: | G19: =C19 -> 4.303 | L19: ='t-values'!A8 -> 4 | M19: ='t-values'!B8 -> 3.182
B20: Conf. Interval Factor: | C20: =IF(C15>1, C19*C18/(C15^0.5), "") -> 1.586573003e-05 | D20: t x s / n0.5 | F20: Conf. Interval Factor: | G20: =IF(C15>1, G19*G18/(C15^0.5), "") -> 0.2850310725 | H20: t x s / n0.5 | L20: ='t-values'!A9 -> 5 | M20: ='t-values'!B9 -> 2.776
B21: Pred. Interal Factor: | C21: =IF(C15>1, C19*C18*(1+(1/C15))^0.5, "") -> 3.173146005e-05 | D21: t x s x (1+ 1/n)0.5 | F21: Pred. Interal Factor: | G21: =IF(C15>1, G19*G18*((1+(1/C15))^0.5), "") -> 0.570062145 | H21: t x s x (1+ 1/n)0.5 | L21: ='t-values'!A10 -> 6 | M21: ='t-values'!B10 -> 2.571
A22: RAW DATA (only enter data under Identifier and Rate. Everything else is a link.) | L22: ='t-values'!A11 -> 7 | M22: ='t-values'!B11 -> 2.447
A23: Identifier | B23: Rate | C23: (x - xbar)2 | D23: n | G23: Log Rate | H23: (x - xbar)2 | L23: ='t-values'!A12 -> 8 | M23: ='t-values'!B12 -> 2.365
A24: Worker 1 | B24: =F40 -> 1.825396825e-05 | C24: =IF(ISBLANK(B24)=FALSE, ($C$6-B24)^2, "") -> 3.5430839e-11 | D24: 1 | G24: =IF(ISBLANK(B24)=FALSE,LOG10(B24), "") -> -4.738642709 | H24: =IF(ISBLANK(B24)=FALSE, ($G$7-G24)^2, "") -> 0.01265107185 | L24: ='t-values'!A13 -> 9 | M24: ='t-values'!B13 -> 2.306
A25: Worker 2 | B25: 2.341269841e-05 | C25: =IF(ISBLANK(B25)=FALSE, ($C$6-B25)^2, "") -> 6.298815823e-13 | D25: =D24+1 -> 2 | G25: =IF(ISBLANK(B25)=FALSE,LOG10(B25), "") -> -4.630548529 | H25: =IF(ISBLANK(B25)=FALSE, ($G$7-G25)^2, "") -> 1.920896824e-05 | L25: ='t-values'!A14 -> 10 | M25: ='t-values'!B14 -> 2.262
A26: Worker 3 | B26: 3.095238095e-05 | C26: 4.550894432e-11 | D26: =D25+1 -> 3 | G26: -4.509305938 | H26: 0.0136562099 | L26: ='t-values'!A15 -> 11 | M26: ='t-values'!B15 -> 2.228
D27: 4 | L27: ='t-values'!A16 -> 12 | M27: ='t-values'!B16 -> 2.201
D28: 5 | L28: ='t-values'!A17 -> 13 | M28: ='t-values'!B17 -> 2.179
D29: 6 | L29: ='t-values'!A18 -> 14 | M29: ='t-values'!B18 -> 2.16
A30: NOTE: If there are more than 45 items, insert additional cellss in the middle of the data area. The formulae should update correctly but check. | L30: ='t-values'!A19 -> 15 | M30: ='t-values'!B19 -> 2.145
L31: ='t-values'!A20 -> 16 | M31: ='t-values'!B20 -> 2.131
L32: ='t-values'!A21 -> 17 | M32: ='t-values'!B21 -> 2.12
L33: ='t-values'!A22 -> 18 | M33: ='t-values'!B22 -> 2.11
L34: ='t-values'!A23 -> 19 | M34: ='t-values'!B23 -> 2.101
L35: ='t-values'!A24 -> 20 | M35: ='t-values'!B24 -> 2.093
L36: ='t-values'!A25 -> 21 | M36: ='t-values'!B25 -> 2.086
L37: ='t-values'!A26 -> 22 | M37: ='t-values'!B26 -> 2.08
L38: ='t-values'!A27 -> 23 | M38: ='t-values'!B27 -> 2.074
B39: ug/day | C39: mg/day | D39: Amount Handled (lb) | E39: BW (kg) | F39: Rate | L39: ='t-values'!A28 -> 24 | M39: ='t-values'!B28 -> 2.069
B40: 46 | C40: =B40/1000 -> 0.046 | D40: 36 | E40: 70 | F40: =(C40/E40)/D40 -> 1.825396825e-05 | L40: ='t-values'!A29 -> 25 | M40: ='t-values'!B29 -> 2.064
B41: 59 | C41: =B41/1000 -> 0.059 | D41: 36 | E41: 70 | F41: =(C41/E41)/D41 -> 2.341269841e-05 | L41: ='t-values'!A30 -> 26 | M41: ='t-values'!B30 -> 2.06
B42: 78 | C42: 0.078 | D42: 36 | E42: 70 | F42: 3.095238095e-05 | L42: ='t-values'!A31 -> 27 | M42: ='t-values'!B31 -> 2.056
L43: ='t-values'!A32 -> 28 | M43: ='t-values'!B32 -> 2.052
L44: ='t-values'!A33 -> 29 | M44: ='t-values'!B33 -> 2.048
L45: ='t-values'!A34 -> 30 | M45: ='t-values'!B34 -> 2.045
L46: ='t-values'!A35 -> ∞ | M46: ='t-values'!B35 -> 1.96

Sheet Cowell et al. 1991
B1: Cowell et al. 1991
A2: Subgroup: | B2: Lawn care applications, three cities combined.
C3: Confidence Intervals
C4: Arithmetic | G4: Geometric (Log10)
C5: Mean | D5: Lower Limit | E5: Upper Limit | G5: Mean | H5: Lower Limit | I5: Upper Limit
C6: =IF(C15>0,AVERAGE(B24:B68), "") -> 5.063888889e-05 | D6: =IF(C15>1, C6-C20, "") -> 3.854694314e-05 | E6: =IF(C15>1, C6+C20, "") -> 6.273083464e-05 | F6: Inverse log | G6: =IF(C15>0, 10^G7, "") -> 4.343597468e-05 | H6: =IF(C15>1,10^H7, "") -> 3.174136806e-05 | I6: =IF(C15>1, 10^I7, "") -> 5.943927473e-05
F7: Log | G7: =IF(C15>0, AVERAGE(G24:G68), "") -> -4.362150429 | H7: =IF(C15>1, G7-G20, "") -> -4.498374359 | I7: =IF(C15>1, G7+G20, "") -> -4.225926498
C9: Prediction Intervals
C10: Arithmetic | G10: Geometric (Log10)
C11: Mean | D11: Lower Limit | E11: Upper Limit | G11: Mean | H11: Lower Limit | I11: Upper Limit
C12: =IF(C15>0,AVERAGE(B24:B68), "") -> 5.063888889e-05 | D12: =IF(C15>1, C12-C21, "") -> -2.068680671e-06 | E12: =IF(C15>1, C12+C21, "") -> 0.0001033464584 | F12: Inverse log | G12: =IF($C$15>0, 10^G13, "") -> 4.343597468e-05 | H12: =IF($C$15>0, 10^H13, "") -> 1.1067849e-05 | I12: 0.0001704652725
F13: Log | G13: =IF(C15>0, AVERAGE(G24:G68), "") -> -4.362150429 | H13: =IF(C15>1, G13-G21, "") -> -4.955936775 | I13: =IF(C15>1, G13+G21, "") -> -3.768364083 | L13: ='t-values'!A3 -> 95% Confidence Interval
B15: n: | C15: =COUNTA(B24:B68) -> 18 | L15: ='t-values'!A4 -> alpha = 0.025
B16: SSE: | C16: =IF(C15>0, SUM(C24:C68), "") -> 1.004960278e-08 | D16: Check | F16: SSE: | G16: =IF(C15>0, SUM(H24:H68), "") -> 1.275449678 | H16: Check | L16: ='t-values'!A5 -> n | M16: ='t-values'!B5 -> t-value
B17: Variance (s2): | C17: =IF(C15>1, C16/(C15-1), "") -> 5.911531046e-10 | D17: =IF(C15>1, VAR(B24:B68), "") -> 5.911531046e-10 | E17: =IF(C15>1, C17-D17, "") -> 0 | F17: Variance (s2): | G17: =IF(C15>1, G16/(C15-1), "") -> 0.07502645164 | H17: =IF(C15>1, VAR(G24:G68), "") -> 0.07502645164 | I17: =IF(C15>1, G17-H17, "") -> 0 | L17: ='t-values'!A6 -> 2 | M17: ='t-values'!B6 -> 12.706
B18: Std Dev (s): | C18: =IF(C15>1, C17^0.5, "") -> 2.43136403e-05 | D18: =IF(C15>1, STDEV(B24:B68), "") -> 2.43136403e-05 | E18: =IF(C15>1, C18-D18, "") -> 0 | F18: Std Dev (s): | G18: =IF(C15>1, G17^0.5, "") -> 0.2739095684 | H18: =IF(C15>1, STDEV(G24:G31), "") -> 0.2045887661 | I18: =IF(C15>1, G18-H18, "") -> 0.06932080223 | L18: ='t-values'!A7 -> 3 | M18: ='t-values'!B7 -> 4.303
B19: t-value: | C19: =IF(C15>1, IF(C15<31, OFFSET(M16, C15-1, 0), 1.96), "") -> 2.11 | F19: t-value: | G19: =C19 -> 2.11 | L19: ='t-values'!A8 -> 4 | M19: ='t-values'!B8 -> 3.182
B20: Conf. Interval Factor: | C20: =IF(C15>1, C19*C18/(C15^0.5), "") -> 1.209194575e-05 | D20: t x s / n0.5 | F20: Conf. Interval Factor: | G20: =IF(C15>1, G19*G18/(C15^0.5), "") -> 0.1362239303 | H20: t x s / n0.5 | L20: ='t-values'!A9 -> 5 | M20: ='t-values'!B9 -> 2.776
B21: Pred. Interal Factor: | C21: =IF(C15>1, C19*C18*(1+(1/C15))^0.5, "") -> 5.270756956e-05 | D21: t x s x (1+ 1/n)0.5 | F21: Pred. Interal Factor: | G21: =IF(C15>1, G19*G18*((1+(1/C15))^0.5), "") -> 0.5937863459 | H21: t x s x (1+ 1/n)0.5 | L21: ='t-values'!A10 -> 6 | M21: ='t-values'!B10 -> 2.571
A22: RAW DATA (only enter data under Identifier and Rate. Everything else is a link.) | L22: ='t-values'!A11 -> 7 | M22: ='t-values'!B11 -> 2.447
A23: Identifier | B23: Rate | C23: (x - xbar)2 | D23: n | G23: Log Rate | H23: (x - xbar)2 | L23: ='t-values'!A12 -> 8 | M23: ='t-values'!B12 -> 2.365
A24: Atlanta #1 | B24: 4.25e-05 | C24: =IF(ISBLANK(B24)=FALSE, ($C$6-B24)^2, "") -> 6.624151235e-11 | D24: 1 | G24: =IF(ISBLANK(B24)=FALSE,LOG10(B24), "") -> -4.37161107 | H24: =IF(ISBLANK(B24)=FALSE, ($G$7-G24)^2, "") -> 8.950373221e-05 | L24: ='t-values'!A13 -> 9 | M24: ='t-values'!B13 -> 2.306
A25: Atlanta #2 | B25: 2.42e-05 | C25: =IF(ISBLANK(B25)=FALSE, ($C$6-B25)^2, "") -> 6.990148457e-10 | D25: =D24+1 -> 2 | G25: =IF(ISBLANK(B25)=FALSE,LOG10(B25), "") -> -4.616184634 | H25: =IF(ISBLANK(B25)=FALSE, ($G$7-G25)^2, "") -> 0.06453337746 | L25: ='t-values'!A14 -> 10 | M25: ='t-values'!B14 -> 2.262
A26: Atlanta #3 | B26: 5e-05 | C26: 4.081790123e-13 | D26: =D25+1 -> 3 | G26: -4.301029996 | H26: 0.003735707339 | L26: ='t-values'!A15 -> 11 | M26: ='t-values'!B15 -> 2.228
A27: Atlanta #4 | B27: 8.13e-05 | C27: 9.401037346e-10 | D27: 4 | G27: -4.089909454 | H27: 0.0741151481 | L27: ='t-values'!A16 -> 12 | M27: ='t-values'!B16 -> 2.201
A28: Atlanta #5 | B28: 7.67e-05 | C28: 6.791815123e-10 | D28: 5 | G28: -4.115204636 | H28: 0.06098222452 | L28: ='t-values'!A17 -> 13 | M28: ='t-values'!B17 -> 2.179
A29: Atlanta #6 | B29: 4.21e-05 | C29: 7.291262346e-11 | D29: 6 | G29: -4.375717904 | H29: 0.0001840763896 | L29: ='t-values'!A18 -> 14 | M29: ='t-values'!B18 -> 2.16
A30: Cincinati #7 | B30: 6.31e-05 | C30: 1.552792901e-10 | D30: 7 | G30: -4.199970641 | H30: 0.02630228363 | L30: ='t-values'!A19 -> 15 | M30: ='t-values'!B19 -> 2.145
A31: Cincinati #8 | B31: 2.38e-05 | C31: 7.203259568e-10 | D31: 8 | G31: -4.623423043 | H31: 0.06826337894 | L31: ='t-values'!A20 -> 16 | M31: ='t-values'!B20 -> 2.131
A32: Cincinati #9 | B32: 6.06e-05 | C32: 9.922373457e-11 | D32: 9 | G32: -4.217527376 | H32: 0.02091582743 | L32: ='t-values'!A21 -> 17 | M32: ='t-values'!B21 -> 2.12
A33: Cincinati #10 | B33: 4.89e-05 | C33: 3.023734568e-12 | D33: 10 | G33: -4.310691141 | H33: 0.002648058307 | L33: ='t-values'!A22 -> 18 | M33: ='t-values'!B22 -> 2.11
A34: Cincinati #12 | B34: 7.59e-05 | C34: 6.381237346e-10 | D34: 11 | G34: -4.119758224 | H34: 0.05875398087 | L34: ='t-values'!A23 -> 19 | M34: ='t-values'!B23 -> 2.101
A35: Clevland #13 | B35: 6.73e-05 | C35: 2.775926235e-10 | D35: 12 | G35: -4.171984936 | H35: 0.03616291471 | L35: ='t-values'!A24 -> 20 | M35: ='t-values'!B24 -> 2.093
A36: Clevland #14 | B36: 2.26e-05 | C36: 7.861792901e-10 | D36: 13 | G36: -4.645891561 | H36: 0.08050903006 | L36: ='t-values'!A25 -> 21 | M36: ='t-values'!B25 -> 2.086
A37: Clevland #15 | B37: 1.27e-05 | C37: 1.43935929e-09 | D37: 14 | G37: -4.896196279 | H37: 0.2852049702 | L37: ='t-values'!A26 -> 22 | M37: ='t-values'!B26 -> 2.08
A38: Clevland #16 | B38: 1.11e-05 | C38: 1.563323735e-09 | D38: 15 | G38: -4.954677021 | H38: 0.3510877628 | L38: ='t-values'!A27 -> 23 | M38: ='t-values'!B27 -> 2.074
A39: Clevland #17 | B39: 9.22e-05 | C39: 1.727325957e-09 | D39: 16 | G39: -4.035269079 | H39: 0.1068514168 | L39: ='t-values'!A28 -> 24 | M39: ='t-values'!B28 -> 2.069
A40: Clevland #18 | B40: 5.25e-05 | C40: 3.463734568e-12 | D40: 17 | G40: -4.279840697 | H40: 0.006774892005 | L40: ='t-values'!A29 -> 25 | M40: ='t-values'!B29 -> 2.064
A41: Clevland #19 | B41: 6.4e-05 | C41: 1.785192901e-10 | D41: 18 | G41: -4.193820026 | H41: 0.02833512448 | L41: ='t-values'!A30 -> 26 | M41: ='t-values'!B30 -> 2.06
D42: 19 | L42: ='t-values'!A31 -> 27 | M42: ='t-values'!B31 -> 2.056
D43: 20 | L43: ='t-values'!A32 -> 28 | M43: ='t-values'!B32 -> 2.052
D44: 21 | L44: ='t-values'!A33 -> 29 | M44: ='t-values'!B33 -> 2.048
D45: 22 | L45: ='t-values'!A34 -> 30 | M45: ='t-values'!B34 -> 2.045
D46: 23 | L46: ='t-values'!A35 -> ∞ | M46: ='t-values'!B35 -> 1.96
D47: 24
D48: 25
D49: 26
D50: 27
D51: 28
D52: 29
D53: 30
D54: 31
D55: 32
D56: 33
D57: 34
D58: 35
D59: 36
D60: 37
D61: 38
D62: 39
D63: 40
D64: 41
D65: 42
D66: 43
D67: 44
D68: 45
A69: NOTE: If there are more than 45 items, insert additional cellss in the middle of the data area. The formulae should update correctly but check.

Sheet Cruz Marquez et al. 2001
B1: Cruz Marquez et al. 2001
A2: Subgroup: | B2: Malation, greenhouse foliar spray
B4: See discussion of study in Appendix 2 and Section 3.2.3.4.2 of report.
C5: ug MMA per worker | D5: mg MMA per worker | E5: mg MMA/kg bw | F5: mg Malation equivalent | G5: Rate: mg/kg bw per lb a.i.
B6: PPE | C6: 133.75 | D6: =C6/1000 -> 0.13375 | E6: =D6/$D$9 -> 0.001910714286 | F6: =E6/$D$10 -> 0.005307539683 | G6: =F6/$D$11 -> 0.004738874717
B7: No PPE | C7: 671.42 | D7: =C7/1000 -> 0.67142 | E7: =D7/$D$9 -> 0.009591714286 | F7: =E7/$D$10 -> 0.02664365079 | G7: =F7/$D$11 -> 0.02378897392
G8: =G7/G6 -> 5.019962617 | H8: No PPE/PPD
C9: Assumed BW: | D9: 70 | E9: kg
C10: MMA Correction Factor: | D10: 0.36 | F10: see discussion of Krieger and Dinoff (2000) in text.
C11: Amount a.i. handled: | D11: 1.12 | E11: lb

Sheet Dubelman and Cowell 1989-1
B1: Dubelman and Cowell 1989
A2: Subgroup: | B2: Canada, Open-cab, surface application, mixer/loader/applicator. Table VI, p. 247
C3: Confidence Intervals
C4: Arithmetic | G4: Geometric (Log10)
C5: Mean | D5: Lower Limit | E5: Upper Limit | G5: Mean | H5: Lower Limit | I5: Upper Limit
C6: =IF(C15>0,AVERAGE(B24:B68), "") -> 4.985e-05 | D6: =IF(C15>1, C6-C20, "") -> -1.745744884e-05 | E6: =IF(C15>1, C6+C20, "") -> 0.0001171574488 | F6: Inverse log | G6: =IF(C15>0, 10^G7, "") -> 3.951140486e-05 | H6: =IF(C15>1,10^H7, "") -> 1.192185339e-05 | I6: =IF(C15>1, 10^I7, "") -> 0.0001309486925
F7: Log | G7: =IF(C15>0, AVERAGE(G24:G68), "") -> -4.403277528 | H7: =IF(C15>1, G7-G20, "") -> -4.923656223 | I7: =IF(C15>1, G7+G20, "") -> -3.882898833
C9: Prediction Intervals
C10: Arithmetic | G10: Geometric (Log10)
C11: Mean | D11: Lower Limit | E11: Upper Limit | G11: Mean | H11: Lower Limit | I11: Upper Limit
C12: =IF(C15>0,AVERAGE(B24:B68), "") -> 4.985e-05 | D12: =IF(C15>1, C12-C21, "") -> -0.000100654031 | E12: =IF(C15>1, C12+C21, "") -> 0.000200354031 | F12: Inverse log | G12: =IF($C$15>0, 10^G13, "") -> 3.951140486e-05 | H12: =IF($C$15>0, 10^H13, "") -> 2.710942685e-06 | I12: 0.0005758702029
F13: Log | G13: =IF(C15>0, AVERAGE(G24:G68), "") -> -4.403277528 | H13: =IF(C15>1, G13-G21, "") -> -5.566879664 | I13: =IF(C15>1, G13+G21, "") -> -3.239675392 | L13: ='t-values'!A3 -> 95% Confidence Interval
B15: n: | C15: =COUNTA(B24:B68) -> 4 | L15: ='t-values'!A4 -> alpha = 0.025
B16: SSE: | C16: =IF(C15>0, SUM(C24:C68), "") -> 5.36917e-09 | D16: Check | F16: SSE: | G16: =IF(C15>0, SUM(H24:H68), "") -> 0.3209370901 | H16: Check | L16: ='t-values'!A5 -> n | M16: ='t-values'!B5 -> t-value
B17: Variance (s2): | C17: =IF(C15>1, C16/(C15-1), "") -> 1.789723333e-09 | D17: =IF(C15>1, VAR(B24:B68), "") -> 1.789723333e-09 | E17: =IF(C15>1, C17-D17, "") -> 0 | F17: Variance (s2): | G17: =IF(C15>1, G16/(C15-1), "") -> 0.10697903 | H17: =IF(C15>1, VAR(G24:G68), "") -> 0.10697903 | I17: =IF(C15>1, G17-H17, "") -> 0 | L17: ='t-values'!A6 -> 2 | M17: ='t-values'!B6 -> 12.706
B18: Std Dev (s): | C18: =IF(C15>1, C17^0.5, "") -> 4.230512183e-05 | D18: =IF(C15>1, STDEV(B24:B68), "") -> 4.230512183e-05 | E18: =IF(C15>1, C18-D18, "") -> 0 | F18: Std Dev (s): | G18: =IF(C15>1, G17^0.5, "") -> 0.3270764896 | H18: =IF(C15>1, STDEV(G24:G31), "") -> 0.3270764896 | I18: =IF(C15>1, G18-H18, "") -> 0 | L18: ='t-values'!A7 -> 3 | M18: ='t-values'!B7 -> 4.303
B19: t-value: | C19: =IF(C15>1, IF(C15<31, OFFSET(M16, C15-1, 0), 1.96), "") -> 3.182 | F19: t-value: | G19: =C19 -> 3.182 | L19: ='t-values'!A8 -> 4 | M19: ='t-values'!B8 -> 3.182
B20: Conf. Interval Factor: | C20: =IF(C15>1, C19*C18/(C15^0.5), "") -> 6.730744884e-05 | D20: t x s / n0.5 | F20: Conf. Interval Factor: | G20: =IF(C15>1, G19*G18/(C15^0.5), "") -> 0.5203786949 | H20: t x s / n0.5 | L20: ='t-values'!A9 -> 5 | M20: ='t-values'!B9 -> 2.776
B21: Pred. Interal Factor: | C21: =IF(C15>1, C19*C18*(1+(1/C15))^0.5, "") -> 0.000150504031 | D21: t x s x (1+ 1/n)0.5 | F21: Pred. Interal Factor: | G21: =IF(C15>1, G19*G18*((1+(1/C15))^0.5), "") -> 1.163602136 | H21: t x s x (1+ 1/n)0.5 | L21: ='t-values'!A10 -> 6 | M21: ='t-values'!B10 -> 2.571
A22: RAW DATA (only enter data under Identifier and Rate. Everything else is a link.) | L22: ='t-values'!A11 -> 7 | M22: ='t-values'!B11 -> 2.447
A23: Identifier | B23: Rate | C23: (x - xbar)2 | D23: n | G23: Log Rate | H23: (x - xbar)2 | L23: ='t-values'!A12 -> 8 | M23: ='t-values'!B12 -> 2.365
A24: CAN 01 | B24: 2.7e-05 | C24: =IF(ISBLANK(B24)=FALSE, ($C$6-B24)^2, "") -> 5.221225e-10 | D24: 1 | G24: =IF(ISBLANK(B24)=FALSE,LOG10(B24), "") -> -4.568636236 | H24: =IF(ISBLANK(B24)=FALSE, ($G$7-G24)^2, "") -> 0.02734350213 | L24: ='t-values'!A13 -> 9 | M24: ='t-values'!B13 -> 2.306
A25: CAN 05 | B25: 1.99e-05 | C25: =IF(ISBLANK(B25)=FALSE, ($C$6-B25)^2, "") -> 8.970025e-10 | D25: =D24+1 -> 2 | G25: =IF(ISBLANK(B25)=FALSE,LOG10(B25), "") -> -4.701146924 | H25: =IF(ISBLANK(B25)=FALSE, ($G$7-G25)^2, "") -> 0.0887261766 | L25: ='t-values'!A14 -> 10 | M25: ='t-values'!B14 -> 2.262
A26: CAN 03 | B26: 0.000112 | C26: 3.8626225e-09 | D26: =D25+1 -> 3 | G26: -3.950781977 | H26: 0.2047522237 | L26: ='t-values'!A15 -> 11 | M26: ='t-values'!B15 -> 2.228
A27: CAN 04 | B27: 4.05e-05 | C27: 8.74225e-11 | D27: 4 | G27: -4.392544977 | H27: 0.0001151876639 | L27: ='t-values'!A16 -> 12 | M27: ='t-values'!B16 -> 2.201
D28: 5 | L28: ='t-values'!A17 -> 13 | M28: ='t-values'!B17 -> 2.179
D29: 6 | L29: ='t-values'!A18 -> 14 | M29: ='t-values'!B18 -> 2.16
D30: 7 | L30: ='t-values'!A19 -> 15 | M30: ='t-values'!B19 -> 2.145
D31: 8 | L31: ='t-values'!A20 -> 16 | M31: ='t-values'!B20 -> 2.131
D32: 9 | L32: ='t-values'!A21 -> 17 | M32: ='t-values'!B21 -> 2.12
D33: 10 | L33: ='t-values'!A22 -> 18 | M33: ='t-values'!B22 -> 2.11
D34: 11 | L34: ='t-values'!A23 -> 19 | M34: ='t-values'!B23 -> 2.101
D35: 12 | L35: ='t-values'!A24 -> 20 | M35: ='t-values'!B24 -> 2.093
D36: 13 | L36: ='t-values'!A25 -> 21 | M36: ='t-values'!B25 -> 2.086
D37: 14 | L37: ='t-values'!A26 -> 22 | M37: ='t-values'!B26 -> 2.08
D38: 15 | L38: ='t-values'!A27 -> 23 | M38: ='t-values'!B27 -> 2.074
D39: 16 | L39: ='t-values'!A28 -> 24 | M39: ='t-values'!B28 -> 2.069
D40: 17 | L40: ='t-values'!A29 -> 25 | M40: ='t-values'!B29 -> 2.064
D41: 18 | L41: ='t-values'!A30 -> 26 | M41: ='t-values'!B30 -> 2.06
D42: 19 | L42: ='t-values'!A31 -> 27 | M42: ='t-values'!B31 -> 2.056
D43: 20 | L43: ='t-values'!A32 -> 28 | M43: ='t-values'!B32 -> 2.052
D44: 21 | L44: ='t-values'!A33 -> 29 | M44: ='t-values'!B33 -> 2.048
D45: 22 | L45: ='t-values'!A34 -> 30 | M45: ='t-values'!B34 -> 2.045
D46: 23 | L46: ='t-values'!A35 -> ∞ | M46: ='t-values'!B35 -> 1.96
D47: 24
D48: 25
D49: 26
D50: 27
D51: 28
D52: 29
D53: 30
D54: 31
D55: 32
D56: 33
D57: 34
D58: 35
D59: 36
D60: 37
D61: 38
D62: 39
D63: 40
D64: 41
D65: 42
D66: 43
D67: 44
D68: 45
A69: NOTE: If there are more than 45 items, insert additional cellss in the middle of the data area. The formulae should update correctly but check.

Sheet Dubelman and Cowell 1989-2
B1: Dubelman and Cowell 1989
A2: Subgroup: | B2: Indiana, Closed-cab, soil incorporation, mixer/loader/applicator. Table VI, p. 247
C3: Confidence Intervals
C4: Arithmetic | G4: Geometric (Log10)
C5: Mean | D5: Lower Limit | E5: Upper Limit | G5: Mean | H5: Lower Limit | I5: Upper Limit
C6: =IF(C15>0,AVERAGE(B24:B68), "") -> 8.988e-06 | D6: =IF(C15>1, C6-C20, "") -> 4.578955834e-07 | E6: =IF(C15>1, C6+C20, "") -> 1.751810442e-05 | F6: Inverse log | G6: =IF(C15>0, 10^G7, "") -> 5.228973284e-06 | H6: =IF(C15>1,10^H7, "") -> 1.68650974e-06 | I6: =IF(C15>1, 10^I7, "") -> 1.621227613e-05
F7: Log | G7: =IF(C15>0, AVERAGE(G24:G68), "") -> -5.281583577 | H7: =IF(C15>1, G7-G20, "") -> -5.773011146 | I7: =IF(C15>1, G7+G20, "") -> -4.790156008
C9: Prediction Intervals
C10: Arithmetic | G10: Geometric (Log10)
C11: Mean | D11: Lower Limit | E11: Upper Limit | G11: Mean | H11: Lower Limit | I11: Upper Limit
C12: =IF(C15>0,AVERAGE(B24:B68), "") -> 8.988e-06 | D12: =IF(C15>1, C12-C21, "") -> -1.513877871e-05 | E12: =IF(C15>1, C12+C21, "") -> 3.311477871e-05 | F12: Inverse log | G12: =IF($C$15>0, 10^G13, "") -> 5.228973284e-06 | H12: =IF($C$15>0, 10^H13, "") -> 2.13034213e-07 | I12: 0.0001283463404
F13: Log | G13: =IF(C15>0, AVERAGE(G24:G68), "") -> -5.281583577 | H13: =IF(C15>1, G13-G21, "") -> -6.671550644 | I13: =IF(C15>1, G13+G21, "") -> -3.89161651 | L13: ='t-values'!A3 -> 95% Confidence Interval
B15: n: | C15: =COUNTA(B24:B68) -> 7 | L15: ='t-values'!A4 -> alpha = 0.025
B16: SSE: | C16: =IF(C15>0, SUM(C24:C68), "") -> 5.10375768e-10 | D16: Check | F16: SSE: | G16: =IF(C15>0, SUM(H24:H68), "") -> 1.693949214 | H16: Check | L16: ='t-values'!A5 -> n | M16: ='t-values'!B5 -> t-value
B17: Variance (s2): | C17: =IF(C15>1, C16/(C15-1), "") -> 8.5062628e-11 | D17: =IF(C15>1, VAR(B24:B68), "") -> 8.5062628e-11 | E17: =IF(C15>1, C17-D17, "") -> 0 | F17: Variance (s2): | G17: =IF(C15>1, G16/(C15-1), "") -> 0.2823248689 | H17: =IF(C15>1, VAR(G24:G68), "") -> 0.2823248689 | I17: =IF(C15>1, G17-H17, "") -> 0 | L17: ='t-values'!A6 -> 2 | M17: ='t-values'!B6 -> 12.706
B18: Std Dev (s): | C18: =IF(C15>1, C17^0.5, "") -> 9.222940312e-06 | D18: =IF(C15>1, STDEV(B24:B68), "") -> 9.222940312e-06 | E18: =IF(C15>1, C18-D18, "") -> 0 | F18: Std Dev (s): | G18: =IF(C15>1, G17^0.5, "") -> 0.5313425156 | H18: =IF(C15>1, STDEV(G24:G31), "") -> 0.5313425156 | I18: =IF(C15>1, G18-H18, "") -> 0 | L18: ='t-values'!A7 -> 3 | M18: ='t-values'!B7 -> 4.303
B19: t-value: | C19: =IF(C15>1, IF(C15<31, OFFSET(M16, C15-1, 0), 1.96), "") -> 2.447 | F19: t-value: | G19: =C19 -> 2.447 | L19: ='t-values'!A8 -> 4 | M19: ='t-values'!B8 -> 3.182
B20: Conf. Interval Factor: | C20: =IF(C15>1, C19*C18/(C15^0.5), "") -> 8.530104417e-06 | D20: t x s / n0.5 | F20: Conf. Interval Factor: | G20: =IF(C15>1, G19*G18/(C15^0.5), "") -> 0.4914275693 | H20: t x s / n0.5 | L20: ='t-values'!A9 -> 5 | M20: ='t-values'!B9 -> 2.776
B21: Pred. Interal Factor: | C21: =IF(C15>1, C19*C18*(1+(1/C15))^0.5, "") -> 2.412677871e-05 | D21: t x s x (1+ 1/n)0.5 | F21: Pred. Interal Factor: | G21: =IF(C15>1, G19*G18*((1+(1/C15))^0.5), "") -> 1.389967067 | H21: t x s x (1+ 1/n)0.5 | L21: ='t-values'!A10 -> 6 | M21: ='t-values'!B10 -> 2.571
A22: RAW DATA (only enter data under Identifier and Rate. Everything else is a link.) | L22: ='t-values'!A11 -> 7 | M22: ='t-values'!B11 -> 2.447
A23: Identifier | B23: Rate | C23: (x - xbar)2 | D23: n | G23: Log Rate | H23: (x - xbar)2 | L23: ='t-values'!A12 -> 8 | M23: ='t-values'!B12 -> 2.365
A24: IND 01 | B24: 5.26e-06 | C24: =IF(ISBLANK(B24)=FALSE, ($C$6-B24)^2, "") -> 1.3897984e-11 | D24: 1 | G24: =IF(ISBLANK(B24)=FALSE,LOG10(B24), "") -> -5.279014256 | H24: =IF(ISBLANK(B24)=FALSE, ($G$7-G24)^2, "") -> 6.601411604e-06 | L24: ='t-values'!A13 -> 9 | M24: ='t-values'!B13 -> 2.306
A25: IND02 | B25: 5.74e-06 | C25: =IF(ISBLANK(B25)=FALSE, ($C$6-B25)^2, "") -> 1.0549504e-11 | D25: =D24+1 -> 2 | G25: =IF(ISBLANK(B25)=FALSE,LOG10(B25), "") -> -5.241088108 | H25: =IF(ISBLANK(B25)=FALSE, ($G$7-G25)^2, "") -> 0.001639883048 | L25: ='t-values'!A14 -> 10 | M25: ='t-values'!B14 -> 2.262
A26: IND07 | B26: 6.76e-07 | C26: 6.9089344e-11 | D26: =D25+1 -> 3 | G26: -6.170053304 | H26: 0.7893784558 | L26: ='t-values'!A15 -> 11 | M26: ='t-values'!B15 -> 2.228
A27: IND02 | B27: 2.18e-05 | C27: 1.64147344e-10 | D27: 4 | G27: -4.661543506 | H27: 0.3844496893 | L27: ='t-values'!A16 -> 12 | M27: ='t-values'!B16 -> 2.201
A28: IND 04 | B28: 2.27e-05 | C28: 1.88018944e-10 | D28: 5 | G28: -4.643974143 | H28: 0.4065457907 | L28: ='t-values'!A17 -> 13 | M28: ='t-values'!B17 -> 2.179
A29: IND 06 | B29: 4.25e-06 | C29: 2.2448644e-11 | D29: 6 | G29: -5.37161107 | H29: 0.008104949472 | L29: ='t-values'!A18 -> 14 | M29: ='t-values'!B18 -> 2.16
A30: IND 08 | B30: 2.49e-06 | C30: 4.2224004e-11 | D30: 7 | G30: -5.603800653 | H30: 0.103823844 | L30: ='t-values'!A19 -> 15 | M30: ='t-values'!B19 -> 2.145
D31: 8 | L31: ='t-values'!A20 -> 16 | M31: ='t-values'!B20 -> 2.131
D32: 9 | L32: ='t-values'!A21 -> 17 | M32: ='t-values'!B21 -> 2.12
D33: 10 | L33: ='t-values'!A22 -> 18 | M33: ='t-values'!B22 -> 2.11
D34: 11 | L34: ='t-values'!A23 -> 19 | M34: ='t-values'!B23 -> 2.101
D35: 12 | L35: ='t-values'!A24 -> 20 | M35: ='t-values'!B24 -> 2.093
D36: 13 | L36: ='t-values'!A25 -> 21 | M36: ='t-values'!B25 -> 2.086
D37: 14 | L37: ='t-values'!A26 -> 22 | M37: ='t-values'!B26 -> 2.08
D38: 15 | L38: ='t-values'!A27 -> 23 | M38: ='t-values'!B27 -> 2.074
D39: 16 | L39: ='t-values'!A28 -> 24 | M39: ='t-values'!B28 -> 2.069
D40: 17 | L40: ='t-values'!A29 -> 25 | M40: ='t-values'!B29 -> 2.064
D41: 18 | L41: ='t-values'!A30 -> 26 | M41: ='t-values'!B30 -> 2.06
D42: 19 | L42: ='t-values'!A31 -> 27 | M42: ='t-values'!B31 -> 2.056
D43: 20 | L43: ='t-values'!A32 -> 28 | M43: ='t-values'!B32 -> 2.052
D44: 21 | L44: ='t-values'!A33 -> 29 | M44: ='t-values'!B33 -> 2.048
D45: 22 | L45: ='t-values'!A34 -> 30 | M45: ='t-values'!B34 -> 2.045
D46: 23 | L46: ='t-values'!A35 -> ∞ | M46: ='t-values'!B35 -> 1.96
D47: 24
D48: 25
D49: 26
D50: 27
D51: 28
D52: 29
D53: 30
D54: 31
D55: 32
D56: 33
D57: 34
D58: 35
D59: 36
D60: 37
D61: 38
D62: 39
D63: 40
D64: 41
D65: 42
D66: 43
D67: 44
D68: 45
A69: NOTE: If there are more than 45 items, insert additional cellss in the middle of the data area. The formulae should update correctly but check.

Sheet Dubelman and Cowell 1989-3
B1: Dubelman and Cowell 1989
A2: Subgroup: | B2: Missouri, Closed-cab, ground broadcast, mixer/loader/applicator. Table VI, p. 247
C3: Confidence Intervals
C4: Arithmetic | G4: Geometric (Log10)
C5: Mean | D5: Lower Limit | E5: Upper Limit | G5: Mean | H5: Lower Limit | I5: Upper Limit
C6: =IF(C15>0,AVERAGE(B24:B68), "") -> 1.1162e-06 | D6: =IF(C15>1, C6-C20, "") -> 5.49442768e-07 | E6: =IF(C15>1, C6+C20, "") -> 1.682957232e-06 | F6: Inverse log | G6: =IF(C15>0, 10^G7, "") -> 1.031666894e-06 | H6: =IF(C15>1,10^H7, "") -> 5.819794871e-07 | I6: =IF(C15>1, 10^I7, "") -> 1.82882147e-06
F7: Log | G7: =IF(C15>0, AVERAGE(G24:G68), "") -> -5.986460506 | H7: =IF(C15>1, G7-G20, "") -> -6.235092323 | I7: =IF(C15>1, G7+G20, "") -> -5.737828688
C9: Prediction Intervals
C10: Arithmetic | G10: Geometric (Log10)
C11: Mean | D11: Lower Limit | E11: Upper Limit | G11: Mean | H11: Lower Limit | I11: Upper Limit
C12: =IF(C15>0,AVERAGE(B24:B68), "") -> 1.1162e-06 | D12: =IF(C15>1, C12-C21, "") -> -2.720660263e-07 | E12: =IF(C15>1, C12+C21, "") -> 2.504466026e-06 | F12: Inverse log | G12: =IF($C$15>0, 10^G13, "") -> 1.031666894e-06 | H12: =IF($C$15>0, 10^H13, "") -> 2.538156571e-07 | I12: 4.193344859e-06
F13: Log | G13: =IF(C15>0, AVERAGE(G24:G68), "") -> -5.986460506 | H13: =IF(C15>1, G13-G21, "") -> -6.595481591 | I13: =IF(C15>1, G13+G21, "") -> -5.37743942 | L13: ='t-values'!A3 -> 95% Confidence Interval
B15: n: | C15: =COUNTA(B24:B68) -> 5 | L15: ='t-values'!A4 -> alpha = 0.025
B16: SSE: | C16: =IF(C15>0, SUM(C24:C68), "") -> 8.336528e-13 | D16: Check | F16: SSE: | G16: =IF(C15>0, SUM(H24:H68), "") -> 0.1604369805 | H16: Check | L16: ='t-values'!A5 -> n | M16: ='t-values'!B5 -> t-value
B17: Variance (s2): | C17: =IF(C15>1, C16/(C15-1), "") -> 2.084132e-13 | D17: =IF(C15>1, VAR(B24:B68), "") -> 2.084132e-13 | E17: =IF(C15>1, C17-D17, "") -> 0 | F17: Variance (s2): | G17: =IF(C15>1, G16/(C15-1), "") -> 0.04010924514 | H17: =IF(C15>1, VAR(G24:G68), "") -> 0.04010924514 | I17: =IF(C15>1, G17-H17, "") -> 0 | L17: ='t-values'!A6 -> 2 | M17: ='t-values'!B6 -> 12.706
B18: Std Dev (s): | C18: =IF(C15>1, C17^0.5, "") -> 4.565229458e-07 | D18: =IF(C15>1, STDEV(B24:B68), "") -> 4.565229458e-07 | E18: =IF(C15>1, C18-D18, "") -> 0 | F18: Std Dev (s): | G18: =IF(C15>1, G17^0.5, "") -> 0.2002729266 | H18: =IF(C15>1, STDEV(G24:G31), "") -> 0.2002729266 | I18: =IF(C15>1, G18-H18, "") -> 0 | L18: ='t-values'!A7 -> 3 | M18: ='t-values'!B7 -> 4.303
B19: t-value: | C19: =IF(C15>1, IF(C15<31, OFFSET(M16, C15-1, 0), 1.96), "") -> 2.776 | F19: t-value: | G19: =C19 -> 2.776 | L19: ='t-values'!A8 -> 4 | M19: ='t-values'!B8 -> 3.182
B20: Conf. Interval Factor: | C20: =IF(C15>1, C19*C18/(C15^0.5), "") -> 5.66757232e-07 | D20: t x s / n0.5 | F20: Conf. Interval Factor: | G20: =IF(C15>1, G19*G18/(C15^0.5), "") -> 0.248631817 | H20: t x s / n0.5 | L20: ='t-values'!A9 -> 5 | M20: ='t-values'!B9 -> 2.776
B21: Pred. Interal Factor: | C21: =IF(C15>1, C19*C18*(1+(1/C15))^0.5, "") -> 1.388266026e-06 | D21: t x s x (1+ 1/n)0.5 | F21: Pred. Interal Factor: | G21: =IF(C15>1, G19*G18*((1+(1/C15))^0.5), "") -> 0.6090210856 | H21: t x s x (1+ 1/n)0.5 | L21: ='t-values'!A10 -> 6 | M21: ='t-values'!B10 -> 2.571
A22: RAW DATA (only enter data under Identifier and Rate. Everything else is a link.) | L22: ='t-values'!A11 -> 7 | M22: ='t-values'!B11 -> 2.447
A23: Identifier | B23: Rate | C23: (x - xbar)2 | D23: n | G23: Log Rate | H23: (x - xbar)2 | L23: ='t-values'!A12 -> 8 | M23: ='t-values'!B12 -> 2.365
A24: MO 05 | B24: 7.22e-07 | C24: =IF(ISBLANK(B24)=FALSE, ($C$6-B24)^2, "") -> 1.5539364e-13 | D24: 1 | G24: =IF(ISBLANK(B24)=FALSE,LOG10(B24), "") -> -6.141462802 | H24: =IF(ISBLANK(B24)=FALSE, ($G$7-G24)^2, "") -> 0.02402571204 | L24: ='t-values'!A13 -> 9 | M24: ='t-values'!B13 -> 2.306
A25: MO 07 | B25: 1.23e-06 | C25: 1.295044e-14 | D25: =D24+1 -> 2 | G25: =IF(ISBLANK(B25)=FALSE,LOG10(B25), "") -> -5.910094889 | H25: =IF(ISBLANK(B25)=FALSE, ($G$7-G25)^2, "") -> 0.005831707458 | L25: ='t-values'!A14 -> 10 | M25: ='t-values'!B14 -> 2.262
A26: MO 10 | B26: 1.49e-06 | C26: 1.3972644e-13 | D26: =D25+1 -> 3 | G26: -5.826813732 | H26: 0.02548709244 | L26: ='t-values'!A15 -> 11 | M26: ='t-values'!B15 -> 2.228
A27: MN 06 | B27: 1.58e-06 | C27: 2.1511044e-13 | D27: 4 | G27: -5.801342913 | H27: 0.03426852305 | L27: ='t-values'!A16 -> 12 | M27: ='t-values'!B16 -> 2.201
A28: MN 08 | B28: 5.59e-07 | C28: 3.1047184e-13 | D28: 5 | G28: -6.252588192 | H28: 0.07082394556 | L28: ='t-values'!A17 -> 13 | M28: ='t-values'!B17 -> 2.179
D29: 6 | L29: ='t-values'!A18 -> 14 | M29: ='t-values'!B18 -> 2.16
D30: 7 | L30: ='t-values'!A19 -> 15 | M30: ='t-values'!B19 -> 2.145
D31: 8 | L31: ='t-values'!A20 -> 16 | M31: ='t-values'!B20 -> 2.131
D32: 9 | L32: ='t-values'!A21 -> 17 | M32: ='t-values'!B21 -> 2.12
D33: 10 | L33: ='t-values'!A22 -> 18 | M33: ='t-values'!B22 -> 2.11
D34: 11 | L34: ='t-values'!A23 -> 19 | M34: ='t-values'!B23 -> 2.101
D35: 12 | L35: ='t-values'!A24 -> 20 | M35: ='t-values'!B24 -> 2.093
D36: 13 | L36: ='t-values'!A25 -> 21 | M36: ='t-values'!B25 -> 2.086
D37: 14 | L37: ='t-values'!A26 -> 22 | M37: ='t-values'!B26 -> 2.08
D38: 15 | L38: ='t-values'!A27 -> 23 | M38: ='t-values'!B27 -> 2.074
D39: 16 | L39: ='t-values'!A28 -> 24 | M39: ='t-values'!B28 -> 2.069
D40: 17 | L40: ='t-values'!A29 -> 25 | M40: ='t-values'!B29 -> 2.064
D41: 18 | L41: ='t-values'!A30 -> 26 | M41: ='t-values'!B30 -> 2.06
D42: 19 | L42: ='t-values'!A31 -> 27 | M42: ='t-values'!B31 -> 2.056
D43: 20 | L43: ='t-values'!A32 -> 28 | M43: ='t-values'!B32 -> 2.052
D44: 21 | L44: ='t-values'!A33 -> 29 | M44: ='t-values'!B33 -> 2.048
D45: 22 | L45: ='t-values'!A34 -> 30 | M45: ='t-values'!B34 -> 2.045
D46: 23 | L46: ='t-values'!A35 -> ∞ | M46: ='t-values'!B35 -> 1.96
D47: 24
D48: 25
D49: 26
D50: 27
D51: 28
D52: 29
D53: 30
D54: 31
D55: 32
D56: 33
D57: 34
D58: 35
D59: 36
D60: 37
D61: 38
D62: 39
D63: 40
D64: 41
D65: 42
D66: 43
D67: 44
D68: 45
A69: NOTE: If there are more than 45 items, insert additional cellss in the middle of the data area. The formulae should update correctly but check.

Sheet Dubelman and Cowell 1989-4
B1: Dubelman and Cowell 1989
A2: Subgroup: | B2: ANOVA of 3 Groups
B4: Closed Cab | C4: Open Cab surface appl. | D4: Closed Cab Ground Broadcast
B5: ='Dubelman and Cowell 1989-2'!B24 -> 5.26e-06 | C5: ='Dubelman and Cowell 1989-1'!B24 -> 2.7e-05 | D5: ='Dubelman and Cowell 1989-3'!B24 -> 7.22e-07
B6: ='Dubelman and Cowell 1989-2'!B25 -> 5.74e-06 | C6: ='Dubelman and Cowell 1989-1'!B25 -> 1.99e-05 | D6: ='Dubelman and Cowell 1989-3'!B25 -> 1.23e-06
B7: ='Dubelman and Cowell 1989-2'!B26 -> 6.76e-07 | C7: ='Dubelman and Cowell 1989-1'!B26 -> 0.000112 | D7: ='Dubelman and Cowell 1989-3'!B26 -> 1.49e-06
B8: ='Dubelman and Cowell 1989-2'!B27 -> 2.18e-05 | C8: ='Dubelman and Cowell 1989-1'!B27 -> 4.05e-05 | D8: ='Dubelman and Cowell 1989-3'!B27 -> 1.58e-06
B9: ='Dubelman and Cowell 1989-2'!B28 -> 2.27e-05 | D9: ='Dubelman and Cowell 1989-3'!B28 -> 5.59e-07
B10: ='Dubelman and Cowell 1989-2'!B29 -> 4.25e-06
B11: ='Dubelman and Cowell 1989-2'!B30 -> 2.49e-06
B13: Anova: Single Factor
B15: SUMMARY
B16: Groups | C16: Count | D16: Sum | E16: Average | F16: Variance
B17: Closed Cab | C17: 7 | D17: 6.2916e-05 | E17: 8.988e-06 | F17: 8.5062628e-11
B18: Open Cab surface appl. | C18: 4 | D18: 0.0001994 | E18: 4.985e-05 | F18: 1.789723333e-09
B19: Closed Cab Ground Broadcast | C19: 5 | D19: 5.581e-06 | E19: 1.1162e-06 | F19: 2.084132e-13
B22: ANOVA
B23: Source of Variation | C23: SS | D23: df | E23: MS | F23: F | G23: P-value | H23: F crit
B24: Between Groups | C24: 6.026258357e-09 | D24: 2 | E24: 3.013129179e-09 | F24: 6.661250324 | G24: 0.01019777316 | H24: 3.805565253
B25: Within Groups | C25: 5.880379421e-09 | D25: 13 | E25: 4.523368785e-10
B27: Total | C27: 1.190663778e-08 | D27: 15

Sheet Dubelman and Cowell 1989-5
B1: Dubelman and Cowell 1989
A2: Subgroup: | B2: All data combinded
C3: Confidence Intervals
C4: Arithmetic | G4: Geometric (Log10)
C5: Mean | D5: Lower Limit | E5: Upper Limit | G5: Mean | H5: Lower Limit | I5: Upper Limit
C6: =IF(C15>0,AVERAGE(B24:B68), "") -> 1.67435625e-05 | D6: =IF(C15>1, C6-C20, "") -> 1.733849101e-06 | E6: =IF(C15>1, C6+C20, "") -> 3.17532759e-05 | F6: Inverse log | G6: =IF(C15>0, 10^G7, "") -> 5.220581679e-06 | H6: =IF(C15>1,10^H7, "") -> 2.162209908e-06 | I6: =IF(C15>1, 10^I7, "") -> 1.260491545e-05
F7: Log | G7: =IF(C15>0, AVERAGE(G24:G68), "") -> -5.282281105 | H7: =IF(C15>1, G7-G20, "") -> -5.665102147 | I7: =IF(C15>1, G7+G20, "") -> -4.899460063
C9: Prediction Intervals
C10: Arithmetic | G10: Geometric (Log10)
C11: Mean | D11: Lower Limit | E11: Upper Limit | G11: Mean | H11: Lower Limit | I11: Upper Limit
C12: =IF(C15>0,AVERAGE(B24:B68), "") -> 1.67435625e-05 | D12: =IF(C15>1, C12-C21, "") -> -4.514307126e-05 | E12: =IF(C15>1, C12+C21, "") -> 7.863019626e-05 | F12: Inverse log | G12: =IF($C$15>0, 10^G13, "") -> 5.220581679e-06 | H12: =IF($C$15>0, 10^H13, "") -> 1.378184317e-07 | I12: 0.0001977563721
F13: Log | G13: =IF(C15>0, AVERAGE(G24:G68), "") -> -5.282281105 | H13: =IF(C15>1, G13-G21, "") -> -6.860692696 | I13: =IF(C15>1, G13+G21, "") -> -3.703869514 | L13: ='t-values'!A3 -> 95% Confidence Interval
B15: n: | C15: =COUNTA(B24:B68) -> 16 | L15: ='t-values'!A4 -> alpha = 0.025
B16: SSE: | C16: =IF(C15>0, SUM(C24:C68), "") -> 1.190663778e-08 | D16: Check | F16: SSE: | G16: =IF(C15>0, SUM(H24:H68), "") -> 7.745258982 | H16: Check | L16: ='t-values'!A5 -> n | M16: ='t-values'!B5 -> t-value
B17: Variance (s2): | C17: =IF(C15>1, C16/(C15-1), "") -> 7.937758519e-10 | D17: =IF(C15>1, VAR(B24:B68), "") -> 7.937758519e-10 | E17: =IF(C15>1, C17-D17, "") -> 0 | F17: Variance (s2): | G17: =IF(C15>1, G16/(C15-1), "") -> 0.5163505988 | H17: =IF(C15>1, VAR(G24:G68), "") -> 0.5163505988 | I17: =IF(C15>1, G17-H17, "") -> -1.765254609e-14 | L17: ='t-values'!A6 -> 2 | M17: ='t-values'!B6 -> 12.706
B18: Std Dev (s): | C18: =IF(C15>1, C17^0.5, "") -> 2.817402797e-05 | D18: =IF(C15>1, STDEV(B24:B68), "") -> 2.817402797e-05 | E18: =IF(C15>1, C18-D18, "") -> 0 | F18: Std Dev (s): | G18: =IF(C15>1, G17^0.5, "") -> 0.7185753953 | H18: =IF(C15>1, STDEV(G24:G31), "") -> 0.6793742298 | I18: =IF(C15>1, G18-H18, "") -> 0.03920116549 | L18: ='t-values'!A7 -> 3 | M18: ='t-values'!B7 -> 4.303
B19: t-value: | C19: =IF(C15>1, IF(C15<31, OFFSET(M16, C15-1, 0), 1.96), "") -> 2.131 | F19: t-value: | G19: =C19 -> 2.131 | L19: ='t-values'!A8 -> 4 | M19: ='t-values'!B8 -> 3.182
B20: Conf. Interval Factor: | C20: =IF(C15>1, C19*C18/(C15^0.5), "") -> 1.50097134e-05 | D20: t x s / n0.5 | F20: Conf. Interval Factor: | G20: =IF(C15>1, G19*G18/(C15^0.5), "") -> 0.3828210419 | H20: t x s / n0.5 | L20: ='t-values'!A9 -> 5 | M20: ='t-values'!B9 -> 2.776
B21: Pred. Interal Factor: | C21: =IF(C15>1, C19*C18*(1+(1/C15))^0.5, "") -> 6.188663376e-05 | D21: t x s x (1+ 1/n)0.5 | F21: Pred. Interal Factor: | G21: =IF(C15>1, G19*G18*((1+(1/C15))^0.5), "") -> 1.578411591 | H21: t x s x (1+ 1/n)0.5 | L21: ='t-values'!A10 -> 6 | M21: ='t-values'!B10 -> 2.571
A22: RAW DATA (only enter data under Identifier and Rate. Everything else is a link.) | L22: ='t-values'!A11 -> 7 | M22: ='t-values'!B11 -> 2.447
A23: Identifier | B23: Rate | C23: (x - xbar)2 | D23: n | G23: Log Rate | H23: (x - xbar)2 | L23: ='t-values'!A12 -> 8 | M23: ='t-values'!B12 -> 2.365
A24: CAN 01 | B24: 2.7e-05 | C24: =IF(ISBLANK(B24)=FALSE, ($C$6-B24)^2, "") -> 1.051945102e-10 | D24: 1 | G24: =IF(ISBLANK(B24)=FALSE,LOG10(B24), "") -> -4.568636236 | H24: =IF(ISBLANK(B24)=FALSE, ($G$7-G24)^2, "") -> 0.5092889994 | L24: ='t-values'!A13 -> 9 | M24: ='t-values'!B13 -> 2.306
A25: CAN 05 | B25: 1.99e-05 | C25: =IF(ISBLANK(B25)=FALSE, ($C$6-B25)^2, "") -> 9.963097691e-12 | D25: =D24+1 -> 2 | G25: =IF(ISBLANK(B25)=FALSE,LOG10(B25), "") -> -4.701146924 | H25: =IF(ISBLANK(B25)=FALSE, ($G$7-G25)^2, "") -> 0.3377169369 | L25: ='t-values'!A14 -> 10 | M25: ='t-values'!B14 -> 2.262
A26: CAN 03 | B26: 0.000112 | C26: 9.073788885e-09 | D26: =D25+1 -> 3 | G26: -3.950781977 | H26: 1.772889927 | L26: ='t-values'!A15 -> 11 | M26: ='t-values'!B15 -> 2.228
A27: CAN 04 | B27: 4.05e-05 | C27: 5.643683227e-10 | D27: 4 | G27: -4.392544977 | H27: 0.7916303779 | L27: ='t-values'!A16 -> 12 | M27: ='t-values'!B16 -> 2.201
A28: ='Dubelman and Cowell 1989-2'!A24 -> IND 01 | B28: ='Dubelman and Cowell 1989-2'!B24 -> 5.26e-06 | C28: 1.318722077e-10 | D28: 5 | G28: -5.279014256 | H28: 1.067230374e-05 | L28: ='t-values'!A17 -> 13 | M28: ='t-values'!B17 -> 2.179
A29: ='Dubelman and Cowell 1989-2'!A25 -> IND02 | B29: ='Dubelman and Cowell 1989-2'!B25 -> 5.74e-06 | C29: 1.210783877e-10 | D29: 6 | G29: -5.241088108 | H29: 0.001696863039 | L29: ='t-values'!A18 -> 14 | M29: ='t-values'!B18 -> 2.16
A30: ='Dubelman and Cowell 1989-2'!A26 -> IND07 | B30: ='Dubelman and Cowell 1989-2'!B26 -> 6.76e-07 | C30: 2.581665647e-10 | D30: 7 | G30: -6.170053304 | H30: 0.7881394773 | L30: ='t-values'!A19 -> 15 | M30: ='t-values'!B19 -> 2.145
A31: ='Dubelman and Cowell 1989-2'!A27 -> IND02 | B31: ='Dubelman and Cowell 1989-2'!B27 -> 2.18e-05 | C31: 2.556756019e-11 | D31: 8 | G31: -4.661543506 | H31: 0.3853151664 | L31: ='t-values'!A20 -> 16 | M31: ='t-values'!B20 -> 2.131
A32: ='Dubelman and Cowell 1989-2'!A28 -> IND 04 | B32: ='Dubelman and Cowell 1989-2'!B28 -> 2.27e-05 | C32: 3.547914769e-11 | D32: 9 | G32: -4.643974143 | H32: 0.4074357781 | L32: ='t-values'!A21 -> 17 | M32: ='t-values'!B21 -> 2.12
A33: ='Dubelman and Cowell 1989-2'!A29 -> IND 06 | B33: ='Dubelman and Cowell 1989-2'!B29 -> 4.25e-06 | C33: 1.560891039e-10 | D33: 10 | G33: -5.37161107 | H33: 0.007979842628 | L33: ='t-values'!A22 -> 18 | M33: ='t-values'!B22 -> 2.11
A34: ='Dubelman and Cowell 1989-2'!A30 -> IND 08 | B34: ='Dubelman and Cowell 1989-2'!B30 -> 2.49e-06 | C34: 2.031640439e-10 | D34: 11 | G34: -5.603800653 | H34: 0.1033748197 | L34: ='t-values'!A23 -> 19 | M34: ='t-values'!B23 -> 2.101
A35: ='Dubelman and Cowell 1989-3'!A24 -> MO 05 | B35: ='Dubelman and Cowell 1989-3'!B24 -> 7.22e-07 | C35: 2.566904649e-10 | D35: 12 | G35: -6.141462802 | H35: 0.7381931891 | L35: ='t-values'!A24 -> 20 | M35: ='t-values'!B24 -> 2.093
A36: ='Dubelman and Cowell 1989-3'!A25 -> MO 07 | B36: ='Dubelman and Cowell 1989-3'!B25 -> 1.23e-06 | C36: 2.406706214e-10 | D36: 13 | G36: -5.910094889 | H36: 0.3941501468 | L36: ='t-values'!A25 -> 21 | M36: ='t-values'!B25 -> 2.086
A37: ='Dubelman and Cowell 1989-3'!A26 -> MO 10 | B37: ='Dubelman and Cowell 1989-3'!B26 -> 1.49e-06 | C37: 2.326711689e-10 | D37: 14 | G37: -5.826813732 | H37: 0.2965157814 | L37: ='t-values'!A26 -> 22 | M37: ='t-values'!B26 -> 2.08
A38: ='Dubelman and Cowell 1989-3'!A27 -> MN 06 | B38: ='Dubelman and Cowell 1989-3'!B27 -> 1.58e-06 | C38: 2.299336277e-10 | D38: 15 | G38: -5.801342913 | H38: 0.2694251605 | L38: ='t-values'!A27 -> 23 | M38: ='t-values'!B27 -> 2.074
A39: ='Dubelman and Cowell 1989-3'!A28 -> MN 08 | B39: ='Dubelman and Cowell 1989-3'!B28 -> 5.59e-07 | C39: 2.619400633e-10 | D39: 16 | G39: -6.252588192 | H39: 0.9414958432 | L39: ='t-values'!A28 -> 24 | M39: ='t-values'!B28 -> 2.069
D40: 17 | L40: ='t-values'!A29 -> 25 | M40: ='t-values'!B29 -> 2.064
D41: 18 | L41: ='t-values'!A30 -> 26 | M41: ='t-values'!B30 -> 2.06
D42: 19 | L42: ='t-values'!A31 -> 27 | M42: ='t-values'!B31 -> 2.056
D43: 20 | L43: ='t-values'!A32 -> 28 | M43: ='t-values'!B32 -> 2.052
D44: 21 | L44: ='t-values'!A33 -> 29 | M44: ='t-values'!B33 -> 2.048
D45: 22 | L45: ='t-values'!A34 -> 30 | M45: ='t-values'!B34 -> 2.045
D46: 23 | L46: ='t-values'!A35 -> ∞ | M46: ='t-values'!B35 -> 1.96
D47: 24
D48: 25
D49: 26
D50: 27
D51: 28
D52: 29
D53: 30
D54: 31
D55: 32
D56: 33
D57: 34
D58: 35
D59: 36
D60: 37
D61: 38
D62: 39
D63: 40
D64: 41
D65: 42
D66: 43
D67: 44
D68: 45
A69: NOTE: If there are more than 45 items, insert additional cellss in the middle of the data area. The formulae should update correctly but check.

Sheet Franklin et al. 1981
B1: Franklin et al. 1981
A2: Subgroup: | B2: All workers
C3: Confidence Intervals
C4: Arithmetic | G4: Geometric (Log10)
C5: Mean | D5: Lower Limit | E5: Upper Limit | G5: Mean | H5: Lower Limit | I5: Upper Limit
C6: =IF(C15>0,AVERAGE(B24:B68), "") -> 0.09897671141 | D6: =IF(C15>1, C6-C20, "") -> 0.04582264813 | E6: =IF(C15>1, C6+C20, "") -> 0.1521307747 | F6: Inverse log | G6: =IF(C15>0, 10^G7, "") -> 0.0786375213 | H6: =IF(C15>1,10^H7, "") -> 0.05613672051 | I6: =IF(C15>1, 10^I7, "") -> 0.1101571253
F7: Log | G7: =IF(C15>0, AVERAGE(G24:G68), "") -> -1.104370184 | H7: =IF(C15>1, G7-G20, "") -> -1.250752962 | I7: =IF(C15>1, G7+G20, "") -> -0.957987406
C9: Prediction Intervals
C10: Arithmetic | G10: Geometric (Log10)
C11: Mean | D11: Lower Limit | E11: Upper Limit | G11: Mean | H11: Lower Limit | I11: Upper Limit
C12: =IF(C15>0,AVERAGE(B24:B68), "") -> 0.09897671141 | D12: =IF(C15>1, C12-C21, "") -> -0.1136395417 | E12: =IF(C15>1, C12+C21, "") -> 0.3115929645 | F12: Inverse log | G12: =IF($C$15>0, 10^G13, "") -> 0.0786375213 | H12: =IF($C$15>0, 10^H13, "") -> 0.02042202028 | I12: 0.3028035264 | Y12: Links to PPE groups below | AG12: Log transformed
F13: Log | G13: =IF(C15>0, AVERAGE(G24:G68), "") -> -1.104370184 | H13: =IF(C15>1, G13-G21, "") -> -1.689901297 | I13: =IF(C15>1, G13+G21, "") -> -0.5188390714 | L13: ='t-values'!A3 -> 95% Confidence Interval | Y13: RbCtPt | Z13: RbCt | AA13: None | AG13: RbCtPt | AH13: RbCt | AI13: None
Y14: =V24 -> 0.05324834634 | Z14: =V28 -> 0.1311802595 | AA14: =V32 -> 0.05062142792 | AG14: =LOG10(Y14) -> -1.273693875 | AH14: =LOG10(Z14) -> -0.8821315145 | AI14: -1.295665608
B15: n: | C15: =COUNTA(B24:B68) -> 15 | L15: ='t-values'!A4 -> alpha = 0.025 | Y15: 0.06054534195 | Z15: 0.05152862197 | AA15: 0.160210469 | AG15: =LOG10(Y15) -> -1.217919264 | AH15: =LOG10(Z15) -> -1.287951472 | AI15: =LOG10(AA15) -> -0.7953091082
B16: SSE: | C16: =IF(C15>0, SUM(C24:C68), "") -> 0.1289548379 | D16: Check | F16: SSE: | G16: =IF(C15>0, SUM(H24:H68), "") -> 0.9780131009 | H16: Check | L16: ='t-values'!A5 -> n | M16: ='t-values'!B5 -> t-value | Y16: 0.06961728244 | Z16: 0.04535970244 | AA16: 0.08872357797 | AG16: -1.157282934 | AH16: -1.343329803 | AI16: -1.051960953
B17: Variance (s2): | C17: =IF(C15>1, C16/(C15-1), "") -> 0.009211059851 | D17: =IF(C15>1, VAR(B24:B68), "") -> 0.009211059851 | E17: =IF(C15>1, C17-D17, "") -> 5.204170428e-18 | F17: Variance (s2): | G17: =IF(C15>1, G16/(C15-1), "") -> 0.06985807864 | H17: =IF(C15>1, VAR(G24:G68), "") -> 0.06985807864 | I17: =IF(C15>1, G17-H17, "") -> 2.081668171e-16 | L17: ='t-values'!A6 -> 2 | M17: ='t-values'!B6 -> 12.706 | Y17: 0.4236201776 | Z17: 0.09090084369 | AA17: 0.1028758051 | AG17: -0.3730233621 | AH17: -1.041432086 | AI17: -0.9876867529
B18: Std Dev (s): | C18: =IF(C15>1, C17^0.5, "") -> 0.09597426661 | D18: =IF(C15>1, STDEV(B24:B68), "") -> 0.09597426661 | E18: =IF(C15>1, C18-D18, "") -> 2.775557562e-17 | F18: Std Dev (s): | G18: =IF(C15>1, G17^0.5, "") -> 0.2643067889 | H18: =IF(C15>1, STDEV(G24:G31), "") -> 0.3196099489 | I18: =IF(C15>1, G18-H18, "") -> -0.05530316006 | L18: ='t-values'!A7 -> 3 | M18: ='t-values'!B7 -> 4.303 | T18: Constants | AA18: 0.04427106958 | AI18: -1.353879985
B19: t-value: | C19: =IF(C15>1, IF(C15<31, OFFSET(M16, C15-1, 0), 1.96), "") -> 2.145 | F19: t-value: | G19: =C19 -> 2.145 | L19: ='t-values'!A8 -> 4 | M19: ='t-values'!B8 -> 3.182 | T19: kg to lb | U19: 2.2046 | AA19: 0.05733466388 | AI19: -1.241582729
B20: Conf. Interval Factor: | C20: =IF(C15>1, C19*C18/(C15^0.5), "") -> 0.05315406328 | D20: t x s / n0.5 | F20: Conf. Interval Factor: | G20: =IF(C15>1, G19*G18/(C15^0.5), "") -> 0.1463827782 | H20: t x s / n0.5 | L20: ='t-values'!A9 -> 5 | M20: ='t-values'!B9 -> 2.776 | AA20: 0.05461308174 | AI20: -1.262703316
B21: Pred. Interal Factor: | C21: =IF(C15>1, C19*C18*(1+(1/C15))^0.5, "") -> 0.2126162531 | D21: t x s x (1+ 1/n)0.5 | F21: Pred. Interal Factor: | G21: =IF(C15>1, G19*G18*((1+(1/C15))^0.5), "") -> 0.5855311128 | H21: t x s x (1+ 1/n)0.5 | L21: ='t-values'!A10 -> 6 | M21: ='t-values'!B10 -> 2.571
A22: RAW DATA (only enter data under Identifier and Rate. Everything else is a link.) | L22: ='t-values'!A11 -> 7 | M22: ='t-values'!B11 -> 2.447 | S22: Dose (ug) | U22: Total | Y22: Anova: Single Factor | AG22: Anova: Single Factor
A23: Identifier | B23: Rate | C23: (x - xbar)2 | D23: n | G23: Log Rate | H23: (x - xbar)2 | L23: ='t-values'!A12 -> 8 | M23: ='t-values'!B12 -> 2.365 | O23: PPE | P23: Worker | Q23: Amnt kg | R23: Amnt lb | S23: Day 1 | T23: Day 2 | U23: Dose (mg) | V23: Rate
A24: =P24 -> 1 | B24: =V24 -> 0.05324834634 | C24: =IF(ISBLANK(B24)=FALSE, ($C$6-B24)^2, "") -> 0.002091083372 | D24: 1 | G24: =IF(ISBLANK(B24)=FALSE,LOG10(B24), "") -> -1.273693875 | H24: =IF(ISBLANK(B24)=FALSE, ($G$7-G24)^2, "") -> 0.02867051226 | L24: ='t-values'!A13 -> 9 | M24: ='t-values'!B13 -> 2.306 | O24: RbCtPt | P24: 1 | Q24: 2.3 | R24: =Q24*$U$19 -> 5.07058 | S24: 119 | T24: 151 | U24: =(S24+T24)/1000 -> 0.27 | V24: =U24/R24 -> 0.05324834634 | Y24: SUMMARY | AG24: SUMMARY
A25: 2 | B25: 0.06054534195 | C25: =IF(ISBLANK(B25)=FALSE, ($C$6-B25)^2, "") -> 0.001476970158 | D25: =D24+1 -> 2 | G25: =IF(ISBLANK(B25)=FALSE,LOG10(B25), "") -> -1.217919264 | H25: =IF(ISBLANK(B25)=FALSE, ($G$7-G25)^2, "") -> 0.01289339345 | L25: ='t-values'!A14 -> 10 | M25: ='t-values'!B14 -> 2.262 | P25: =1+P24 -> 2 | Q25: 2.3 | R25: =Q25*$U$19 -> 5.07058 | S25: 218 | T25: 89 | U25: =(S25+T25)/1000 -> 0.307 | V25: =U25/R25 -> 0.06054534195 | Y25: Groups | Z25: Count | AA25: Sum | AB25: Average | AC25: Variance | AG25: Groups | AH25: Count | AI25: Sum | AJ25: Average | AK25: Variance
A26: 3 | B26: 0.06961728244 | C26: 0.0008619760693 | D26: =D25+1 -> 3 | G26: -1.157282934 | H26: 0.002799759066 | L26: ='t-values'!A15 -> 11 | M26: ='t-values'!B15 -> 2.228 | P26: =1+P25 -> 3 | Q26: 2.3 | R26: 5.07058 | S26: 168 | T26: 185 | U26: 0.353 | V26: 0.06961728244 | Y26: RbCtPt | Z26: 4 | AA26: 0.6070311483 | AB26: 0.1517577871 | AC26: 0.03289334731 | AG26: RbCtPt | AH26: 4 | AI26: -4.021919434 | AJ26: -1.005479859 | AK26: 0.1800382177
A27: 4 | B27: 0.4236201776 | C27: 0.1053933801 | D27: 4 | G27: -0.3730233621 | H27: 0.5348681742 | L27: ='t-values'!A16 -> 12 | M27: ='t-values'!B16 -> 2.201 | P27: 4 | Q27: 2.3 | R27: 5.07058 | S27: 1754 | T27: 394 | U27: 2.148 | V27: 0.4236201776 | Y27: RbCt | Z27: 4 | AA27: 0.3189694276 | AB27: 0.07974235689 | AC27: 0.001582850471 | AG27: RbCt | AH27: 4 | AI27: -4.554844875 | AJ27: -1.138711219 | AK27: 0.04647926417
A28: 5 | B28: 0.1311802595 | C28: 0.001037068507 | D28: 5 | G28: -0.8821315145 | H28: 0.04939002631 | L28: ='t-values'!A17 -> 13 | M28: ='t-values'!B17 -> 2.179 | O28: RbCt | P28: 5 | Q28: 2.5 | R28: 5.5115 | S28: 378 | T28: 345 | U28: 0.723 | V28: 0.1311802595 | Y28: None | Z28: 7 | AA28: 0.5586500953 | AB28: 0.07980715647 | AC28: 0.001721788723 | AG28: None | AH28: 7 | AI28: -7.988788453 | AJ28: -1.141255493 | AK28: 0.04085042678
A29: 6 | B29: 0.05152862197 | C29: 0.002251321191 | D29: 6 | G29: -1.287951472 | H29: 0.03370208914 | L29: ='t-values'!A18 -> 14 | M29: ='t-values'!B18 -> 2.16 | P29: 6 | Q29: 2.5 | R29: 5.5115 | S29: 183 | T29: 101 | U29: 0.284 | V29: 0.05152862197
A30: 7 | B30: 0.04535970244 | C30: 0.002874783651 | D30: 7 | G30: -1.343329803 | H30: 0.05710169948 | L30: ='t-values'!A19 -> 15 | M30: ='t-values'!B19 -> 2.145 | P30: 7 | Q30: 2.5 | R30: 5.5115 | S30: 117 | T30: 133 | U30: 0.25 | V30: 0.04535970244
A31: 8 | B31: 0.09090084369 | C31: 6.52196394e-05 | D31: 8 | G31: -1.041432086 | H31: 0.003961204214 | L31: ='t-values'!A20 -> 16 | M31: ='t-values'!B20 -> 2.131 | P31: 8 | Q31: 2.5 | R31: 5.5115 | S31: 184 | T31: 317 | U31: 0.501 | V31: 0.09090084369 | Y31: ANOVA | AG31: ANOVA
A32: 9 | B32: 0.05062142792 | C32: 0.002338233441 | D32: 9 | G32: -1.295665608 | H32: 0.03659393937 | L32: ='t-values'!A21 -> 17 | M32: ='t-values'!B21 -> 2.12 | O32: None | P32: 9 | Q32: 2.5 | R32: 5.5115 | S32: 279 | T32: 0 | U32: 0.279 | V32: 0.05062142792 | W32: See note | Y32: Source of Variation | Z32: SS | AA32: df | AB32: MS | AC32: F | AD32: P-value | AE32: F crit | AG32: Source of Variation | AH32: SS | AI32: df | AJ32: MS | AK32: F | AL32: P-value | AM32: F crit
A33: 10 | B33: 0.160210469 | C33: 0.003749573071 | D33: 10 | G33: -0.7953091082 | H33: 0.09551874869 | L33: ='t-values'!A22 -> 18 | M33: ='t-values'!B22 -> 2.11 | P33: 10 | Q33: 2.5 | R33: 5.5115 | S33: 528 | T33: 355 | U33: 0.883 | V33: 0.160210469 | Y33: Between Groups | Z33: 0.01519551223 | AA33: 2 | AB33: 0.007597756114 | AC33: 0.8014558175 | AD33: 0.4712986709 | AE33: 3.885293835 | AG33: Between Groups | AH33: 0.0533580948 | AI33: 2 | AJ33: 0.0266790474 | AK33: 0.3462356951 | AL33: 0.7141843306 | AM33: 3.885293835
A34: 12 | B34: 0.08872357797 | C34: 0.0001051267452 | D34: 11 | G34: -1.051960953 | H34: 0.002746727549 | L34: ='t-values'!A23 -> 19 | M34: ='t-values'!B23 -> 2.101 | P34: =2+P33 -> 12 | Q34: 2.5 | R34: 5.5115 | S34: 384 | T34: 105 | U34: 0.489 | V34: 0.08872357797 | Y34: Within Groups | Z34: 0.1137593257 | AA34: 12 | AB34: 0.009479943807 | AG34: Within Groups | AH34: 0.9246550061 | AI34: 12 | AJ34: 0.07705458385
A35: 13 | B35: 0.1028758051 | C35: 1.520293189e-05 | D35: 12 | G35: -0.9876867529 | H35: 0.01361502314 | L35: ='t-values'!A24 -> 20 | M35: ='t-values'!B24 -> 2.093 | P35: 13 | Q35: 2.5 | R35: 5.5115 | S35: 263 | T35: 304 | U35: 0.567 | V35: 0.1028758051
A36: 14 | B36: 0.04427106958 | C36: 0.002992707248 | D36: 13 | G36: -1.353879985 | H36: 0.06225514092 | L36: ='t-values'!A25 -> 21 | M36: ='t-values'!B25 -> 2.086 | P36: 14 | Q36: 2.5 | R36: 5.5115 | S36: 175 | T36: 69 | U36: 0.244 | V36: 0.04427106958 | Y36: Total | Z36: 0.1289548379 | AA36: 14 | AG36: Total | AH36: 0.9780131009 | AI36: 14
A37: 15 | B37: 0.05733466388 | C37: 0.001734060122 | D37: 14 | G37: -1.241582729 | H37: 0.0188272825 | L37: ='t-values'!A26 -> 22 | M37: ='t-values'!B26 -> 2.08 | P37: 15 | Q37: 2.5 | R37: 5.5115 | S37: 233 | T37: 83 | U37: 0.316 | V37: 0.05733466388
A38: 16 | B38: 0.05461308174 | C38: 0.001968131638 | D38: 15 | G38: -1.262703316 | H38: 0.02506938069 | L38: ='t-values'!A27 -> 23 | M38: ='t-values'!B27 -> 2.074 | P38: 16 | Q38: 2.5 | R38: 5.5115 | S38: 189 | T38: 112 | U38: 0.301 | V38: 0.05461308174
D39: 16 | L39: ='t-values'!A28 -> 24 | M39: ='t-values'!B28 -> 2.069
D40: 17 | L40: ='t-values'!A29 -> 25 | M40: ='t-values'!B29 -> 2.064
D41: 18 | L41: ='t-values'!A30 -> 26 | M41: ='t-values'!B30 -> 2.06
D42: 19 | L42: ='t-values'!A31 -> 27 | M42: ='t-values'!B31 -> 2.056
D43: 20 | L43: ='t-values'!A32 -> 28 | M43: ='t-values'!B32 -> 2.052
D44: 21 | L44: ='t-values'!A33 -> 29 | M44: ='t-values'!B33 -> 2.048
D45: 22 | L45: ='t-values'!A34 -> 30 | M45: ='t-values'!B34 -> 2.045
D46: 23 | L46: ='t-values'!A35 -> ∞ | M46: ='t-values'!B35 -> 1.96
D47: 24
D48: 25
D49: 26
D50: 27
D51: 28
D52: 29
D53: 30
D54: 31
D55: 32
D56: 33
D57: 34
D58: 35
D59: 36
D60: 37
D61: 38
D62: 39
D63: 40
D64: 41
D65: 42
D66: 43
D67: 44
D68: 45
A69: NOTE: If there are more than 45 items, insert additional cellss in the middle of the data area. The formulae should update correctly but check.

Sheet Grover et al. 1986-1
B1: Grover et al. 1986
A2: Subgroup: | B2: Ground broadcast, no day adjustment
C3: Confidence Intervals
C4: Arithmetic | G4: Geometric (Log10)
C5: Mean | D5: Lower Limit | E5: Upper Limit | G5: Mean | H5: Lower Limit | I5: Upper Limit
C6: =IF(C15>0,AVERAGE(B24:B68), "") -> 0.0002330946413 | D6: =IF(C15>1, C6-C20, "") -> -1.892567892e-05 | E6: =IF(C15>1, C6+C20, "") -> 0.0004851149614 | F6: Inverse log | G6: =IF(C15>0, 10^G7, "") -> 0.0001298536412 | H6: =IF(C15>1,10^H7, "") -> 5.652006605e-05 | I6: =IF(C15>1, 10^I7, "") -> 0.0002983359593
F7: Log | G7: =IF(C15>0, AVERAGE(G24:G68), "") -> -3.886545868 | H7: =IF(C15>1, G7-G20, "") -> -4.247797339 | I7: =IF(C15>1, G7+G20, "") -> -3.525294397
C9: Prediction Intervals
C10: Arithmetic | G10: Geometric (Log10)
C11: Mean | D11: Lower Limit | E11: Upper Limit | G11: Mean | H11: Lower Limit | I11: Upper Limit
C12: =IF(C15>0,AVERAGE(B24:B68), "") -> 0.0002330946413 | D12: =IF(C15>1, C12-C21, "") -> -0.0005638635872 | E12: =IF(C15>1, C12+C21, "") -> 0.00103005287 | F12: Inverse log | G12: =IF($C$15>0, 10^G13, "") -> 0.0001298536412 | H12: =IF($C$15>0, 10^H13, "") -> 9.355708345e-06 | I12: 0.001802318702
F13: Log | G13: =IF(C15>0, AVERAGE(G24:G68), "") -> -3.886545868 | H13: =IF(C15>1, G13-G21, "") -> -5.028923325 | I13: =IF(C15>1, G13+G21, "") -> -2.744168411 | L13: ='t-values'!A3 -> 95% Confidence Interval
B15: n: | C15: =COUNTA(B24:B68) -> 9 | L15: ='t-values'!A4 -> alpha = 0.025
B16: SSE: | C16: =IF(C15>0, SUM(C24:C68), "") -> 8.599733807e-07 | D16: Check | F16: SSE: | G16: =IF(C15>0, SUM(H24:H68), "") -> 1.766986126 | H16: Check | L16: ='t-values'!A5 -> n | M16: ='t-values'!B5 -> t-value
B17: Variance (s2): | C17: =IF(C15>1, C16/(C15-1), "") -> 1.074966726e-07 | D17: =IF(C15>1, VAR(B24:B68), "") -> 1.074966726e-07 | E17: =IF(C15>1, C17-D17, "") -> 0 | F17: Variance (s2): | G17: =IF(C15>1, G16/(C15-1), "") -> 0.2208732658 | H17: =IF(C15>1, VAR(G24:G68), "") -> 0.2208732658 | I17: =IF(C15>1, G17-H17, "") -> 1.054711873e-15 | L17: ='t-values'!A6 -> 2 | M17: ='t-values'!B6 -> 12.706
B18: Std Dev (s): | C18: =IF(C15>1, C17^0.5, "") -> 0.0003278668519 | D18: =IF(C15>1, STDEV(B24:B68), "") -> 0.0003278668519 | E18: =IF(C15>1, C18-D18, "") -> 0 | F18: Std Dev (s): | G18: =IF(C15>1, G17^0.5, "") -> 0.4699715585 | H18: =IF(C15>1, STDEV(G24:G31), "") -> 0.500020665 | I18: =IF(C15>1, G18-H18, "") -> -0.03004910652 | L18: ='t-values'!A7 -> 3 | M18: ='t-values'!B7 -> 4.303
B19: t-value: | C19: =IF(C15>1, IF(C15<31, OFFSET(M16, C15-1, 0), 1.96), "") -> 2.306 | F19: t-value: | G19: =C19 -> 2.306 | L19: ='t-values'!A8 -> 4 | M19: ='t-values'!B8 -> 3.182
B20: Conf. Interval Factor: | C20: =IF(C15>1, C19*C18/(C15^0.5), "") -> 0.0002520203202 | D20: t x s / n0.5 | F20: Conf. Interval Factor: | G20: =IF(C15>1, G19*G18/(C15^0.5), "") -> 0.3612514713 | H20: t x s / n0.5 | L20: ='t-values'!A9 -> 5 | M20: ='t-values'!B9 -> 2.776
B21: Pred. Interal Factor: | C21: =IF(C15>1, C19*C18*(1+(1/C15))^0.5, "") -> 0.0007969582284 | D21: t x s x (1+ 1/n)0.5 | F21: Pred. Interal Factor: | G21: =IF(C15>1, G19*G18*((1+(1/C15))^0.5), "") -> 1.142377457 | H21: t x s x (1+ 1/n)0.5 | L21: ='t-values'!A10 -> 6 | M21: ='t-values'!B10 -> 2.571
A22: RAW DATA (only enter data under Identifier and Rate. Everything else is a link.) | L22: ='t-values'!A11 -> 7 | M22: ='t-values'!B11 -> 2.447 | Q22: See Table 4 and 5 of paper | U22: Uncorrected
A23: Identifier | B23: Rate | C23: (x - xbar)2 | D23: n | G23: Log Rate | H23: (x - xbar)2 | L23: ='t-values'!A12 -> 8 | M23: ='t-values'!B12 -> 2.365 | Q23: Subject | R23: ug/kg bw | S23: Applied kg | T23: Applied lb | U23: Rates
A24: =Q24 -> C(81) | B24: =U24 -> 0.001074208853 | C24: =IF(ISBLANK(B24)=FALSE, ($C$6-B24)^2, "") -> 7.074731168e-07 | D24: 1 | G24: =IF(ISBLANK(B24)=FALSE,LOG10(B24), "") -> -2.968911273 | H24: =IF(ISBLANK(B24)=FALSE, ($G$7-G24)^2, "") -> 0.8420532502 | L24: ='t-values'!A13 -> 9 | M24: ='t-values'!B13 -> 2.306 | Q24: C(81) | R24: 56.6 | S24: 23.9 | T24: =S24*2.2046 -> 52.68994 | U24: =((R24/1000)/T24) -> 0.001074208853
A25: B(82) | B25: 9.016735982e-05 | C25: =IF(ISBLANK(B25)=FALSE, ($C$6-B25)^2, "") -> 2.042820778e-08 | D25: =D24+1 -> 2 | G25: =IF(ISBLANK(B25)=FALSE,LOG10(B25), "") -> -4.044950647 | H25: =IF(ISBLANK(B25)=FALSE, ($G$7-G25)^2, "") -> 0.0250920739 | L25: ='t-values'!A14 -> 10 | M25: ='t-values'!B14 -> 2.262 | Q25: B(82) | R25: 9.8 | S25: 49.3 | T25: =S25*2.2046 -> 108.68678 | U25: =((R25/1000)/T25) -> 9.016735982e-05
A26: C(82) | B26: 0.0003277088634 | C26: 8.951851039e-09 | D26: =D25+1 -> 3 | G26: -3.484511812 | H26: 0.161631382 | L26: ='t-values'!A15 -> 11 | M26: ='t-values'!B15 -> 2.228 | Q26: C(82) | R26: 16.4 | S26: 22.7 | T26: 50.04442 | U26: 0.0003277088634
A27: F(81) | B27: 2.553478167e-05 | C27: 4.308109532e-08 | D27: 4 | G27: -4.592867851 | H27: 0.4988907438 | L27: ='t-values'!A16 -> 12 | M27: ='t-values'!B16 -> 2.201 | Q27: F(81) | R27: 7.2 | S27: 127.9 | T27: 281.96834 | U27: 2.553478167e-05
A28: A(82) | B28: 0.000149872701 | C28: 6.925891334e-09 | D28: 5 | G28: -3.824277466 | H28: 0.003877353931 | L28: ='t-values'!A17 -> 13 | M28: ='t-values'!B17 -> 2.179 | Q28: A(82) | R28: 22.6 | S28: 68.4 | T28: 150.79464 | U28: 0.000149872701
A29: B(81) | B29: 4.940165612e-05 | C29: 3.374311279e-08 | D29: 6 | G29: -4.306258492 | H29: 0.1761586865 | L29: ='t-values'!A18 -> 14 | M29: ='t-values'!B18 -> 2.16 | Q29: B(81) | R29: 6.6 | S29: 60.6 | T29: 133.59876 | U29: 4.940165612e-05
A30: D(82) | B30: 9.4962406e-05 | C30: 1.908051442e-08 | D30: 7 | G30: -4.02244829 | H30: 0.01846946844 | L30: ='t-values'!A19 -> 15 | M30: ='t-values'!B19 -> 2.145 | Q30: D(82) | R30: 18.8 | S30: 89.8 | T30: 197.97308 | U30: 9.4962406e-05
A31: G(82) | B31: 0.0001880232827 | C31: 2.031427363e-09 | D31: 8 | G31: -3.725788369 | H31: 0.02584297341 | L31: ='t-values'!A20 -> 16 | M31: ='t-values'!B20 -> 2.131 | Q31: G(82) | R31: 77.1 | S31: 186 | T31: 410.0556 | U31: 0.0001880232827
A32: E(81) | B32: 9.797186782e-05 | C32: 1.82581639e-08 | D32: 9 | G32: -4.008898612 | H32: 0.01497019399 | L32: ='t-values'!A21 -> 17 | M32: ='t-values'!B21 -> 2.12 | Q32: E(81) | R32: 15.4 | S32: 71.3 | T32: 157.18798 | U32: 9.797186782e-05
D33: 10 | L33: ='t-values'!A22 -> 18 | M33: ='t-values'!B22 -> 2.11
D34: 11 | L34: ='t-values'!A23 -> 19 | M34: ='t-values'!B23 -> 2.101
D35: 12 | L35: ='t-values'!A24 -> 20 | M35: ='t-values'!B24 -> 2.093
D36: 13 | L36: ='t-values'!A25 -> 21 | M36: ='t-values'!B25 -> 2.086
D37: 14 | L37: ='t-values'!A26 -> 22 | M37: ='t-values'!B26 -> 2.08
D38: 15 | L38: ='t-values'!A27 -> 23 | M38: ='t-values'!B27 -> 2.074
D39: 16 | L39: ='t-values'!A28 -> 24 | M39: ='t-values'!B28 -> 2.069
D40: 17 | L40: ='t-values'!A29 -> 25 | M40: ='t-values'!B29 -> 2.064
D41: 18 | L41: ='t-values'!A30 -> 26 | M41: ='t-values'!B30 -> 2.06
D42: 19 | L42: ='t-values'!A31 -> 27 | M42: ='t-values'!B31 -> 2.056
D43: 20 | L43: ='t-values'!A32 -> 28 | M43: ='t-values'!B32 -> 2.052
D44: 21 | L44: ='t-values'!A33 -> 29 | M44: ='t-values'!B33 -> 2.048
D45: 22 | L45: ='t-values'!A34 -> 30 | M45: ='t-values'!B34 -> 2.045
D46: 23 | L46: ='t-values'!A35 -> ∞ | M46: ='t-values'!B35 -> 1.96
D47: 24
D48: 25
D49: 26
D50: 27
D51: 28
D52: 29
D53: 30
D54: 31
D55: 32
D56: 33
D57: 34
D58: 35
D59: 36
D60: 37
D61: 38
D62: 39
D63: 40
D64: 41
D65: 42
D66: 43
D67: 44
D68: 45
A69: NOTE: If there are more than 45 items, insert additional cellss in the middle of the data area. The formulae should update correctly but check.

Sheet Grover et al. 1986-2
B1: Grover et al. 1986
A2: Subgroup: | B2: Ground broadcast, with day adjustment
C3: Confidence Intervals
C4: Arithmetic | G4: Geometric (Log10)
C5: Mean | D5: Lower Limit | E5: Upper Limit | G5: Mean | H5: Lower Limit | I5: Upper Limit
C6: =IF(C15>0,AVERAGE(B24:B68), "") -> 8.763419179e-05 | D6: =IF(C15>1, C6-C20, "") -> 6.030232316e-07 | E6: =IF(C15>1, C6+C20, "") -> 0.0001746653604 | F6: Inverse log | G6: =IF(C15>0, 10^G7, "") -> 4.569064278e-05 | H6: =IF(C15>1,10^H7, "") -> 1.825716619e-05 | I6: =IF(C15>1, 10^I7, "") -> 0.00011434605
F7: Log | G7: =IF(C15>0, AVERAGE(G24:G68), "") -> -4.340172732 | H7: =IF(C15>1, G7-G20, "") -> -4.738566631 | I7: =IF(C15>1, G7+G20, "") -> -3.941778833
C9: Prediction Intervals
C10: Arithmetic | G10: Geometric (Log10)
C11: Mean | D11: Lower Limit | E11: Upper Limit | G11: Mean | H11: Lower Limit | I11: Upper Limit
C12: =IF(C15>0,AVERAGE(B24:B68), "") -> 8.763419179e-05 | D12: =IF(C15>1, C12-C21, "") -> -0.0002604904825 | E12: =IF(C15>1, C12+C21, "") -> 0.000435758866 | F12: Inverse log | G12: =IF($C$15>0, 10^G13, "") -> 4.569064278e-05 | H12: =IF($C$15>0, 10^H13, "") -> 1.164800831e-06 | I12: 0.001792267641
F13: Log | G13: =IF(C15>0, AVERAGE(G24:G68), "") -> -4.340172732 | H13: =IF(C15>1, G13-G21, "") -> -5.933748328 | I13: =IF(C15>1, G13+G21, "") -> -2.746597136 | L13: ='t-values'!A3 -> 95% Confidence Interval
B15: n: | C15: =COUNTA(B24:B68) -> 9 | L15: ='t-values'!A4 -> alpha = 0.025
B16: SSE: | C16: =IF(C15>0, SUM(C24:C68), "") -> 1.025565777e-07 | D16: Check | F16: SSE: | G16: =IF(C15>0, SUM(H24:H68), "") -> 2.149014019 | H16: Check | L16: ='t-values'!A5 -> n | M16: ='t-values'!B5 -> t-value
B17: Variance (s2): | C17: =IF(C15>1, C16/(C15-1), "") -> 1.281957221e-08 | D17: =IF(C15>1, VAR(B24:B68), "") -> 1.281957221e-08 | E17: =IF(C15>1, C17-D17, "") -> 0 | F17: Variance (s2): | G17: =IF(C15>1, G16/(C15-1), "") -> 0.2686267523 | H17: =IF(C15>1, VAR(G24:G68), "") -> 0.2686267523 | I17: =IF(C15>1, G17-H17, "") -> -9.436895709e-16 | L17: ='t-values'!A6 -> 2 | M17: ='t-values'!B6 -> 12.706
B18: Std Dev (s): | C18: =IF(C15>1, C17^0.5, "") -> 0.0001132235497 | D18: =IF(C15>1, STDEV(B24:B68), "") -> 0.0001132235497 | E18: =IF(C15>1, C18-D18, "") -> 0 | F18: Std Dev (s): | G18: =IF(C15>1, G17^0.5, "") -> 0.5182921496 | H18: =IF(C15>1, STDEV(G24:G31), "") -> 0.524316215 | I18: =IF(C15>1, G18-H18, "") -> -0.006024065372 | L18: ='t-values'!A7 -> 3 | M18: ='t-values'!B7 -> 4.303
B19: t-value: | C19: =IF(C15>1, IF(C15<31, OFFSET(M16, C15-1, 0), 1.96), "") -> 2.306 | F19: t-value: | G19: =C19 -> 2.306 | L19: ='t-values'!A8 -> 4 | M19: ='t-values'!B8 -> 3.182
B20: Conf. Interval Factor: | C20: =IF(C15>1, C19*C18/(C15^0.5), "") -> 8.703116856e-05 | D20: t x s / n0.5 | F20: Conf. Interval Factor: | G20: =IF(C15>1, G19*G18/(C15^0.5), "") -> 0.398393899 | H20: t x s / n0.5 | L20: ='t-values'!A9 -> 5 | M20: ='t-values'!B9 -> 2.776
B21: Pred. Interal Factor: | C21: =IF(C15>1, C19*C18*(1+(1/C15^0.5)), "") -> 0.0003481246742 | D21: t x s x (1+ 1/n0.5) | F21: Pred. Interal Factor: | G21: =IF(C15>1, G19*G18*(1+(1/C15^0.5)), "") -> 1.593575596 | H21: t x s x (1+ 1/n0.5) | L21: ='t-values'!A10 -> 6 | M21: ='t-values'!B10 -> 2.571
A22: RAW DATA (only enter data under Identifier and Rate. Everything else is a link.) | L22: ='t-values'!A11 -> 7 | M22: ='t-values'!B11 -> 2.447 | Q22: See Table 4 and 5 of paper | U22: Uncorrected
A23: Identifier | B23: Rate | C23: (x - xbar)2 | D23: n | G23: Log Rate | H23: (x - xbar)2 | L23: ='t-values'!A12 -> 8 | M23: ='t-values'!B12 -> 2.365 | Q23: Subject | R23: ug/kg bw | S23: Applied kg | T23: Applied lb | U23: Rates | V23: Number of days | W23: Rate (mg/kg bw per lb)
A24: =Q24 -> C(81) | B24: =W24 -> 0.0003580696176 | C24: =IF(ISBLANK(B24)=FALSE, ($C$6-B24)^2, "") -> 7.313531953e-08 | D24: 1 | G24: =IF(ISBLANK(B24)=FALSE,LOG10(B24), "") -> -3.446032528 | H24: =IF(ISBLANK(B24)=FALSE, ($G$7-G24)^2, "") -> 0.7994867056 | L24: ='t-values'!A13 -> 9 | M24: ='t-values'!B13 -> 2.306 | Q24: C(81) | R24: 56.6 | S24: 23.9 | T24: =S24*2.2046 -> 52.68994 | U24: =((R24/1000)/T24) -> 0.001074208853 | V24: 3 | W24: =((R24/1000)/T24)/V24 -> 0.0003580696176
A25: B(82) | B25: 3.005578661e-05 | C25: =IF(ISBLANK(B25)=FALSE, ($C$6-B25)^2, "") -> 3.315272744e-09 | D25: =D24+1 -> 2 | G25: =IF(ISBLANK(B25)=FALSE,LOG10(B25), "") -> -4.522071901 | H25: =IF(ISBLANK(B25)=FALSE, ($G$7-G25)^2, "") -> 0.03308730773 | L25: ='t-values'!A14 -> 10 | M25: ='t-values'!B14 -> 2.262 | Q25: B(82) | R25: 9.8 | S25: 49.3 | T25: =S25*2.2046 -> 108.68678 | U25: =((R25/1000)/T25) -> 9.016735982e-05 | V25: 3 | W25: 3.005578661e-05
A26: C(82) | B26: 0.0001638544317 | C26: 5.809524975e-09 | D26: =D25+1 -> 3 | G26: -3.785541808 | H26: 0.3076154623 | L26: ='t-values'!A15 -> 11 | M26: ='t-values'!B15 -> 2.228 | Q26: C(82) | R26: 16.4 | S26: 22.7 | T26: 50.04442 | U26: 0.0003277088634 | V26: 2 | W26: 0.0001638544317
A27: F(81) | B27: 2.553478167e-05 | C27: 3.856336737e-09 | D27: 4 | G27: -4.592867851 | H27: 0.06385482311 | L27: ='t-values'!A16 -> 12 | M27: ='t-values'!B16 -> 2.201 | Q27: F(81) | R27: 7.2 | S27: 127.9 | T27: 281.96834 | U27: 2.553478167e-05 | V27: 1 | W27: 2.553478167e-05
A28: A(82) | B28: 7.493635052e-05 | C28: 1.612351729e-10 | D28: 5 | G28: -4.125307461 | H28: 0.04616708465 | L28: ='t-values'!A17 -> 13 | M28: ='t-values'!B17 -> 2.179 | Q28: A(82) | R28: 22.6 | S28: 68.4 | T28: 150.79464 | U28: 0.000149872701 | V28: 2 | W28: 7.493635052e-05
A29: B(81) | B29: 1.235041403e-05 | C29: 5.667647194e-09 | D29: 6 | G29: -4.908318483 | H29: 0.3227895941 | L29: ='t-values'!A18 -> 14 | M29: ='t-values'!B18 -> 2.16 | Q29: B(81) | R29: 6.6 | S29: 60.6 | T29: 133.59876 | U29: 4.940165612e-05 | V29: 4 | W29: 1.235041403e-05
A30: D(82) | B30: 1.3566058e-05 | C30: 5.486088443e-09 | D30: 7 | G30: -4.86754633 | H30: 0.2781229121 | L30: ='t-values'!A19 -> 15 | M30: ='t-values'!B19 -> 2.145 | Q30: D(82) | R30: 18.8 | S30: 89.8 | T30: 197.97308 | U30: 9.4962406e-05 | V30: 7 | W30: 1.3566058e-05
A31: G(82) | B31: 9.401164135e-05 | C31: 4.067186284e-11 | D31: 8 | G31: -4.026818365 | H31: 0.09819095953 | L31: ='t-values'!A20 -> 16 | M31: ='t-values'!B20 -> 2.131 | Q31: G(82) | R31: 77.1 | S31: 186 | T31: 410.0556 | U31: 0.0001880232827 | V31: 2 | W31: 9.401164135e-05
A32: E(81) | B32: 1.632864464e-05 | C32: 5.084481055e-09 | D32: 9 | G32: -4.787049862 | H32: 0.1996991695 | L32: ='t-values'!A21 -> 17 | M32: ='t-values'!B21 -> 2.12 | Q32: E(81) | R32: 15.4 | S32: 71.3 | T32: 157.18798 | U32: 9.797186782e-05 | V32: 6 | W32: 1.632864464e-05
D33: 10 | L33: ='t-values'!A22 -> 18 | M33: ='t-values'!B22 -> 2.11
D34: 11 | L34: ='t-values'!A23 -> 19 | M34: ='t-values'!B23 -> 2.101
D35: 12 | L35: ='t-values'!A24 -> 20 | M35: ='t-values'!B24 -> 2.093
D36: 13 | L36: ='t-values'!A25 -> 21 | M36: ='t-values'!B25 -> 2.086
D37: 14 | L37: ='t-values'!A26 -> 22 | M37: ='t-values'!B26 -> 2.08
D38: 15 | L38: ='t-values'!A27 -> 23 | M38: ='t-values'!B27 -> 2.074
D39: 16 | L39: ='t-values'!A28 -> 24 | M39: ='t-values'!B28 -> 2.069
D40: 17 | L40: ='t-values'!A29 -> 25 | M40: ='t-values'!B29 -> 2.064
D41: 18 | L41: ='t-values'!A30 -> 26 | M41: ='t-values'!B30 -> 2.06
D42: 19 | L42: ='t-values'!A31 -> 27 | M42: ='t-values'!B31 -> 2.056
D43: 20 | L43: ='t-values'!A32 -> 28 | M43: ='t-values'!B32 -> 2.052
D44: 21 | L44: ='t-values'!A33 -> 29 | M44: ='t-values'!B33 -> 2.048
D45: 22 | L45: ='t-values'!A34 -> 30 | M45: ='t-values'!B34 -> 2.045
D46: 23 | L46: ='t-values'!A35 -> ∞ | M46: ='t-values'!B35 -> 1.96
D47: 24
D48: 25
D49: 26
D50: 27
D51: 28
D52: 29
D53: 30
D54: 31
D55: 32
D56: 33
D57: 34
D58: 35
D59: 36
D60: 37
D61: 38
D62: 39
D63: 40
D64: 41
D65: 42
D66: 43
D67: 44
D68: 45
A69: NOTE: If there are more than 45 items, insert additional cellss in the middle of the data area. The formulae should update correctly but check.

Sheet Lavy et al. 1982-1
B1: Lavy et al. 1982
A2: Subgroup: | B2: Aerial, pilots, T1 and T2 combined
C3: Confidence Intervals
C4: Arithmetic | G4: Geometric (Log10)
C5: Mean | D5: Lower Limit | E5: Upper Limit | G5: Mean | H5: Lower Limit | I5: Upper Limit
C6: =IF(C15>0,AVERAGE(B24:B68), "") -> 8.517e-05 | D6: =IF(C15>1, C6-C20, "") -> -6.121394187e-05 | E6: =IF(C15>1, C6+C20, "") -> 0.0002315539419 | F6: Inverse log | G6: =IF(C15>0, 10^G7, "") -> 3.112397147e-05 | H6: =IF(C15>1,10^H7, "") -> 4.066651927e-06 | I6: =IF(C15>1, 10^I7, "") -> 0.0002382061749
F7: Log | G7: =IF(C15>0, AVERAGE(G24:G68), "") -> -4.506904991 | H7: =IF(C15>1, G7-G20, "") -> -5.390762998 | I7: =IF(C15>1, G7+G20, "") -> -3.623046985
C9: Prediction Intervals
C10: Arithmetic | G10: Geometric (Log10)
C11: Mean | D11: Lower Limit | E11: Upper Limit | G11: Mean | H11: Lower Limit | I11: Upper Limit
C12: =IF(C15>0,AVERAGE(B24:B68), "") -> 8.517e-05 | D12: =IF(C15>1, C12-C21, "") -> -0.0002733959641 | E12: =IF(C15>1, C12+C21, "") -> 0.0004437359641 | F12: Inverse log | G12: =IF($C$15>0, 10^G13, "") -> 3.112397147e-05 | H12: =IF($C$15>0, 10^H13, "") -> 2.128599163e-07 | I12: 0.00455088782
F13: Log | G13: =IF(C15>0, AVERAGE(G24:G68), "") -> -4.506904991 | H13: =IF(C15>1, G13-G21, "") -> -6.671906113 | I13: =IF(C15>1, G13+G21, "") -> -2.34190387 | L13: ='t-values'!A3 -> 95% Confidence Interval
B15: n: | C15: =COUNTA(B24:B68) -> 5 | L15: ='t-values'!A4 -> alpha = 0.025
B16: SSE: | C16: =IF(C15>0, SUM(C24:C68), "") -> 5.5613208e-08 | D16: Check | F16: SSE: | G16: =IF(C15>0, SUM(H24:H68), "") -> 2.027477639 | H16: Check | L16: ='t-values'!A5 -> n | M16: ='t-values'!B5 -> t-value
B17: Variance (s2): | C17: =IF(C15>1, C16/(C15-1), "") -> 1.3903302e-08 | D17: =IF(C15>1, VAR(B24:B68), "") -> 1.3903302e-08 | E17: =IF(C15>1, C17-D17, "") -> 0 | F17: Variance (s2): | G17: =IF(C15>1, G16/(C15-1), "") -> 0.5068694098 | H17: =IF(C15>1, VAR(G24:G68), "") -> 0.5068694098 | I17: =IF(C15>1, G17-H17, "") -> 5.551115123e-16 | L17: ='t-values'!A6 -> 2 | M17: ='t-values'!B6 -> 12.706
B18: Std Dev (s): | C18: =IF(C15>1, C17^0.5, "") -> 0.000117912264 | D18: =IF(C15>1, STDEV(B24:B68), "") -> 0.000117912264 | E18: =IF(C15>1, C18-D18, "") -> 0 | F18: Std Dev (s): | G18: =IF(C15>1, G17^0.5, "") -> 0.7119476173 | H18: =IF(C15>1, STDEV(G24:G31), "") -> 0.7119476173 | I18: =IF(C15>1, G18-H18, "") -> 4.440892099e-16 | L18: ='t-values'!A7 -> 3 | M18: ='t-values'!B7 -> 4.303
B19: t-value: | C19: =IF(C15>1, IF(C15<31, OFFSET(M16, C15-1, 0), 1.96), "") -> 2.776 | F19: t-value: | G19: =C19 -> 2.776 | L19: ='t-values'!A8 -> 4 | M19: ='t-values'!B8 -> 3.182
B20: Conf. Interval Factor: | C20: =IF(C15>1, C19*C18/(C15^0.5), "") -> 0.0001463839419 | D20: t x s / n0.5 | F20: Conf. Interval Factor: | G20: =IF(C15>1, G19*G18/(C15^0.5), "") -> 0.8838580068 | H20: t x s / n0.5 | L20: ='t-values'!A9 -> 5 | M20: ='t-values'!B9 -> 2.776
B21: Pred. Interal Factor: | C21: =IF(C15>1, C19*C18*(1+(1/C15))^0.5, "") -> 0.0003585659641 | D21: t x s x (1+ 1/n)0.5 | F21: Pred. Interal Factor: | G21: =IF(C15>1, G19*G18*((1+(1/C15))^0.5), "") -> 2.165001122 | H21: t x s x (1+ 1/n)0.5 | L21: ='t-values'!A10 -> 6 | M21: ='t-values'!B10 -> 2.571
A22: RAW DATA (only enter data under Identifier and Rate. Everything else is a link.) | L22: ='t-values'!A11 -> 7 | M22: ='t-values'!B11 -> 2.447 | O22: Table V, p. 379
A23: Identifier | B23: Rate | C23: (x - xbar)2 | D23: n | G23: Log Rate | H23: (x - xbar)2 | L23: ='t-values'!A12 -> 8 | M23: ='t-values'!B12 -> 2.365 | O23: mg/kg bw | P23: lb handled | Q23: rate
A24: Pilot 11, T1 | B24: =Q24 -> 8.95e-06 | C24: =IF(ISBLANK(B24)=FALSE, ($C$6-B24)^2, "") -> 5.8094884e-09 | D24: 1 | G24: =IF(ISBLANK(B24)=FALSE,LOG10(B24), "") -> -5.048176965 | H24: =IF(ISBLANK(B24)=FALSE, ($G$7-G24)^2, "") -> 0.292975349 | L24: ='t-values'!A13 -> 9 | M24: ='t-values'!B13 -> 2.306 | O24: 0.00179 | P24: 200 | Q24: =O24/P24 -> 8.95e-06
A25: Pilot 21, T1 | B25: 0.0002785 | C25: =IF(ISBLANK(B25)=FALSE, ($C$6-B25)^2, "") -> 3.73764889e-08 | D25: =D24+1 -> 2 | G25: =IF(ISBLANK(B25)=FALSE,LOG10(B25), "") -> -3.5551748 | H25: =IF(ISBLANK(B25)=FALSE, ($G$7-G25)^2, "") -> 0.9057903563 | L25: ='t-values'!A14 -> 10 | M25: ='t-values'!B14 -> 2.262 | O25: 0.0557 | P25: 200 | Q25: =O25/P25 -> 0.0002785
A26: Pilot 31, T1 | B26: 1.03e-05 | C26: 5.6055169e-09 | D26: =D25+1 -> 3 | G26: -4.987162775 | H26: 0.230647539 | L26: ='t-values'!A15 -> 11 | M26: ='t-values'!B15 -> 2.228 | O26: 0.00206 | P26: 200 | Q26: 1.03e-05
A27: Pilot 21, T2 | B27: 0.0001185 | C27: 1.1108889e-09 | D27: 4 | G27: -3.92628165 | H27: 0.337123465 | L27: ='t-values'!A16 -> 12 | M27: ='t-values'!B16 -> 2.201 | O27: 0.0237 | P27: 200 | Q27: 0.0001185
A28: Pilot 31, T2 | B28: 9.6e-06 | C28: 5.7108249e-09 | D28: 5 | G28: -5.017728767 | H28: 0.2609409297 | L28: ='t-values'!A17 -> 13 | M28: ='t-values'!B17 -> 2.179 | O28: 0.00192 | P28: 200 | Q28: 9.6e-06
D29: 6 | L29: ='t-values'!A18 -> 14 | M29: ='t-values'!B18 -> 2.16
D30: 7 | L30: ='t-values'!A19 -> 15 | M30: ='t-values'!B19 -> 2.145
D31: 8 | L31: ='t-values'!A20 -> 16 | M31: ='t-values'!B20 -> 2.131
D32: 9 | L32: ='t-values'!A21 -> 17 | M32: ='t-values'!B21 -> 2.12
D33: 10 | L33: ='t-values'!A22 -> 18 | M33: ='t-values'!B22 -> 2.11
D34: 11 | L34: ='t-values'!A23 -> 19 | M34: ='t-values'!B23 -> 2.101
D35: 12 | L35: ='t-values'!A24 -> 20 | M35: ='t-values'!B24 -> 2.093
D36: 13 | L36: ='t-values'!A25 -> 21 | M36: ='t-values'!B25 -> 2.086
D37: 14 | L37: ='t-values'!A26 -> 22 | M37: ='t-values'!B26 -> 2.08
D38: 15 | L38: ='t-values'!A27 -> 23 | M38: ='t-values'!B27 -> 2.074
D39: 16 | L39: ='t-values'!A28 -> 24 | M39: ='t-values'!B28 -> 2.069
D40: 17 | L40: ='t-values'!A29 -> 25 | M40: ='t-values'!B29 -> 2.064
D41: 18 | L41: ='t-values'!A30 -> 26 | M41: ='t-values'!B30 -> 2.06
D42: 19 | L42: ='t-values'!A31 -> 27 | M42: ='t-values'!B31 -> 2.056
D43: 20 | L43: ='t-values'!A32 -> 28 | M43: ='t-values'!B32 -> 2.052
D44: 21 | L44: ='t-values'!A33 -> 29 | M44: ='t-values'!B33 -> 2.048
D45: 22 | L45: ='t-values'!A34 -> 30 | M45: ='t-values'!B34 -> 2.045
D46: 23 | L46: ='t-values'!A35 -> ∞ | M46: ='t-values'!B35 -> 1.96
D47: 24
D48: 25
D49: 26
D50: 27
D51: 28
D52: 29
D53: 30
D54: 31
D55: 32
D56: 33
D57: 34
D58: 35
D59: 36
D60: 37
D61: 38
D62: 39
D63: 40
D64: 41
D65: 42
D66: 43
D67: 44
D68: 45
A69: NOTE: If there are more than 45 items, insert additional cellss in the middle of the data area. The formulae should update correctly but check.

Sheet Lavy et al. 1982-2
B1: Lavy et al. 1982
A2: Subgroup: | B2: Aerial, pilots, T1
C3: Confidence Intervals
C4: Arithmetic | G4: Geometric (Log10)
C5: Mean | D5: Lower Limit | E5: Upper Limit | G5: Mean | H5: Lower Limit | I5: Upper Limit
C6: =IF(C15>0,AVERAGE(B24:B68), "") -> 9.925e-05 | D6: =IF(C15>1, C6-C20, "") -> -0.0002864100208 | E6: =IF(C15>1, C6+C20, "") -> 0.0004849100208 | F6: Inverse log | G6: =IF(C15>0, 10^G7, "") -> 2.950043952e-05 | H6: =IF(C15>1,10^H7, "") -> 2.348304242e-07 | I6: =IF(C15>1, 10^I7, "") -> 0.003705976068
F7: Log | G7: =IF(C15>0, AVERAGE(G24:G68), "") -> -4.530171513 | H7: =IF(C15>1, G7-G20, "") -> -6.629245637 | I7: =IF(C15>1, G7+G20, "") -> -2.43109739
C9: Prediction Intervals
C10: Arithmetic | G10: Geometric (Log10)
C11: Mean | D11: Lower Limit | E11: Upper Limit | G11: Mean | H11: Lower Limit | I11: Upper Limit
C12: =IF(C15>0,AVERAGE(B24:B68), "") -> 9.925e-05 | D12: =IF(C15>1, C12-C21, "") -> -0.0006720700417 | E12: =IF(C15>1, C12+C21, "") -> 0.0008705700417 | F12: Inverse log | G12: =IF($C$15>0, 10^G13, "") -> 2.950043952e-05 | H12: =IF($C$15>0, 10^H13, "") -> 1.869305305e-09 | I12: 0.4655611523
F13: Log | G13: =IF(C15>0, AVERAGE(G24:G68), "") -> -4.530171513 | H13: =IF(C15>1, G13-G21, "") -> -8.728319761 | I13: =IF(C15>1, G13+G21, "") -> -0.3320232656 | L13: ='t-values'!A3 -> 95% Confidence Interval | P13: factor for PI
P14: =I12/H12 -> 249055705.9
B15: n: | C15: =COUNTA(B24:B68) -> 3 | L15: ='t-values'!A4 -> alpha = 0.025
B16: SSE: | C16: =IF(C15>0, SUM(C24:C68), "") -> 4.8196755e-08 | D16: Check | F16: SSE: | G16: =IF(C15>0, SUM(H24:H68), "") -> 1.427789251 | H16: Check | L16: ='t-values'!A5 -> n | M16: ='t-values'!B5 -> t-value
B17: Variance (s2): | C17: =IF(C15>1, C16/(C15-1), "") -> 2.40983775e-08 | D17: =IF(C15>1, VAR(B24:B68), "") -> 2.40983775e-08 | E17: =IF(C15>1, C17-D17, "") -> 0 | F17: Variance (s2): | G17: =IF(C15>1, G16/(C15-1), "") -> 0.7138946256 | H17: =IF(C15>1, VAR(G24:G68), "") -> 0.7138946256 | I17: =IF(C15>1, G17-H17, "") -> 1.554312234e-15 | L17: ='t-values'!A6 -> 2 | M17: ='t-values'!B6 -> 12.706
B18: Std Dev (s): | C18: =IF(C15>1, C17^0.5, "") -> 0.0001552365212 | D18: =IF(C15>1, STDEV(B24:B68), "") -> 0.0001552365212 | E18: =IF(C15>1, C18-D18, "") -> 0 | F18: Std Dev (s): | G18: =IF(C15>1, G17^0.5, "") -> 0.8449228519 | H18: =IF(C15>1, STDEV(G24:G31), "") -> 0.8449228519 | I18: =IF(C15>1, G18-H18, "") -> 8.881784197e-16 | L18: ='t-values'!A7 -> 3 | M18: ='t-values'!B7 -> 4.303
B19: t-value: | C19: =IF(C15>1, IF(C15<31, OFFSET(M16, C15-1, 0), 1.96), "") -> 4.303 | F19: t-value: | G19: =C19 -> 4.303 | L19: ='t-values'!A8 -> 4 | M19: ='t-values'!B8 -> 3.182
B20: Conf. Interval Factor: | C20: =IF(C15>1, C19*C18/(C15^0.5), "") -> 0.0003856600208 | D20: t x s / n0.5 | F20: Conf. Interval Factor: | G20: =IF(C15>1, G19*G18/(C15^0.5), "") -> 2.099074124 | H20: t x s / n0.5 | L20: ='t-values'!A9 -> 5 | M20: ='t-values'!B9 -> 2.776
B21: Pred. Interal Factor: | C21: =IF(C15>1, C19*C18*(1+(1/C15))^0.5, "") -> 0.0007713200417 | D21: t x s x (1+ 1/n)0.5 | F21: Pred. Interal Factor: | G21: =IF(C15>1, G19*G18*((1+(1/C15))^0.5), "") -> 4.198148248 | H21: t x s x (1+ 1/n)0.5 | L21: ='t-values'!A10 -> 6 | M21: ='t-values'!B10 -> 2.571
A22: RAW DATA (only enter data under Identifier and Rate. Everything else is a link.) | L22: ='t-values'!A11 -> 7 | M22: ='t-values'!B11 -> 2.447 | O22: Table V, p. 379
A23: Identifier | B23: Rate | C23: (x - xbar)2 | D23: n | G23: Log Rate | H23: (x - xbar)2 | L23: ='t-values'!A12 -> 8 | M23: ='t-values'!B12 -> 2.365 | O23: mg/kg bw | P23: lb handled | Q23: rate
A24: Pilot 11, T1 | B24: =Q24 -> 8.95e-06 | C24: =IF(ISBLANK(B24)=FALSE, ($C$6-B24)^2, "") -> 8.15409e-09 | D24: 1 | G24: =IF(ISBLANK(B24)=FALSE,LOG10(B24), "") -> -5.048176965 | H24: =IF(ISBLANK(B24)=FALSE, ($G$7-G24)^2, "") -> 0.2683296475 | L24: ='t-values'!A13 -> 9 | M24: ='t-values'!B13 -> 2.306 | O24: 0.00179 | P24: 200 | Q24: =O24/P24 -> 8.95e-06
A25: Pilot 21, T1 | B25: 0.0002785 | C25: =IF(ISBLANK(B25)=FALSE, ($C$6-B25)^2, "") -> 3.21305625e-08 | D25: =D24+1 -> 2 | G25: =IF(ISBLANK(B25)=FALSE,LOG10(B25), "") -> -3.5551748 | H25: =IF(ISBLANK(B25)=FALSE, ($G$7-G25)^2, "") -> 0.9506185904 | L25: ='t-values'!A14 -> 10 | M25: ='t-values'!B14 -> 2.262 | O25: 0.0557 | P25: 200 | Q25: =O25/P25 -> 0.0002785
A26: Pilot 31, T1 | B26: 1.03e-05 | C26: 7.9121025e-09 | D26: =D25+1 -> 3 | G26: -4.987162775 | H26: 0.2088410134 | L26: ='t-values'!A15 -> 11 | M26: ='t-values'!B15 -> 2.228 | O26: 0.00206 | P26: 200 | Q26: 1.03e-05
D27: 4 | L27: ='t-values'!A16 -> 12 | M27: ='t-values'!B16 -> 2.201
D28: 5 | L28: ='t-values'!A17 -> 13 | M28: ='t-values'!B17 -> 2.179
D29: 6 | L29: ='t-values'!A18 -> 14 | M29: ='t-values'!B18 -> 2.16
D30: 7 | L30: ='t-values'!A19 -> 15 | M30: ='t-values'!B19 -> 2.145
D31: 8 | L31: ='t-values'!A20 -> 16 | M31: ='t-values'!B20 -> 2.131
D32: 9 | L32: ='t-values'!A21 -> 17 | M32: ='t-values'!B21 -> 2.12
D33: 10 | L33: ='t-values'!A22 -> 18 | M33: ='t-values'!B22 -> 2.11
D34: 11 | L34: ='t-values'!A23 -> 19 | M34: ='t-values'!B23 -> 2.101
D35: 12 | L35: ='t-values'!A24 -> 20 | M35: ='t-values'!B24 -> 2.093
D36: 13 | L36: ='t-values'!A25 -> 21 | M36: ='t-values'!B25 -> 2.086
D37: 14 | L37: ='t-values'!A26 -> 22 | M37: ='t-values'!B26 -> 2.08
D38: 15 | L38: ='t-values'!A27 -> 23 | M38: ='t-values'!B27 -> 2.074
D39: 16 | L39: ='t-values'!A28 -> 24 | M39: ='t-values'!B28 -> 2.069
D40: 17 | L40: ='t-values'!A29 -> 25 | M40: ='t-values'!B29 -> 2.064
D41: 18 | L41: ='t-values'!A30 -> 26 | M41: ='t-values'!B30 -> 2.06
D42: 19 | L42: ='t-values'!A31 -> 27 | M42: ='t-values'!B31 -> 2.056
D43: 20 | L43: ='t-values'!A32 -> 28 | M43: ='t-values'!B32 -> 2.052
D44: 21 | L44: ='t-values'!A33 -> 29 | M44: ='t-values'!B33 -> 2.048
D45: 22 | L45: ='t-values'!A34 -> 30 | M45: ='t-values'!B34 -> 2.045
D46: 23 | L46: ='t-values'!A35 -> ∞ | M46: ='t-values'!B35 -> 1.96
D47: 24
D48: 25
D49: 26
D50: 27
D51: 28
D52: 29
D53: 30
D54: 31
D55: 32
D56: 33
D57: 34
D58: 35
D59: 36
D60: 37
D61: 38
D62: 39
D63: 40
D64: 41
D65: 42
D66: 43
D67: 44
D68: 45
A69: NOTE: If there are more than 45 items, insert additional cellss in the middle of the data area. The formulae should update correctly but check.

Sheet Lavy et al. 1982-3
B1: Lavy et al. 1982
A2: Subgroup: | B2: Mixer/Loaders and pilots, T1 and T2 combined
C3: Confidence Intervals
C4: Arithmetic | G4: Geometric (Log10)
C5: Mean | D5: Lower Limit | E5: Upper Limit | G5: Mean | H5: Lower Limit | I5: Upper Limit
C6: =IF(C15>0,AVERAGE(B24:B68), "") -> 8.398333333e-05 | D6: =IF(C15>1, C6-C20, "") -> 1.147667626e-05 | E6: =IF(C15>1, C6+C20, "") -> 0.0001564899904 | F6: Inverse log | G6: =IF(C15>0, 10^G7, "") -> 4.194429985e-05 | H6: =IF(C15>1,10^H7, "") -> 7.224737448e-06 | I6: =IF(C15>1, 10^I7, "") -> 0.0002435139411
F7: Log | G7: =IF(C15>0, AVERAGE(G24:G68), "") -> -4.377327051 | H7: =IF(C15>1, G7-G20, "") -> -5.141177931 | I7: =IF(C15>1, G7+G20, "") -> -3.61347617
C9: Prediction Intervals
C10: Arithmetic | G10: Geometric (Log10)
C11: Mean | D11: Lower Limit | E11: Upper Limit | G11: Mean | H11: Lower Limit | I11: Upper Limit
C12: =IF(C15>0,AVERAGE(B24:B68), "") -> 8.398333333e-05 | D12: =IF(C15>1, C12-C21, "") -> -0.0001078512497 | E12: =IF(C15>1, C12+C21, "") -> 0.0002758179163 | F12: Inverse log | G12: =IF($C$15>0, 10^G13, "") -> 4.194429985e-05 | H12: =IF($C$15>0, 10^H13, "") -> 3.9968098e-07 | I12: 0.004401821397
F13: Log | G13: =IF(C15>0, AVERAGE(G24:G68), "") -> -4.377327051 | H13: =IF(C15>1, G13-G21, "") -> -6.398286518 | I13: =IF(C15>1, G13+G21, "") -> -2.356367583 | L13: ='t-values'!A3 -> 95% Confidence Interval
B15: n: | C15: =COUNTA(B24:B68) -> 6 | L15: ='t-values'!A4 -> alpha = 0.025
B16: SSE: | C16: =IF(C15>0, SUM(C24:C68), "") -> 2.386013333e-08 | D16: Check | F16: SSE: | G16: =IF(C15>0, SUM(H24:H68), "") -> 2.648099311 | H16: Check | L16: ='t-values'!A5 -> n | M16: ='t-values'!B5 -> t-value
B17: Variance (s2): | C17: =IF(C15>1, C16/(C15-1), "") -> 4.772026667e-09 | D17: =IF(C15>1, VAR(B24:B68), "") -> 4.772026667e-09 | E17: =IF(C15>1, C17-D17, "") -> 0 | F17: Variance (s2): | G17: =IF(C15>1, G16/(C15-1), "") -> 0.5296198622 | H17: =IF(C15>1, VAR(G24:G68), "") -> 0.5296198622 | I17: =IF(C15>1, G17-H17, "") -> 5.440092821e-15 | L17: ='t-values'!A6 -> 2 | M17: ='t-values'!B6 -> 12.706
B18: Std Dev (s): | C18: =IF(C15>1, C17^0.5, "") -> 6.907985717e-05 | D18: =IF(C15>1, STDEV(B24:B68), "") -> 6.907985717e-05 | E18: =IF(C15>1, C18-D18, "") -> 0 | F18: Std Dev (s): | G18: =IF(C15>1, G17^0.5, "") -> 0.7277498624 | H18: =IF(C15>1, STDEV(G24:G31), "") -> 0.7277498624 | I18: =IF(C15>1, G18-H18, "") -> 3.774758284e-15 | L18: ='t-values'!A7 -> 3 | M18: ='t-values'!B7 -> 4.303
B19: t-value: | C19: =IF(C15>1, IF(C15<31, OFFSET(M16, C15-1, 0), 1.96), "") -> 2.571 | F19: t-value: | G19: =C19 -> 2.571 | L19: ='t-values'!A8 -> 4 | M19: ='t-values'!B8 -> 3.182
B20: Conf. Interval Factor: | C20: =IF(C15>1, C19*C18/(C15^0.5), "") -> 7.250665707e-05 | D20: t x s / n0.5 | F20: Conf. Interval Factor: | G20: =IF(C15>1, G19*G18/(C15^0.5), "") -> 0.7638508802 | H20: t x s / n0.5 | L20: ='t-values'!A9 -> 5 | M20: ='t-values'!B9 -> 2.776
B21: Pred. Interal Factor: | C21: =IF(C15>1, C19*C18*(1+(1/C15))^0.5, "") -> 0.000191834583 | D21: t x s x (1+ 1/n)0.5 | F21: Pred. Interal Factor: | G21: =IF(C15>1, G19*G18*((1+(1/C15))^0.5), "") -> 2.020959468 | H21: t x s x (1+ 1/n)0.5 | L21: ='t-values'!A10 -> 6 | M21: ='t-values'!B10 -> 2.571
A22: RAW DATA (only enter data under Identifier and Rate. Everything else is a link.) | L22: ='t-values'!A11 -> 7 | M22: ='t-values'!B11 -> 2.447 | O22: Table VI, p. 380
A23: Identifier | B23: Rate | C23: (x - xbar)2 | D23: n | G23: Log Rate | H23: (x - xbar)2 | L23: ='t-values'!A12 -> 8 | M23: ='t-values'!B12 -> 2.365 | O23: mg/kg bw | P23: lb handled | Q23: rate
A24: M/L 11, T1 | B24: =Q24 -> 1.075e-05 | C24: =IF(ISBLANK(B24)=FALSE, ($C$6-B24)^2, "") -> 5.363121111e-09 | D24: 1 | G24: =IF(ISBLANK(B24)=FALSE,LOG10(B24), "") -> -4.968591536 | H24: =IF(ISBLANK(B24)=FALSE, ($G$7-G24)^2, "") -> 0.3495936913 | L24: ='t-values'!A13 -> 9 | M24: ='t-values'!B13 -> 2.306 | O24: 0.00215 | P24: 200 | Q24: =O24/P24 -> 1.075e-05
A25: M/L 21, T1 | B25: 9.45e-05 | C25: =IF(ISBLANK(B25)=FALSE, ($C$6-B25)^2, "") -> 1.106002778e-10 | D25: =D24+1 -> 2 | G25: =IF(ISBLANK(B25)=FALSE,LOG10(B25), "") -> -4.024568191 | H25: =IF(ISBLANK(B25)=FALSE, ($G$7-G25)^2, "") -> 0.1244388127 | L25: ='t-values'!A14 -> 10 | M25: ='t-values'!B14 -> 2.262 | O25: 0.0189 | P25: 200 | Q25: =O25/P25 -> 9.45e-05
A26: M/L 31, T1 | B26: 0.0001885 | C26: 1.092373361e-08 | D26: =D25+1 -> 3 | G26: -3.724688645 | H26: 0.4259368879 | L26: ='t-values'!A15 -> 11 | M26: ='t-values'!B15 -> 2.228 | O26: 0.0377 | P26: 200 | Q26: 0.0001885
A27: M/L 11, T2 | B27: 2.65e-06 | C27: 6.615111111e-09 | D27: 4 | G27: -5.576754126 | H27: 1.438625309 | L27: ='t-values'!A16 -> 12 | M27: ='t-values'!B16 -> 2.201 | O27: 0.00053 | P27: 200 | Q27: 2.65e-06
A28: M/L 21, T2 | B28: 9.8e-05 | C28: 1.964669444e-10 | D28: 5 | G28: -4.008773924 | H28: 0.1358314069 | L28: ='t-values'!A17 -> 13 | M28: ='t-values'!B17 -> 2.179 | O28: 0.0196 | P28: 200 | Q28: 9.8e-05
A29: M/L 31, T2 | B29: =$Q$29 -> 0.0001095 | C29: 6.511002778e-10 | D29: 6 | G29: -3.960585881 | H29: 0.1736732026 | L29: ='t-values'!A18 -> 14 | M29: ='t-values'!B18 -> 2.16 | O29: 0.0219 | P29: 200 | Q29: 0.0001095
D30: 7 | L30: ='t-values'!A19 -> 15 | M30: ='t-values'!B19 -> 2.145
D31: 8 | L31: ='t-values'!A20 -> 16 | M31: ='t-values'!B20 -> 2.131
D32: 9 | L32: ='t-values'!A21 -> 17 | M32: ='t-values'!B21 -> 2.12
D33: 10 | L33: ='t-values'!A22 -> 18 | M33: ='t-values'!B22 -> 2.11
D34: 11 | L34: ='t-values'!A23 -> 19 | M34: ='t-values'!B23 -> 2.101
D35: 12 | L35: ='t-values'!A24 -> 20 | M35: ='t-values'!B24 -> 2.093
D36: 13 | L36: ='t-values'!A25 -> 21 | M36: ='t-values'!B25 -> 2.086
D37: 14 | L37: ='t-values'!A26 -> 22 | M37: ='t-values'!B26 -> 2.08
D38: 15 | L38: ='t-values'!A27 -> 23 | M38: ='t-values'!B27 -> 2.074
D39: 16 | L39: ='t-values'!A28 -> 24 | M39: ='t-values'!B28 -> 2.069
D40: 17 | L40: ='t-values'!A29 -> 25 | M40: ='t-values'!B29 -> 2.064
D41: 18 | L41: ='t-values'!A30 -> 26 | M41: ='t-values'!B30 -> 2.06
D42: 19 | L42: ='t-values'!A31 -> 27 | M42: ='t-values'!B31 -> 2.056
D43: 20 | L43: ='t-values'!A32 -> 28 | M43: ='t-values'!B32 -> 2.052
D44: 21 | L44: ='t-values'!A33 -> 29 | M44: ='t-values'!B33 -> 2.048
D45: 22 | L45: ='t-values'!A34 -> 30 | M45: ='t-values'!B34 -> 2.045
D46: 23 | L46: ='t-values'!A35 -> ∞ | M46: ='t-values'!B35 -> 1.96
D47: 24
D48: 25
D49: 26
D50: 27
D51: 28
D52: 29
D53: 30
D54: 31
D55: 32
D56: 33
D57: 34
D58: 35
D59: 36
D60: 37
D61: 38
D62: 39
D63: 40
D64: 41
D65: 42
D66: 43
D67: 44
D68: 45
A69: NOTE: If there are more than 45 items, insert additional cellss in the middle of the data area. The formulae should update correctly but check.

Sheet Lavy et al. 1987-1
B1: Lavy et al. 1987
A2: Subgroup: | B2: Backpack, dichlorprop, T1
C3: Confidence Intervals
C4: Arithmetic | G4: Geometric (Log10)
C5: Mean | D5: Lower Limit | E5: Upper Limit | G5: Mean | H5: Lower Limit | I5: Upper Limit
C6: =IF(C15>0,AVERAGE(B24:B68), "") -> 0.03559067132 | D6: =IF(C15>1, C6-C20, "") -> 0.0301028917 | E6: =IF(C15>1, C6+C20, "") -> 0.04107845094 | F6: Inverse log | G6: =IF(C15>0, 10^G7, "") -> 0.03366326767 | H6: =IF(C15>1,10^H7, "") -> 0.02856556918 | I6: =IF(C15>1, 10^I7, "") -> 0.03967068127
F7: Log | G7: =IF(C15>0, AVERAGE(G24:G68), "") -> -1.47284373 | H7: =IF(C15>1, G7-G20, "") -> -1.544157118 | I7: =IF(C15>1, G7+G20, "") -> -1.401530341
C9: Prediction Intervals
C10: Arithmetic | G10: Geometric (Log10)
C11: Mean | D11: Lower Limit | E11: Upper Limit | G11: Mean | H11: Lower Limit | I11: Upper Limit
C12: =IF(C15>0,AVERAGE(B24:B68), "") -> 0.03559067132 | D12: =IF(C15>1, C12-C21, "") -> 0.01044250581 | E12: =IF(C15>1, C12+C21, "") -> 0.06073883682 | F12: Inverse log | G12: =IF($C$15>0, 10^G13, "") -> 0.03366326767 | H12: =IF($C$15>0, 10^H13, "") -> 0.01586197532 | I12: 0.07144227417
F13: Log | G13: =IF(C15>0, AVERAGE(G24:G68), "") -> -1.47284373 | H13: =IF(C15>1, G13-G21, "") -> -1.79964273 | I13: =IF(C15>1, G13+G21, "") -> -1.146044729 | L13: ='t-values'!A3 -> 95% Confidence Interval
B15: n: | C15: =COUNTA(B24:B68) -> 20 | L15: ='t-values'!A4 -> alpha = 0.025
B16: SSE: | C16: =IF(C15>0, SUM(C24:C68), "") -> 0.002612392721 | D16: Check | F16: SSE: | G16: =IF(C15>0, SUM(H24:H68), "") -> 0.4411510163 | H16: Check | L16: ='t-values'!A5 -> n | M16: ='t-values'!B5 -> t-value
B17: Variance (s2): | C17: =IF(C15>1, C16/(C15-1), "") -> 0.0001374943537 | D17: =IF(C15>1, VAR(B24:B68), "") -> 0.0001374943537 | E17: =IF(C15>1, C17-D17, "") -> -1.084202172e-19 | F17: Variance (s2): | G17: =IF(C15>1, G16/(C15-1), "") -> 0.02321847454 | H17: =IF(C15>1, VAR(G24:G68), "") -> 0.02321847454 | I17: =IF(C15>1, G17-H17, "") -> 8.67361738e-17 | L17: ='t-values'!A6 -> 2 | M17: ='t-values'!B6 -> 12.706
B18: Std Dev (s): | C18: =IF(C15>1, C17^0.5, "") -> 0.01172579864 | D18: =IF(C15>1, STDEV(B24:B68), "") -> 0.01172579864 | E18: =IF(C15>1, C18-D18, "") -> -3.469446952e-18 | F18: Std Dev (s): | G18: =IF(C15>1, G17^0.5, "") -> 0.1523760957 | H18: =IF(C15>1, STDEV(G24:G31), "") -> 0.1603404893 | I18: =IF(C15>1, G18-H18, "") -> -0.007964393648 | L18: ='t-values'!A7 -> 3 | M18: ='t-values'!B7 -> 4.303
B19: t-value: | C19: =IF(C15>1, IF(C15<31, OFFSET(M16, C15-1, 0), 1.96), "") -> 2.093 | F19: t-value: | G19: =C19 -> 2.093 | L19: ='t-values'!A8 -> 4 | M19: ='t-values'!B8 -> 3.182
B20: Conf. Interval Factor: | C20: =IF(C15>1, C19*C18/(C15^0.5), "") -> 0.00548777962 | D20: t x s / n0.5 | F20: Conf. Interval Factor: | G20: =IF(C15>1, G19*G18/(C15^0.5), "") -> 0.07131338839 | H20: t x s / n0.5 | L20: ='t-values'!A9 -> 5 | M20: ='t-values'!B9 -> 2.776
B21: Pred. Interal Factor: | C21: =IF(C15>1, C19*C18*(1+(1/C15))^0.5, "") -> 0.02514816551 | D21: t x s x (1+ 1/n)0.5 | F21: Pred. Interal Factor: | G21: =IF(C15>1, G19*G18*((1+(1/C15))^0.5), "") -> 0.3267990004 | H21: t x s x (1+ 1/n)0.5 | L21: ='t-values'!A10 -> 6 | M21: ='t-values'!B10 -> 2.571
A22: RAW DATA (only enter data under Identifier and Rate. Everything else is a link.) | L22: ='t-values'!A11 -> 7 | M22: ='t-values'!B11 -> 2.447 | O22: See Table 2
A23: Identifier | B23: Rate | C23: (x - xbar)2 | D23: n | G23: Log Rate | H23: (x - xbar)2 | L23: ='t-values'!A12 -> 8 | M23: ='t-values'!B12 -> 2.365 | O23: Worker | P23: mg/kg bw | Q23: Amount handled
A24: =O24 -> 1 | B24: =P24/Q24 -> 0.05366172624 | C24: =IF(ISBLANK(B24)=FALSE, ($C$6-B24)^2, "") -> 0.0003265630261 | D24: 1 | G24: =IF(ISBLANK(B24)=FALSE,LOG10(B24), "") -> -1.270335361 | H24: =IF(ISBLANK(B24)=FALSE, ($G$7-G24)^2, "") -> 0.04100963954 | L24: ='t-values'!A13 -> 9 | M24: ='t-values'!B13 -> 2.306 | O24: 1 | P24: 0.1231 | Q24: 2.294
A25: 2 | B25: =P25/Q25 -> 0.03099389712 | C25: =IF(ISBLANK(B25)=FALSE, ($C$6-B25)^2, "") -> 2.113033299e-05 | D25: =D24+1 -> 2 | G25: =IF(ISBLANK(B25)=FALSE,LOG10(B25), "") -> -1.508723813 | H25: =IF(ISBLANK(B25)=FALSE, ($G$7-G25)^2, "") -> 0.001287380366 | L25: ='t-values'!A14 -> 10 | M25: ='t-values'!B14 -> 2.262 | O25: 2 | P25: 0.0711 | Q25: 2.294
A26: 3 | B26: 0.03339145597 | C26: 4.836548131e-06 | D26: =D25+1 -> 3 | G26: -1.476364644 | H26: 1.239683701e-05 | L26: ='t-values'!A15 -> 11 | M26: ='t-values'!B15 -> 2.228 | O26: 3 | P26: 0.0766 | Q26: 2.294
A27: 4 | B27: 0.05405405405 | C27: 0.0003408965021 | D27: 4 | G27: -1.267171728 | H27: 0.04230097212 | L27: ='t-values'!A16 -> 12 | M27: ='t-values'!B16 -> 2.201 | O27: 4 | P27: 0.124 | Q27: 2.294
A28: 5 | B28: 0.01861377507 | C28: 0.0002882150063 | D28: 5 | G28: -1.730165539 | H28: 0.0662145133 | L28: ='t-values'!A17 -> 13 | M28: ='t-values'!B17 -> 2.179 | O28: 5 | P28: 0.0427 | Q28: 2.294
A29: 6 | B29: 0.03116826504 | C29: 1.955767728e-05 | D29: 6 | G29: -1.506287372 | H29: 0.001118477194 | L29: ='t-values'!A18 -> 14 | M29: ='t-values'!B18 -> 2.16 | O29: 6 | P29: 0.0715 | Q29: 2.294
A30: 7 | B30: 0.05148212729 | C30: 0.0002525383729 | D30: 7 | G30: -1.288343516 | H30: 0.03404032887 | L30: ='t-values'!A19 -> 15 | M30: ='t-values'!B19 -> 2.145 | O30: 7 | P30: 0.1181 | Q30: 2.294
A31: 8 | B31: 0.03151700087 | C31: 1.659479089e-05 | D31: 8 | G31: -1.501455116 | H31: 0.0008186114413 | L31: ='t-values'!A20 -> 16 | M31: ='t-values'!B20 -> 2.131 | O31: 8 | P31: 0.0723 | Q31: 2.294
A32: 9 | B32: 0.03142981691 | C32: 1.731270936e-05 | D32: 9 | G32: -1.502658149 | H32: 0.0008888995888 | L32: ='t-values'!A21 -> 17 | M32: ='t-values'!B21 -> 2.12 | O32: 9 | P32: 0.0721 | Q32: 2.294
A33: 10 | B33: 0.03073234525 | C33: 2.360333218e-05 | D33: 10 | G33: -1.512404297 | H33: 0.001565038451 | L33: ='t-values'!A22 -> 18 | M33: ='t-values'!B22 -> 2.11 | O33: 10 | P33: 0.0705 | Q33: 2.294
A34: 11 | B34: 0.0189625109 | C34: 0.0002764957189 | D34: 11 | G34: -1.722104157 | H34: 0.06213076042 | L34: ='t-values'!A23 -> 19 | M34: ='t-values'!B23 -> 2.101 | O34: 11 | P34: 0.0435 | Q34: 2.294
A35: 12 | B35: 0.05065387969 | C35: 0.0002269002464 | D35: 12 | G35: -1.295387286 | H35: 0.03149078959 | L35: ='t-values'!A24 -> 20 | M35: ='t-values'!B24 -> 2.093 | O35: 12 | P35: 0.1162 | Q35: 2.294
A36: 13 | B36: 0.03352223191 | C36: 4.278441581e-06 | D36: 13 | G36: -1.474667074 | H36: 3.324583565e-06 | L36: ='t-values'!A25 -> 21 | M36: ='t-values'!B25 -> 2.086 | O36: 13 | P36: 0.0769 | Q36: 2.294
A37: 14 | B37: 0.04503051439 | C37: 8.911063716e-05 | D37: 14 | G37: -1.346493092 | H37: 0.01596448364 | L37: ='t-values'!A26 -> 22 | M37: ='t-values'!B26 -> 2.08 | O37: 14 | P37: 0.1033 | Q37: 2.294
A38: 15 | B38: 0.04036617262 | C38: 2.280541274e-05 | D38: 15 | G38: -1.393982427 | H38: 0.006219105082 | L38: ='t-values'!A27 -> 23 | M38: ='t-values'!B27 -> 2.074 | O38: 15 | P38: 0.0926 | Q38: 2.294
A39: 16 | B39: 0.03391455972 | C39: 2.80935008e-06 | D39: 16 | G39: -1.469613817 | H39: 1.043233881e-05 | L39: ='t-values'!A28 -> 24 | M39: ='t-values'!B28 -> 2.069 | O39: 16 | P39: 0.0778 | Q39: 2.294
A40: 17 | B40: 0.03474280732 | C40: 7.188733507e-07 | D40: 17 | G40: -1.459135092 | H40: 0.000187926743 | L40: ='t-values'!A29 -> 25 | M40: ='t-values'!B29 -> 2.064 | O40: 17 | P40: 0.0797 | Q40: 2.294
A41: 18 | B41: 0.01948561465 | C41: 0.0002593728503 | D41: 18 | G41: -1.71028589 | H41: 0.05637877969 | L41: ='t-values'!A30 -> 26 | M41: ='t-values'!B30 -> 2.06 | O41: 18 | P41: 0.0447 | Q41: 2.294
A42: 19 | B42: 0.01965998256 | C42: 0.0002537868442 | D42: 19 | G42: -1.706416872 | H42: 0.05455641266 | L42: ='t-values'!A31 -> 27 | M42: ='t-values'!B31 -> 2.056 | O42: 19 | P42: 0.0451 | Q42: 2.294
A43: 20 | B43: 0.04843068875 | C43: 0.0001648660478 | D43: 20 | G43: -1.314879355 | H43: 0.02495274379 | L43: ='t-values'!A32 -> 28 | M43: ='t-values'!B32 -> 2.052 | O43: 20 | P43: 0.1111 | Q43: 2.294
D44: 21 | L44: ='t-values'!A33 -> 29 | M44: ='t-values'!B33 -> 2.048 | O44: x | P44: x | Q44: x | R44: x
D45: 22 | L45: ='t-values'!A34 -> 30 | M45: ='t-values'!B34 -> 2.045
D46: 23 | L46: ='t-values'!A35 -> ∞ | M46: ='t-values'!B35 -> 1.96
D47: 24
D48: 25
D49: 26
D50: 27
D51: 28
D52: 29
D53: 30
D54: 31
D55: 32
D56: 33
D57: 34
D58: 35
D59: 36
D60: 37
D61: 38
D62: 39
D63: 40
D64: 41
D65: 42
D66: 43
D67: 44
D68: 45
A69: NOTE: If there are more than 45 items, insert additional cellss in the middle of the data area. The formulae should update correctly but check.

Sheet Lavy et al. 1987-2
B1: Lavy et al. 1987
A2: Subgroup: | B2: Backpack, dichlorprop, T2
C3: Confidence Intervals
C4: Arithmetic | G4: Geometric (Log10)
C5: Mean | D5: Lower Limit | E5: Upper Limit | G5: Mean | H5: Lower Limit | I5: Upper Limit
C6: =IF(C15>0,AVERAGE(B24:B68), "") -> 0.03397558849 | D6: =IF(C15>1, C6-C20, "") -> 0.02685186908 | E6: =IF(C15>1, C6+C20, "") -> 0.04109930791 | F6: Inverse log | G6: =IF(C15>0, 10^G7, "") -> 0.03086632543 | H6: =IF(C15>1,10^H7, "") -> 0.02489112121 | I6: =IF(C15>1, 10^I7, "") -> 0.03827589916
F7: Log | G7: =IF(C15>0, AVERAGE(G24:G68), "") -> -1.510515069 | H7: =IF(C15>1, G7-G20, "") -> -1.60395554 | I7: =IF(C15>1, G7+G20, "") -> -1.417074598
C9: Prediction Intervals
C10: Arithmetic | G10: Geometric (Log10)
C11: Mean | D11: Lower Limit | E11: Upper Limit | G11: Mean | H11: Lower Limit | I11: Upper Limit
C12: =IF(C15>0,AVERAGE(B24:B68), "") -> 0.03397558849 | D12: =IF(C15>1, C12-C21, "") -> 0.001330605043 | E12: =IF(C15>1, C12+C21, "") -> 0.06662057194 | F12: Inverse log | G12: =IF($C$15>0, 10^G13, "") -> 0.03086632543 | H12: =IF($C$15>0, 10^H13, "") -> 0.0115156087 | I12: 0.08273379811
F13: Log | G13: =IF(C15>0, AVERAGE(G24:G68), "") -> -1.510515069 | H13: =IF(C15>1, G13-G21, "") -> -1.938713101 | I13: =IF(C15>1, G13+G21, "") -> -1.082317038 | L13: ='t-values'!A3 -> 95% Confidence Interval
B15: n: | C15: =COUNTA(B24:B68) -> 20 | L15: ='t-values'!A4 -> alpha = 0.025
B16: SSE: | C16: =IF(C15>0, SUM(C24:C68), "") -> 0.00440208831 | D16: Check | F16: SSE: | G16: =IF(C15>0, SUM(H24:H68), "") -> 0.7573823465 | H16: Check | L16: ='t-values'!A5 -> n | M16: ='t-values'!B5 -> t-value
B17: Variance (s2): | C17: =IF(C15>1, C16/(C15-1), "") -> 0.0002316888584 | D17: =IF(C15>1, VAR(B24:B68), "") -> 0.0002316888584 | E17: =IF(C15>1, C17-D17, "") -> 5.421010862e-19 | F17: Variance (s2): | G17: =IF(C15>1, G16/(C15-1), "") -> 0.03986222876 | H17: =IF(C15>1, VAR(G24:G68), "") -> 0.03986222876 | I17: =IF(C15>1, G17-H17, "") -> 8.326672685e-16 | L17: ='t-values'!A6 -> 2 | M17: ='t-values'!B6 -> 12.706
B18: Std Dev (s): | C18: =IF(C15>1, C17^0.5, "") -> 0.01522132906 | D18: =IF(C15>1, STDEV(B24:B68), "") -> 0.01522132906 | E18: =IF(C15>1, C18-D18, "") -> 1.734723476e-17 | F18: Std Dev (s): | G18: =IF(C15>1, G17^0.5, "") -> 0.1996552748 | H18: =IF(C15>1, STDEV(G24:G31), "") -> 0.1650327968 | I18: =IF(C15>1, G18-H18, "") -> 0.03462247803 | L18: ='t-values'!A7 -> 3 | M18: ='t-values'!B7 -> 4.303
B19: t-value: | C19: =IF(C15>1, IF(C15<31, OFFSET(M16, C15-1, 0), 1.96), "") -> 2.093 | F19: t-value: | G19: =C19 -> 2.093 | L19: ='t-values'!A8 -> 4 | M19: ='t-values'!B8 -> 3.182
B20: Conf. Interval Factor: | C20: =IF(C15>1, C19*C18/(C15^0.5), "") -> 0.007123719415 | D20: t x s / n0.5 | F20: Conf. Interval Factor: | G20: =IF(C15>1, G19*G18/(C15^0.5), "") -> 0.09344047104 | H20: t x s / n0.5 | L20: ='t-values'!A9 -> 5 | M20: ='t-values'!B9 -> 2.776
B21: Pred. Interal Factor: | C21: =IF(C15>1, C19*C18*(1+(1/C15))^0.5, "") -> 0.03264498345 | D21: t x s x (1+ 1/n)0.5 | F21: Pred. Interal Factor: | G21: =IF(C15>1, G19*G18*((1+(1/C15))^0.5), "") -> 0.4281980315 | H21: t x s x (1+ 1/n)0.5 | L21: ='t-values'!A10 -> 6 | M21: ='t-values'!B10 -> 2.571
A22: RAW DATA (only enter data under Identifier and Rate. Everything else is a link.) | L22: ='t-values'!A11 -> 7 | M22: ='t-values'!B11 -> 2.447 | O22: See Table 2
A23: Identifier | B23: Rate | C23: (x - xbar)2 | D23: n | G23: Log Rate | H23: (x - xbar)2 | L23: ='t-values'!A12 -> 8 | M23: ='t-values'!B12 -> 2.365 | O23: Worker | P23: mg/kg bw | Q23: Amount handled
A24: =O24 -> 1 | B24: =P24/Q24 -> 0.03426329555 | C24: =IF(ISBLANK(B24)=FALSE, ($C$6-B24)^2, "") -> 8.277535347e-08 | D24: 1 | G24: =IF(ISBLANK(B24)=FALSE,LOG10(B24), "") -> -1.465170868 | H24: =IF(ISBLANK(B24)=FALSE, ($G$7-G24)^2, "") -> 0.002056096636 | L24: ='t-values'!A13 -> 9 | M24: ='t-values'!B13 -> 2.306 | O24: 1 | P24: 0.0786 | Q24: 2.294
A25: 2 | B25: =P25/Q25 -> 0.01778552746 | C25: =IF(ISBLANK(B25)=FALSE, ($C$6-B25)^2, "") -> 0.0002621180761 | D25: =D24+1 -> 2 | G25: =IF(ISBLANK(B25)=FALSE,LOG10(B25), "") -> -1.74993325 | H25: =IF(ISBLANK(B25)=FALSE, ($G$7-G25)^2, "") -> 0.05732106547 | L25: ='t-values'!A14 -> 10 | M25: ='t-values'!B14 -> 2.262 | O25: 2 | P25: 0.0408 | Q25: 2.294
A26: 3 | B26: 0.01691368788 | C26: 0.0002911084524 | D26: =D25+1 -> 3 | G26: -1.771761688 | H26: 0.06824979576 | L26: ='t-values'!A15 -> 11 | M26: ='t-values'!B15 -> 2.228 | O26: 3 | P26: 0.0388 | Q26: 2.294
A27: 4 | B27: 0.04298169137 | C27: 8.110988903e-05 | D27: 4 | G27: -1.366716499 | H27: 0.02067802893 | L27: ='t-values'!A16 -> 12 | M27: ='t-values'!B16 -> 2.201 | O27: 4 | P27: 0.0986 | Q27: 2.294
A28: 5 | B28: 0.02554489974 | C28: 7.107651285e-05 | D28: 5 | G28: -1.592695798 | H28: 0.006753672092 | L28: ='t-values'!A17 -> 13 | M28: ='t-values'!B17 -> 2.179 | O28: 5 | P28: 0.0586 | Q28: 2.294
A29: 6 | B29: 0.04306887533 | C29: 8.268786547e-05 | D29: 6 | G29: -1.365836469 | H29: 0.0209318974 | L29: ='t-values'!A18 -> 14 | M29: ='t-values'!B18 -> 2.16 | O29: 6 | P29: 0.0988 | Q29: 2.294
A30: 7 | B30: 0.01909328684 | C30: 0.0002214829026 | D30: 7 | G30: -1.719119303 | H30: 0.04351572634 | L30: ='t-values'!A19 -> 15 | M30: ='t-values'!B19 -> 2.145 | O30: 7 | P30: 0.0438 | Q30: 2.294
A31: 8 | B31: 0.02877070619 | C31: 2.709079977e-05 | D31: 8 | G31: -1.541049478 | H31: 0.0009323501151 | L31: ='t-values'!A20 -> 16 | M31: ='t-values'!B20 -> 2.131 | O31: 8 | P31: 0.066 | Q31: 2.294
A32: 9 | B32: 0.01133391456 | C32: 0.0005126453984 | D32: 9 | G32: -1.945620066 | H32: 0.1893163578 | L32: ='t-values'!A21 -> 17 | M32: ='t-values'!B21 -> 2.12 | O32: 9 | P32: 0.026 | Q32: 2.294
A33: 10 | B33: 0.02789886661 | C33: 3.692654885e-05 | D33: 10 | G33: -1.55441344 | H33: 0.001927066912 | L33: ='t-values'!A22 -> 18 | M33: ='t-values'!B22 -> 2.11 | O33: 10 | P33: 0.064 | Q33: 2.294
A34: 11 | B34: 0.02122929381 | C34: 0.0001624680281 | D34: 11 | G34: -1.673064452 | H34: 0.02642230192 | L34: ='t-values'!A23 -> 19 | M34: ='t-values'!B23 -> 2.101 | O34: 11 | P34: 0.0487 | Q34: 2.294
A35: 12 | B35: 0.03465562337 | C35: 4.624474293e-07 | D35: 12 | G35: -1.460226285 | H35: 0.002528961837 | L35: ='t-values'!A24 -> 20 | M35: ='t-values'!B24 -> 2.093 | O35: 12 | P35: 0.0795 | Q35: 2.294
A36: 13 | B36: 0.03818657367 | C36: 1.773239618e-05 | D36: 13 | G36: -1.418089307 | H36: 0.008542521466 | L36: ='t-values'!A25 -> 21 | M36: ='t-values'!B25 -> 2.086 | O36: 13 | P36: 0.0876 | Q36: 2.294
A37: 14 | B37: 0.04664341761 | C37: 0.0001604738946 | D37: 14 | G37: -1.331209636 | H37: 0.03215043846 | L37: ='t-values'!A26 -> 22 | M37: ='t-values'!B26 -> 2.08 | O37: 14 | P37: 0.107 | Q37: 2.294
A38: 15 | B38: 0.04694856146 | C38: 0.0001682980278 | D38: 15 | G38: -1.32837771 | H38: 0.03317401756 | L38: ='t-values'!A27 -> 23 | M38: ='t-values'!B27 -> 2.074 | O38: 15 | P38: 0.1077 | Q38: 2.294
A39: 16 | B39: 0.04394071491 | C39: 9.93037445e-05 | D39: 16 | G39: -1.357132881 | H39: 0.02352609555 | L39: ='t-values'!A28 -> 24 | M39: ='t-values'!B28 -> 2.069 | O39: 16 | P39: 0.1008 | Q39: 2.294
A40: 17 | B40: 0.03609415867 | C40: 4.488339621e-06 | D40: 17 | G40: -1.442563077 | H40: 0.00461747329 | L40: ='t-values'!A29 -> 25 | M40: ='t-values'!B29 -> 2.064 | O40: 17 | P40: 0.0828 | Q40: 2.294
A41: 18 | B41: 0.07772449869 | C41: 0.001913967144 | D41: 18 | G41: -1.10944207 | H41: 0.1608595505 | L41: ='t-values'!A30 -> 26 | M41: ='t-values'!B30 -> 2.06 | O41: 18 | P41: 0.1783 | Q41: 2.294
A42: 19 | B42: 0.02122929381 | C42: 0.0001624680281 | D42: 19 | G42: -1.673064452 | H42: 0.02642230192 | L42: ='t-values'!A31 -> 27 | M42: ='t-values'!B31 -> 2.056 | O42: 19 | P42: 0.0487 | Q42: 2.294
A43: 20 | B43: 0.0452048823 | C43: 0.0001260970395 | D43: 20 | G43: -1.344814657 | H43: 0.02745662658 | L43: ='t-values'!A32 -> 28 | M43: ='t-values'!B32 -> 2.052 | O43: 20 | P43: 0.1037 | Q43: 2.294
D44: 21 | L44: ='t-values'!A33 -> 29 | M44: ='t-values'!B33 -> 2.048 | O44: x | P44: x | Q44: x | R44: x
D45: 22 | L45: ='t-values'!A34 -> 30 | M45: ='t-values'!B34 -> 2.045
D46: 23 | L46: ='t-values'!A35 -> ∞ | M46: ='t-values'!B35 -> 1.96
D47: 24
D48: 25
D49: 26
D50: 27
D51: 28
D52: 29
D53: 30
D54: 31
D55: 32
D56: 33
D57: 34
D58: 35
D59: 36
D60: 37
D61: 38
D62: 39
D63: 40
D64: 41
D65: 42
D66: 43
D67: 44
D68: 45
A69: NOTE: If there are more than 45 items, insert additional cellss in the middle of the data area. The formulae should update correctly but check.

Sheet Lavy et al. 1987-1&2
B1: Lavy et al. 1987
A2: Subgroup: | B2: Backpack, dichlorprop, T1 and T2 Combined
C3: Confidence Intervals
C4: Arithmetic | G4: Geometric (Log10)
C5: Mean | D5: Lower Limit | E5: Upper Limit | G5: Mean | H5: Lower Limit | I5: Upper Limit
C6: =IF(C15>0,AVERAGE(B24:B68), "") -> 0.0347831299 | D6: =IF(C15>1, C6-C20, "") -> 0.03061925611 | E6: =IF(C15>1, C6+C20, "") -> 0.0389470037 | F6: Inverse log | G6: =IF(C15>0, 10^G7, "") -> 0.03223447494 | H6: =IF(C15>1,10^H7, "") -> 0.02842317077 | I6: =IF(C15>1, 10^I7, "") -> 0.03655684241
F7: Log | G7: =IF(C15>0, AVERAGE(G24:G68), "") -> -1.4916794 | H7: =IF(C15>1, G7-G20, "") -> -1.546327476 | I7: =IF(C15>1, G7+G20, "") -> -1.437031323
C9: Prediction Intervals
C10: Arithmetic | G10: Geometric (Log10)
C11: Mean | D11: Lower Limit | E11: Upper Limit | G11: Mean | H11: Lower Limit | I11: Upper Limit
C12: =IF(C15>0,AVERAGE(B24:B68), "") -> 0.0347831299 | D12: =IF(C15>1, C12-C21, "") -> 0.008121328681 | E12: =IF(C15>1, C12+C21, "") -> 0.06144493113 | F12: Inverse log | G12: =IF($C$15>0, 10^G13, "") -> 0.03223447494 | H12: =IF($C$15>0, 10^H13, "") -> 0.01440131601 | I12: 0.07215044613
F13: Log | G13: =IF(C15>0, AVERAGE(G24:G68), "") -> -1.4916794 | H13: =IF(C15>1, G13-G21, "") -> -1.84159782 | I13: =IF(C15>1, G13+G21, "") -> -1.141760979 | L13: ='t-values'!A3 -> 95% Confidence Interval
B15: n: | C15: =COUNTA(B24:B68) -> 40 | L15: ='t-values'!A4 -> alpha = 0.025
B16: SSE: | C16: =IF(C15>0, SUM(C24:C68), "") -> 0.007040565957 | D16: Check | F16: SSE: | G16: =IF(C15>0, SUM(H24:H68), "") -> 1.212724661 | H16: Check | L16: ='t-values'!A5 -> n | M16: ='t-values'!B5 -> t-value
B17: Variance (s2): | C17: =IF(C15>1, C16/(C15-1), "") -> 0.0001805273322 | D17: =IF(C15>1, VAR(B24:B68), "") -> 0.0001805273322 | E17: =IF(C15>1, C17-D17, "") -> -1.00288701e-18 | F17: Variance (s2): | G17: =IF(C15>1, G16/(C15-1), "") -> 0.03109550413 | H17: =IF(C15>1, VAR(G24:G68), "") -> 0.03109550413 | I17: =IF(C15>1, G17-H17, "") -> -1.238592562e-15 | L17: ='t-values'!A6 -> 2 | M17: ='t-values'!B6 -> 12.706
B18: Std Dev (s): | C18: =IF(C15>1, C17^0.5, "") -> 0.013436046 | D18: =IF(C15>1, STDEV(B24:B68), "") -> 0.013436046 | E18: =IF(C15>1, C18-D18, "") -> -3.6429193e-17 | F18: Std Dev (s): | G18: =IF(C15>1, G17^0.5, "") -> 0.1763391736 | H18: =IF(C15>1, STDEV(G24:G31), "") -> 0.1603404893 | I18: =IF(C15>1, G18-H18, "") -> 0.01599868421 | L18: ='t-values'!A7 -> 3 | M18: ='t-values'!B7 -> 4.303
B19: t-value: | C19: =IF(C15>1, IF(C15<31, OFFSET(M16, C15-1, 0), 1.96), "") -> 1.96 | F19: t-value: | G19: =C19 -> 1.96 | L19: ='t-values'!A8 -> 4 | M19: ='t-values'!B8 -> 3.182
B20: Conf. Interval Factor: | C20: =IF(C15>1, C19*C18/(C15^0.5), "") -> 0.004163873796 | D20: t x s / n0.5 | F20: Conf. Interval Factor: | G20: =IF(C15>1, G19*G18/(C15^0.5), "") -> 0.05464807606 | H20: t x s / n0.5 | L20: ='t-values'!A9 -> 5 | M20: ='t-values'!B9 -> 2.776
B21: Pred. Interal Factor: | C21: =IF(C15>1, C19*C18*(1+(1/C15))^0.5, "") -> 0.02666180122 | D21: t x s x (1+ 1/n)0.5 | F21: Pred. Interal Factor: | G21: =IF(C15>1, G19*G18*((1+(1/C15))^0.5), "") -> 0.3499184203 | H21: t x s x (1+ 1/n)0.5 | L21: ='t-values'!A10 -> 6 | M21: ='t-values'!B10 -> 2.571
A22: RAW DATA (only enter data under Identifier and Rate. Everything else is a link.) | L22: ='t-values'!A11 -> 7 | M22: ='t-values'!B11 -> 2.447 | O22: See Table 2
A23: Identifier | B23: Rate | C23: (x - xbar)2 | D23: n | G23: Log Rate | H23: (x - xbar)2 | L23: ='t-values'!A12 -> 8 | M23: ='t-values'!B12 -> 2.365 | O23: Worker | P23: mg/kg bw | Q23: Amount handled
A24: =O24 -> 1 | B24: =P24/Q24 -> 0.05366172624 | C24: =IF(ISBLANK(B24)=FALSE, ($C$6-B24)^2, "") -> 0.0003564013997 | D24: 1 | G24: =IF(ISBLANK(B24)=FALSE,LOG10(B24), "") -> -1.270335361 | H24: =IF(ISBLANK(B24)=FALSE, ($G$7-G24)^2, "") -> 0.04899318355 | L24: ='t-values'!A13 -> 9 | M24: ='t-values'!B13 -> 2.306 | O24: 1 | P24: 0.1231 | Q24: 2.294
A25: 2 | B25: =P25/Q25 -> 0.03099389712 | C25: =IF(ISBLANK(B25)=FALSE, ($C$6-B25)^2, "") -> 1.435828507e-05 | D25: =D24+1 -> 2 | G25: =IF(ISBLANK(B25)=FALSE,LOG10(B25), "") -> -1.508723813 | H25: =IF(ISBLANK(B25)=FALSE, ($G$7-G25)^2, "") -> 0.0002905120256 | L25: ='t-values'!A14 -> 10 | M25: ='t-values'!B14 -> 2.262 | O25: 2 | P25: 0.0711 | Q25: 2.294
A26: 3 | B26: 0.03339145597 | C26: 1.936756333e-06 | D26: =D25+1 -> 3 | G26: -1.476364644 | H26: 0.0002345417384 | L26: ='t-values'!A15 -> 11 | M26: ='t-values'!B15 -> 2.228 | O26: 3 | P26: 0.0766 | Q26: 2.294
A27: 4 | B27: 0.05405405405 | C27: 0.0003713685176 | D27: 4 | G27: -1.267171728 | H27: 0.05040369439 | L27: ='t-values'!A16 -> 12 | M27: ='t-values'!B16 -> 2.201 | O27: 4 | P27: 0.124 | Q27: 2.294
A28: 5 | B28: 0.01861377507 | C28: 0.0002614480359 | D28: 5 | G28: -1.730165539 | H28: 0.05687563851 | L28: ='t-values'!A17 -> 13 | M28: ='t-values'!B17 -> 2.179 | O28: 5 | P28: 0.0427 | Q28: 2.294
A29: 6 | B29: 0.03116826504 | C29: 1.306724799e-05 | D29: 6 | G29: -1.506287372 | H29: 0.0002133928534 | L29: ='t-values'!A18 -> 14 | M29: ='t-values'!B18 -> 2.16 | O29: 6 | P29: 0.0715 | Q29: 2.294
A30: 7 | B30: 0.05148212729 | C30: 0.0002788565136 | D30: 7 | G30: -1.288343516 | H30: 0.04134548154 | L30: ='t-values'!A19 -> 15 | M30: ='t-values'!B19 -> 2.145 | O30: 7 | P30: 0.1181 | Q30: 2.294
A31: 8 | B31: 0.03151700087 | C31: 1.066759886e-05 | D31: 8 | G31: -1.501455116 | H31: 9.556463819e-05 | L31: ='t-values'!A20 -> 16 | M31: ='t-values'!B20 -> 2.131 | O31: 8 | P31: 0.0723 | Q31: 2.294
A32: 9 | B32: 0.03142981691 | C32: 1.124470801e-05 | D32: 9 | G32: -1.502658149 | H32: 0.000120532937 | L32: ='t-values'!A21 -> 17 | M32: ='t-values'!B21 -> 2.12 | O32: 9 | P32: 0.0721 | Q32: 2.294
A33: 10 | B33: 0.03073234525 | C33: 1.640885633e-05 | D33: 10 | G33: -1.512404297 | H33: 0.0004295213583 | L33: ='t-values'!A22 -> 18 | M33: ='t-values'!B22 -> 2.11 | O33: 10 | P33: 0.0705 | Q33: 2.294
A34: 11 | B34: 0.0189625109 | C34: 0.0002502919857 | D34: 11 | G34: -1.722104157 | H34: 0.05309556868 | L34: ='t-values'!A23 -> 19 | M34: ='t-values'!B23 -> 2.101 | O34: 11 | P34: 0.0435 | Q34: 2.294
A35: 12 | B35: 0.05065387969 | C35: 0.0002518806986 | D35: 12 | G35: -1.295387286 | H35: 0.03853059402 | L35: ='t-values'!A24 -> 20 | M35: ='t-values'!B24 -> 2.093 | O35: 12 | P35: 0.1162 | Q35: 2.294
A36: 13 | B36: 0.03352223191 | C36: 1.589863753e-06 | D36: 13 | G36: -1.474667074 | H36: 0.0002894192273 | L36: ='t-values'!A25 -> 21 | M36: ='t-values'!B25 -> 2.086 | O36: 13 | P36: 0.0769 | Q36: 2.294
A37: 14 | B37: 0.04503051439 | C37: 0.0001050088887 | D37: 14 | G37: -1.346493092 | H37: 0.02107906388 | L37: ='t-values'!A26 -> 22 | M37: ='t-values'!B26 -> 2.08 | O37: 14 | P37: 0.1033 | Q37: 2.294
A38: 15 | B38: 0.04036617262 | C38: 3.117036601e-05 | D38: 15 | G38: -1.393982427 | H38: 0.00954469846 | L38: ='t-values'!A27 -> 23 | M38: ='t-values'!B27 -> 2.074 | O38: 15 | P38: 0.0926 | Q38: 2.294
A39: 16 | B39: 0.03391455972 | C39: 7.544141629e-07 | D39: 16 | G39: -1.469613817 | H39: 0.0004868899502 | L39: ='t-values'!A28 -> 24 | M39: ='t-values'!B28 -> 2.069 | O39: 16 | P39: 0.0778 | Q39: 2.294
A40: 17 | B40: 0.03474280732 | C40: 1.62591051e-09 | D40: 17 | G40: -1.459135092 | H40: 0.00105913194 | L40: ='t-values'!A29 -> 25 | M40: ='t-values'!B29 -> 2.064 | O40: 17 | P40: 0.0797 | Q40: 2.294
A41: 18 | B41: 0.01948561465 | C41: 0.000234013973 | D41: 18 | G41: -1.71028589 | H41: 0.04778879787 | L41: ='t-values'!A30 -> 26 | M41: ='t-values'!B30 -> 2.06 | O41: 18 | P41: 0.0447 | Q41: 2.294
A42: 19 | B42: 0.01965998256 | C42: 0.0002287095855 | D42: 19 | G42: -1.706416872 | H42: 0.04611218196 | L42: ='t-values'!A31 -> 27 | M42: ='t-values'!B31 -> 2.056 | O42: 19 | P42: 0.0451 | Q42: 2.294
A43: 20 | B43: 0.04843068875 | C43: 0.0001862558625 | D43: 20 | G43: -1.314879355 | H43: 0.03125825587 | L43: ='t-values'!A32 -> 28 | M43: ='t-values'!B32 -> 2.052 | O43: 20 | P43: 0.1111 | Q43: 2.294
A44: ='Lavy et al. 1987-2'!A24 -> 1 | B44: ='Lavy et al. 1987-2'!B24 -> 0.03426329555 | C44: 2.702277519e-07 | D44: 21 | G44: -1.465170868 | H44: 0.0007027022679 | L44: ='t-values'!A33 -> 29 | M44: ='t-values'!B33 -> 2.048 | O44: x | P44: x | Q44: x | R44: x
A45: ='Lavy et al. 1987-2'!A25 -> 2 | B45: ='Lavy et al. 1987-2'!B25 -> 0.01778552746 | C45: 0.0002889184887 | D45: 22 | G45: -1.74993325 | H45: 0.06669505154 | L45: ='t-values'!A34 -> 30 | M45: ='t-values'!B34 -> 2.045
A46: ='Lavy et al. 1987-2'!A26 -> 3 | B46: ='Lavy et al. 1987-2'!B26 -> 0.01691368788 | C46: 0.0003193169582 | D46: 23 | G46: -1.771761688 | H46: 0.07844608831 | L46: ='t-values'!A35 -> ∞ | M46: ='t-values'!B35 -> 1.96
A47: ='Lavy et al. 1987-2'!A27 -> 4 | B47: ='Lavy et al. 1987-2'!B27 -> 0.04298169137 | C47: 6.721641009e-05 | D47: 24 | G47: -1.366716499 | H47: 0.0156157266
A48: ='Lavy et al. 1987-2'!A28 -> 5 | B48: ='Lavy et al. 1987-2'!B28 -> 0.02554489974 | C48: 8.534489659e-05 | D48: 25 | G48: -1.592695798 | H48: 0.01020431267
A49: ='Lavy et al. 1987-2'!A29 -> 6 | B49: ='Lavy et al. 1987-2'!B29 -> 0.04306887533 | C49: 6.865357721e-05 | D49: 26 | G49: -1.365836469 | H49: 0.01583644316
A50: ='Lavy et al. 1987-2'!A30 -> 7 | B50: ='Lavy et al. 1987-2'!B30 -> 0.01909328684 | C50: 0.0002461711755 | D50: 27 | G50: -1.719119303 | H50: 0.05172890973
A51: ='Lavy et al. 1987-2'!A31 -> 8 | B51: ='Lavy et al. 1987-2'!B31 -> 0.02877070619 | C51: 3.614923892e-05 | D51: 28 | G51: -1.541049478 | H51: 0.002437404652
A52: ='Lavy et al. 1987-2'!A32 -> 9 | B52: ='Lavy et al. 1987-2'!B32 -> 0.01133391456 | C52: 0.0005498657003 | D52: 29 | G52: -1.945620066 | H52: 0.2060621283
A53: ='Lavy et al. 1987-2'!A33 -> 10 | B53: ='Lavy et al. 1987-2'!B33 -> 0.02789886661 | C53: 4.739308112e-05 | D53: 30 | G53: -1.55441344 | H53: 0.003935559784
A54: ='Lavy et al. 1987-2'!A34 -> 11 | B54: ='Lavy et al. 1987-2'!B34 -> 0.02122929381 | C54: 0.0001837064729 | D54: 31 | G54: -1.673064452 | H54: 0.03290053739
A55: ='Lavy et al. 1987-2'!A35 -> 12 | B55: ='Lavy et al. 1987-2'!B35 -> 0.03465562337 | C55: 1.625791744e-08 | D55: 32 | G55: -1.460226285 | H55: 0.0009892984181
A56: ='Lavy et al. 1987-2'!A36 -> 13 | B56: ='Lavy et al. 1987-2'!B36 -> 0.03818657367 | C56: 1.158342947e-05 | D56: 33 | G56: -1.418089307 | H56: 0.005415501657
A57: ='Lavy et al. 1987-2'!A37 -> 14 | B57: ='Lavy et al. 1987-2'!B37 -> 0.04664341761 | C57: 0.0001406664245 | D57: 34 | G57: -1.331209636 | H57: 0.02575054504
A58: ='Lavy et al. 1987-2'!A38 -> 15 | B58: ='Lavy et al. 1987-2'!B38 -> 0.04694856146 | C58: 0.0001479977251 | D58: 35 | G58: -1.32837771 | H58: 0.02666744171
A59: ='Lavy et al. 1987-2'!A39 -> 16 | B59: ='Lavy et al. 1987-2'!B39 -> 0.04394071491 | C59: 8.386136311e-05 | D59: 36 | G59: -1.357132881 | H59: 0.01810276552
A60: ='Lavy et al. 1987-2'!A40 -> 17 | B60: ='Lavy et al. 1987-2'!B40 -> 0.03609415867 | C60: 1.718796438e-06 | D60: 37 | G60: -1.442563077 | H60: 0.002412413158
A61: ='Lavy et al. 1987-2'!A41 -> 18 | B61: ='Lavy et al. 1987-2'!B41 -> 0.07772449869 | C61: 0.001843961153 | D61: 38 | G61: -1.10944207 | H61: 0.1461053758
A62: ='Lavy et al. 1987-2'!A42 -> 19 | B62: ='Lavy et al. 1987-2'!B42 -> 0.02122929381 | C62: 0.0001837064729 | D62: 39 | G62: -1.673064452 | H62: 0.03290053739
A63: ='Lavy et al. 1987-2'!A43 -> 20 | B63: ='Lavy et al. 1987-2'!B43 -> 0.0452048823 | C63: 0.000108612923 | D63: 40 | G63: -1.344814657 | H63: 0.02156925254
D64: 41
D65: 42
D66: 43
D67: 44
D68: 45
A69: NOTE: If there are more than 45 items, insert additional cellss in the middle of the data area. The formulae should update correctly but check.

Sheet Lavy et al. 1987-3
B1: Lavy et al. 1987
A2: Subgroup: | B2: Backpack, 2,4-D, T1
C3: Confidence Intervals
C4: Arithmetic | G4: Geometric (Log10)
C5: Mean | D5: Lower Limit | E5: Upper Limit | G5: Mean | H5: Lower Limit | I5: Upper Limit
C6: =IF(C15>0,AVERAGE(B24:B68), "") -> 0.03471447254 | D6: =IF(C15>1, C6-C20, "") -> 0.02728663102 | E6: =IF(C15>1, C6+C20, "") -> 0.04214231405 | F6: Inverse log | G6: =IF(C15>0, 10^G7, "") -> 0.03189122938 | H6: =IF(C15>1,10^H7, "") -> 0.02630921829 | I6: =IF(C15>1, 10^I7, "") -> 0.03865757241
F7: Log | G7: =IF(C15>0, AVERAGE(G24:G68), "") -> -1.496328739 | H7: =IF(C15>1, G7-G20, "") -> -1.579892056 | I7: =IF(C15>1, G7+G20, "") -> -1.412765422
C9: Prediction Intervals
C10: Arithmetic | G10: Geometric (Log10)
C11: Mean | D11: Lower Limit | E11: Upper Limit | G11: Mean | H11: Lower Limit | I11: Upper Limit
C12: =IF(C15>0,AVERAGE(B24:B68), "") -> 0.03471447254 | D12: =IF(C15>1, C12-C21, "") -> 0.000675826545 | E12: =IF(C15>1, C12+C21, "") -> 0.06875311853 | F12: Inverse log | G12: =IF($C$15>0, 10^G13, "") -> 0.03189122938 | H12: =IF($C$15>0, 10^H13, "") -> 0.01320492797 | I12: 0.077020527
F13: Log | G13: =IF(C15>0, AVERAGE(G24:G68), "") -> -1.496328739 | H13: =IF(C15>1, G13-G21, "") -> -1.879263964 | I13: =IF(C15>1, G13+G21, "") -> -1.113393514 | L13: ='t-values'!A3 -> 95% Confidence Interval
B15: n: | C15: =COUNTA(B24:B68) -> 20 | L15: ='t-values'!A4 -> alpha = 0.025
B16: SSE: | C16: =IF(C15>0, SUM(C24:C68), "") -> 0.004785974689 | D16: Check | F16: SSE: | G16: =IF(C15>0, SUM(H24:H68), "") -> 0.6057263683 | H16: Check | L16: ='t-values'!A5 -> n | M16: ='t-values'!B5 -> t-value
B17: Variance (s2): | C17: =IF(C15>1, C16/(C15-1), "") -> 0.0002518934047 | D17: =IF(C15>1, VAR(B24:B68), "") -> 0.0002518934047 | E17: =IF(C15>1, C17-D17, "") -> 5.421010862e-20 | F17: Variance (s2): | G17: =IF(C15>1, G16/(C15-1), "") -> 0.03188033518 | H17: =IF(C15>1, VAR(G24:G68), "") -> 0.03188033518 | I17: =IF(C15>1, G17-H17, "") -> -1.804112415e-16 | L17: ='t-values'!A6 -> 2 | M17: ='t-values'!B6 -> 12.706
B18: Std Dev (s): | C18: =IF(C15>1, C17^0.5, "") -> 0.01587115007 | D18: =IF(C15>1, STDEV(B24:B68), "") -> 0.01587115007 | E18: =IF(C15>1, C18-D18, "") -> 3.469446952e-18 | F18: Std Dev (s): | G18: =IF(C15>1, G17^0.5, "") -> 0.1785506516 | H18: =IF(C15>1, STDEV(G24:G31), "") -> 0.1756603776 | I18: =IF(C15>1, G18-H18, "") -> 0.002890273968 | L18: ='t-values'!A7 -> 3 | M18: ='t-values'!B7 -> 4.303
B19: t-value: | C19: =IF(C15>1, IF(C15<31, OFFSET(M16, C15-1, 0), 1.96), "") -> 2.093 | F19: t-value: | G19: =C19 -> 2.093 | L19: ='t-values'!A8 -> 4 | M19: ='t-values'!B8 -> 3.182
B20: Conf. Interval Factor: | C20: =IF(C15>1, C19*C18/(C15^0.5), "") -> 0.007427841515 | D20: t x s / n0.5 | F20: Conf. Interval Factor: | G20: =IF(C15>1, G19*G18/(C15^0.5), "") -> 0.08356331683 | H20: t x s / n0.5 | L20: ='t-values'!A9 -> 5 | M20: ='t-values'!B9 -> 2.776
B21: Pred. Interal Factor: | C21: =IF(C15>1, C19*C18*(1+(1/C15))^0.5, "") -> 0.03403864599 | D21: t x s x (1+ 1/n)0.5 | F21: Pred. Interal Factor: | G21: =IF(C15>1, G19*G18*((1+(1/C15))^0.5), "") -> 0.3829352247 | H21: t x s x (1+ 1/n)0.5 | L21: ='t-values'!A10 -> 6 | M21: ='t-values'!B10 -> 2.571
A22: RAW DATA (only enter data under Identifier and Rate. Everything else is a link.) | L22: ='t-values'!A11 -> 7 | M22: ='t-values'!B11 -> 2.447 | O22: See Table 3
A23: Identifier | B23: Rate | C23: (x - xbar)2 | D23: n | G23: Log Rate | H23: (x - xbar)2 | L23: ='t-values'!A12 -> 8 | M23: ='t-values'!B12 -> 2.365 | O23: Worker | P23: mg/kg bw | Q23: Amount handled
A24: =O24 -> 1 | B24: =P24/Q24 -> 0.06290322581 | C24: =IF(ISBLANK(B24)=FALSE, ($C$6-B24)^2, "") -> 0.0007946058109 | D24: 1 | G24: =IF(ISBLANK(B24)=FALSE,LOG10(B24), "") -> -1.201327082 | H24: =IF(ISBLANK(B24)=FALSE, ($G$7-G24)^2, "") -> 0.08702597724 | L24: ='t-values'!A13 -> 9 | M24: ='t-values'!B13 -> 2.306 | O24: 1 | P24: 0.1443 | Q24: 2.294
A25: 2 | B25: =P25/Q25 -> 0.03570183086 | C25: =IF(ISBLANK(B25)=FALSE, ($C$6-B25)^2, "") -> 9.748764641e-07 | D25: =D24+1 -> 2 | G25: =IF(ISBLANK(B25)=FALSE,LOG10(B25), "") -> -1.447309512 | H25: =IF(ISBLANK(B25)=FALSE, ($G$7-G25)^2, "") -> 0.002402884616 | L25: ='t-values'!A14 -> 10 | M25: ='t-values'!B14 -> 2.262 | O25: 2 | P25: 0.0819 | Q25: 2.294
A26: 3 | B26: 0.04598953793 | C26: 0.0001271270995 | D26: =D25+1 -> 3 | G26: -1.337340954 | H26: 0.02527711574 | L26: ='t-values'!A15 -> 11 | M26: ='t-values'!B15 -> 2.228 | O26: 3 | P26: 0.1055 | Q26: 2.294
A27: 4 | B27: 0.0414559721 | C27: 4.544781637e-05 | D27: 4 | G27: -1.382412897 | H27: 0.0129768191 | L27: ='t-values'!A16 -> 12 | M27: ='t-values'!B16 -> 2.201 | O27: 4 | P27: 0.0951 | Q27: 2.294
A28: 5 | B28: 0.02336530078 | C28: 0.0001288036995 | D28: 5 | G28: -1.631428624 | H28: 0.01825197894 | L28: ='t-values'!A17 -> 13 | M28: ='t-values'!B17 -> 2.179 | O28: 5 | P28: 0.0536 | Q28: 2.294
A29: 6 | B29: 0.02336530078 | C29: 0.0001288036995 | D29: 6 | G29: -1.631428624 | H29: 0.01825197894 | L29: ='t-values'!A18 -> 14 | M29: ='t-values'!B18 -> 2.16 | O29: 6 | P29: 0.0536 | Q29: 2.294
A30: 7 | B30: 0.05026155187 | C30: 0.0002417116759 | D30: 7 | G30: -1.298764106 | H30: 0.03903178403 | L30: ='t-values'!A19 -> 15 | M30: ='t-values'!B19 -> 2.145 | O30: 7 | P30: 0.1153 | Q30: 2.294
A31: 8 | B31: 0.02140366173 | C31: 0.0001771776844 | D31: 8 | G31: -1.669511921 | H31: 0.02999241475 | L31: ='t-values'!A20 -> 16 | M31: ='t-values'!B20 -> 2.131 | O31: 8 | P31: 0.0491 | Q31: 2.294
A32: 9 | B32: 0.02571926765 | C32: 8.091371087e-05 | D32: 9 | G32: -1.589741402 | H32: 0.008725925631 | L32: ='t-values'!A21 -> 17 | M32: ='t-values'!B21 -> 2.12 | O32: 9 | P32: 0.059 | Q32: 2.294
A33: 10 | B33: 0.02314734089 | C33: 0.0001337985346 | D33: 10 | G33: -1.635498892 | H33: 0.01936833167 | L33: ='t-values'!A22 -> 18 | M33: ='t-values'!B22 -> 2.11 | O33: 10 | P33: 0.0531 | Q33: 2.294
A34: 11 | B34: 0.01560592851 | C34: 0.0003651364549 | D34: 11 | G34: -1.806710387 | H34: 0.09633676749 | L34: ='t-values'!A23 -> 19 | M34: ='t-values'!B23 -> 2.101 | O34: 11 | P34: 0.0358 | Q34: 2.294
A35: 12 | B35: 0.03809938971 | C35: 1.145766428e-05 | D35: 12 | G35: -1.419081981 | H35: 0.005967061602 | L35: ='t-values'!A24 -> 20 | M35: ='t-values'!B24 -> 2.093 | O35: 12 | P35: 0.0874 | Q35: 2.294
A36: 13 | B36: 0.0358326068 | C36: 1.250224231e-06 | D36: 13 | G36: -1.445721596 | H36: 0.0025610829 | L36: ='t-values'!A25 -> 21 | M36: ='t-values'!B25 -> 2.086 | O36: 13 | P36: 0.0822 | Q36: 2.294
A37: 14 | B37: 0.08007846556 | C37: 0.002057891863 | D37: 14 | G37: -1.096484257 | H37: 0.1598756094 | L37: ='t-values'!A26 -> 22 | M37: ='t-values'!B26 -> 2.08 | O37: 14 | P37: 0.1837 | Q37: 2.294
A38: 15 | B38: 0.039581517 | C38: 2.368812181e-05 | D38: 15 | G38: -1.402507565 | H38: 0.008802412646 | L38: ='t-values'!A27 -> 23 | M38: ='t-values'!B27 -> 2.074 | O38: 15 | P38: 0.0908 | Q38: 2.294
A39: 16 | B39: 0.02140366173 | C39: 0.0001771776844 | D39: 16 | G39: -1.669511921 | H39: 0.02999241475 | L39: ='t-values'!A28 -> 24 | M39: ='t-values'!B28 -> 2.069 | O39: 16 | P39: 0.0491 | Q39: 2.294
A40: 17 | B40: 0.03108108108 | C40: 1.320153347e-05 | D40: 17 | G40: -1.507503884 | H40: 0.0001248838637 | L40: ='t-values'!A29 -> 25 | M40: ='t-values'!B29 -> 2.064 | O40: 17 | P40: 0.0713 | Q40: 2.294
A41: 18 | B41: 0.02275501308 | C41: 0.0001430286706 | D41: 18 | G41: -1.642922911 | H41: 0.02148985119 | L41: ='t-values'!A30 -> 26 | M41: ='t-values'!B30 -> 2.06 | O41: 18 | P41: 0.0522 | Q41: 2.294
A42: 19 | B42: 0.02323452485 | C42: 0.000131789199 | D42: 19 | G42: -1.633866205 | H42: 0.01891655448 | L42: ='t-values'!A31 -> 27 | M42: ='t-values'!B31 -> 2.056 | O42: 19 | P42: 0.0533 | Q42: 2.294
A43: 20 | B43: 0.03330427201 | C43: 1.988665515e-06 | D43: 20 | G43: -1.477500055 | H43: 0.0003545193343 | L43: ='t-values'!A32 -> 28 | M43: ='t-values'!B32 -> 2.052 | O43: 20 | P43: 0.0764 | Q43: 2.294
D44: 21 | L44: ='t-values'!A33 -> 29 | M44: ='t-values'!B33 -> 2.048 | O44: x | P44: x | Q44: x | R44: x
D45: 22 | L45: ='t-values'!A34 -> 30 | M45: ='t-values'!B34 -> 2.045
D46: 23 | L46: ='t-values'!A35 -> ∞ | M46: ='t-values'!B35 -> 1.96
D47: 24
D48: 25
D49: 26
D50: 27
D51: 28
D52: 29
D53: 30
D54: 31
D55: 32
D56: 33
D57: 34
D58: 35
D59: 36
D60: 37
D61: 38
D62: 39
D63: 40
D64: 41
D65: 42
D66: 43
D67: 44
D68: 45
A69: NOTE: If there are more than 45 items, insert additional cellss in the middle of the data area. The formulae should update correctly but check.

Sheet Lavy et al. 1987-4
B1: Lavy et al. 1987
A2: Subgroup: | B2: Backpack, 2,4-D, T2
C3: Confidence Intervals
C4: Arithmetic | G4: Geometric (Log10)
C5: Mean | D5: Lower Limit | E5: Upper Limit | G5: Mean | H5: Lower Limit | I5: Upper Limit
C6: =IF(C15>0,AVERAGE(B24:B68), "") -> 0.04048605057 | D6: =IF(C15>1, C6-C20, "") -> 0.02971174814 | E6: =IF(C15>1, C6+C20, "") -> 0.05126035299 | F6: Inverse log | G6: =IF(C15>0, 10^G7, "") -> 0.0353500602 | H6: =IF(C15>1,10^H7, "") -> 0.02752122052 | I6: =IF(C15>1, 10^I7, "") -> 0.04540593523
F7: Log | G7: =IF(C15>0, AVERAGE(G24:G68), "") -> -1.451609842 | H7: =IF(C15>1, G7-G20, "") -> -1.56033231 | I7: =IF(C15>1, G7+G20, "") -> -1.342887375
C9: Prediction Intervals
C10: Arithmetic | G10: Geometric (Log10)
C11: Mean | D11: Lower Limit | E11: Upper Limit | G11: Mean | H11: Lower Limit | I11: Upper Limit
C12: =IF(C15>0,AVERAGE(B24:B68), "") -> 0.04048605057 | D12: =IF(C15>1, C12-C21, "") -> -0.008888005853 | E12: =IF(C15>1, C12+C21, "") -> 0.08986010699 | F12: Inverse log | G12: =IF($C$15>0, 10^G13, "") -> 0.0353500602 | H12: =IF($C$15>0, 10^H13, "") -> 0.01122435052 | I12: =IF($C$15>0, 10^I13, "") -> 0.1113317652
F13: Log | G13: =IF(C15>0, AVERAGE(G24:G68), "") -> -1.451609842 | H13: =IF(C15>1, G13-G21, "") -> -1.949838779 | I13: =IF(C15>1, G13+G21, "") -> -0.9533809051 | L13: ='t-values'!A3 -> 95% Confidence Interval
B15: n: | C15: =COUNTA(B24:B68) -> 20 | L15: ='t-values'!A4 -> alpha = 0.025
B16: SSE: | C16: =IF(C15>0, SUM(C24:C68), "") -> 0.01006986071 | D16: Check | F16: SSE: | G16: =IF(C15>0, SUM(H24:H68), "") -> 1.025377399 | H16: Check | L16: ='t-values'!A5 -> n | M16: ='t-values'!B5 -> t-value
B17: Variance (s2): | C17: =IF(C15>1, C16/(C15-1), "") -> 0.0005299926688 | D17: =IF(C15>1, VAR(B24:B68), "") -> 0.0005299926688 | E17: =IF(C15>1, C17-D17, "") -> -4.33680869e-19 | F17: Variance (s2): | G17: =IF(C15>1, G16/(C15-1), "") -> 0.05396723154 | H17: =IF(C15>1, VAR(G24:G68), "") -> 0.05396723154 | I17: =IF(C15>1, G17-H17, "") -> 8.257283746e-16 | L17: ='t-values'!A6 -> 2 | M17: ='t-values'!B6 -> 12.706
B18: Std Dev (s): | C18: =IF(C15>1, C17^0.5, "") -> 0.02302156964 | D18: =IF(C15>1, STDEV(B24:B68), "") -> 0.02302156964 | E18: =IF(C15>1, C18-D18, "") -> -1.040834086e-17 | F18: Std Dev (s): | G18: =IF(C15>1, G17^0.5, "") -> 0.2323084836 | H18: =IF(C15>1, STDEV(G24:G31), "") -> 0.1689320586 | I18: =IF(C15>1, G18-H18, "") -> 0.06337642498 | L18: ='t-values'!A7 -> 3 | M18: ='t-values'!B7 -> 4.303
B19: t-value: | C19: =IF(C15>1, IF(C15<31, OFFSET(M16, C15-1, 0), 1.96), "") -> 2.093 | F19: t-value: | G19: =C19 -> 2.093 | L19: ='t-values'!A8 -> 4 | M19: ='t-values'!B8 -> 3.182
B20: Conf. Interval Factor: | C20: =IF(C15>1, C19*C18/(C15^0.5), "") -> 0.01077430242 | D20: t x s / n0.5 | F20: Conf. Interval Factor: | G20: =IF(C15>1, G19*G18/(C15^0.5), "") -> 0.1087224675 | H20: t x s / n0.5 | L20: ='t-values'!A9 -> 5 | M20: ='t-values'!B9 -> 2.776
B21: Pred. Interal Factor: | C21: =IF(C15>1, C19*C18*(1+(1/C15))^0.5, "") -> 0.04937405642 | D21: t x s x (1+ 1/n)0.5 | F21: Pred. Interal Factor: | G21: =IF(C15>1, G19*G18*((1+(1/C15))^0.5), "") -> 0.4982289372 | H21: t x s x (1+ 1/n)0.5 | L21: ='t-values'!A10 -> 6 | M21: ='t-values'!B10 -> 2.571
A22: RAW DATA (only enter data under Identifier and Rate. Everything else is a link.) | L22: ='t-values'!A11 -> 7 | M22: ='t-values'!B11 -> 2.447 | O22: See Table 3
A23: Identifier | B23: Rate | C23: (x - xbar)2 | D23: n | G23: Log Rate | H23: (x - xbar)2 | L23: ='t-values'!A12 -> 8 | M23: ='t-values'!B12 -> 2.365 | O23: Worker | P23: mg/kg bw | Q23: Amount handled
A24: =O24 -> 1 | B24: =P24/Q24 -> 0.04869224063 | C24: =IF(ISBLANK(B24)=FALSE, ($C$6-B24)^2, "") -> 6.734155532e-05 | D24: 1 | G24: =IF(ISBLANK(B24)=FALSE,LOG10(B24), "") -> -1.31254024 | H24: =IF(ISBLANK(B24)=FALSE, ($G$7-G24)^2, "") -> 0.01934035414 | L24: ='t-values'!A13 -> 9 | M24: ='t-values'!B13 -> 2.306 | O24: 1 | P24: 0.1117 | Q24: 2.294
A25: 2 | B25: =P25/Q25 -> 0.01756756757 | C25: =IF(ISBLANK(B25)=FALSE, ($C$6-B25)^2, "") -> 0.000525256863 | D25: =D24+1 -> 2 | G25: =IF(ISBLANK(B25)=FALSE,LOG10(B25), "") -> -1.755288367 | H25: =IF(ISBLANK(B25)=FALSE, ($G$7-G25)^2, "") -> 0.09222064666 | L25: ='t-values'!A14 -> 10 | M25: ='t-values'!B14 -> 2.262 | O25: 2 | P25: 0.0403 | Q25: 2.294
A26: 3 | B26: 0.03718395815 | C26: 1.090381432e-05 | D26: =D25+1 -> 3 | G26: -1.429644382 | H26: 0.0004824814262 | L26: ='t-values'!A15 -> 11 | M26: ='t-values'!B15 -> 2.228 | O26: 3 | P26: 0.0853 | Q26: 2.294
A27: 4 | B27: 0.04960767219 | C27: 8.320398101e-05 | D27: 4 | G27: -1.304451152 | H27: 0.02165568026 | L27: ='t-values'!A16 -> 12 | M27: ='t-values'!B16 -> 2.201 | O27: 4 | P27: 0.1138 | Q27: 2.294
A28: 5 | B28: 0.02637314734 | C28: 0.0001991740375 | D28: 5 | G28: -1.578838039 | H28: 0.01618701403 | L28: ='t-values'!A17 -> 13 | M28: ='t-values'!B17 -> 2.179 | O28: 5 | P28: 0.0605 | Q28: 2.294
A29: 6 | B29: 0.02898866609 | C29: 0.0001321898499 | D29: 6 | G29: -1.537771768 | H29: 0.007423877495 | L29: ='t-values'!A18 -> 14 | M29: ='t-values'!B18 -> 2.16 | O29: 6 | P29: 0.0665 | Q29: 2.294
A30: 7 | B30: 0.02301656495 | C30: 0.0003051829276 | D30: 7 | G30: -1.637959491 | H30: 0.0347261916 | L30: ='t-values'!A19 -> 15 | M30: ='t-values'!B19 -> 2.145 | O30: 7 | P30: 0.0528 | Q30: 2.294
A31: 8 | B31: 0.04755884917 | C31: 5.002448011e-05 | D31: 8 | G31: -1.322768663 | H31: 0.01660004947 | L31: ='t-values'!A20 -> 16 | M31: ='t-values'!B20 -> 2.131 | O31: 8 | P31: 0.1091 | Q31: 2.294
A32: 9 | B32: 0.0141673932 | C32: 0.0006926717256 | D32: 9 | G32: -1.848710053 | H32: 0.1576885771 | L32: ='t-values'!A21 -> 17 | M32: ='t-values'!B21 -> 2.12 | O32: 9 | P32: 0.0325 | Q32: 2.294
A33: 10 | B33: 0.04341761116 | C33: 8.59404751e-06 | D33: 10 | G33: -1.362334075 | H33: 0.007970162592 | L33: ='t-values'!A22 -> 18 | M33: ='t-values'!B22 -> 2.11 | O33: 10 | P33: 0.0996 | Q33: 2.294
A34: 11 | B34: 0.0216652136 | C34: 0.0003542239041 | D34: 11 | G34: -1.664237025 | H34: 0.04521031878 | L34: ='t-values'!A23 -> 19 | M34: ='t-values'!B23 -> 2.101 | O34: 11 | P34: 0.0497 | Q34: 2.294
A35: 12 | B35: 0.03683522232 | C35: 1.332854689e-05 | D35: 12 | G35: -1.433736705 | H35: 0.0003194490487 | L35: ='t-values'!A24 -> 20 | M35: ='t-values'!B24 -> 2.093 | O35: 12 | P35: 0.0845 | Q35: 2.294
A36: 13 | B36: 0.03700959024 | C36: 1.208577644e-05 | D36: 13 | G36: -1.431685723 | H36: 0.0003969705148 | L36: ='t-values'!A25 -> 21 | M36: ='t-values'!B25 -> 2.086 | O36: 13 | P36: 0.0849 | Q36: 2.294
A37: 14 | B37: 0.09001743679 | C37: 0.002453358221 | D37: 14 | G37: -1.045673358 | H37: 0.1647844296 | L37: ='t-values'!A26 -> 22 | M37: ='t-values'!B26 -> 2.08 | O37: 14 | P37: 0.2065 | Q37: 2.294
A38: 15 | B38: 0.04638186574 | C38: 3.476063652e-05 | D38: 15 | G38: -1.333651786 | H38: 0.01391410313 | L38: ='t-values'!A27 -> 23 | M38: ='t-values'!B27 -> 2.074 | O38: 15 | P38: 0.1064 | Q38: 2.294
A39: 16 | B39: 0.04306887533 | C39: 6.670983742e-06 | D39: 16 | G39: -1.365836469 | H39: 0.007357071561 | L39: ='t-values'!A28 -> 24 | M39: ='t-values'!B28 -> 2.069 | O39: 16 | P39: 0.0988 | Q39: 2.294
A40: 17 | B40: 0.03953792502 | C40: 8.989420489e-07 | D40: 17 | G40: -1.402986127 | H40: 0.002364265732 | L40: ='t-values'!A29 -> 25 | M40: ='t-values'!B29 -> 2.064 | O40: 17 | P40: 0.0907 | Q40: 2.294
A41: 18 | B41: 0.1065823888 | C41: 0.004368725933 | D41: 18 | G41: -0.9723145501 | H41: 0.2297239771 | L41: ='t-values'!A30 -> 26 | M41: ='t-values'!B30 -> 2.06 | O41: 18 | P41: 0.2445 | Q41: 2.294
A42: 19 | B42: 0.03892763731 | C42: 2.428651864e-06 | D42: 19 | G42: -1.409741955 | H42: 0.001752920009 | L42: ='t-values'!A31 -> 27 | M42: ='t-values'!B31 -> 2.056 | O42: 19 | P42: 0.0893 | Q42: 2.294
A43: 20 | B43: 0.0131211857 | C43: 0.0007488358291 | D43: 20 | G43: -1.882026918 | H43: 0.1852588591 | L43: ='t-values'!A32 -> 28 | M43: ='t-values'!B32 -> 2.052 | O43: 20 | P43: 0.0301 | Q43: 2.294
D44: 21 | L44: ='t-values'!A33 -> 29 | M44: ='t-values'!B33 -> 2.048 | O44: x | P44: x | Q44: x | R44: x
D45: 22 | L45: ='t-values'!A34 -> 30 | M45: ='t-values'!B34 -> 2.045
D46: 23 | L46: ='t-values'!A35 -> ∞ | M46: ='t-values'!B35 -> 1.96
D47: 24
D48: 25
D49: 26
D50: 27
D51: 28
D52: 29
D53: 30
D54: 31
D55: 32
D56: 33
D57: 34
D58: 35
D59: 36
D60: 37
D61: 38
D62: 39
D63: 40
D64: 41
D65: 42
D66: 43
D67: 44
D68: 45
A69: NOTE: If there are more than 45 items, insert additional cellss in the middle of the data area. The formulae should update correctly but check.

Sheet Lavy et al. 1987-3&4
B1: Lavy et al. 1987
A2: Subgroup: | B2: Backpack, 2,4-D, T1 and T2 combined
C3: Confidence Intervals
C4: Arithmetic | G4: Geometric (Log10)
C5: Mean | D5: Lower Limit | E5: Upper Limit | G5: Mean | H5: Lower Limit | I5: Upper Limit
C6: =IF(C15>0,AVERAGE(B24:B68), "") -> 0.03760026155 | D6: =IF(C15>1, C6-C20, "") -> 0.03148440066 | E6: =IF(C15>1, C6+C20, "") -> 0.04371612245 | F6: Inverse log | G6: =IF(C15>0, 10^G7, "") -> 0.03357613555 | H6: =IF(C15>1,10^H7, "") -> 0.02899118443 | I6: =IF(C15>1, 10^I7, "") -> 0.03888619595
F7: Log | G7: =IF(C15>0, AVERAGE(G24:G68), "") -> -1.473969291 | H7: =IF(C15>1, G7-G20, "") -> -1.537734041 | I7: =IF(C15>1, G7+G20, "") -> -1.41020454
C9: Prediction Intervals
C10: Arithmetic | G10: Geometric (Log10)
C11: Mean | D11: Lower Limit | E11: Upper Limit | G11: Mean | H11: Lower Limit | I11: Upper Limit
C12: =IF(C15>0,AVERAGE(B24:B68), "") -> 0.03760026155 | D12: =IF(C15>1, C12-C21, "") -> -0.001560355569 | E12: =IF(C15>1, C12+C21, "") -> 0.07676087867 | F12: Inverse log | G12: =IF($C$15>0, 10^G13, "") -> 0.03357613555 | H12: =IF($C$15>0, 10^H13, "") -> 0.01311405764 | I12: 0.08596552716
F13: Log | G13: =IF(C15>0, AVERAGE(G24:G68), "") -> -1.473969291 | H13: =IF(C15>1, G13-G21, "") -> -1.882262912 | I13: =IF(C15>1, G13+G21, "") -> -1.065675669 | L13: ='t-values'!A3 -> 95% Confidence Interval
B15: n: | C15: =COUNTA(B24:B68) -> 40 | L15: ='t-values'!A4 -> alpha = 0.025
B16: SSE: | C16: =IF(C15>0, SUM(C24:C68), "") -> 0.01518894653 | D16: Check | F16: SSE: | G16: =IF(C15>0, SUM(H24:H68), "") -> 1.651101565 | H16: Check | L16: ='t-values'!A5 -> n | M16: ='t-values'!B5 -> t-value
B17: Variance (s2): | C17: =IF(C15>1, C16/(C15-1), "") -> 0.0003894601673 | D17: =IF(C15>1, VAR(B24:B68), "") -> 0.0003894601673 | E17: =IF(C15>1, C17-D17, "") -> 3.252606517e-19 | F17: Variance (s2): | G17: =IF(C15>1, G16/(C15-1), "") -> 0.04233593756 | H17: =IF(C15>1, VAR(G24:G68), "") -> 0.04233593756 | I17: =IF(C15>1, G17-H17, "") -> -3.469446952e-17 | L17: ='t-values'!A6 -> 2 | M17: ='t-values'!B6 -> 12.706
B18: Std Dev (s): | C18: =IF(C15>1, C17^0.5, "") -> 0.01973474518 | D18: =IF(C15>1, STDEV(B24:B68), "") -> 0.01973474518 | E18: =IF(C15>1, C18-D18, "") -> 6.938893904e-18 | F18: Std Dev (s): | G18: =IF(C15>1, G17^0.5, "") -> 0.2057569867 | H18: =IF(C15>1, STDEV(G24:G31), "") -> 0.1756603776 | I18: =IF(C15>1, G18-H18, "") -> 0.03009660905 | L18: ='t-values'!A7 -> 3 | M18: ='t-values'!B7 -> 4.303
B19: t-value: | C19: =IF(C15>1, IF(C15<31, OFFSET(M16, C15-1, 0), 1.96), "") -> 1.96 | F19: t-value: | G19: =C19 -> 1.96 | L19: ='t-values'!A8 -> 4 | M19: ='t-values'!B8 -> 3.182
B20: Conf. Interval Factor: | C20: =IF(C15>1, C19*C18/(C15^0.5), "") -> 0.006115860894 | D20: t x s / n0.5 | F20: Conf. Interval Factor: | G20: =IF(C15>1, G19*G18/(C15^0.5), "") -> 0.06376475079 | H20: t x s / n0.5 | L20: ='t-values'!A9 -> 5 | M20: ='t-values'!B9 -> 2.776
B21: Pred. Interal Factor: | C21: =IF(C15>1, C19*C18*(1+(1/C15))^0.5, "") -> 0.03916061712 | D21: t x s x (1+ 1/n)0.5 | F21: Pred. Interal Factor: | G21: =IF(C15>1, G19*G18*((1+(1/C15))^0.5), "") -> 0.4082936213 | H21: t x s x (1+ 1/n)0.5 | L21: ='t-values'!A10 -> 6 | M21: ='t-values'!B10 -> 2.571
A22: RAW DATA (only enter data under Identifier and Rate. Everything else is a link.) | L22: ='t-values'!A11 -> 7 | M22: ='t-values'!B11 -> 2.447 | O22: See Table 3
A23: Identifier | B23: Rate | C23: (x - xbar)2 | D23: n | G23: Log Rate | H23: (x - xbar)2 | L23: ='t-values'!A12 -> 8 | M23: ='t-values'!B12 -> 2.365 | O23: Worker | P23: mg/kg bw | Q23: Amount handled
A24: =O24 -> 1 | B24: =P24/Q24 -> 0.06290322581 | C24: =IF(ISBLANK(B24)=FALSE, ($C$6-B24)^2, "") -> 0.0006402400001 | D24: 1 | G24: =IF(ISBLANK(B24)=FALSE,LOG10(B24), "") -> -1.201327082 | H24: =IF(ISBLANK(B24)=FALSE, ($G$7-G24)^2, "") -> 0.07433377361 | L24: ='t-values'!A13 -> 9 | M24: ='t-values'!B13 -> 2.306 | O24: 1 | P24: 0.1443 | Q24: 2.294
A25: 2 | B25: =P25/Q25 -> 0.03570183086 | C25: =IF(ISBLANK(B25)=FALSE, ($C$6-B25)^2, "") -> 3.60403908e-06 | D25: =D24+1 -> 2 | G25: =IF(ISBLANK(B25)=FALSE,LOG10(B25), "") -> -1.447309512 | H25: =IF(ISBLANK(B25)=FALSE, ($G$7-G25)^2, "") -> 0.0007107438014 | L25: ='t-values'!A14 -> 10 | M25: ='t-values'!B14 -> 2.262 | O25: 2 | P25: 0.0819 | Q25: 2.294
A26: 3 | B26: 0.04598953793 | C26: 7.037995807e-05 | D26: =D25+1 -> 3 | G26: -1.337340954 | H26: 0.01866730236 | L26: ='t-values'!A15 -> 11 | M26: ='t-values'!B15 -> 2.228 | O26: 3 | P26: 0.1055 | Q26: 2.294
A27: 4 | B27: 0.0414559721 | C27: 1.486650384e-05 | D27: 4 | G27: -1.382412897 | H27: 0.008382573263 | L27: ='t-values'!A16 -> 12 | M27: ='t-values'!B16 -> 2.201 | O27: 4 | P27: 0.0951 | Q27: 2.294
A28: 5 | B28: 0.02336530078 | C28: 0.000202634108 | D28: 5 | G28: -1.631428624 | H28: 0.02479344166 | L28: ='t-values'!A17 -> 13 | M28: ='t-values'!B17 -> 2.179 | O28: 5 | P28: 0.0536 | Q28: 2.294
A29: 6 | B29: 0.02336530078 | C29: 0.000202634108 | D29: 6 | G29: -1.631428624 | H29: 0.02479344166 | L29: ='t-values'!A18 -> 14 | M29: ='t-values'!B18 -> 2.16 | O29: 6 | P29: 0.0536 | Q29: 2.294
A30: 7 | B30: 0.05026155187 | C30: 0.0001603082726 | D30: 7 | G30: -1.298764106 | H30: 0.03069685659 | L30: ='t-values'!A19 -> 15 | M30: ='t-values'!B19 -> 2.145 | O30: 7 | P30: 0.1153 | Q30: 2.294
A31: 8 | B31: 0.02140366173 | C31: 0.0002623298459 | D31: 8 | G31: -1.669511921 | H31: 0.03823692051 | L31: ='t-values'!A20 -> 16 | M31: ='t-values'!B20 -> 2.131 | O31: 8 | P31: 0.0491 | Q31: 2.294
A32: 9 | B32: 0.02571926765 | C32: 0.000141158016 | D32: 9 | G32: -1.589741402 | H32: 0.01340318178 | L32: ='t-values'!A21 -> 17 | M32: ='t-values'!B21 -> 2.12 | O32: 9 | P32: 0.059 | Q32: 2.294
A33: 10 | B33: 0.02314734089 | C33: 0.0002088869157 | D33: 10 | G33: -1.635498892 | H33: 0.02609181231 | L33: ='t-values'!A22 -> 18 | M33: ='t-values'!B22 -> 2.11 | O33: 10 | P33: 0.0531 | Q33: 2.294
A34: 11 | B34: 0.01560592851 | C34: 0.000483750686 | D34: 11 | G34: -1.806710387 | H34: 0.1107166372 | L34: ='t-values'!A23 -> 19 | M34: ='t-values'!B23 -> 2.101 | O34: 11 | P34: 0.0358 | Q34: 2.294
A35: 12 | B35: 0.03809938971 | C35: 2.491289205e-07 | D35: 12 | G35: -1.419081981 | H35: 0.003012616754 | L35: ='t-values'!A24 -> 20 | M35: ='t-values'!B24 -> 2.093 | O35: 12 | P35: 0.0874 | Q35: 2.294
A36: 13 | B36: 0.0358326068 | C36: 3.124603321e-06 | D36: 13 | G36: -1.445721596 | H36: 0.0007979322446 | L36: ='t-values'!A25 -> 21 | M36: ='t-values'!B25 -> 2.086 | O36: 13 | P36: 0.0822 | Q36: 2.294
A37: 14 | B37: 0.08007846556 | C37: 0.001804397816 | D37: 14 | G37: -1.096484257 | H37: 0.1424949503 | L37: ='t-values'!A26 -> 22 | M37: ='t-values'!B26 -> 2.08 | O37: 14 | P37: 0.1837 | Q37: 2.294
A38: 15 | B38: 0.039581517 | C38: 3.925373154e-06 | D38: 15 | G38: -1.402507565 | H38: 0.005106778209 | L38: ='t-values'!A27 -> 23 | M38: ='t-values'!B27 -> 2.074 | O38: 15 | P38: 0.0908 | Q38: 2.294
A39: 16 | B39: 0.02140366173 | C39: 0.0002623298459 | D39: 16 | G39: -1.669511921 | H39: 0.03823692051 | L39: ='t-values'!A28 -> 24 | M39: ='t-values'!B28 -> 2.069 | O39: 16 | P39: 0.0491 | Q39: 2.294
A40: 17 | B40: 0.03108108108 | C40: 4.249971401e-05 | D40: 17 | G40: -1.507503884 | H40: 0.00112456894 | L40: ='t-values'!A29 -> 25 | M40: ='t-values'!B29 -> 2.064 | O40: 17 | P40: 0.0713 | Q40: 2.294
A41: 18 | B41: 0.02275501308 | C41: 0.0002203814023 | D41: 18 | G41: -1.642922911 | H41: 0.02854532572 | L41: ='t-values'!A30 -> 26 | M41: ='t-values'!B30 -> 2.06 | O41: 18 | P41: 0.0522 | Q41: 2.294
A42: 19 | B42: 0.02323452485 | C42: 0.0002063743911 | D42: 19 | G42: -1.633866205 | H42: 0.02556702311 | L42: ='t-values'!A31 -> 27 | M42: ='t-values'!B31 -> 2.056 | O42: 19 | P42: 0.0533 | Q42: 2.294
A43: 20 | B43: 0.03330427201 | C43: 1.845552611e-05 | D43: 20 | G43: -1.477500055 | H43: 1.24662977e-05 | L43: ='t-values'!A32 -> 28 | M43: ='t-values'!B32 -> 2.052 | O43: 20 | P43: 0.0764 | Q43: 2.294
A44: ='Lavy et al. 1987-4'!A24 -> 1 | B44: ='Lavy et al. 1987-4'!B24 -> 0.04869224063 | C44: 0.0001230319998 | D44: 21 | G44: -1.31254024 | H44: 0.02605933821 | L44: ='t-values'!A33 -> 29 | M44: ='t-values'!B33 -> 2.048 | O44: x | P44: x | Q44: x | R44: x
A45: ='Lavy et al. 1987-4'!A25 -> 2 | B45: ='Lavy et al. 1987-4'!B25 -> 0.01756756757 | C45: 0.0004013088283 | D45: 22 | G45: -1.755288367 | H45: 0.07914042303 | L45: ='t-values'!A34 -> 30 | M45: ='t-values'!B34 -> 2.045
A46: ='Lavy et al. 1987-4'!A26 -> 3 | B46: ='Lavy et al. 1987-4'!B26 -> 0.03718395815 | C46: 1.73308521e-07 | D46: 23 | G46: -1.429644382 | H46: 0.00196469748 | L46: ='t-values'!A35 -> ∞ | M46: ='t-values'!B35 -> 1.96
A47: ='Lavy et al. 1987-4'!A27 -> 4 | B47: ='Lavy et al. 1987-4'!B27 -> 0.04960767219 | C47: 0.0001441779102 | D47: 24 | G47: -1.304451152 | H47: 0.02873639946
A48: ='Lavy et al. 1987-4'!A28 -> 5 | B48: ='Lavy et al. 1987-4'!B28 -> 0.02637314734 | C48: 0.0001260480935 | D48: 25 | G48: -1.578838039 | H48: 0.01099745439
A49: ='Lavy et al. 1987-4'!A29 -> 6 | B49: ='Lavy et al. 1987-4'!B29 -> 0.02898866609 | C49: 7.415957648e-05 | D49: 26 | G49: -1.537771768 | H49: 0.004070756165
A50: ='Lavy et al. 1987-4'!A30 -> 7 | B50: ='Lavy et al. 1987-4'!B30 -> 0.02301656495 | C50: 0.0002126842065 | D50: 27 | G50: -1.637959491 | H50: 0.02689278586
A51: ='Lavy et al. 1987-4'!A31 -> 8 | B51: ='Lavy et al. 1987-4'!B31 -> 0.04755884917 | C51: 9.917346738e-05 | D51: 28 | G51: -1.322768663 | H51: 0.02286162977
A52: ='Lavy et al. 1987-4'!A32 -> 9 | B52: ='Lavy et al. 1987-4'!B32 -> 0.0141673932 | C52: 0.0005490993192 | D52: 29 | G52: -1.848710053 | H52: 0.1404306388
A53: ='Lavy et al. 1987-4'!A33 -> 10 | B53: ='Lavy et al. 1987-4'!B33 -> 0.04341761116 | C53: 3.384155646e-05 | D53: 30 | G53: -1.362334075 | H53: 0.01246242131
A54: ='Lavy et al. 1987-4'!A34 -> 11 | B54: ='Lavy et al. 1987-4'!B34 -> 0.0216652136 | C54: 0.0002539257532 | D54: 31 | G54: -1.664237025 | H54: 0.03620181072
A55: ='Lavy et al. 1987-4'!A35 -> 12 | B55: ='Lavy et al. 1987-4'!B35 -> 0.03683522232 | C55: 5.852850277e-07 | D55: 32 | G55: -1.433736705 | H55: 0.001618660969
A56: ='Lavy et al. 1987-4'!A36 -> 13 | B56: ='Lavy et al. 1987-4'!B36 -> 0.03700959024 | C56: 3.488926041e-07 | D56: 33 | G56: -1.431685723 | H56: 0.001787900055
A57: ='Lavy et al. 1987-4'!A37 -> 14 | B57: ='Lavy et al. 1987-4'!B37 -> 0.09001743679 | C57: 0.00274756026 | D57: 34 | G57: -1.045673358 | H57: 0.1834374062
A58: ='Lavy et al. 1987-4'!A38 -> 15 | B58: ='Lavy et al. 1987-4'!B38 -> 0.04638186574 | C58: 7.711657206e-05 | D58: 35 | G58: -1.333651786 | H58: 0.01968900219
A59: ='Lavy et al. 1987-4'!A39 -> 16 | B59: ='Lavy et al. 1987-4'!B39 -> 0.04306887533 | C59: 2.990573662e-05 | D59: 36 | G59: -1.365836469 | H59: 0.0116927071
A60: ='Lavy et al. 1987-4'!A40 -> 17 | B60: ='Lavy et al. 1987-4'!B40 -> 0.03953792502 | C60: 3.754539723e-06 | D60: 37 | G60: -1.402986127 | H60: 0.005038609574
A61: ='Lavy et al. 1987-4'!A41 -> 18 | B61: ='Lavy et al. 1987-4'!B41 -> 0.1065823888 | C61: 0.004758533885 | D61: 38 | G61: -0.9723145501 | H61: 0.2516574786
A62: ='Lavy et al. 1987-4'!A42 -> 19 | B62: ='Lavy et al. 1987-4'!B42 -> 0.03892763731 | C62: 1.761926416e-06 | D62: 39 | G62: -1.409741955 | H62: 0.00412515067
A63: ='Lavy et al. 1987-4'!A43 -> 20 | B63: ='Lavy et al. 1987-4'!B43 -> 0.0131211857 | C63: 0.0005992251545 | D63: 40 | G63: -1.882026918 | H63: 0.1665110273
D64: 41
D65: 42
D66: 43
D67: 44
D68: 45
A69: NOTE: If there are more than 45 items, insert additional cellss in the middle of the data area. The formulae should update correctly but check.

Sheet Lavy et al. 1987-5
B1: Lavy et al. 1987
A2: Subgroup: | B2: Hack-and-Squirt, 2,4-D, T1
C3: Confidence Intervals
C4: Arithmetic | G4: Geometric (Log10)
C5: Mean | D5: Lower Limit | E5: Upper Limit | G5: Mean | H5: Lower Limit | I5: Upper Limit
C6: =IF(C15>0,AVERAGE(B24:B68), "") -> 0.04076714774 | D6: =IF(C15>1, C6-C20, "") -> 0.01761216263 | E6: =IF(C15>1, C6+C20, "") -> 0.06392213285 | F6: Inverse log | G6: =IF(C15>0, 10^G7, "") -> 0.01737631358 | H6: =IF(C15>1,10^H7, "") -> 0.00869392475 | I6: =IF(C15>1, 10^I7, "") -> 0.03472957062
F7: Log | G7: =IF(C15>0, AVERAGE(G24:G68), "") -> -1.760042355 | H7: =IF(C15>1, G7-G20, "") -> -2.060784123 | I7: =IF(C15>1, G7+G20, "") -> -1.459300586
C9: Prediction Intervals
C10: Arithmetic | G10: Geometric (Log10)
C11: Mean | D11: Lower Limit | E11: Upper Limit | G11: Mean | H11: Lower Limit | I11: Upper Limit
C12: =IF(C15>0,AVERAGE(B24:B68), "") -> 0.04076714774 | D12: =IF(C15>1, C12-C21, "") -> -0.06534232424 | E12: =IF(C15>1, C12+C21, "") -> 0.1468766197 | F12: Inverse log | G12: =IF($C$15>0, 10^G13, "") -> 0.01737631358 | H12: =IF($C$15>0, 10^H13, "") -> 0.0007274208185 | I12: 0.4150778558
F13: Log | G13: =IF(C15>0, AVERAGE(G24:G68), "") -> -1.760042355 | H13: =IF(C15>1, G13-G21, "") -> -3.138214274 | I13: =IF(C15>1, G13+G21, "") -> -0.3818704354 | L13: ='t-values'!A3 -> 95% Confidence Interval
B15: n: | C15: =COUNTA(B24:B68) -> 20 | L15: ='t-values'!A4 -> alpha = 0.025
B16: SSE: | C16: =IF(C15>0, SUM(C24:C68), "") -> 0.04650869483 | D16: Check | F16: SSE: | G16: =IF(C15>0, SUM(H24:H68), "") -> 7.845716998 | H16: Check | L16: ='t-values'!A5 -> n | M16: ='t-values'!B5 -> t-value
B17: Variance (s2): | C17: =IF(C15>1, C16/(C15-1), "") -> 0.002447826044 | D17: =IF(C15>1, VAR(B24:B68), "") -> 0.002447826044 | E17: =IF(C15>1, C17-D17, "") -> 0 | F17: Variance (s2): | G17: =IF(C15>1, G16/(C15-1), "") -> 0.4129324736 | H17: =IF(C15>1, VAR(G24:G68), "") -> 0.4129324736 | I17: =IF(C15>1, G17-H17, "") -> 2.220446049e-16 | L17: ='t-values'!A6 -> 2 | M17: ='t-values'!B6 -> 12.706
B18: Std Dev (s): | C18: =IF(C15>1, C17^0.5, "") -> 0.04947550953 | D18: =IF(C15>1, STDEV(B24:B68), "") -> 0.04947550953 | E18: =IF(C15>1, C18-D18, "") -> 0 | F18: Std Dev (s): | G18: =IF(C15>1, G17^0.5, "") -> 0.6425982209 | H18: =IF(C15>1, STDEV(G24:G31), "") -> 0.5814661882 | I18: =IF(C15>1, G18-H18, "") -> 0.06113203279 | L18: ='t-values'!A7 -> 3 | M18: ='t-values'!B7 -> 4.303
B19: t-value: | C19: =IF(C15>1, IF(C15<31, OFFSET(M16, C15-1, 0), 1.96), "") -> 2.093 | F19: t-value: | G19: =C19 -> 2.093 | L19: ='t-values'!A8 -> 4 | M19: ='t-values'!B8 -> 3.182
B20: Conf. Interval Factor: | C20: =IF(C15>1, C19*C18/(C15^0.5), "") -> 0.02315498511 | D20: t x s / n0.5 | F20: Conf. Interval Factor: | G20: =IF(C15>1, G19*G18/(C15^0.5), "") -> 0.3007417686 | H20: t x s / n0.5 | L20: ='t-values'!A9 -> 5 | M20: ='t-values'!B9 -> 2.776
B21: Pred. Interal Factor: | C21: =IF(C15>1, C19*C18*(1+(1/C15))^0.5, "") -> 0.106109472 | D21: t x s x (1+ 1/n)0.5 | F21: Pred. Interal Factor: | G21: =IF(C15>1, G19*G18*((1+(1/C15))^0.5), "") -> 1.378171919 | H21: t x s x (1+ 1/n)0.5 | L21: ='t-values'!A10 -> 6 | M21: ='t-values'!B10 -> 2.571
A22: RAW DATA (only enter data under Identifier and Rate. Everything else is a link.) | L22: ='t-values'!A11 -> 7 | M22: ='t-values'!B11 -> 2.447 | O22: See Table 6
A23: Identifier | B23: Rate | C23: (x - xbar)2 | D23: n | G23: Log Rate | H23: (x - xbar)2 | L23: ='t-values'!A12 -> 8 | M23: ='t-values'!B12 -> 2.365 | O23: Worker | P23: mg/kg bw | Q23: Amount handled
A24: =O24 -> 1 | B24: =P24/Q24 -> 0.004771371769 | C24: =IF(ISBLANK(B24)=FALSE, ($C$6-B24)^2, "") -> 0.001295695888 | D24: 1 | G24: =IF(ISBLANK(B24)=FALSE,LOG10(B24), "") -> -2.321356743 | H24: =IF(ISBLANK(B24)=FALSE, ($G$7-G24)^2, "") -> 0.315073843 | L24: ='t-values'!A13 -> 9 | M24: ='t-values'!B13 -> 2.306 | O24: 1 | P24: 0.0024 | Q24: 0.503 | R24: Ackerman
A25: 2 | B25: =P25/Q25 -> 0.01272365805 | C25: =IF(ISBLANK(B25)=FALSE, ($C$6-B25)^2, "") -> 0.0007864373141 | D25: =D24+1 -> 2 | G25: =IF(ISBLANK(B25)=FALSE,LOG10(B25), "") -> -1.895388011 | H25: =IF(ISBLANK(B25)=FALSE, ($G$7-G25)^2, "") -> 0.01831844673 | L25: ='t-values'!A14 -> 10 | M25: ='t-values'!B14 -> 2.262 | O25: 2 | P25: 0.0064 | Q25: 0.503
A26: 3 | B26: 0.04294234592 | C26: 4.731487127e-06 | D26: =D25+1 -> 3 | G26: -1.367114234 | H26: 0.154392508 | L26: ='t-values'!A15 -> 11 | M26: ='t-values'!B15 -> 2.228 | O26: 3 | P26: 0.0216 | Q26: 0.503
A27: 4 | B27: 0.06163021869 | C27: 0.0004352677292 | D27: 4 | G27: -1.210206291 | H27: 0.3023196966 | L27: ='t-values'!A16 -> 12 | M27: ='t-values'!B16 -> 2.201 | O27: 4 | P27: 0.031 | Q27: 0.503
A28: 5 | B28: 0.001689860835 | C28: 0.001527034352 | D28: 5 | G28: -2.772149059 | H28: 1.024359982 | L28: ='t-values'!A17 -> 13 | M28: ='t-values'!B17 -> 2.179 | O28: 5 | P28: 0.00085 | Q28: 0.503
A29: 6 | B29: 0.001689860835 | C29: 0.001527034352 | D29: 6 | G29: -2.772149059 | H29: 1.024359982 | L29: ='t-values'!A18 -> 14 | M29: ='t-values'!B18 -> 2.16 | O29: 6 | P29: 0.00085 | Q29: 0.503
A30: 7 | B30: 0.004970178926 | C30: 0.001281422976 | D30: 7 | G30: -2.303627976 | H30: 0.2954853282 | L30: ='t-values'!A19 -> 15 | M30: ='t-values'!B19 -> 2.145 | O30: 7 | P30: 0.0025 | Q30: 0.503
A31: 8 | B31: 0.009145129225 | C31: 0.0009999520552 | D31: 8 | G31: -2.038810153 | H31: 0.07771148564 | L31: ='t-values'!A20 -> 16 | M31: ='t-values'!B20 -> 2.131 | O31: 8 | P31: 0.0046 | Q31: 0.503
A32: 9 | B32: 0.02783300199 | C32: 0.0001672921264 | D32: 9 | G32: -1.555439949 | H32: 0.04186214422 | L32: ='t-values'!A21 -> 17 | M32: ='t-values'!B21 -> 2.12 | O32: 9 | P32: 0.014 | Q32: 0.503
A33: 10 | B33: 0.00337972167 | C33: 0.001397819628 | D33: 10 | G33: -2.471119064 | H33: 0.5056300862 | L33: ='t-values'!A22 -> 18 | M33: ='t-values'!B22 -> 2.11 | O33: 10 | P33: 0.0017 | Q33: 0.503
A34: 11 | B34: 0.00337972167 | C34: 0.001397819628 | D34: 11 | G34: -2.471119064 | H34: 0.5056300862 | L34: ='t-values'!A23 -> 19 | M34: ='t-values'!B23 -> 2.101 | O34: 11 | P34: 0.0017 | Q34: 0.503
A35: 12 | B35: 0.01411530815 | C35: 0.0007103205536 | D35: 12 | G35: -1.850309636 | H35: 0.008148182153 | L35: ='t-values'!A24 -> 20 | M35: ='t-values'!B24 -> 2.093 | O35: 12 | P35: 0.0071 | Q35: 0.503
A36: 13 | B36: 0.03359840954 | C36: 5.139080739e-05 | D36: 13 | G36: -1.47368128 | H36: 0.08200266479 | L36: ='t-values'!A25 -> 21 | M36: ='t-values'!B25 -> 2.086 | O36: 13 | P36: 0.0169 | Q36: 0.503
A37: 14 | B37: 0.005168986083 | C37: 0.001267229114 | D37: 14 | G37: -2.286594637 | H37: 0.2772573062 | L37: ='t-values'!A26 -> 22 | M37: ='t-values'!B26 -> 2.08 | O37: 14 | P37: 0.0026 | Q37: 0.503
A38: 15 | B38: 0.03200795229 | C38: 7.672350505e-05 | D38: 15 | G38: -1.494742109 | H38: 0.0703842203 | L38: ='t-values'!A27 -> 23 | M38: ='t-values'!B27 -> 2.074 | O38: 15 | P38: 0.0161 | Q38: 0.503
A39: 16 | B39: 0.06586901763 | C39: 0.0006301038719 | D39: 16 | G39: -1.181318814 | H39: 0.334920937 | L39: ='t-values'!A28 -> 24 | M39: ='t-values'!B28 -> 2.069 | O39: 16 | P39: 0.0523 | Q39: 0.794 | R39: Pansy
A40: 17 | B40: 0.1773299748 | C40: 0.01864940574 | D40: 17 | G40: -0.7512178476 | H40: 1.017726886 | L40: ='t-values'!A29 -> 25 | M40: ='t-values'!B29 -> 2.064 | O40: 17 | P40: 0.1408 | Q40: 0.794
A41: 18 | B41: 0.08979848866 | C41: 0.002404072393 | D41: 18 | G41: -1.046730973 | H41: 0.5088131277 | L41: ='t-values'!A30 -> 26 | M41: ='t-values'!B30 -> 2.06 | O41: 18 | P41: 0.0713 | Q41: 0.794
A42: 19 | B42: 0.1420654912 | C42: 0.01026135438 | D42: 19 | G42: -0.8475114028 | H42: 0.832712738 | L42: ='t-values'!A31 -> 27 | M42: ='t-values'!B31 -> 2.056 | O42: 19 | P42: 0.1128 | Q42: 0.794
A43: 20 | B43: 0.08123425693 | C43: 0.001637586926 | D43: 20 | G43: -1.090260788 | H43: 0.4486073472 | L43: ='t-values'!A32 -> 28 | M43: ='t-values'!B32 -> 2.052 | O43: 20 | P43: 0.0645 | Q43: 0.794
D44: 21 | L44: ='t-values'!A33 -> 29 | M44: ='t-values'!B33 -> 2.048 | O44: x | P44: x | Q44: x | R44: x
D45: 22 | L45: ='t-values'!A34 -> 30 | M45: ='t-values'!B34 -> 2.045
D46: 23 | L46: ='t-values'!A35 -> ∞ | M46: ='t-values'!B35 -> 1.96
D47: 24
D48: 25
D49: 26
D50: 27
D51: 28
D52: 29
D53: 30
D54: 31
D55: 32
D56: 33
D57: 34
D58: 35
D59: 36
D60: 37
D61: 38
D62: 39
D63: 40
D64: 41
D65: 42
D66: 43
D67: 44
D68: 45
A69: NOTE: If there are more than 45 items, insert additional cellss in the middle of the data area. The formulae should update correctly but check.

Sheet Lavy et al. 1987-6a
B1: Lavy et al. 1987
A2: Subgroup: | B2: Hack-and-Squirt, 2,4-D, T2 (using 1/2 min. for non-detects)
C3: Confidence Intervals
C4: Arithmetic | G4: Geometric (Log10)
C5: Mean | D5: Lower Limit | E5: Upper Limit | G5: Mean | H5: Lower Limit | I5: Upper Limit
C6: =IF(C15>0,AVERAGE(B24:B68), "") -> 0.01431587702 | D6: =IF(C15>1, C6-C20, "") -> 0.006333304184 | E6: =IF(C15>1, C6+C20, "") -> 0.02229844985 | F6: Inverse log | G6: =IF(C15>0, 10^G7, "") -> 0.003665422171 | H6: =IF(C15>1,10^H7, "") -> 0.001273088972 | I6: =IF(C15>1, 10^I7, "") -> 0.01055332345
F7: Log | G7: =IF(C15>0, AVERAGE(G24:G68), "") -> -2.435875998 | H7: =IF(C15>1, G7-G20, "") -> -2.895141244 | I7: =IF(C15>1, G7+G20, "") -> -1.976610751
C9: Prediction Intervals
C10: Arithmetic | G10: Geometric (Log10)
C11: Mean | D11: Lower Limit | E11: Upper Limit | G11: Mean | H11: Lower Limit | I11: Upper Limit
C12: =IF(C15>0,AVERAGE(B24:B68), "") -> 0.01431587702 | D12: =IF(C15>1, C12-C21, "") -> -0.02226486722 | E12: =IF(C15>1, C12+C21, "") -> 0.05089662125 | F12: Inverse log | G12: =IF($C$15>0, 10^G13, "") -> 0.003665422171 | H12: =IF($C$15>0, 10^H13, "") -> 2.880754483e-05 | I12: 0.4663819764 | J12: =I12/H12 -> 16189.57739
F13: Log | G13: =IF(C15>0, AVERAGE(G24:G68), "") -> -2.435875998 | H13: =IF(C15>1, G13-G21, "") -> -4.540493754 | I13: =IF(C15>1, G13+G21, "") -> -0.3312582414 | J13: 0.466 | L13: ='t-values'!A3 -> 95% Confidence Interval
J14: 2.88e-05
B15: n: | C15: =COUNTA(B24:B68) -> 20 | J15: =J13/J14 -> 16180.55556 | L15: ='t-values'!A4 -> alpha = 0.025
B16: SSE: | C16: =IF(C15>0, SUM(C24:C68), "") -> 0.005527527593 | D16: Check | F16: SSE: | G16: =IF(C15>0, SUM(H24:H68), "") -> 18.29668054 | H16: Check | L16: ='t-values'!A5 -> n | M16: ='t-values'!B5 -> t-value
B17: Variance (s2): | C17: =IF(C15>1, C16/(C15-1), "") -> 0.0002909225049 | D17: =IF(C15>1, VAR(B24:B68), "") -> 0.0002909225049 | E17: =IF(C15>1, C17-D17, "") -> 5.421010862e-20 | F17: Variance (s2): | G17: =IF(C15>1, G16/(C15-1), "") -> 0.9629831864 | H17: =IF(C15>1, VAR(G24:G68), "") -> 0.9629831864 | I17: =IF(C15>1, G17-H17, "") -> 2.442490654e-15 | L17: ='t-values'!A6 -> 2 | M17: ='t-values'!B6 -> 12.706
B18: Std Dev (s): | C18: =IF(C15>1, C17^0.5, "") -> 0.01705645054 | D18: =IF(C15>1, STDEV(B24:B68), "") -> 0.01705645054 | E18: =IF(C15>1, C18-D18, "") -> 3.469446952e-18 | F18: Std Dev (s): | G18: =IF(C15>1, G17^0.5, "") -> 0.9813170672 | H18: =IF(C15>1, STDEV(G24:G31), "") -> 1.145089065 | I18: =IF(C15>1, G18-H18, "") -> -0.1637719973 | L18: ='t-values'!A7 -> 3 | M18: ='t-values'!B7 -> 4.303
B19: t-value: | C19: =IF(C15>1, IF(C15<31, OFFSET(M16, C15-1, 0), 1.96), "") -> 2.093 | F19: t-value: | G19: =C19 -> 2.093 | L19: ='t-values'!A8 -> 4 | M19: ='t-values'!B8 -> 3.182
B20: Conf. Interval Factor: | C20: =IF(C15>1, C19*C18/(C15^0.5), "") -> 0.007982572831 | D20: t x s / n0.5 | F20: Conf. Interval Factor: | G20: =IF(C15>1, G19*G18/(C15^0.5), "") -> 0.4592652465 | H20: t x s / n0.5 | L20: ='t-values'!A9 -> 5 | M20: ='t-values'!B9 -> 2.776
B21: Pred. Interal Factor: | C21: =IF(C15>1, C19*C18*(1+(1/C15))^0.5, "") -> 0.03658074424 | D21: t x s x (1+ 1/n)0.5 | F21: Pred. Interal Factor: | G21: =IF(C15>1, G19*G18*((1+(1/C15))^0.5), "") -> 2.104617756 | H21: t x s x (1+ 1/n)0.5 | L21: ='t-values'!A10 -> 6 | M21: ='t-values'!B10 -> 2.571
A22: RAW DATA (only enter data under Identifier and Rate. Everything else is a link.) | L22: ='t-values'!A11 -> 7 | M22: ='t-values'!B11 -> 2.447 | O22: See Table 6 in Lavy et al. 1987
A23: Identifier | B23: Rate | C23: (x - xbar)2 | D23: n | G23: Log Rate | H23: (x - xbar)2 | L23: ='t-values'!A12 -> 8 | M23: ='t-values'!B12 -> 2.365 | O23: Worker | P23: mg/kg bw | Q23: Amount handled
A24: =O24 -> 1 | B24: =P24/Q24 -> 9.940357853e-05 | C24: =IF(ISBLANK(B24)=FALSE, ($C$6-B24)^2, "") -> 0.000202108117 | D24: 1 | G24: =IF(ISBLANK(B24)=FALSE,LOG10(B24), "") -> -4.002597981 | H24: =IF(ISBLANK(B24)=FALSE, ($G$7-G24)^2, "") -> 2.454617773 | L24: ='t-values'!A13 -> 9 | M24: ='t-values'!B13 -> 2.306 | N24: missing | O24: 1 | P24: 5e-05 | Q24: 0.503 | R24: Ackerman
A25: 2 | B25: =P25/Q25 -> 0.005367793241 | C25: =IF(ISBLANK(B25)=FALSE, ($C$6-B25)^2, "") -> 8.006820324e-05 | D25: =D24+1 -> 2 | G25: =IF(ISBLANK(B25)=FALSE,LOG10(B25), "") -> -2.270204221 | H25: =IF(ISBLANK(B25)=FALSE, ($G$7-G25)^2, "") -> 0.02744713757 | L25: ='t-values'!A14 -> 10 | M25: ='t-values'!B14 -> 2.262 | O25: 2 | P25: 0.0027 | Q25: 0.503
A26: 3 | B26: 0.01769383698 | C26: 1.141061351e-05 | D26: =D25+1 -> 3 | G26: -1.752177978 | H26: 0.4674429814 | L26: ='t-values'!A15 -> 11 | M26: ='t-values'!B15 -> 2.228 | O26: 3 | P26: 0.0089 | Q26: 0.503
A27: 4 | B27: 0.03817097416 | C27: 0.0005690656596 | D27: 4 | G27: -1.418266756 | H27: 1.035528568 | L27: ='t-values'!A16 -> 12 | M27: ='t-values'!B16 -> 2.201 | O27: 4 | P27: 0.0192 | Q27: 0.503
A28: 5 | B28: 0.0001988071571 | C28: 0.0001992916614 | D28: 5 | G28: -3.701567985 | H28: 1.601976207 | L28: ='t-values'!A17 -> 13 | M28: ='t-values'!B17 -> 2.179 | O28: 5 | P28: 0.0001 | Q28: 0.503
A29: 6 | B29: 9.940357853e-05 | C29: 0.000202108117 | D29: 6 | G29: -4.002597981 | H29: 2.454617773 | L29: ='t-values'!A18 -> 14 | M29: ='t-values'!B18 -> 2.16 | N29: missing | O29: 6 | P29: 5e-05 | Q29: 0.503
A30: 7 | B30: 9.940357853e-05 | C30: 0.000202108117 | D30: 7 | G30: -4.002597981 | H30: 2.454617773 | L30: ='t-values'!A19 -> 15 | M30: ='t-values'!B19 -> 2.145 | N30: missing | O30: 7 | P30: 5e-05 | Q30: 0.503
A31: 8 | B31: 0.01232604374 | C31: 3.959436472e-06 | D31: 8 | G31: -1.909176296 | H31: 0.2774125761 | L31: ='t-values'!A20 -> 16 | M31: ='t-values'!B20 -> 2.131 | O31: 8 | P31: 0.0062 | Q31: 0.503
A32: 9 | B32: 0.005964214712 | C32: 6.975026323e-05 | D32: 9 | G32: -2.22444673 | H32: 0.04470233503 | L32: ='t-values'!A21 -> 17 | M32: ='t-values'!B21 -> 2.12 | O32: 9 | P32: 0.003 | Q32: 0.503
A33: 10 | B33: 0.0007952286282 | C33: 0.0001828079328 | D33: 10 | G33: -3.099507994 | H33: 0.4404074264 | L33: ='t-values'!A22 -> 18 | M33: ='t-values'!B22 -> 2.11 | O33: 10 | P33: 0.0004 | Q33: 0.503
A34: 11 | B34: 0.0001988071571 | C34: 0.0001992916614 | D34: 11 | G34: -3.701567985 | H34: 1.601976207 | L34: ='t-values'!A23 -> 19 | M34: ='t-values'!B23 -> 2.101 | O34: 11 | P34: 0.0001 | Q34: 0.503
A35: 12 | B35: 0.0009940357853 | C35: 0.0001774714538 | D35: 12 | G35: -3.002597981 | H35: 0.3211738062 | L35: ='t-values'!A24 -> 20 | M35: ='t-values'!B24 -> 2.093 | O35: 12 | P35: 0.0005 | Q35: 0.503
A36: 13 | B36: 0.02365805169 | C36: 8.727622765e-05 | D36: 13 | G36: -1.626021024 | H36: 0.6558650787 | L36: ='t-values'!A25 -> 21 | M36: ='t-values'!B25 -> 2.086 | O36: 13 | P36: 0.0119 | Q36: 0.503
A37: 14 | B37: 0.007157057654 | C37: 5.124869464e-05 | D37: 14 | G37: -2.145265484 | H37: 0.08445447041 | L37: ='t-values'!A26 -> 22 | M37: ='t-values'!B26 -> 2.08 | O37: 14 | P37: 0.0036 | Q37: 0.503
A38: 15 | B38: 0.007355864811 | C38: 4.844176988e-05 | D38: 15 | G38: -2.133366261 | H38: 0.09151214071 | L38: ='t-values'!A27 -> 23 | M38: ='t-values'!B27 -> 2.074 | O38: 15 | P38: 0.0037 | Q38: 0.503
A39: 16 | B39: 0.03336633663 | C39: 0.0003629200117 | D39: 16 | G39: -1.476691473 | H39: 0.9200349523 | L39: ='t-values'!A28 -> 24 | M39: ='t-values'!B28 -> 2.069 | N39: high | O39: 16 | P39: 0.0337 | Q39: 1.01 | R39: Pansy
A40: 17 | B40: 0.0597029703 | C40: 0.002059988237 | D40: 17 | G40: -1.224004062 | H40: 1.468633589 | L40: ='t-values'!A29 -> 25 | M40: ='t-values'!B29 -> 2.064 | N40: high | O40: 17 | P40: 0.0603 | Q40: 1.01
A41: 18 | B41: 0.01871287129 | C41: 1.933355863e-05 | D41: 18 | G41: -1.72785957 | H41: 0.5012872622 | L41: ='t-values'!A30 -> 26 | M41: ='t-values'!B30 -> 2.06 | O41: 18 | P41: 0.0189 | Q41: 1.01
A42: 19 | B42: 0.04247524752 | C42: 0.0007929501475 | D42: 19 | G42: -1.371864082 | H42: 1.132121357 | L42: ='t-values'!A31 -> 27 | M42: ='t-values'!B31 -> 2.056 | N42: high | O42: 19 | P42: 0.0429 | Q42: 1.01
A43: 20 | B43: 0.01188118812 | C43: 5.927710022e-06 | D43: 20 | G43: -1.925140128 | H43: 0.2608511287 | L43: ='t-values'!A32 -> 28 | M43: ='t-values'!B32 -> 2.052 | O43: 20 | P43: 0.012 | Q43: 1.01
D44: 21 | L44: ='t-values'!A33 -> 29 | M44: ='t-values'!B33 -> 2.048 | O44: x | P44: x | Q44: x | R44: x
D45: 22 | L45: ='t-values'!A34 -> 30 | M45: ='t-values'!B34 -> 2.045
D46: 23 | L46: ='t-values'!A35 -> ∞ | M46: ='t-values'!B35 -> 1.96
D47: 24
D48: 25
D49: 26
D50: 27
D51: 28
D52: 29
D53: 30
D54: 31
D55: 32
D56: 33
D57: 34
D58: 35
D59: 36
D60: 37
D61: 38
D62: 39
D63: 40
D64: 41
D65: 42
D66: 43
D67: 44
D68: 45
A69: NOTE: If there are more than 45 items, insert additional cellss in the middle of the data area. The formulae should update correctly but check.

Sheet Lavy et al. 1987-6b
B1: Lavy et al. 1987
A2: Subgroup: | B2: Hack-and-Squirt, 2,4-D, T2 (using trimmed mean).
C3: Confidence Intervals
C4: Arithmetic | G4: Geometric (Log10)
C5: Mean | D5: Lower Limit | E5: Upper Limit | G5: Mean | H5: Lower Limit | I5: Upper Limit
C6: =IF(C15>0,AVERAGE(B24:B68), "") -> 0.01074819822 | D6: =IF(C15>1, C6-C20, "") -> 0.004491306358 | E6: =IF(C15>1, C6+C20, "") -> 0.01700509009 | F6: Inverse log | G6: =IF(C15>0, 10^G7, "") -> 0.004664164178 | H6: =IF(C15>1,10^H7, "") -> 0.001727451333 | I6: =IF(C15>1, 10^I7, "") -> 0.01259336635
F7: Log | G7: =IF(C15>0, AVERAGE(G24:G68), "") -> -2.331226171 | H7: =IF(C15>1, G7-G20, "") -> -2.762594179 | I7: =IF(C15>1, G7+G20, "") -> -1.899858163
C9: Prediction Intervals
C10: Arithmetic | G10: Geometric (Log10)
C11: Mean | D11: Lower Limit | E11: Upper Limit | G11: Mean | H11: Lower Limit | I11: Upper Limit
C12: =IF(C15>0,AVERAGE(B24:B68), "") -> 0.01074819822 | D12: =IF(C15>1, C12-C21, "") -> -0.01348463977 | E12: =IF(C15>1, C12+C21, "") -> 0.03498103621 | F12: Inverse log | G12: =IF($C$15>0, 10^G13, "") -> 0.004664164178 | H12: =IF($C$15>0, 10^H13, "") -> 9.956179479e-05 | I12: 0.2185017609 | J12: =I12/H12 -> 2194.634612
F13: Log | G13: =IF(C15>0, AVERAGE(G24:G68), "") -> -2.331226171 | H13: =IF(C15>1, G13-G21, "") -> -4.001907283 | I13: =IF(C15>1, G13+G21, "") -> -0.6605450588 | J13: =0.0000996 -> 9.96e-05 | L13: ='t-values'!A3 -> 95% Confidence Interval
J14: 0.219
B15: n: | C15: =COUNTA(B24:B68) -> 14 | J15: =J14/J13 -> 2198.795181 | L15: ='t-values'!A4 -> alpha = 0.025
B16: SSE: | C16: =IF(C15>0, SUM(C24:C68), "") -> 0.001527148199 | D16: Check | F16: SSE: | G16: =IF(C15>0, SUM(H24:H68), "") -> 7.258715119 | H16: Check | L16: ='t-values'!A5 -> n | M16: ='t-values'!B5 -> t-value
B17: Variance (s2): | C17: =IF(C15>1, C16/(C15-1), "") -> 0.0001174729384 | D17: =IF(C15>1, VAR(B24:B68), "") -> 0.0001174729384 | E17: =IF(C15>1, C17-D17, "") -> 2.710505431e-20 | F17: Variance (s2): | G17: =IF(C15>1, G16/(C15-1), "") -> 0.5583627014 | H17: =IF(C15>1, VAR(G24:G68), "") -> 0.5583627014 | I17: =IF(C15>1, G17-H17, "") -> 1.887379142e-15 | J17: 16181 | L17: ='t-values'!A6 -> 2 | M17: ='t-values'!B6 -> 12.706
B18: Std Dev (s): | C18: =IF(C15>1, C17^0.5, "") -> 0.01083849336 | D18: =IF(C15>1, STDEV(B24:B68), "") -> 0.01083849336 | E18: =IF(C15>1, C18-D18, "") -> 1.734723476e-18 | F18: Std Dev (s): | G18: =IF(C15>1, G17^0.5, "") -> 0.7472367104 | H18: =IF(C15>1, STDEV(G24:G31), "") -> 0.8826416934 | I18: =IF(C15>1, G18-H18, "") -> -0.135404983 | J18: =1-(J15/J17) -> 0.8641125282 | L18: ='t-values'!A7 -> 3 | M18: ='t-values'!B7 -> 4.303
B19: t-value: | C19: =IF(C15>1, IF(C15<31, OFFSET(M16, C15-1, 0), 1.96), "") -> 2.16 | F19: t-value: | G19: =C19 -> 2.16 | L19: ='t-values'!A8 -> 4 | M19: ='t-values'!B8 -> 3.182
B20: Conf. Interval Factor: | C20: =IF(C15>1, C19*C18/(C15^0.5), "") -> 0.006256891864 | D20: t x s / n0.5 | F20: Conf. Interval Factor: | G20: =IF(C15>1, G19*G18/(C15^0.5), "") -> 0.4313680083 | H20: t x s / n0.5 | L20: ='t-values'!A9 -> 5 | M20: ='t-values'!B9 -> 2.776
B21: Pred. Interal Factor: | C21: =IF(C15>1, C19*C18*(1+(1/C15))^0.5, "") -> 0.02423283799 | D21: t x s x (1+ 1/n)0.5 | F21: Pred. Interal Factor: | G21: =IF(C15>1, G19*G18*((1+(1/C15))^0.5), "") -> 1.670681112 | H21: t x s x (1+ 1/n)0.5 | L21: ='t-values'!A10 -> 6 | M21: ='t-values'!B10 -> 2.571
A22: RAW DATA (only enter data under Identifier and Rate. Everything else is a link.) | L22: ='t-values'!A11 -> 7 | M22: ='t-values'!B11 -> 2.447 | O22: See Table 6 in Lavy et al. 1987
A23: Identifier | B23: Rate | C23: (x - xbar)2 | D23: n | G23: Log Rate | H23: (x - xbar)2 | L23: ='t-values'!A12 -> 8 | M23: ='t-values'!B12 -> 2.365 | O23: Worker | P23: mg/kg bw | Q23: Amount handled
A24: =O24 -> 2 | B24: =P24/Q24 -> 0.005367793241 | C24: =IF(ISBLANK(B24)=FALSE, ($C$6-B24)^2, "") -> 2.894875777e-05 | D24: 1 | G24: =IF(ISBLANK(B24)=FALSE,LOG10(B24), "") -> -2.270204221 | H24: =IF(ISBLANK(B24)=FALSE, ($G$7-G24)^2, "") -> 0.00372367838 | L24: ='t-values'!A13 -> 9 | M24: ='t-values'!B13 -> 2.306 | O24: 2 | P24: 0.0027 | Q24: 0.503 | R24: Ackerman
A25: 3 | B25: =P25/Q25 -> 0.01769383698 | C25: =IF(ISBLANK(B25)=FALSE, ($C$6-B25)^2, "") -> 4.824189773e-05 | D25: =D24+1 -> 2 | G25: =IF(ISBLANK(B25)=FALSE,LOG10(B25), "") -> -1.752177978 | H25: =IF(ISBLANK(B25)=FALSE, ($G$7-G25)^2, "") -> 0.3352968092 | L25: ='t-values'!A14 -> 10 | M25: ='t-values'!B14 -> 2.262 | O25: 3 | P25: 0.0089 | Q25: 0.503
A26: 4 | B26: 0.03817097416 | C26: 0.0007520086399 | D26: =D25+1 -> 3 | G26: -1.418266756 | H26: 0.8334948926 | L26: ='t-values'!A15 -> 11 | M26: ='t-values'!B15 -> 2.228 | O26: 4 | P26: 0.0192 | Q26: 0.503
A27: 5 | B27: 0.0001988071571 | C27: 0.0001112896518 | D27: 4 | G27: -3.701567985 | H27: 1.877836688 | L27: ='t-values'!A16 -> 12 | M27: ='t-values'!B16 -> 2.201 | O27: 5 | P27: 0.0001 | Q27: 0.503
A28: 8 | B28: 0.01232604374 | C28: 2.48959647e-06 | D28: 5 | G28: -1.909176296 | H28: 0.1781260973 | L28: ='t-values'!A17 -> 13 | M28: ='t-values'!B17 -> 2.179 | O28: 8 | P28: 0.0062 | Q28: 0.503
A29: 9 | B29: 0.005964214712 | C29: 2.288649823e-05 | D29: 6 | G29: -2.22444673 | H29: 0.01140184892 | L29: ='t-values'!A18 -> 14 | M29: ='t-values'!B18 -> 2.16 | O29: 9 | P29: 0.003 | Q29: 0.503
A30: 10 | B30: 0.0007952286282 | C30: 9.906160374e-05 | D30: 7 | G30: -3.099507994 | H30: 0.5902569593 | L30: ='t-values'!A19 -> 15 | M30: ='t-values'!B19 -> 2.145 | O30: 10 | P30: 0.0004 | Q30: 0.503
A31: 11 | B31: 0.0001988071571 | C31: 0.0001112896518 | D31: 8 | G31: -3.701567985 | H31: 1.877836688 | L31: ='t-values'!A20 -> 16 | M31: ='t-values'!B20 -> 2.131 | O31: 11 | P31: 0.0001 | Q31: 0.503
A32: 12 | B32: 0.0009940357853 | C32: 9.514368485e-05 | D32: 9 | G32: -3.002597981 | H32: 0.450740107 | L32: ='t-values'!A21 -> 17 | M32: ='t-values'!B21 -> 2.12 | O32: 12 | P32: 0.0005 | Q32: 0.503
A33: 13 | B33: 0.02365805169 | C33: 0.0001666643166 | D33: 10 | G33: -1.626021024 | H33: 0.4973142997 | L33: ='t-values'!A22 -> 18 | M33: ='t-values'!B22 -> 2.11 | O33: 13 | P33: 0.0119 | Q33: 0.503
A34: 14 | B34: 0.007157057654 | C34: 1.289629058e-05 | D34: 11 | G34: -2.145265484 | H34: 0.03458137696 | L34: ='t-values'!A23 -> 19 | M34: ='t-values'!B23 -> 2.101 | O34: 14 | P34: 0.0036 | Q34: 0.503
A35: 15 | B35: 0.007355864811 | C35: 1.150792597e-05 | D35: 12 | G35: -2.133366261 | H35: 0.03914854394 | L35: ='t-values'!A24 -> 20 | M35: ='t-values'!B24 -> 2.093 | O35: 15 | P35: 0.0037 | Q35: 0.503
A36: 18 | B36: 0.01871287129 | C36: 6.343601703e-05 | D36: 13 | G36: -1.72785957 | H36: 0.3640512555 | L36: ='t-values'!A25 -> 21 | M36: ='t-values'!B25 -> 2.086 | O36: 18 | P36: 0.0189 | Q36: 1.01
A37: 20 | B37: 0.01188118812 | C37: 1.283666106e-06 | D37: 14 | G37: -1.925140128 | H37: 0.1649058744 | L37: ='t-values'!A26 -> 22 | M37: ='t-values'!B26 -> 2.08 | O37: 20 | P37: 0.012 | Q37: 1.01
D38: 15 | L38: ='t-values'!A27 -> 23 | M38: ='t-values'!B27 -> 2.074 | O38: x | P38: x | Q38: x
D39: 16 | L39: ='t-values'!A28 -> 24 | M39: ='t-values'!B28 -> 2.069 | R39: Pansy
D40: 17 | L40: ='t-values'!A29 -> 25 | M40: ='t-values'!B29 -> 2.064
D41: 18 | L41: ='t-values'!A30 -> 26 | M41: ='t-values'!B30 -> 2.06
D42: 19 | L42: ='t-values'!A31 -> 27 | M42: ='t-values'!B31 -> 2.056
D43: 20 | L43: ='t-values'!A32 -> 28 | M43: ='t-values'!B32 -> 2.052
D44: 21 | L44: ='t-values'!A33 -> 29 | M44: ='t-values'!B33 -> 2.048 | R44: x
D45: 22 | L45: ='t-values'!A34 -> 30 | M45: ='t-values'!B34 -> 2.045
D46: 23 | L46: ='t-values'!A35 -> ∞ | M46: ='t-values'!B35 -> 1.96
D47: 24
D48: 25
D49: 26
D50: 27
D51: 28
D52: 29
D53: 30
D54: 31
D55: 32
D56: 33
D57: 34
D58: 35
D59: 36
D60: 37
D61: 38
D62: 39
D63: 40
D64: 41
D65: 42
D66: 43
D67: 44
D68: 45
A69: NOTE: If there are more than 45 items, insert additional cellss in the middle of the data area. The formulae should update correctly but check.

Sheet Lavy et al. 1987-7
B1: Lavy et al. 1987
A2: Subgroup: | B2: Hack-and-Squirt T1 vs T2.
B5: Below are linked previous worksheets
B6: T1 | C6: T2
B7: ='Lavy et al. 1987-5'!B24 -> 0.004771371769 | C7: ='Lavy et al. 1987-6a'!B24 -> 9.940357853e-05
B8: ='Lavy et al. 1987-5'!B25 -> 0.01272365805 | C8: ='Lavy et al. 1987-6a'!B25 -> 0.005367793241
B9: ='Lavy et al. 1987-5'!B26 -> 0.04294234592 | C9: ='Lavy et al. 1987-6a'!B26 -> 0.01769383698
B10: ='Lavy et al. 1987-5'!B27 -> 0.06163021869 | C10: ='Lavy et al. 1987-6a'!B27 -> 0.03817097416
B11: ='Lavy et al. 1987-5'!B28 -> 0.001689860835 | C11: ='Lavy et al. 1987-6a'!B28 -> 0.0001988071571
B12: ='Lavy et al. 1987-5'!B29 -> 0.001689860835 | C12: ='Lavy et al. 1987-6a'!B29 -> 9.940357853e-05
B13: ='Lavy et al. 1987-5'!B30 -> 0.004970178926 | C13: ='Lavy et al. 1987-6a'!B30 -> 9.940357853e-05
B14: ='Lavy et al. 1987-5'!B31 -> 0.009145129225 | C14: ='Lavy et al. 1987-6a'!B31 -> 0.01232604374
B15: ='Lavy et al. 1987-5'!B32 -> 0.02783300199 | C15: ='Lavy et al. 1987-6a'!B32 -> 0.005964214712
B16: ='Lavy et al. 1987-5'!B33 -> 0.00337972167 | C16: ='Lavy et al. 1987-6a'!B33 -> 0.0007952286282
B17: ='Lavy et al. 1987-5'!B34 -> 0.00337972167 | C17: ='Lavy et al. 1987-6a'!B34 -> 0.0001988071571
B18: ='Lavy et al. 1987-5'!B35 -> 0.01411530815 | C18: ='Lavy et al. 1987-6a'!B35 -> 0.0009940357853
B19: ='Lavy et al. 1987-5'!B36 -> 0.03359840954 | C19: ='Lavy et al. 1987-6a'!B36 -> 0.02365805169
B20: ='Lavy et al. 1987-5'!B37 -> 0.005168986083 | C20: ='Lavy et al. 1987-6a'!B37 -> 0.007157057654
B21: ='Lavy et al. 1987-5'!B38 -> 0.03200795229 | C21: ='Lavy et al. 1987-6a'!B38 -> 0.007355864811
B22: ='Lavy et al. 1987-5'!B39 -> 0.06586901763 | C22: ='Lavy et al. 1987-6a'!B39 -> 0.03336633663
B23: ='Lavy et al. 1987-5'!B40 -> 0.1773299748 | C23: ='Lavy et al. 1987-6a'!B40 -> 0.0597029703
B24: ='Lavy et al. 1987-5'!B41 -> 0.08979848866 | C24: ='Lavy et al. 1987-6a'!B41 -> 0.01871287129
B25: ='Lavy et al. 1987-5'!B42 -> 0.1420654912 | C25: ='Lavy et al. 1987-6a'!B42 -> 0.04247524752
B26: ='Lavy et al. 1987-5'!B43 -> 0.08123425693 | C26: ='Lavy et al. 1987-6a'!B43 -> 0.01188118812
B28: t-Test: Two-Sample Assuming Unequal Variances
C30: T1 | D30: T2 | F30: T1 / T2
B31: Mean | C31: 0.04076714774 | D31: 0.01431587702 | F31: =C31/D31 -> 2.84768776
B32: Variance | C32: 0.002447826044 | D32: 0.0002909225049
B33: Observations | C33: 20 | D33: 20
B34: Hypothesized Mean Difference | C34: 0
B35: df | C35: 23
B36: t Stat | C36: 2.26040083
B37: P(T<=t) one-tail | C37: 0.01678454351
B38: t Critical one-tail | C38: 1.713871517
B39: P(T<=t) two-tail | C39: 0.03356908702
B40: t Critical two-tail | C40: 2.068657599

Sheet Lavy et al. 1987-8
B1: Lavy et al. 1987
A2: Subgroup: | B2: Comparisions based on Margins of Safety
B4: Margins of Safety
C5: See Table 7 of Lavy et al. 1987
B6: T-1, MOS | I6: T-2, MOS
B7: 2,4-D | E7: Picloram | I7: 2,4-D | L7: Picloram
B8: Central | C8: Low | D8: High | E8: Central | F8: Low | G8: High | I8: Central | J8: Low | K8: High | L8: Central | M8: Low | N8: High
A9: Injection bar | B9: 3594 | C9: 2350 | D9: 5498 | E9: 57528 | F9: 37358 | G9: 88528 | I9: 6963 | J9: 4328 | K9: 11203 | L9: 52380 | M9: 43023 | N9: 63782
A10: Hypohatchet | B10: 487 | C10: 282 | D10: 825 | E10: 32294 | F10: 21953 | G10: 56742 | I10: 876 | J10: 541 | K10: 1416 | L10: 46351 | M10: 34380 | N10: 62503
A11: Hack-and-squirt | B11: 2946 | C11: 996 | D11: 4201 | E11: 36476 | F11: 24027 | G11: 55373 | I11: 5258 | J11: 2239 | K11: 12344 | L11: 55625 | M11: 46599 | N11: 66466
B13: NOELs
B14: 2,4-D | C14: 24 | D14: mg/kg bw
B15: Picloram | C15: 50 | D15: mg/kg bw
B17: Doses estimated from NOAELs
B21: T-1, Dose (mg/kg bw) | I21: T-2, Dose (mg/kg bw)
B22: 2,4-D | E22: Picloram | I22: 2,4-D | L22: Picloram
B23: Central | C23: Low | D23: High | E23: Central | F23: Low | G23: High | I23: Central | J23: Low | K23: High | L23: Central | M23: Low | N23: High
A24: Injection bar | B24: =$C$14/B9 -> 0.006677796327 | C24: =$C$14/D9 -> 0.004365223718 | D24: =$C$14/C9 -> 0.01021276596 | E24: =$C$15/E9 -> 0.000869141983 | F24: =$C$15/G9 -> 0.0005647930598 | G24: =$C$15/F9 -> 0.001338401413 | I24: =$C$14/I9 -> 0.003446790177 | J24: =$C$14/K9 -> 0.002142283317 | K24: =$C$14/J9 -> 0.005545286506 | L24: =$C$15/L9 -> 0.0009545628102 | M24: =$C$15/N9 -> 0.0007839202283 | N24: =$C$15/M9 -> 0.001162169072
A25: Hypohatchet | B25: =$C$14/B10 -> 0.04928131417 | C25: =$C$14/D10 -> 0.02909090909 | D25: =$C$14/C10 -> 0.08510638298 | E25: =$C$15/E10 -> 0.001548275221 | F25: =$C$15/G10 -> 0.0008811814881 | G25: =$C$15/F10 -> 0.00227759304 | I25: =$C$14/I10 -> 0.02739726027 | J25: =$C$14/K10 -> 0.01694915254 | K25: =$C$14/J10 -> 0.04436229205 | L25: =$C$15/L10 -> 0.001078725378 | M25: =$C$15/N10 -> 0.0007999616018 | N25: =$C$15/M10 -> 0.001454333915
A26: Hack-and-squirt | B26: 0.008146639511 | C26: 0.005712925494 | D26: 0.02409638554 | E26: 0.001370764338 | F26: 0.0009029671501 | G26: 0.002080992217 | I26: 0.004564473184 | J26: 0.00194426442 | K26: 0.01071907101 | L26: 0.0008988764045 | M26: 0.0007522643156 | N26: 0.001072984399
B28: Calculations of Amounts Handled
B35: Constants
B36: gal/L | C36: 0.2642
B37: 2,4-D | C37: 1 | D37: lb a.e./gallon
B38: Picloram | C38: 0.25 | D38: lb a.e./gallon
B40: T-1 | I40: T-2
B41: Liters Applied | C41: Gal. Applied | D41: Pounds Handled | I41: Liters Applied | J41: Gal. Applied | K41: Pounds Handled
D42: 2,4-D | E42: Picloram | K42: 2,4-D | L42: Picloram
A43: Injection bar | B43: 3.2 | C43: =B43*$C$36 -> 0.84544 | D43: =C43*$C$37 -> 0.84544 | E43: =C43*$C$38 -> 0.21136 | I43: 3.2 | J43: =I43*$C$36 -> 0.84544 | K43: =J43*$C$37 -> 0.84544 | L43: =J43*$C$38 -> 0.21136
A44: Hypohatchet | B44: 3.3 | C44: =B44*$C$36 -> 0.87186 | D44: =C44*$C$37 -> 0.87186 | E44: =C44*$C$38 -> 0.217965 | I44: 2.7 | J44: =I44*$C$36 -> 0.71334 | K44: =J44*$C$37 -> 0.71334 | L44: =J44*$C$38 -> 0.178335
A45: Hack-and-squirt | B45: 2.2 | C45: 0.58124 | D45: 0.58124 | E45: 0.14531 | I45: 2.4 | J45: 0.63408 | K45: 0.63408 | L45: 0.15852
B47: Worker Exposure Rates
B48: T-1, Rate (mg/kg bw per lb handled) | I48: T-2, Dose (mg/kg bw per lb handled)
B49: 2,4-D | E49: Picloram | I49: 2,4-D | L49: Picloram
B50: Central | C50: Low | D50: High | E50: Central | F50: Low | G50: High | I50: Central | J50: Low | K50: High | L50: Central | M50: Low | N50: High
A51: Injection bar | B51: =B24/$D43 -> 0.007898604664 | C51: =C24/$D43 -> 0.005163256668 | D51: 0.01207982347 | E51: =E24/$E43 -> 0.004112140344 | F51: =F24/$E43 -> 0.002672185181 | G51: 0.006332330684 | I51: =I24/$K43 -> 0.004076918737 | J51: =J24/$K43 -> 0.002533927088 | K51: 0.006559053873 | L51: =L24/$L43 -> 0.004516288845 | M51: =M24/$L43 -> 0.003708933707 | N51: 0.005498528919
A52: Hypohatchet | B52: =B25/$D44 -> 0.05652434355 | C52: 0.03336649128 | D52: 0.09761473514 | E52: =E25/$E44 -> 0.007103320356 | F52: 0.004042765986 | G52: 0.01044935214 | I52: =I25/$K44 -> 0.03840701527 | J52: 0.02376027216 | K52: 0.06218954783 | L52: =L25/$L44 -> 0.006048870822 | M52: 0.004485724069 | N52: 0.008155067233
A53: Hack-and-squirt | B53: 0.01401596503 | C53: 0.00982885812 | D53: 0.04145686041 | E53: 0.009433379246 | F53: 0.006214074393 | G53: 0.01432105304 | I53: 0.007198576179 | J53: 0.003066276211 | K53: 0.01690491896 | L53: 0.005670428996 | M53: 0.004745548294 | N53: 0.006768763555
B55: Relative Exposure Rates (2.4-D divided by picloram)
B56: T1 | I56: T2
B57: Central | C57: Low | D57: High | I57: Central | J57: Low | K57: High
A58: Injection bar | B58: =B51/E51 -> 1.920801336 | C58: =C51/F51 -> 1.932222626 | D58: 1.907642553 | I58: =I51/L51 -> 0.9027143473 | J58: =J51/M51 -> 0.6831955726 | K58: 1.192874307
A59: Hypohatchet | B59: =B52/E52 -> 7.957453799 | C59: 8.253381818 | D59: 9.341702128 | I59: =I52/L52 -> 6.349452055 | J59: 5.296864407 | K59: 7.625878004
A60: Hack-and-squirt | B60: 1.485784114 | C60: 1.581709117 | D60: 2.894819277 | I60: 1.269494104 | J60: 0.6461373947 | K60: 2.497489951
B69: Data for plot
B70: The data below are formated for the high-low-close plot. (These are links to the above worker expsoure rates.)
B71: High | C71: Low | D71: Central
A72: 2,4-D , T1 | B72: =$D$52 -> 0.09761473514 | C72: =$C$52 -> 0.03336649128 | D72: =$B$52 -> 0.05652434355 | E72: Hypohatchet
A73: 2,4-D, T2 | B73: =$K$52 -> 0.06218954783 | C73: =$J$52 -> 0.02376027216 | D73: =$I$52 -> 0.03840701527
A74: Picloram, T1 | B74: =$G$52 -> 0.01044935214 | C74: =$F$52 -> 0.004042765986 | D74: =$E$52 -> 0.007103320356
A75: Picloram, T2 | B75: =$N$52 -> 0.008155067233 | C75: =$M$52 -> 0.004485724069 | D75: =$L$52 -> 0.006048870822
A77: 2,4-D , T1 | B77: =$D$53 -> 0.04145686041 | C77: =$C$53 -> 0.00982885812 | D77: =$B$53 -> 0.01401596503 | E77: Hack and squirt
A78: 2,4-D, T2 | B78: =$K$53 -> 0.01690491896 | C78: =$J$53 -> 0.003066276211 | D78: =$I$53 -> 0.007198576179
A79: Picloram, T1 | B79: =$G$53 -> 0.01432105304 | C79: =$F$53 -> 0.006214074393 | D79: =$E$53 -> 0.009433379246
A80: Picloram, T2 | B80: =$N$53 -> 0.006768763555 | C80: =$M$53 -> 0.004745548294 | D80: =$L$53 -> 0.005670428996
A82: 2,4-D , T1 | B82: =$D$51 -> 0.01207982347 | C82: =$C$51 -> 0.005163256668 | D82: =$B$51 -> 0.007898604664 | E82: Injection Bar
A83: 2,4-D, T2 | B83: =$K$51 -> 0.006559053873 | C83: =$J$51 -> 0.002533927088 | D83: =$I$51 -> 0.004076918737
A84: Picloram, T1 | B84: =$G$51 -> 0.006332330684 | C84: =$F$51 -> 0.002672185181 | D84: =$E$51 -> 0.004112140344
A85: Picloram, T2 | B85: =$N$51 -> 0.005498528919 | C85: =$M$51 -> 0.003708933707 | D85: =$L$51 -> 0.004516288845

Sheet Lavy et al. 1987-9
B1: Lavy et al. 1987
A2: Subgroup: | B2: Analysis of Variance for 2,4-D and Dichlorprop, T1 and T2 combined
B4: Data
B5: Dichlorprop | D5: 2,4-D
B6: T1 | C6: T2 | D6: T1 | E6: T2
B7: ='Lavy et al. 1987-1'!B24 -> 0.05366172624 | C7: ='Lavy et al. 1987-2'!B24 -> 0.03426329555 | D7: ='Lavy et al. 1987-3'!B24 -> 0.06290322581 | E7: ='Lavy et al. 1987-4'!B24 -> 0.04869224063
B8: ='Lavy et al. 1987-1'!B25 -> 0.03099389712 | C8: ='Lavy et al. 1987-2'!B25 -> 0.01778552746 | D8: ='Lavy et al. 1987-3'!B25 -> 0.03570183086 | E8: ='Lavy et al. 1987-4'!B25 -> 0.01756756757
B9: ='Lavy et al. 1987-1'!B26 -> 0.03339145597 | C9: ='Lavy et al. 1987-2'!B26 -> 0.01691368788 | D9: ='Lavy et al. 1987-3'!B26 -> 0.04598953793 | E9: ='Lavy et al. 1987-4'!B26 -> 0.03718395815
B10: ='Lavy et al. 1987-1'!B27 -> 0.05405405405 | C10: ='Lavy et al. 1987-2'!B27 -> 0.04298169137 | D10: ='Lavy et al. 1987-3'!B27 -> 0.0414559721 | E10: ='Lavy et al. 1987-4'!B27 -> 0.04960767219
B11: ='Lavy et al. 1987-1'!B28 -> 0.01861377507 | C11: ='Lavy et al. 1987-2'!B28 -> 0.02554489974 | D11: ='Lavy et al. 1987-3'!B28 -> 0.02336530078 | E11: ='Lavy et al. 1987-4'!B28 -> 0.02637314734
B12: ='Lavy et al. 1987-1'!B29 -> 0.03116826504 | C12: ='Lavy et al. 1987-2'!B29 -> 0.04306887533 | D12: ='Lavy et al. 1987-3'!B29 -> 0.02336530078 | E12: ='Lavy et al. 1987-4'!B29 -> 0.02898866609
B13: ='Lavy et al. 1987-1'!B30 -> 0.05148212729 | C13: ='Lavy et al. 1987-2'!B30 -> 0.01909328684 | D13: ='Lavy et al. 1987-3'!B30 -> 0.05026155187 | E13: ='Lavy et al. 1987-4'!B30 -> 0.02301656495
B14: ='Lavy et al. 1987-1'!B31 -> 0.03151700087 | C14: ='Lavy et al. 1987-2'!B31 -> 0.02877070619 | D14: ='Lavy et al. 1987-3'!B31 -> 0.02140366173 | E14: ='Lavy et al. 1987-4'!B31 -> 0.04755884917
B15: ='Lavy et al. 1987-1'!B32 -> 0.03142981691 | C15: ='Lavy et al. 1987-2'!B32 -> 0.01133391456 | D15: ='Lavy et al. 1987-3'!B32 -> 0.02571926765 | E15: ='Lavy et al. 1987-4'!B32 -> 0.0141673932
B16: ='Lavy et al. 1987-1'!B33 -> 0.03073234525 | C16: ='Lavy et al. 1987-2'!B33 -> 0.02789886661 | D16: ='Lavy et al. 1987-3'!B33 -> 0.02314734089 | E16: ='Lavy et al. 1987-4'!B33 -> 0.04341761116
B17: ='Lavy et al. 1987-1'!B34 -> 0.0189625109 | C17: ='Lavy et al. 1987-2'!B34 -> 0.02122929381 | D17: ='Lavy et al. 1987-3'!B34 -> 0.01560592851 | E17: ='Lavy et al. 1987-4'!B34 -> 0.0216652136
B18: ='Lavy et al. 1987-1'!B35 -> 0.05065387969 | C18: ='Lavy et al. 1987-2'!B35 -> 0.03465562337 | D18: ='Lavy et al. 1987-3'!B35 -> 0.03809938971 | E18: ='Lavy et al. 1987-4'!B35 -> 0.03683522232
B19: ='Lavy et al. 1987-1'!B36 -> 0.03352223191 | C19: ='Lavy et al. 1987-2'!B36 -> 0.03818657367 | D19: ='Lavy et al. 1987-3'!B36 -> 0.0358326068 | E19: ='Lavy et al. 1987-4'!B36 -> 0.03700959024
B20: ='Lavy et al. 1987-1'!B37 -> 0.04503051439 | C20: ='Lavy et al. 1987-2'!B37 -> 0.04664341761 | D20: ='Lavy et al. 1987-3'!B37 -> 0.08007846556 | E20: ='Lavy et al. 1987-4'!B37 -> 0.09001743679
B21: ='Lavy et al. 1987-1'!B38 -> 0.04036617262 | C21: ='Lavy et al. 1987-2'!B38 -> 0.04694856146 | D21: ='Lavy et al. 1987-3'!B38 -> 0.039581517 | E21: ='Lavy et al. 1987-4'!B38 -> 0.04638186574
B22: ='Lavy et al. 1987-1'!B39 -> 0.03391455972 | C22: ='Lavy et al. 1987-2'!B39 -> 0.04394071491 | D22: ='Lavy et al. 1987-3'!B39 -> 0.02140366173 | E22: ='Lavy et al. 1987-4'!B39 -> 0.04306887533
B23: ='Lavy et al. 1987-1'!B40 -> 0.03474280732 | C23: ='Lavy et al. 1987-2'!B40 -> 0.03609415867 | D23: ='Lavy et al. 1987-3'!B40 -> 0.03108108108 | E23: ='Lavy et al. 1987-4'!B40 -> 0.03953792502
B24: ='Lavy et al. 1987-1'!B41 -> 0.01948561465 | C24: ='Lavy et al. 1987-2'!B41 -> 0.07772449869 | D24: ='Lavy et al. 1987-3'!B41 -> 0.02275501308 | E24: ='Lavy et al. 1987-4'!B41 -> 0.1065823888
B25: ='Lavy et al. 1987-1'!B42 -> 0.01965998256 | C25: ='Lavy et al. 1987-2'!B42 -> 0.02122929381 | D25: ='Lavy et al. 1987-3'!B42 -> 0.02323452485 | E25: ='Lavy et al. 1987-4'!B42 -> 0.03892763731
B26: ='Lavy et al. 1987-1'!B43 -> 0.04843068875 | C26: ='Lavy et al. 1987-2'!B43 -> 0.0452048823 | D26: ='Lavy et al. 1987-3'!B43 -> 0.03330427201 | E26: ='Lavy et al. 1987-4'!B43 -> 0.0131211857
B28: Analysis of Variance
B29: Anova: Single Factor
B31: SUMMARY
B32: Groups | C32: Count | D32: Sum | E32: Average | F32: Variance
A33: Dichlorprop | B33: T1 | C33: 20 | D33: 0.7118134263 | E33: 0.03559067132 | F33: 0.0001374943537
B34: T2 | C34: 20 | D34: 0.6795117698 | E34: 0.03397558849 | F34: 0.0002316888584
A35: 2,4-D | B35: T1 | C35: 20 | D35: 0.6942894507 | E35: 0.03471447254 | F35: 0.0002518934047
B36: T2 | C36: 20 | D36: 0.8097210113 | E36: 0.04048605057 | F36: 0.0005299926688
B39: ANOVA
B40: Source of Variation | C40: SS | D40: df | E40: MS | F40: F | G40: P-value | H40: F crit
B41: Between Groups | C41: 0.0005179206692 | D41: 3 | E41: 0.0001726402231 | F41: 0.5999299095 | G41: 0.6170206385 | H41: 2.724943949
B42: Within Groups | C42: 0.02187031643 | D42: 76 | E42: 0.0002877673214
B44: Total | C44: 0.0223882371 | D44: 79
B57: Estimated KOLMOGOROV statistic DPLUS = 0.0697121
B58: Estimated KOLMOGOROV statistic DMINUS = 0.0758206
B59: Estimated overall statistic DN = 0.0758206
B60: Approximate significance level = 0.747217
B78: Press ENTER to continue.
B79: 1Help 2Edit 3Savscr 4Prtscr 5 6Go 7Vars 8Cmd 9Device 10Quit
B80: INPUT 4/17/12 20:47 STATGRAPHICS Vers.5.0 Display DSTFIT

Sheet Lavy et al. 1987-10
B1: Lavy et al. 1987
A2: Subgroup: | B2: Correlation of Workers in 2,4-D and Dichlorprop, T1 vs T2
B5: ='Lavy et al. 1987-9'!B6 -> T1 | C5: ='Lavy et al. 1987-9'!C6 -> T2
A6: Dichlorprop | B6: ='Lavy et al. 1987-9'!B7 -> 0.05366172624 | C6: ='Lavy et al. 1987-9'!C7 -> 0.03426329555
B7: ='Lavy et al. 1987-9'!B8 -> 0.03099389712 | C7: ='Lavy et al. 1987-9'!C8 -> 0.01778552746
B8: ='Lavy et al. 1987-9'!B9 -> 0.03339145597 | C8: ='Lavy et al. 1987-9'!C9 -> 0.01691368788
B9: ='Lavy et al. 1987-9'!B10 -> 0.05405405405 | C9: ='Lavy et al. 1987-9'!C10 -> 0.04298169137
B10: ='Lavy et al. 1987-9'!B11 -> 0.01861377507 | C10: ='Lavy et al. 1987-9'!C11 -> 0.02554489974
B11: ='Lavy et al. 1987-9'!B12 -> 0.03116826504 | C11: ='Lavy et al. 1987-9'!C12 -> 0.04306887533
B12: ='Lavy et al. 1987-9'!B13 -> 0.05148212729 | C12: ='Lavy et al. 1987-9'!C13 -> 0.01909328684
B13: ='Lavy et al. 1987-9'!B14 -> 0.03151700087 | C13: ='Lavy et al. 1987-9'!C14 -> 0.02877070619
B14: ='Lavy et al. 1987-9'!B15 -> 0.03142981691 | C14: ='Lavy et al. 1987-9'!C15 -> 0.01133391456
B15: ='Lavy et al. 1987-9'!B16 -> 0.03073234525 | C15: ='Lavy et al. 1987-9'!C16 -> 0.02789886661
B16: ='Lavy et al. 1987-9'!B17 -> 0.0189625109 | C16: ='Lavy et al. 1987-9'!C17 -> 0.02122929381
B17: ='Lavy et al. 1987-9'!B18 -> 0.05065387969 | C17: ='Lavy et al. 1987-9'!C18 -> 0.03465562337
B18: ='Lavy et al. 1987-9'!B19 -> 0.03352223191 | C18: ='Lavy et al. 1987-9'!C19 -> 0.03818657367
B19: ='Lavy et al. 1987-9'!B20 -> 0.04503051439 | C19: ='Lavy et al. 1987-9'!C20 -> 0.04664341761
B20: ='Lavy et al. 1987-9'!B21 -> 0.04036617262 | C20: ='Lavy et al. 1987-9'!C21 -> 0.04694856146
B21: ='Lavy et al. 1987-9'!B22 -> 0.03391455972 | C21: ='Lavy et al. 1987-9'!C22 -> 0.04394071491
B22: ='Lavy et al. 1987-9'!B23 -> 0.03474280732 | C22: ='Lavy et al. 1987-9'!C23 -> 0.03609415867
B23: ='Lavy et al. 1987-9'!B24 -> 0.01948561465 | C23: ='Lavy et al. 1987-9'!C24 -> 0.07772449869
B24: ='Lavy et al. 1987-9'!B25 -> 0.01965998256 | C24: ='Lavy et al. 1987-9'!C25 -> 0.02122929381
B25: ='Lavy et al. 1987-9'!B26 -> 0.04843068875 | C25: ='Lavy et al. 1987-9'!C26 -> 0.0452048823
A26: 2,4-D | B26: ='Lavy et al. 1987-9'!D7 -> 0.06290322581 | C26: ='Lavy et al. 1987-9'!E7 -> 0.04869224063
B27: ='Lavy et al. 1987-9'!D8 -> 0.03570183086 | C27: ='Lavy et al. 1987-9'!E8 -> 0.01756756757
B28: ='Lavy et al. 1987-9'!D9 -> 0.04598953793 | C28: ='Lavy et al. 1987-9'!E9 -> 0.03718395815
B29: ='Lavy et al. 1987-9'!D10 -> 0.0414559721 | C29: ='Lavy et al. 1987-9'!E10 -> 0.04960767219
B30: ='Lavy et al. 1987-9'!D11 -> 0.02336530078 | C30: ='Lavy et al. 1987-9'!E11 -> 0.02637314734
B31: ='Lavy et al. 1987-9'!D12 -> 0.02336530078 | C31: ='Lavy et al. 1987-9'!E12 -> 0.02898866609
B32: ='Lavy et al. 1987-9'!D13 -> 0.05026155187 | C32: ='Lavy et al. 1987-9'!E13 -> 0.02301656495
B33: ='Lavy et al. 1987-9'!D14 -> 0.02140366173 | C33: ='Lavy et al. 1987-9'!E14 -> 0.04755884917
B34: ='Lavy et al. 1987-9'!D15 -> 0.02571926765 | C34: ='Lavy et al. 1987-9'!E15 -> 0.0141673932
B35: ='Lavy et al. 1987-9'!D16 -> 0.02314734089 | C35: ='Lavy et al. 1987-9'!E16 -> 0.04341761116 | F35: Unconstrained
B36: ='Lavy et al. 1987-9'!D17 -> 0.01560592851 | C36: ='Lavy et al. 1987-9'!E17 -> 0.0216652136 | F36: SUMMARY OUTPUT
B37: ='Lavy et al. 1987-9'!D18 -> 0.03809938971 | C37: ='Lavy et al. 1987-9'!E18 -> 0.03683522232
B38: ='Lavy et al. 1987-9'!D19 -> 0.0358326068 | C38: ='Lavy et al. 1987-9'!E19 -> 0.03700959024 | F38: Regression Statistics
B39: ='Lavy et al. 1987-9'!D20 -> 0.08007846556 | C39: ='Lavy et al. 1987-9'!E20 -> 0.09001743679 | F39: Multiple R | G39: 0.2353269664
B40: ='Lavy et al. 1987-9'!D21 -> 0.039581517 | C40: ='Lavy et al. 1987-9'!E21 -> 0.04638186574 | F40: R Square | G40: 0.05537878111
B41: ='Lavy et al. 1987-9'!D22 -> 0.02140366173 | C41: ='Lavy et al. 1987-9'!E22 -> 0.04306887533 | F41: Adjusted R Square | G41: 0.03052032798
B42: ='Lavy et al. 1987-9'!D23 -> 0.03108108108 | C42: ='Lavy et al. 1987-9'!E23 -> 0.03953792502 | F42: Standard Error | G42: 0.01924283761
B43: ='Lavy et al. 1987-9'!D24 -> 0.02275501308 | C43: ='Lavy et al. 1987-9'!E24 -> 0.1065823888 | F43: Observations | G43: 40
B44: ='Lavy et al. 1987-9'!D25 -> 0.02323452485 | C44: ='Lavy et al. 1987-9'!E25 -> 0.03892763731
B45: ='Lavy et al. 1987-9'!D26 -> 0.03330427201 | C45: ='Lavy et al. 1987-9'!E26 -> 0.0131211857 | F45: ANOVA
G46: df | H46: SS | I46: MS | J46: F | K46: Significance F
F47: Regression | G47: 1 | H47: 0.0008249118115 | I47: 0.0008249118115 | J47: 2.227764568 | K47: 0.1438065293
F48: Residual | G48: 38 | H48: 0.01407089837 | I48: 0.0003702867992
F49: Total | G49: 39 | H49: 0.01489581018
G51: Coefficients | H51: Standard Error | I51: t Stat | J51: P-value | K51: Lower 95% | L51: Upper 95%
F52: Intercept | G52: 0.02549893706 | H52: 0.008428508798 | I52: 3.025320098 | J52: 0.004438168023 | K52: 0.008436313186 | L52: 0.04256156094
F53: X Variable 1 | G53: 0.3337417954 | H53: 0.223602138 | I53: 1.492569787 | J53: 0.1438065293 | K53: -0.1189170639 | L53: 0.7864006547
F56: Constrained
F57: SUMMARY OUTPUT
F59: Regression Statistics
F60: Multiple R | G60: 0.8670534075
F61: R Square | G61: 0.7517816114
F62: Adjusted R Square | G62: 0.7261405858
F63: Standard Error | G63: 0.02115872321
F64: Observations | G64: 40
F66: ANOVA
G67: df | H67: SS | I67: MS | J67: F | K67: Significance F
F68: Regression | G68: 1 | H68: 0.05288119595 | I68: 0.05288119595 | J68: 118.1197051 | K68: 3.210123641e-13
F69: Residual | G69: 39 | H69: 0.01745997115 | I69: 0.0004476915678
F70: Total | G70: 40 | H70: 0.07034116709
G72: Coefficients | H72: Standard Error | I72: t Stat | J72: P-value | K72: Lower 95% | L72: Upper 95%
F73: Intercept | G73: 0
F74: X Variable 1 | G74: 0.9645968644 | H74: 0.0887533325 | I74: 10.86828897 | J74: 2.298302379e-13 | K74: 0.7850763063 | L74: 1.144117423

Sheet Libich et al. 1984-1
B1: Libich et al. 1984
A2: Subgroup: | B2: Comparisions of 2,4-D/Picloram mixture spray
D4: Ratio 2,4-D/Picloram in formulation: | E4: 4
B5: Data below are from Table II in Libich et al. 1984
D6: Urine (mg/kg)
B7: Herbicide | C7: Location | D7: Mean | E7: Maximum
B8: 2,4-D | C8: Kapuskasing | D8: 6.17 | E8: 32.74
C9: North Bay | D9: 3.16 | E9: 12.35
B10: Picloram | C10: Kapuskasing | D10: 0.52 | E10: 5.56
C11: North Bay | D11: 0.26 | E11: 2.27
D12: Ratio 2,4-D/Picloram
C13: Kapuskasing | D13: =D8/D10 -> 11.86538462 | E13: =E8/E10 -> 5.888489209
C14: North Bay | D14: =D9/D11 -> 12.15384615 | E14: =E9/E11 -> 5.440528634
D15: Adjusted Ratio
C16: Kapuskasing | D16: =D13/$E$4 -> 2.966346154 | E16: =E13/$E$4 -> 1.472122302
C17: North Bay | D17: =D14/$E$4 -> 3.038461538 | E17: =E14/$E$4 -> 1.360132159
B19: Data below are from Table VII in Libich et al. 1984
D20: 2,4-D | E20: Picloram | F20: Ratio | G20: Adjusted Ratio[1]
C21: Applicator 1 | D21: 7.29 | E21: 0.3 | F21: =D21/E21 -> 24.3 | G21: =F21/$E$4 -> 6.075
C22: Applicator 2 | D22: 2.57 | E22: 0.15 | F22: =D22/E22 -> 17.13333333 | G22: =F22/$E$4 -> 4.283333333
C23: Driver 1 | D23: 0.64 | E23: 0.13 | F23: 4.923076923 | G23: 1.230769231
C24: Driver 2 | D24: 1.07 | E24: 0.07 | F24: 15.28571429 | G24: 3.821428571
C25: [1] Adjusted for ratio of 2,4-D to picloram (4:1) in formulation.
C33: The list below is an order link to the above data for use on thenext sheet.
C34: Kapuskasing, Mean | D34: =D16 -> 2.966346154
C35: North Bay, Mean | D35: 3.038461538
C36: Kapuskasing, Max | D36: =E16 -> 1.472122302
C37: North Bay, Max | D37: 1.360132159
C38: Applicator 1 | D38: =G21 -> 6.075
C39: Applicator 2 | D39: 4.283333333
C40: Driver 1 | D40: 1.230769231
C41: Driver 2 | D41: 3.821428571

Sheet Libich et al. 1984-2
B1: Libich et al. 1984
A2: Subgroup: | B2: Analysis of ratios
C3: Confidence Intervals
C4: Arithmetic | G4: Geometric (Log10)
C5: Mean | D5: Lower Limit | E5: Upper Limit | G5: Mean | H5: Lower Limit | I5: Upper Limit
C6: =IF(C15>0,AVERAGE(B24:B68), "") -> 3.030949161 | D6: =IF(C15>1, C6-C20, "") -> 1.620207838 | E6: =IF(C15>1, C6+C20, "") -> 4.441690484 | F6: Inverse log | G6: =IF(C15>0, 10^G7, "") -> 2.618281808 | H6: =IF(C15>1,10^H7, "") -> 1.594662791 | I6: =IF(C15>1, 10^I7, "") -> 4.298965063
F7: Log | G7: =IF(C15>0, AVERAGE(G24:G68), "") -> 0.4180163882 | H7: =IF(C15>1, G7-G20, "") -> 0.2026688607 | I7: =IF(C15>1, G7+G20, "") -> 0.6333639157
C9: Prediction Intervals
C10: Arithmetic | G10: Geometric (Log10)
C11: Mean | D11: Lower Limit | E11: Upper Limit | G11: Mean | H11: Lower Limit | I11: Upper Limit
C12: =IF(C15>0,AVERAGE(B24:B68), "") -> 3.030949161 | D12: =IF(C15>1, C12-C21, "") -> -1.201274807 | E12: =IF(C15>1, C12+C21, "") -> 7.263173129 | F12: Inverse log | G12: =IF($C$15>0, 10^G13, "") -> 2.618281808 | H12: =IF($C$15>0, 10^H13, "") -> 0.5915259555 | I12: 11.58934711
F13: Log | G13: =IF(C15>0, AVERAGE(G24:G68), "") -> 0.4180163882 | H13: =IF(C15>1, G13-G21, "") -> -0.2280261942 | I13: =IF(C15>1, G13+G21, "") -> 1.064058971 | L13: ='t-values'!A3 -> 95% Confidence Interval
B15: n: | C15: =COUNTA(B24:B68) -> 8 | L15: ='t-values'!A4 -> alpha = 0.025
B16: SSE: | C16: =IF(C15>0, SUM(C24:C68), "") -> 19.92601772 | D16: Check | F16: SSE: | G16: =IF(C15>0, SUM(H24:H68), "") -> 0.4643073048 | H16: Check | L16: ='t-values'!A5 -> n | M16: ='t-values'!B5 -> t-value
B17: Variance (s2): | C17: =IF(C15>1, C16/(C15-1), "") -> 2.84657396 | D17: =IF(C15>1, VAR(B24:B68), "") -> 2.84657396 | E17: =IF(C15>1, C17-D17, "") -> 2.664535259e-15 | F17: Variance (s2): | G17: =IF(C15>1, G16/(C15-1), "") -> 0.06632961498 | H17: =IF(C15>1, VAR(G24:G68), "") -> 0.06632961498 | I17: =IF(C15>1, G17-H17, "") -> 0 | L17: ='t-values'!A6 -> 2 | M17: ='t-values'!B6 -> 12.706
B18: Std Dev (s): | C18: =IF(C15>1, C17^0.5, "") -> 1.687179291 | D18: =IF(C15>1, STDEV(B24:B68), "") -> 1.687179291 | E18: =IF(C15>1, C18-D18, "") -> 8.881784197e-16 | F18: Std Dev (s): | G18: =IF(C15>1, G17^0.5, "") -> 0.2575453649 | H18: =IF(C15>1, STDEV(G24:G31), "") -> 0.2575453649 | I18: =IF(C15>1, G18-H18, "") -> 0 | L18: ='t-values'!A7 -> 3 | M18: ='t-values'!B7 -> 4.303
B19: t-value: | C19: =IF(C15>1, IF(C15<31, OFFSET(M16, C15-1, 0), 1.96), "") -> 2.365 | F19: t-value: | G19: =C19 -> 2.365 | L19: ='t-values'!A8 -> 4 | M19: ='t-values'!B8 -> 3.182
B20: Conf. Interval Factor: | C20: =IF(C15>1, C19*C18/(C15^0.5), "") -> 1.410741323 | D20: t x s / n0.5 | F20: Conf. Interval Factor: | G20: =IF(C15>1, G19*G18/(C15^0.5), "") -> 0.2153475275 | H20: t x s / n0.5 | L20: ='t-values'!A9 -> 5 | M20: ='t-values'!B9 -> 2.776
B21: Pred. Interal Factor: | C21: =IF(C15>1, C19*C18*(1+(1/C15))^0.5, "") -> 4.232223968 | D21: t x s x (1+ 1/n)0.5 | F21: Pred. Interal Factor: | G21: =IF(C15>1, G19*G18*((1+(1/C15))^0.5), "") -> 0.6460425824 | H21: t x s x (1+ 1/n)0.5 | L21: ='t-values'!A10 -> 6 | M21: ='t-values'!B10 -> 2.571
A22: RAW DATA (only enter data under Identifier and Rate. Everything else is a link.) | L22: ='t-values'!A11 -> 7 | M22: ='t-values'!B11 -> 2.447
A23: Identifier | B23: Rate | C23: (x - xbar)2 | D23: n | G23: Log Rate | H23: (x - xbar)2 | L23: ='t-values'!A12 -> 8 | M23: ='t-values'!B12 -> 2.365
A24: ='Libich et al. 1984-1'!C34 -> Kapuskasing, Mean | B24: ='Libich et al. 1984-1'!D34 -> 2.966346154 | C24: =IF(ISBLANK(B24)=FALSE, ($C$6-B24)^2, "") -> 0.004173548543 | D24: 1 | G24: =IF(ISBLANK(B24)=FALSE,LOG10(B24), "") -> 0.4722218291 | H24: =IF(ISBLANK(B24)=FALSE, ($G$7-G24)^2, "") -> 0.002938229821 | L24: ='t-values'!A13 -> 9 | M24: ='t-values'!B13 -> 2.306
A25: ='Libich et al. 1984-1'!C35 -> North Bay, Mean | B25: ='Libich et al. 1984-1'!D35 -> 3.038461538 | C25: =IF(ISBLANK(B25)=FALSE, ($C$6-B25)^2, "") -> 5.643581402e-05 | D25: =D24+1 -> 2 | G25: =IF(ISBLANK(B25)=FALSE,LOG10(B25), "") -> 0.4826537433 | H25: =IF(ISBLANK(B25)=FALSE, ($G$7-G25)^2, "") -> 0.004177987678 | L25: ='t-values'!A14 -> 10 | M25: ='t-values'!B14 -> 2.262
A26: ='Libich et al. 1984-1'!C36 -> Kapuskasing, Max | B26: ='Libich et al. 1984-1'!D36 -> 1.472122302 | C26: 2.429941176 | D26: =D25+1 -> 3 | G26: 0.1679438922 | H26: 0.06253625327 | L26: ='t-values'!A15 -> 11 | M26: ='t-values'!B15 -> 2.228
A27: ='Libich et al. 1984-1'!C37 -> North Bay, Max | B27: ='Libich et al. 1984-1'!D37 -> 1.360132159 | C27: 2.791629456 | D27: 4 | G27: 0.1335811091 | H27: 0.08090342801 | L27: ='t-values'!A16 -> 12 | M27: ='t-values'!B16 -> 2.201
A28: ='Libich et al. 1984-1'!C38 -> Applicator 1 | B28: ='Libich et al. 1984-1'!D38 -> 6.075 | C28: 9.26624551 | D28: 5 | G28: 0.7835462823 | H28: 0.1336121035 | L28: ='t-values'!A17 -> 13 | M28: ='t-values'!B17 -> 2.179
A29: ='Libich et al. 1984-1'!C39 -> Applicator 2 | B29: ='Libich et al. 1984-1'!D39 -> 4.283333333 | C29: 1.568466115 | D29: 6 | G29: 0.6317818729 | H29: 0.04569568247 | L29: ='t-values'!A18 -> 14 | M29: ='t-values'!B18 -> 2.16
A30: ='Libich et al. 1984-1'!C40 -> Driver 1 | B30: ='Libich et al. 1984-1'!D40 -> 1.230769231 | C30: 3.240647781 | D30: 7 | G30: 0.09017663035 | H30: 0.1074789068 | L30: ='t-values'!A19 -> 15 | M30: ='t-values'!B19 -> 2.145
A31: ='Libich et al. 1984-1'!C41 -> Driver 2 | B31: ='Libich et al. 1984-1'!D41 -> 3.821428571 | C31: 0.6248576982 | D31: 8 | G31: 0.5822257463 | H31: 0.0269647133 | L31: ='t-values'!A20 -> 16 | M31: ='t-values'!B20 -> 2.131
D32: 9 | L32: ='t-values'!A21 -> 17 | M32: ='t-values'!B21 -> 2.12
D33: 10 | L33: ='t-values'!A22 -> 18 | M33: ='t-values'!B22 -> 2.11
D34: 11 | L34: ='t-values'!A23 -> 19 | M34: ='t-values'!B23 -> 2.101
D35: 12 | L35: ='t-values'!A24 -> 20 | M35: ='t-values'!B24 -> 2.093
D36: 13 | L36: ='t-values'!A25 -> 21 | M36: ='t-values'!B25 -> 2.086
D37: 14 | L37: ='t-values'!A26 -> 22 | M37: ='t-values'!B26 -> 2.08
D38: 15 | L38: ='t-values'!A27 -> 23 | M38: ='t-values'!B27 -> 2.074
D39: 16 | L39: ='t-values'!A28 -> 24 | M39: ='t-values'!B28 -> 2.069
D40: 17 | L40: ='t-values'!A29 -> 25 | M40: ='t-values'!B29 -> 2.064
D41: 18 | L41: ='t-values'!A30 -> 26 | M41: ='t-values'!B30 -> 2.06
D42: 19 | L42: ='t-values'!A31 -> 27 | M42: ='t-values'!B31 -> 2.056
D43: 20 | L43: ='t-values'!A32 -> 28 | M43: ='t-values'!B32 -> 2.052
D44: 21 | L44: ='t-values'!A33 -> 29 | M44: ='t-values'!B33 -> 2.048
D45: 22 | L45: ='t-values'!A34 -> 30 | M45: ='t-values'!B34 -> 2.045
D46: 23 | L46: ='t-values'!A35 -> ∞ | M46: ='t-values'!B35 -> 1.96
D47: 24
D48: 25
D49: 26
D50: 27
D51: 28
D52: 29
D53: 30
D54: 31
D55: 32
D56: 33
D57: 34
D58: 35
D59: 36
D60: 37
D61: 38
D62: 39
D63: 40
D64: 41
D65: 42
D66: 43
D67: 44
D68: 45
A69: NOTE: If there are more than 45 items, insert additional cellss in the middle of the data area. The formulae should update correctly but check.

Sheet Lunchick et al. 2005-1
B1: Lunchick et al. 2005
A2: Subgroup: | B2: All applicator groups in Table 1 of study
C3: Confidence Intervals
C4: Arithmetic | G4: Geometric (Log10)
C5: Mean | D5: Lower Limit | E5: Upper Limit | G5: Mean | H5: Lower Limit | I5: Upper Limit
C6: =IF(C15>0,AVERAGE(B24:B68), "") -> 2.041721618e-05 | D6: =IF(C15>1, C6-C20, "") -> 2.310770885e-06 | E6: =IF(C15>1, C6+C20, "") -> 3.852366147e-05 | F6: Inverse log | G6: =IF(C15>0, 10^G7, "") -> 6.759830849e-06 | H6: =IF(C15>1,10^H7, "") -> 3.013627599e-06 | I6: =IF(C15>1, 10^I7, "") -> 1.51628931e-05
F7: Log | G7: =IF(C15>0, AVERAGE(G24:G68), "") -> -5.170064171 | H7: =IF(C15>1, G7-G20, "") -> -5.520910416 | I7: =IF(C15>1, G7+G20, "") -> -4.819217927
C9: Prediction Intervals
C10: Arithmetic | G10: Geometric (Log10)
C11: Mean | D11: Lower Limit | E11: Upper Limit | G11: Mean | H11: Lower Limit | I11: Upper Limit
C12: =IF(C15>0,AVERAGE(B24:B68), "") -> 2.041721618e-05 | D12: =IF(C15>1, C12-C21, "") -> -5.850694908e-05 | E12: =IF(C15>1, C12+C21, "") -> 9.934138144e-05 | F12: Inverse log | G12: =IF($C$15>0, 10^G13, "") -> 6.759830849e-06 | H12: =IF($C$15>0, 10^H13, "") -> 1.998170326e-07 | I12: 0.0002286857758
F13: Log | G13: =IF(C15>0, AVERAGE(G24:G68), "") -> -5.170064171 | H13: =IF(C15>1, G13-G21, "") -> -6.699367495 | I13: =IF(C15>1, G13+G21, "") -> -3.640760848 | L13: ='t-values'!A3 -> 95% Confidence Interval
B15: n: | C15: =COUNTA(B24:B68) -> 18 | L15: ='t-values'!A4 -> alpha = 0.025
B16: SSE: | C16: =IF(C15>0, SUM(C24:C68), "") -> 2.253320197e-08 | D16: Check | F16: SSE: | G16: =IF(C15>0, SUM(H24:H68), "") -> 8.460386035 | H16: Check | L16: ='t-values'!A5 -> n | M16: ='t-values'!B5 -> t-value
B17: Variance (s2): | C17: =IF(C15>1, C16/(C15-1), "") -> 1.325482469e-09 | D17: =IF(C15>1, VAR(B24:B68), "") -> 1.325482469e-09 | E17: =IF(C15>1, C17-D17, "") -> 0 | F17: Variance (s2): | G17: =IF(C15>1, G16/(C15-1), "") -> 0.4976697667 | H17: =IF(C15>1, VAR(G24:G68), "") -> 0.4976697667 | I17: =IF(C15>1, G17-H17, "") -> -4.829470157e-15 | L17: ='t-values'!A6 -> 2 | M17: ='t-values'!B6 -> 12.706
B18: Std Dev (s): | C18: =IF(C15>1, C17^0.5, "") -> 3.640717607e-05 | D18: =IF(C15>1, STDEV(B24:B68), "") -> 3.640717607e-05 | E18: =IF(C15>1, C18-D18, "") -> 0 | F18: Std Dev (s): | G18: =IF(C15>1, G17^0.5, "") -> 0.7054571332 | H18: =IF(C15>1, STDEV(G24:G31), "") -> 0.4336385281 | I18: =IF(C15>1, G18-H18, "") -> 0.2718186051 | L18: ='t-values'!A7 -> 3 | M18: ='t-values'!B7 -> 4.303
B19: t-value: | C19: =IF(C15>1, IF(C15<31, OFFSET(M16, C15-1, 0), 1.96), "") -> 2.11 | F19: t-value: | G19: =C19 -> 2.11 | L19: ='t-values'!A8 -> 4 | M19: ='t-values'!B8 -> 3.182
B20: Conf. Interval Factor: | C20: =IF(C15>1, C19*C18/(C15^0.5), "") -> 1.810644529e-05 | D20: t x s / n0.5 | F20: Conf. Interval Factor: | G20: =IF(C15>1, G19*G18/(C15^0.5), "") -> 0.3508462443 | H20: t x s / n0.5 | L20: ='t-values'!A9 -> 5 | M20: ='t-values'!B9 -> 2.776
B21: Pred. Interal Factor: | C21: =IF(C15>1, C19*C18*(1+(1/C15))^0.5, "") -> 7.892416526e-05 | D21: t x s x (1+ 1/n)0.5 | F21: Pred. Interal Factor: | G21: =IF(C15>1, G19*G18*((1+(1/C15))^0.5), "") -> 1.529303324 | H21: t x s x (1+ 1/n)0.5 | L21: ='t-values'!A10 -> 6 | M21: ='t-values'!B10 -> 2.571
A22: RAW DATA (only enter data under Identifier and Rate. Everything else is a link.) | L22: ='t-values'!A11 -> 7 | M22: ='t-values'!B11 -> 2.447 | P22: See Table 1 of study, p. 86 | V22: Below are for t-test. | AB22: log tranformed
A23: Identifier | B23: Rate | C23: (x - xbar)2 | D23: n | G23: Log Rate | H23: (x - xbar)2 | L23: ='t-values'!A12 -> 8 | M23: ='t-values'!B12 -> 2.365 | P23: Group | Q23: a.i. handled kg | R23: ug/kg | S23: dose mg/kg | T23: a.i. lb | U23: Rate | V23: ratio | W23: Leaks | X23: No Leaks | AC23: Leaks | AD23: No Leaks
A24: =P24 -> 1 | B24: =U24 -> 3.136266238e-05 | C24: =IF(ISBLANK(B24)=FALSE, ($C$6-B24)^2, "") -> 1.198027925e-10 | D24: 1 | G24: =IF(ISBLANK(B24)=FALSE,LOG10(B24), "") -> -4.503587077 | H24: =IF(ISBLANK(B24)=FALSE, ($G$7-G24)^2, "") -> 0.444191717 | L24: ='t-values'!A13 -> 9 | M24: ='t-values'!B13 -> 2.306 | P24: 1 | Q24: 1562 | R24: 108 | S24: =R24/1000 -> 0.108 | T24: =Q24*2.2046 -> 3443.5852 | U24: =S24/T24 -> 3.136266238e-05 | V24: =1/(U24/$U$42) -> 4.958730159 | W24: =U24 -> 3.136266238e-05 | X24: =$U$29 -> 1.652174592e-05 | AC24: =LOG10(W24) -> -4.503587077 | AD24: =LOG10(X24) -> -4.781944061
A25: 2 | B25: 0.0001555189798 | C25: =IF(ISBLANK(B25)=FALSE, ($C$6-B25)^2, "") -> 1.825248653e-08 | D25: =D24+1 -> 2 | G25: =IF(ISBLANK(B25)=FALSE,LOG10(B25), "") -> -3.808216601 | H25: =IF(ISBLANK(B25)=FALSE, ($G$7-G25)^2, "") -> 1.854628803 | L25: ='t-values'!A14 -> 10 | M25: ='t-values'!B14 -> 2.262 | P25: =P24+1 -> 2 | Q25: 245 | R25: 84 | S25: =R25/1000 -> 0.084 | T25: =Q25*2.2046 -> 540.127 | U25: =S25/T25 -> 0.0001555189798 | V25: =1/(U25/$U$42) -> 1 | W25: 0.0001555189798 | X25: =U32 -> 3.779975203e-05 | AC25: =LOG10(W25) -> -3.808216601 | AD25: =LOG10(X25) -> -4.422511049
A26: 3 | B26: 4.556220111e-05 | C26: 6.322702673e-10 | D26: =D25+1 -> 3 | G26: -4.341395303 | H26: 0.6866920927 | L26: ='t-values'!A15 -> 11 | M26: ='t-values'!B15 -> 2.228 | P26: =P25+1 -> 3 | Q26: 448 | R26: 45 | S26: 0.045 | T26: 987.6608 | U26: 4.556220111e-05 | V26: 3.413333333 | W26: 4.556220111e-05 | X26: 3.677813711e-06 | AC26: -4.341395303 | AD26: -5.434410272
A27: 4 | B27: 1.882855573e-05 | C27: 2.523842019e-12 | D27: 4 | G27: -4.725182992 | H27: 0.1979192638 | L27: ='t-values'!A16 -> 12 | M27: ='t-values'!B16 -> 2.201 | P27: 4 | Q27: 530 | R27: 22 | S27: 0.022 | T27: 1168.438 | U27: 1.882855573e-05 | V27: 8.25974026 | W27: 1.882855573e-05 | X27: 2.054024261e-06 | AC27: -4.725182992 | AD27: -5.687394431
A28: 5 | B28: 2.142978068e-05 | C28: 1.025286872e-12 | D28: 5 | G28: -4.668982274 | H28: 0.2510830681 | L28: ='t-values'!A17 -> 13 | M28: ='t-values'!B17 -> 2.179 | P28: 5 | Q28: 381 | R28: 18 | S28: 0.018 | T28: 839.9526 | U28: 2.142978068e-05 | V28: 7.257142857 | W28: 2.142978068e-05 | X28: 5.606255358e-06 | AC28: -4.668982274 | AD28: -5.251327125
A29: 6 | B29: 1.652174592e-05 | C29: 1.517468851e-11 | D29: 6 | G29: -4.781944061 | H29: 0.1506372201 | L29: ='t-values'!A18 -> 14 | M29: ='t-values'!B18 -> 2.16 | P29: 6 | Q29: 302 | R29: 11 | S29: 0.011 | T29: 665.7892 | U29: 1.652174592e-05 | V29: 9.412987013 | W29: =U30 -> 1.309038393e-05 | X29: 2.445866308e-06 | AC29: -4.883047616 | AD29: -5.611567285
A30: 7 | B30: 1.309038393e-05 | C30: 5.368247085e-11 | D30: 7 | G30: -4.883047616 | H30: 0.08237850303 | L30: ='t-values'!A19 -> 15 | M30: ='t-values'!B19 -> 2.145 | P30: 7 | Q30: 298 | R30: 8.6 | S30: 0.0086 | T30: 656.9708 | U30: 1.309038393e-05 | V30: 11.88039867 | W30: 5.05333555e-06 | X30: =U39 -> 4.002326686e-06 | AC30: -5.296421863 | AD30: -5.397687465
A31: 8 | B31: 5.05333555e-06 | C31: 2.360488279e-10 | D31: 8 | G31: -5.296421863 | H31: 0.01596626624 | L31: ='t-values'!A20 -> 16 | M31: ='t-values'!B20 -> 2.131 | P31: 8 | Q31: 377 | R31: 4.2 | S31: 0.0042 | T31: 831.1342 | U31: 5.05333555e-06 | V31: 30.7755102 | W31: =U37 -> 1.667636119e-06 | X31: 2.080720295e-06 | AC31: -5.777898707 | AD31: -5.681786297
A32: 9 | B32: 3.779975203e-05 | C32: 3.021525528e-10 | D32: 9 | G32: -4.422511049 | H32: 0.5588356704 | L32: ='t-values'!A21 -> 17 | M32: ='t-values'!B21 -> 2.12 | P32: 9 | Q32: 48 | R32: 4 | S32: 0.004 | T32: 105.8208 | U32: 3.779975203e-05 | V32: 4.114285714 | W32: 4.161440591e-07 | AC32: -6.380756301
A33: 10 | B33: 3.677813711e-06 | C33: 2.802075949e-10 | D33: 10 | G33: -5.434410272 | H33: 0.06987886122 | L33: ='t-values'!A22 -> 18 | M33: ='t-values'!B22 -> 2.11 | P33: 10 | Q33: 148 | R33: 1.2 | S33: 0.0012 | T33: 326.2808 | U33: 3.677813711e-06 | V33: 42.28571429
A34: 11 | B34: 2.054024261e-06 | C34: 3.372068174e-10 | D34: 11 | G34: -5.687394431 | H34: 0.2676305976 | L34: ='t-values'!A23 -> 19 | M34: ='t-values'!B23 -> 2.101 | P34: 11 | Q34: 265 | R34: 1.2 | S34: 0.0012 | T34: 584.219 | U34: 2.054024261e-06 | V34: 75.71428571
A35: 12 | B35: 5.606255358e-06 | C35: 2.193645604e-10 | D35: 12 | G35: -5.251327125 | H35: 0.006603667585 | L35: ='t-values'!A24 -> 20 | M35: ='t-values'!B24 -> 2.093 | P35: 12 | Q35: 89 | R35: 1.1 | S35: 0.0011 | T35: 196.2094 | U35: 5.606255358e-06 | V35: 27.74025974 | W35: t-Test: Two-Sample Assuming Unequal Variances | AC35: Log Transformed
A36: 13 | B36: 2.445866308e-06 | C36: 3.229694161e-10 | D36: 13 | G36: -5.611567285 | H36: 0.1949249998 | L36: ='t-values'!A25 -> 21 | M36: ='t-values'!B25 -> 2.086 | P36: 13 | Q36: 204 | R36: 1.1 | S36: 0.0011 | T36: 449.7384 | U36: 2.445866308e-06 | V36: 63.58441558 | AC36: t-Test: Two-Sample Assuming Unequal Variances
A37: 14 | B37: 1.667636119e-06 | C37: 3.515467524e-10 | D37: 14 | G37: -5.777898707 | H37: 0.369462823 | L37: ='t-values'!A26 -> 22 | M37: ='t-values'!B26 -> 2.08 | P37: 14 | Q37: 272 | R37: 1 | S37: 0.001 | T37: 599.6512 | U37: 1.667636119e-06 | V37: 93.25714286
A38: 15 | B38: 4.161440591e-07 | C38: 4.000428859e-10 | D38: 15 | G38: -6.380756301 | H38: 1.465775433 | L38: ='t-values'!A27 -> 23 | M38: ='t-values'!B27 -> 2.074 | P38: 15 | Q38: 1090 | R38: 1 | S38: 0.001 | T38: 2403.014 | U38: 4.161440591e-07 | V38: 373.7142857 | X38: Leaks | Y38: No Leaks | AD38: Leaks | AE38: -4.781944061
A39: 16 | B39: 4.002326686e-06 | C39: 2.69448597e-10 | D39: 16 | G39: -5.397687465 | H39: 0.05181236405 | L39: ='t-values'!A28 -> 24 | M39: ='t-values'!B28 -> 2.069 | P39: 16 | Q39: 68 | R39: 0.6 | S39: 0.0006 | T39: 149.9128 | U39: 4.002326686e-06 | V39: 38.85714286 | W39: Mean | X39: 3.254774215e-05 | Y39: 9.273563072e-06 | AC39: Mean | AD39: -4.93172097 | AE39: -5.355240561
A40: 17 | B40: 2.080720295e-06 | C40: 3.362270812e-10 | D40: 17 | G40: -5.681786297 | H40: 0.2618595337 | L40: ='t-values'!A29 -> 25 | M40: ='t-values'!B29 -> 2.064 | P40: 17 | Q40: 109 | R40: 0.5 | S40: 0.0005 | T40: 240.3014 | U40: 2.080720295e-06 | V40: 74.74285714 | W40: Variance | X40: 2.340635339e-09 | Y40: 1.556147532e-10 | AC40: Variance | AD40: 0.6071038298 | AE40: 0.1952522713
A41: 18 | B41: 3.91707275e-07 | C41: 4.010210068e-10 | D41: 18 | G41: -6.407038362 | H41: 1.53010515 | L41: ='t-values'!A30 -> 26 | M41: ='t-values'!B30 -> 2.06 | P41: 18 | Q41: 579 | R41: 0.5 | S41: 0.0005 | T41: 1276.4634 | U41: 3.91707275e-07 | V41: 397.0285714 | W41: Observations | X41: 9 | Y41: 8 | AC41: Observations | AD41: 9 | AE41: 7
D42: 19 | L42: ='t-values'!A31 -> 27 | M42: ='t-values'!B31 -> 2.056 | T42: Max | U42: =MAX(U24:U41) -> 0.0001555189798 | W42: Mean Difference | X42: 0 | AC42: Hypothesized Mean Difference | AD42: 0
D43: 20 | L43: ='t-values'!A32 -> 28 | M43: ='t-values'!B32 -> 2.052 | T43: Min | U43: =MIN(U24:U41) -> 3.91707275e-07 | W43: df | X43: 9 | AC43: df | AD43: 13
D44: 21 | L44: ='t-values'!A33 -> 29 | M44: ='t-values'!B33 -> 2.048 | T44: Ratio | U44: =U42/U43 -> 397.0285714 | W44: t Stat | X44: 1.392085899 | AC44: t Stat | AD44: 1.371560792
D45: 22 | L45: ='t-values'!A34 -> 30 | M45: ='t-values'!B34 -> 2.045 | W45: P(T<=t) one-tail | X45: 0.09866676409 | AC45: P(T<=t) one-tail | AD45: 0.09670471706
D46: 23 | L46: ='t-values'!A35 -> ∞ | M46: ='t-values'!B35 -> 1.96 | W46: t Critical one-tail | X46: 1.833112923 | AC46: t Critical one-tail | AD46: 1.770933383
D47: 24 | W47: P(T<=t) two-tail | X47: 0.1973335282 | AC47: P(T<=t) two-tail | AD47: 0.1934094341
D48: 25 | W48: t Critical two-tail | X48: 2.262157158 | AC48: t Critical two-tail | AD48: 2.160368652
D49: 26 | W49: mean ratio | X49: =X39/Y39 -> 3.509734273
D50: 27
D51: 28
D52: 29
D53: 30
D54: 31
D55: 32
D56: 33
D57: 34
D58: 35
D59: 36
D60: 37
D61: 38
D62: 39
D63: 40
D64: 41
D65: 42
D66: 43
D67: 44
D68: 45
A69: NOTE: If there are more than 45 items, insert additional cellss in the middle of the data area. The formulae should update correctly but check.

Sheet Lunchick et al. 2005-2
B1: Lunchick et al. 2005
A2: Subgroup: | B2: Censoring extreme outlier.
C3: Confidence Intervals
C4: Arithmetic | G4: Geometric (Log10)
C5: Mean | D5: Lower Limit | E5: Upper Limit | G5: Mean | H5: Lower Limit | I5: Upper Limit
C6: =IF(C15>0,AVERAGE(B24:B68), "") -> 1.247005361e-05 | D6: =IF(C15>1, C6-C20, "") -> 5.190519572e-06 | E6: =IF(C15>1, C6+C20, "") -> 1.974958765e-05 | F6: Inverse log | G6: =IF(C15>0, 10^G7, "") -> 5.621175545e-06 | H6: =IF(C15>1,10^H7, "") -> 2.64354948e-06 | I6: =IF(C15>1, 10^I7, "") -> 1.195272294e-05
F7: Log | G7: =IF(C15>0, AVERAGE(G24:G68), "") -> -5.250172852 | H7: =IF(C15>1, G7-G20, "") -> -5.577812556 | I7: =IF(C15>1, G7+G20, "") -> -4.922533147
C9: Prediction Intervals
C10: Arithmetic | G10: Geometric (Log10)
C11: Mean | D11: Lower Limit | E11: Upper Limit | G11: Mean | H11: Lower Limit | I11: Upper Limit
C12: =IF(C15>0,AVERAGE(B24:B68), "") -> 1.247005361e-05 | D12: =IF(C15>1, C12-C21, "") -> -1.841439369e-05 | E12: =IF(C15>1, C12+C21, "") -> 4.335450091e-05 | F12: Inverse log | G12: =IF($C$15>0, 10^G13, "") -> 5.621175545e-06 | H12: =IF($C$15>0, 10^H13, "") -> 2.289652669e-07 | I12: 0.0001380017805
F13: Log | G13: =IF(C15>0, AVERAGE(G24:G68), "") -> -5.250172852 | H13: =IF(C15>1, G13-G21, "") -> -6.640230393 | I13: =IF(C15>1, G13+G21, "") -> -3.86011531 | L13: ='t-values'!A3 -> 95% Confidence Interval
B15: n: | C15: =COUNTA(B24:B68) -> 17 | L15: ='t-values'!A4 -> alpha = 0.025
B16: SSE: | C16: =IF(C15>0, SUM(C24:C68), "") -> 3.207039763e-09 | D16: Check | F16: SSE: | G16: =IF(C15>0, SUM(H24:H68), "") -> 6.496661419 | H16: Check | L16: ='t-values'!A5 -> n | M16: ='t-values'!B5 -> t-value
B17: Variance (s2): | C17: =IF(C15>1, C16/(C15-1), "") -> 2.004399852e-10 | D17: =IF(C15>1, VAR(B24:B68), "") -> 2.004399852e-10 | E17: =IF(C15>1, C17-D17, "") -> 0 | F17: Variance (s2): | G17: =IF(C15>1, G16/(C15-1), "") -> 0.4060413387 | H17: =IF(C15>1, VAR(G24:G68), "") -> 0.4060413387 | I17: =IF(C15>1, G17-H17, "") -> -2.220446049e-16 | L17: ='t-values'!A6 -> 2 | M17: ='t-values'!B6 -> 12.706
B18: Std Dev (s): | C18: =IF(C15>1, C17^0.5, "") -> 1.41576829e-05 | D18: =IF(C15>1, STDEV(B24:B68), "") -> 1.41576829e-05 | E18: =IF(C15>1, C18-D18, "") -> 0 | F18: Std Dev (s): | G18: =IF(C15>1, G17^0.5, "") -> 0.6372137308 | H18: =IF(C15>1, STDEV(G24:G31), "") -> 0.3027600468 | I18: =IF(C15>1, G18-H18, "") -> 0.334453684 | L18: ='t-values'!A7 -> 3 | M18: ='t-values'!B7 -> 4.303
B19: t-value: | C19: =IF(C15>1, IF(C15<31, OFFSET(M16, C15-1, 0), 1.96), "") -> 2.12 | F19: t-value: | G19: =C19 -> 2.12 | L19: ='t-values'!A8 -> 4 | M19: ='t-values'!B8 -> 3.182
B20: Conf. Interval Factor: | C20: =IF(C15>1, C19*C18/(C15^0.5), "") -> 7.27953404e-06 | D20: t x s / n0.5 | F20: Conf. Interval Factor: | G20: =IF(C15>1, G19*G18/(C15^0.5), "") -> 0.3276397046 | H20: t x s / n0.5 | L20: ='t-values'!A9 -> 5 | M20: ='t-values'!B9 -> 2.776
B21: Pred. Interal Factor: | C21: =IF(C15>1, C19*C18*(1+(1/C15))^0.5, "") -> 3.08844473e-05 | D21: t x s x (1+ 1/n)0.5 | F21: Pred. Interal Factor: | G21: =IF(C15>1, G19*G18*((1+(1/C15))^0.5), "") -> 1.390057541 | H21: t x s x (1+ 1/n)0.5 | L21: ='t-values'!A10 -> 6 | M21: ='t-values'!B10 -> 2.571
A22: RAW DATA (only enter data under Identifier and Rate. Everything else is a link.) | L22: ='t-values'!A11 -> 7 | M22: ='t-values'!B11 -> 2.447 | P22: See Table 1 of study, p. 86
A23: Identifier | B23: Rate | C23: (x - xbar)2 | D23: n | G23: Log Rate | H23: (x - xbar)2 | L23: ='t-values'!A12 -> 8 | M23: ='t-values'!B12 -> 2.365 | P23: Group | Q23: a.i. handled kg | R23: ug/kg | S23: dose mg/kg | T23: a.i. lb | U23: Rate
B24: =U24 -> 3.136266238e-05 | C24: =IF(ISBLANK(B24)=FALSE, ($C$6-B24)^2, "") -> 3.56930666e-10 | D24: 1 | G24: =IF(ISBLANK(B24)=FALSE,LOG10(B24), "") -> -4.503587077 | H24: =IF(ISBLANK(B24)=FALSE, ($G$7-G24)^2, "") -> 0.5573903189 | L24: ='t-values'!A13 -> 9 | M24: ='t-values'!B13 -> 2.306 | Q24: 1562 | R24: 108 | S24: =R24/1000 -> 0.108 | T24: =Q24*2.2046 -> 3443.5852 | U24: =S24/T24 -> 3.136266238e-05
B25: 4.556220111e-05 | C25: =IF(ISBLANK(B25)=FALSE, ($C$6-B25)^2, "") -> 1.095090226e-09 | D25: =D24+1 -> 2 | G25: =IF(ISBLANK(B25)=FALSE,LOG10(B25), "") -> -4.341395303 | H25: =IF(ISBLANK(B25)=FALSE, ($G$7-G25)^2, "") -> 0.8258766327 | L25: ='t-values'!A14 -> 10 | M25: ='t-values'!B14 -> 2.262 | Q25: 448 | R25: 45 | S25: =R25/1000 -> 0.045 | T25: =Q25*2.2046 -> 987.6608 | U25: =S25/T25 -> 4.556220111e-05
B26: 1.882855573e-05 | C26: 4.043054918e-11 | D26: =D25+1 -> 3 | G26: -4.725182992 | H26: 0.2756143531 | L26: ='t-values'!A15 -> 11 | M26: ='t-values'!B15 -> 2.228 | Q26: 530 | R26: 22 | S26: 0.022 | T26: 1168.438 | U26: 1.882855573e-05
B27: 2.142978068e-05 | C27: 8.027670914e-11 | D27: 4 | G27: -4.668982274 | H27: 0.3377824881 | L27: ='t-values'!A16 -> 12 | M27: ='t-values'!B16 -> 2.201 | Q27: 381 | R27: 18 | S27: 0.018 | T27: 839.9526 | U27: 2.142978068e-05
B28: 1.652174592e-05 | C28: 1.641621057e-11 | D28: 5 | G28: -4.781944061 | H28: 0.2192382007 | L28: ='t-values'!A17 -> 13 | M28: ='t-values'!B17 -> 2.179 | Q28: 302 | R28: 11 | S28: 0.011 | T28: 665.7892 | U28: 1.652174592e-05
B29: 1.309038393e-05 | C29: 3.84809698e-13 | D29: 6 | G29: -4.883047616 | H29: 0.1347809388 | L29: ='t-values'!A18 -> 14 | M29: ='t-values'!B18 -> 2.16 | Q29: 298 | R29: 8.6 | S29: 0.0086 | T29: 656.9708 | U29: 1.309038393e-05
B30: 5.05333555e-06 | C30: 5.500770681e-11 | D30: 7 | G30: -5.296421863 | H30: 0.002138971026 | L30: ='t-values'!A19 -> 15 | M30: ='t-values'!B19 -> 2.145 | Q30: 377 | R30: 4.2 | S30: 0.0042 | T30: 831.1342 | U30: 5.05333555e-06
B31: 3.779975203e-05 | C31: 6.415936221e-10 | D31: 8 | G31: -4.422511049 | H31: 0.6850240596 | L31: ='t-values'!A20 -> 16 | M31: ='t-values'!B20 -> 2.131 | Q31: 48 | R31: 4 | S31: 0.004 | T31: 105.8208 | U31: 3.779975203e-05
B32: 3.677813711e-06 | C32: 7.730348247e-11 | D32: 9 | G32: -5.434410272 | H32: 0.03394342716 | L32: ='t-values'!A21 -> 17 | M32: ='t-values'!B21 -> 2.12 | Q32: 148 | R32: 1.2 | S32: 0.0012 | T32: 326.2808 | U32: 3.677813711e-06
B33: 2.054024261e-06 | C33: 1.084936674e-10 | D33: 10 | G33: -5.687394431 | H33: 0.1911627093 | L33: ='t-values'!A22 -> 18 | M33: ='t-values'!B22 -> 2.11 | Q33: 265 | R33: 1.2 | S33: 0.0012 | T33: 584.219 | U33: 2.054024261e-06
B34: 5.606255358e-06 | C34: 4.711172648e-11 | D34: 11 | G34: -5.251327125 | H34: 1.332345598e-06 | L34: ='t-values'!A23 -> 19 | M34: ='t-values'!B23 -> 2.101 | Q34: 89 | R34: 1.1 | S34: 0.0011 | T34: 196.2094 | U34: 5.606255358e-06
B35: 2.445866308e-06 | C35: 1.004843311e-10 | D35: 12 | G35: -5.611567285 | H35: 0.1306059366 | L35: ='t-values'!A24 -> 20 | M35: ='t-values'!B24 -> 2.093 | Q35: 204 | R35: 1.1 | S35: 0.0011 | T35: 449.7384 | U35: 2.445866308e-06
B36: 1.667636119e-06 | C36: 1.166922237e-10 | D36: 13 | G36: -5.777898707 | H36: 0.2784945784 | L36: ='t-values'!A25 -> 21 | M36: ='t-values'!B25 -> 2.086 | Q36: 272 | R36: 1 | S36: 0.001 | T36: 599.6512 | U36: 1.667636119e-06
B37: 4.161440591e-07 | C37: 1.452967355e-10 | D37: 14 | G37: -6.380756301 | H37: 1.278218936 | L37: ='t-values'!A26 -> 22 | M37: ='t-values'!B26 -> 2.08 | Q37: 1090 | R37: 1 | S37: 0.001 | T37: 2403.014 | U37: 4.161440591e-07
B38: 4.002326686e-06 | C38: 7.17023993e-11 | D38: 15 | G38: -5.397687465 | H38: 0.02176056122 | L38: ='t-values'!A27 -> 23 | M38: ='t-values'!B27 -> 2.074 | Q38: 68 | R38: 0.6 | S38: 0.0006 | T38: 149.9128 | U38: 4.002326686e-06
B39: 2.080720295e-06 | C39: 1.079382468e-10 | D39: 16 | G39: -5.681786297 | H39: 0.1862901658 | L39: ='t-values'!A28 -> 24 | M39: ='t-values'!B28 -> 2.069 | Q39: 109 | R39: 0.5 | S39: 0.0005 | T39: 240.3014 | U39: 2.080720295e-06
B40: 3.91707275e-07 | C40: 1.458864502e-10 | D40: 17 | G40: -6.407038362 | H40: 1.33833781 | L40: ='t-values'!A29 -> 25 | M40: ='t-values'!B29 -> 2.064 | Q40: 579 | R40: 0.5 | S40: 0.0005 | T40: 1276.4634 | U40: 3.91707275e-07
D41: 18 | L41: ='t-values'!A30 -> 26 | M41: ='t-values'!B30 -> 2.06
D42: 19 | L42: ='t-values'!A31 -> 27 | M42: ='t-values'!B31 -> 2.056
D43: 20 | L43: ='t-values'!A32 -> 28 | M43: ='t-values'!B32 -> 2.052
D44: 21 | L44: ='t-values'!A33 -> 29 | M44: ='t-values'!B33 -> 2.048
D45: 22 | L45: ='t-values'!A34 -> 30 | M45: ='t-values'!B34 -> 2.045
D46: 23 | L46: ='t-values'!A35 -> ∞ | M46: ='t-values'!B35 -> 1.96
D47: 24
D48: 25
D49: 26
D50: 27
D51: 28
D52: 29
D53: 30
D54: 31
D55: 32
D56: 33
D57: 34
D58: 35
D59: 36
D60: 37
D61: 38
D62: 39
D63: 40
D64: 41
D65: 42
D66: 43
D67: 44
D68: 45
A69: NOTE: If there are more than 45 items, insert additional cellss in the middle of the data area. The formulae should update correctly but check.

Sheet Middendorf 1992a-1
B1: Middendorf 1992a
A2: Subgroup: | B2: Basal bark, All
C3: Confidence Intervals
C4: Arithmetic | G4: Geometric (Log10)
C5: Mean | D5: Lower Limit | E5: Upper Limit | G5: Mean | H5: Lower Limit | I5: Upper Limit
C6: =IF(C15>0,AVERAGE(B24:B68), "") -> 0.003567150917 | D6: =IF(C15>1, C6-C20, "") -> 0.001452459149 | E6: =IF(C15>1, C6+C20, "") -> 0.005681842685 | F6: Inverse log | G6: =IF(C15>0, 10^G7, "") -> 0.002068937937 | H6: =IF(C15>1,10^H7, "") -> 0.001105806458 | I6: =IF(C15>1, 10^I7, "") -> 0.003870934335
F7: Log | G7: =IF(C15>0, AVERAGE(G24:G68), "") -> -2.684252537 | H7: =IF(C15>1, G7-G20, "") -> -2.956320878 | I7: =IF(C15>1, G7+G20, "") -> -2.412184196
C9: Prediction Intervals
C10: Arithmetic | G10: Geometric (Log10)
C11: Mean | D11: Lower Limit | E11: Upper Limit | G11: Mean | H11: Lower Limit | I11: Upper Limit
C12: =IF(C15>0,AVERAGE(B24:B68), "") -> 0.003567150917 | D12: =IF(C15>1, C12-C21, "") -> -0.005151946608 | E12: =IF(C15>1, C12+C21, "") -> 0.01228624844 | F12: Inverse log | G12: =IF($C$15>0, 10^G13, "") -> 0.002068937937 | H12: =IF($C$15>0, 10^H13, "") -> 0.0001563079097 | I12: 0.02738507728
F13: Log | G13: =IF(C15>0, AVERAGE(G24:G68), "") -> -2.684252537 | H13: =IF(C15>1, G13-G21, "") -> -3.806019045 | I13: =IF(C15>1, G13+G21, "") -> -1.562486029 | L13: ='t-values'!A3 -> 95% Confidence Interval
B15: n: | C15: =COUNTA(B24:B68) -> 16 | L15: ='t-values'!A4 -> alpha = 0.025
B16: SSE: | C16: =IF(C15>0, SUM(C24:C68), "") -> 0.000236340686 | D16: Check | F16: SSE: | G16: =IF(C15>0, SUM(H24:H68), "") -> 3.912013631 | H16: Check | L16: ='t-values'!A5 -> n | M16: ='t-values'!B5 -> t-value
B17: Variance (s2): | C17: =IF(C15>1, C16/(C15-1), "") -> 1.575604573e-05 | D17: =IF(C15>1, VAR(B24:B68), "") -> 1.575604573e-05 | E17: =IF(C15>1, C17-D17, "") -> 6.776263578e-21 | F17: Variance (s2): | G17: =IF(C15>1, G16/(C15-1), "") -> 0.2608009087 | H17: =IF(C15>1, VAR(G24:G68), "") -> 0.2608009087 | I17: =IF(C15>1, G17-H17, "") -> 5.551115123e-17 | L17: ='t-values'!A6 -> 2 | M17: ='t-values'!B6 -> 12.706
B18: Std Dev (s): | C18: =IF(C15>1, C17^0.5, "") -> 0.003969388584 | D18: =IF(C15>1, STDEV(B24:B68), "") -> 0.003969388584 | E18: =IF(C15>1, C18-D18, "") -> 8.67361738e-19 | F18: Std Dev (s): | G18: =IF(C15>1, G17^0.5, "") -> 0.5106867031 | H18: =IF(C15>1, STDEV(G24:G31), "") -> 0.6589799143 | I18: =IF(C15>1, G18-H18, "") -> -0.1482932112 | L18: ='t-values'!A7 -> 3 | M18: ='t-values'!B7 -> 4.303
B19: t-value: | C19: =IF(C15>1, IF(C15<31, OFFSET(M16, C15-1, 0), 1.96), "") -> 2.131 | F19: t-value: | G19: =C19 -> 2.131 | L19: ='t-values'!A8 -> 4 | M19: ='t-values'!B8 -> 3.182 | O19: Purple shading indicates no gloves were worn
B20: Conf. Interval Factor: | C20: =IF(C15>1, C19*C18/(C15^0.5), "") -> 0.002114691768 | D20: t x s / n0.5 | F20: Conf. Interval Factor: | G20: =IF(C15>1, G19*G18/(C15^0.5), "") -> 0.2720683411 | H20: t x s / n0.5 | L20: ='t-values'!A9 -> 5 | M20: ='t-values'!B9 -> 2.776
B21: Pred. Interal Factor: | C21: =IF(C15>1, C19*C18*(1+(1/C15))^0.5, "") -> 0.008719097525 | D21: t x s x (1+ 1/n)0.5 | F21: Pred. Interal Factor: | G21: =IF(C15>1, G19*G18*((1+(1/C15))^0.5), "") -> 1.121766508 | H21: t x s x (1+ 1/n)0.5 | L21: ='t-values'!A10 -> 6 | M21: ='t-values'!B10 -> 2.571 | O21: Values below taken from Table 12 of SERA 2011c (triclopyr risk assessment),
A22: RAW DATA (only enter data under Identifier and Rate. Everything else is a link.) | L22: ='t-values'!A11 -> 7 | M22: ='t-values'!B11 -> 2.447 | O22: Worker | P22: Amount | Q22: BW | R22: Dose | S22: Rate
A23: Identifier | B23: Rate | C23: (x - xbar)2 | D23: n | G23: Log Rate | H23: (x - xbar)2 | L23: ='t-values'!A12 -> 8 | M23: ='t-values'!B12 -> 2.365 | O23: ID | P23: lb a.e | Q23: kg | R23: mg | S23: Rate
A24: =O24 -> A | B24: =S24 -> 0.0001484831871 | C24: =IF(ISBLANK(B24)=FALSE, ($C$6-B24)^2, "") -> 1.168728905e-05 | D24: 1 | G24: =IF(ISBLANK(B24)=FALSE,LOG10(B24), "") -> -3.828322719 | H24: =IF(ISBLANK(B24)=FALSE, ($G$7-G24)^2, "") -> 1.308896582 | L24: ='t-values'!A13 -> 9 | M24: ='t-values'!B13 -> 2.306 | O24: A | P24: 4.8 | Q24: 91.2 | R24: 0.065 | S24: =(R24/Q24)/P24 -> 0.0001484831871
A25: B | B25: 0.0006477591036 | C25: =IF(ISBLANK(B25)=FALSE, ($C$6-B25)^2, "") -> 8.52284856e-06 | D25: =D24+1 -> 2 | G25: =IF(ISBLANK(B25)=FALSE,LOG10(B25), "") -> -3.188586475 | H25: =IF(ISBLANK(B25)=FALSE, ($G$7-G25)^2, "") -> 0.2543527209 | L25: ='t-values'!A14 -> 10 | M25: ='t-values'!B14 -> 2.262 | O25: B | P25: 4.8 | Q25: 83.3 | R25: 0.259 | S25: =(R25/Q25)/P25 -> 0.0006477591036
A26: C | B26: 0.001558029328 | C26: 4.036569561e-06 | D26: =D25+1 -> 3 | G26: -2.807424372 | H26: 0.01517130088 | L26: ='t-values'!A15 -> 11 | M26: ='t-values'!B15 -> 2.228 | O26: C | P26: 4.8 | Q26: 93.2 | R26: 0.697 | S26: 0.001558029328
A27: D | B27: 0.005060664112 | C27: 2.230581665e-06 | D27: 4 | G27: -2.295792487 | H27: 0.1509012105 | L27: ='t-values'!A16 -> 12 | M27: ='t-values'!B16 -> 2.201 | O27: D | P27: 4.8 | Q27: 78.3 | R27: 1.902 | S27: 0.005060664112
A28: G | B28: 0.001361650485 | C28: 4.864232154e-06 | D28: 5 | G28: -2.865934355 | H28: 0.03300828296 | L28: ='t-values'!A17 -> 13 | M28: ='t-values'!B17 -> 2.179 | O28: G | P28: 4 | Q28: 103 | R28: 0.561 | S28: 0.001361650485
A29: H | B29: 0.0142837274 | C29: 0.0001148450115 | D29: 6 | G29: -1.845158447 | H29: 0.704078892 | L29: ='t-values'!A18 -> 14 | M29: ='t-values'!B18 -> 2.16 | O29: H | P29: 4 | Q29: 71.9 | R29: 4.108 | S29: 0.0142837274
A30: I | B30: 0.01175940439 | C30: 6.711301695e-05 | D30: 7 | G30: -1.929614675 | H30: 0.5694783031 | L30: ='t-values'!A19 -> 15 | M30: ='t-values'!B19 -> 2.145 | O30: I | P30: 4 | Q30: 63.8 | R30: 3.001 | S30: 0.01175940439
A31: J | B31: 0.002441245593 | C31: 1.267662798e-06 | D31: 8 | G31: -2.612388528 | H31: 0.005164435823 | L31: ='t-values'!A20 -> 16 | M31: ='t-values'!B20 -> 2.131 | O31: J | P31: 4 | Q31: 85.1 | R31: 0.831 | S31: 0.002441245593
A32: K | B32: 0.003743902439 | C32: 3.124110054e-08 | D32: 9 | G32: -2.426675477 | H32: 0.06634594181 | L32: ='t-values'!A21 -> 17 | M32: ='t-values'!B21 -> 2.12 | O32: K | P32: 4 | Q32: 61.5 | R32: 0.921 | S32: 0.003743902439
A33: L | B33: 0.003881401617 | C33: 9.875350262e-08 | D33: 10 | G33: -2.411011418 | H33: 0.0746607093 | L33: ='t-values'!A22 -> 18 | M33: ='t-values'!B22 -> 2.11 | O33: L | P33: 4 | Q33: 74.2 | R33: 1.152 | S33: 0.003881401617
A34: M | B34: 0.002189990803 | C34: 1.896569979e-06 | D34: 11 | G34: -2.659557709 | H34: 0.0006098345248 | L34: ='t-values'!A23 -> 19 | M34: ='t-values'!B23 -> 2.101 | O34: M | P34: 5.6 | Q34: 93.2 | R34: 1.143 | S34: 0.002189990803
A35: N | B35: 0.003958168903 | C35: 1.528950653e-07 | D35: 12 | G35: -2.402505678 | H35: 0.07938129274 | L35: ='t-values'!A24 -> 20 | M35: ='t-values'!B24 -> 2.093 | O35: N | P35: 5.6 | Q35: 90.5 | R35: 2.006 | S35: 0.003958168903
A36: O | B36: 0.002580468905 | C36: 9.735413923e-07 | D36: 13 | G36: -2.58830137 | H36: 0.009206626454 | L36: ='t-values'!A25 -> 21 | M36: ='t-values'!B25 -> 2.086 | O36: O | P36: 5.6 | Q36: 71.9 | R36: 1.039 | S36: 0.002580468905 | T36: Female
A37: P | B37: 0.001850288099 | C37: 2.947617937e-06 | D37: 14 | G37: -2.732760645 | H37: 0.00235303652 | L37: ='t-values'!A26 -> 22 | M37: ='t-values'!B26 -> 2.08 | O37: P | P37: 5.6 | Q37: 71.9 | R37: 0.745 | S37: 0.001850288099
A38: Q | B38: 0.001257189492 | C38: 5.335921786e-06 | D38: 15 | G38: -2.900599258 | H38: 0.04680590363 | L38: ='t-values'!A27 -> 23 | M38: ='t-values'!B27 -> 2.074 | O38: Q | P38: 5.6 | Q38: 91.9 | R38: 0.647 | S38: 0.001257189492
A39: R | B39: 0.0003520408163 | C39: 1.033693296e-05 | D39: 16 | G39: -3.453406981 | H39: 0.5915985584 | L39: ='t-values'!A28 -> 24 | M39: ='t-values'!B28 -> 2.069 | O39: R | P39: 5.6 | Q39: 105 | R39: 0.207 | S39: 0.0003520408163
D40: 17 | L40: ='t-values'!A29 -> 25 | M40: ='t-values'!B29 -> 2.064
D41: 18 | L41: ='t-values'!A30 -> 26 | M41: ='t-values'!B30 -> 2.06
D42: 19 | L42: ='t-values'!A31 -> 27 | M42: ='t-values'!B31 -> 2.056
D43: 20 | L43: ='t-values'!A32 -> 28 | M43: ='t-values'!B32 -> 2.052
D44: 21 | L44: ='t-values'!A33 -> 29 | M44: ='t-values'!B33 -> 2.048
D45: 22 | L45: ='t-values'!A34 -> 30 | M45: ='t-values'!B34 -> 2.045
D46: 23 | L46: ='t-values'!A35 -> ∞ | M46: ='t-values'!B35 -> 1.96
D47: 24
D48: 25
D49: 26
D50: 27
D51: 28
D52: 29
D53: 30
D54: 31
D55: 32
D56: 33
D57: 34
D58: 35
D59: 36
D60: 37
D61: 38
D62: 39
D63: 40
D64: 41
D65: 42
D66: 43
D67: 44
D68: 45
A69: NOTE: If there are more than 45 items, insert additional cellss in the middle of the data area. The formulae should update correctly but check.

Sheet Middendorf 1992a-2
B1: Middendorf 1992a
A2: Subgroup: | B2: Basal bark, gloves
C3: Confidence Intervals
C4: Arithmetic | G4: Geometric (Log10)
C5: Mean | D5: Lower Limit | E5: Upper Limit | G5: Mean | H5: Lower Limit | I5: Upper Limit
C6: =IF(C15>0,AVERAGE(B24:B68), "") -> 0.002135703064 | D6: =IF(C15>1, C6-C20, "") -> 0.001059526743 | E6: =IF(C15>1, C6+C20, "") -> 0.003211879385 | F6: Inverse log | G6: =IF(C15>0, 10^G7, "") -> 0.001440970759 | H6: =IF(C15>1,10^H7, "") -> 0.0007334610505 | I6: =IF(C15>1, 10^I7, "") -> 0.002830957044
F7: Log | G7: =IF(C15>0, AVERAGE(G24:G68), "") -> -2.841344832 | H7: =IF(C15>1, G7-G20, "") -> -3.134622944 | I7: =IF(C15>1, G7+G20, "") -> -2.54806672
C9: Prediction Intervals
C10: Arithmetic | G10: Geometric (Log10)
C11: Mean | D11: Lower Limit | E11: Upper Limit | G11: Mean | H11: Lower Limit | I11: Upper Limit
C12: =IF(C15>0,AVERAGE(B24:B68), "") -> 0.002135703064 | D12: =IF(C15>1, C12-C21, "") -> -0.001744505842 | E12: =IF(C15>1, C12+C21, "") -> 0.006015911971 | F12: Inverse log | G12: =IF($C$15>0, 10^G13, "") -> 0.001440970759 | H12: =IF($C$15>0, 10^H13, "") -> 0.0001262484044 | I12: 0.01644691461
F13: Log | G13: =IF(C15>0, AVERAGE(G24:G68), "") -> -2.841344832 | H13: =IF(C15>1, G13-G21, "") -> -3.898774102 | I13: =IF(C15>1, G13+G21, "") -> -1.783915562 | L13: ='t-values'!A3 -> 95% Confidence Interval
B15: n: | C15: =COUNTA(B24:B68) -> 12 | L15: ='t-values'!A4 -> alpha = 0.025
B16: SSE: | C16: =IF(C15>0, SUM(C24:C68), "") -> 3.155736334e-05 | D16: Check | F16: SSE: | G16: =IF(C15>0, SUM(H24:H68), "") -> 2.343652127 | H16: Check | L16: ='t-values'!A5 -> n | M16: ='t-values'!B5 -> t-value
B17: Variance (s2): | C17: =IF(C15>1, C16/(C15-1), "") -> 2.868851213e-06 | D17: =IF(C15>1, VAR(B24:B68), "") -> 2.868851213e-06 | E17: =IF(C15>1, C17-D17, "") -> 1.270549421e-21 | F17: Variance (s2): | G17: =IF(C15>1, G16/(C15-1), "") -> 0.2130592843 | H17: =IF(C15>1, VAR(G24:G68), "") -> 0.2130592843 | I17: =IF(C15>1, G17-H17, "") -> -9.714451465e-16 | L17: ='t-values'!A6 -> 2 | M17: ='t-values'!B6 -> 12.706
B18: Std Dev (s): | C18: =IF(C15>1, C17^0.5, "") -> 0.001693768347 | D18: =IF(C15>1, STDEV(B24:B68), "") -> 0.001693768347 | E18: =IF(C15>1, C18-D18, "") -> 4.33680869e-19 | F18: Std Dev (s): | G18: =IF(C15>1, G17^0.5, "") -> 0.4615834532 | H18: =IF(C15>1, STDEV(G24:G31), "") -> 0.4862499586 | I18: =IF(C15>1, G18-H18, "") -> -0.02466650537 | L18: ='t-values'!A7 -> 3 | M18: ='t-values'!B7 -> 4.303
B19: t-value: | C19: =IF(C15>1, IF(C15<31, OFFSET(M16, C15-1, 0), 1.96), "") -> 2.201 | F19: t-value: | G19: =C19 -> 2.201 | L19: ='t-values'!A8 -> 4 | M19: ='t-values'!B8 -> 3.182
B20: Conf. Interval Factor: | C20: =IF(C15>1, C19*C18/(C15^0.5), "") -> 0.001076176321 | D20: t x s / n0.5 | F20: Conf. Interval Factor: | G20: =IF(C15>1, G19*G18/(C15^0.5), "") -> 0.2932781117 | H20: t x s / n0.5 | L20: ='t-values'!A9 -> 5 | M20: ='t-values'!B9 -> 2.776
B21: Pred. Interal Factor: | C21: =IF(C15>1, C19*C18*(1+(1/C15))^0.5, "") -> 0.003880208907 | D21: t x s x (1+ 1/n)0.5 | F21: Pred. Interal Factor: | G21: =IF(C15>1, G19*G18*((1+(1/C15))^0.5), "") -> 1.05742927 | H21: t x s x (1+ 1/n)0.5 | L21: ='t-values'!A10 -> 6 | M21: ='t-values'!B10 -> 2.571 | O21: Values below taken from Table 12 of SERA 2011c (triclopyr risk assessment),
A22: RAW DATA (only enter data under Identifier and Rate. Everything else is a link.) | L22: ='t-values'!A11 -> 7 | M22: ='t-values'!B11 -> 2.447 | O22: Worker | P22: Amount | Q22: BW | R22: Dose | S22: Rate | T22: Relative to | U22: Rel to
A23: Identifier | B23: Rate | C23: (x - xbar)2 | D23: n | G23: Log Rate | H23: (x - xbar)2 | L23: ='t-values'!A12 -> 8 | M23: ='t-values'!B12 -> 2.365 | O23: ID | P23: lb a.e | Q23: kg | R23: mg | S23: Rate | T23: Max | U23: Mean
A24: =O24 -> A | B24: =S24 -> 0.0001484831871 | C24: =IF(ISBLANK(B24)=FALSE, ($C$6-B24)^2, "") -> 3.94904284e-06 | D24: 1 | G24: =IF(ISBLANK(B24)=FALSE,LOG10(B24), "") -> -3.828322719 | H24: =IF(ISBLANK(B24)=FALSE, ($G$7-G24)^2, "") -> 0.9741253492 | L24: ='t-values'!A13 -> 9 | M24: ='t-values'!B13 -> 2.306 | O24: A | P24: 4.8 | Q24: 91.2 | R24: 0.065 | S24: =(R24/Q24)/P24 -> 0.0001484831871 | T24: =S24/$S$34 -> 0.0293406525 | U24: =S24/$S$35 -> 0.07941137261
A25: B | B25: 0.0006477591036 | C25: =IF(ISBLANK(B25)=FALSE, ($C$6-B25)^2, "") -> 2.21397723e-06 | D25: =D24+1 -> 2 | G25: =IF(ISBLANK(B25)=FALSE,LOG10(B25), "") -> -3.188586475 | H25: =IF(ISBLANK(B25)=FALSE, ($G$7-G25)^2, "") -> 0.1205767583 | L25: ='t-values'!A14 -> 10 | M25: ='t-values'!B14 -> 2.262 | O25: B | P25: 4.8 | Q25: 83.3 | R25: 0.259 | S25: =(R25/Q25)/P25 -> 0.0006477591036 | T25: =S25/$S$34 -> 0.1279988336 | U25: =S25/$S$35 -> 0.3464327547
A26: C | B26: 0.001558029328 | C26: 3.337069461e-07 | D26: =D25+1 -> 3 | G26: -2.807424372 | H26: 0.001150597643 | L26: ='t-values'!A15 -> 11 | M26: ='t-values'!B15 -> 2.228 | O26: C | P26: 4.8 | Q26: 93.2 | R26: 0.697 | S26: 0.001558029328 | T26: 0.3078705271 | U26: 0.8332609898
A27: D | B27: 0.005060664112 | C27: 8.555397133e-06 | D27: 4 | G27: -2.295792487 | H27: 0.2976273615 | L27: ='t-values'!A16 -> 12 | M27: ='t-values'!B16 -> 2.201 | O27: D | P27: 4.8 | Q27: 78.3 | R27: 1.902 | S27: 0.005060664112 | T27: 1 | U27: 2.706530559
A28: G | B28: 0.001361650485 | C28: 5.991573949e-07 | D28: 5 | G28: -2.865934355 | H28: 0.0006046446221 | L28: ='t-values'!A17 -> 13 | M28: ='t-values'!B17 -> 2.179 | O28: G | P28: 4 | Q28: 103 | R28: 0.561 | S28: 0.001361650485 | T28: 0.2690655723 | U28: 0.7282341937
A29: L | B29: 0.003881401617 | C29: 3.047463438e-06 | D29: 6 | G29: -2.411011418 | H29: 0.1851868478 | L29: ='t-values'!A18 -> 14 | M29: ='t-values'!B18 -> 2.16 | O29: L | P29: 4 | Q29: 74.2 | R29: 1.152 | S29: 0.003881401617 | T29: 0.7669747549 | U29: 2.075840612
A30: O | B30: 0.002580468905 | C30: 1.978166532e-07 | D30: 7 | G30: -2.58830137 | H30: 0.06403099383 | L30: ='t-values'!A19 -> 15 | M30: ='t-values'!B19 -> 2.145 | O30: O | P30: 5.6 | Q30: 71.9 | R30: 1.039 | S30: 0.002580468905 | T30: 0.5099071679 | U30: 1.380079332 | V30: Worker O is female
A31: P | B31: 0.001850288099 | C31: 8.14617027e-08 | D31: 8 | G31: -2.732760645 | H31: 0.01179052578 | L31: ='t-values'!A20 -> 16 | M31: ='t-values'!B20 -> 2.131 | O31: P | P31: 5.6 | Q31: 71.9 | R31: 0.745 | S31: 0.001850288099 | T31: 0.3656215978 | U31: 0.9895660274
A32: Q | B32: 0.001257189492 | C32: 7.717860974e-07 | D32: 9 | G32: -2.900599258 | H32: 0.003511086948 | L32: ='t-values'!A21 -> 17 | M32: ='t-values'!B21 -> 2.12 | O32: Q | P32: 5.6 | Q32: 91.9 | R32: 0.647 | S32: 0.001257189492 | T32: 0.2484238163 | U32: 0.6723666504
A33: R | B33: 0.0003520408163 | C33: 3.181451015e-06 | D33: 10 | G33: -3.453406981 | H33: 0.3746200736 | L33: ='t-values'!A22 -> 18 | M33: ='t-values'!B22 -> 2.11 | O33: R | P33: 5.6 | Q33: 105 | R33: 0.207 | S33: 0.0003520408163 | T33: 0.06956415374 | U33: 0.1882775079
B34: 0.005060664112 | C34: 8.555397133e-06 | D34: 11 | G34: -2.295792487 | H34: 0.2976273615 | L34: ='t-values'!A23 -> 19 | M34: ='t-values'!B23 -> 2.101 | R34: Max | S34: =MAX(S24:S33) -> 0.005060664112
B35: 0.001869797515 | C35: 7.070576143e-08 | D35: 12 | G35: -2.728205422 | H35: 0.01280052617 | L35: ='t-values'!A24 -> 20 | M35: ='t-values'!B24 -> 2.093 | R35: Ave | S35: =AVERAGE(S24:S33) -> 0.001869797515
D36: 13 | L36: ='t-values'!A25 -> 21 | M36: ='t-values'!B25 -> 2.086
D37: 14 | L37: ='t-values'!A26 -> 22 | M37: ='t-values'!B26 -> 2.08
D38: 15 | L38: ='t-values'!A27 -> 23 | M38: ='t-values'!B27 -> 2.074
D39: 16 | L39: ='t-values'!A28 -> 24 | M39: ='t-values'!B28 -> 2.069
D40: 17 | L40: ='t-values'!A29 -> 25 | M40: ='t-values'!B29 -> 2.064
D41: 18 | L41: ='t-values'!A30 -> 26 | M41: ='t-values'!B30 -> 2.06
D42: 19 | L42: ='t-values'!A31 -> 27 | M42: ='t-values'!B31 -> 2.056
D43: 20 | L43: ='t-values'!A32 -> 28 | M43: ='t-values'!B32 -> 2.052
D44: 21 | L44: ='t-values'!A33 -> 29 | M44: ='t-values'!B33 -> 2.048
D45: 22 | L45: ='t-values'!A34 -> 30 | M45: ='t-values'!B34 -> 2.045
D46: 23 | L46: ='t-values'!A35 -> ∞ | M46: ='t-values'!B35 -> 1.96
D47: 24
D48: 25
D49: 26
D50: 27
D51: 28
D52: 29
D53: 30
D54: 31
D55: 32
D56: 33
D57: 34
D58: 35
D59: 36
D60: 37
D61: 38
D62: 39
D63: 40
D64: 41
D65: 42
D66: 43
D67: 44
D68: 45
A69: NOTE: If there are more than 45 items, insert additional cellss in the middle of the data area. The formulae should update correctly but check.

Sheet Middendorf 1992a-3
B1: Middendorf 1992a
A2: Subgroup: | B2: Basal bark, no gloves
C3: Confidence Intervals
C4: Arithmetic | G4: Geometric (Log10)
C5: Mean | D5: Lower Limit | E5: Upper Limit | G5: Mean | H5: Lower Limit | I5: Upper Limit
C6: =IF(C15>0,AVERAGE(B24:B68), "") -> 0.006396073254 | D6: =IF(C15>1, C6-C20, "") -> 0.00089610415 | E6: =IF(C15>1, C6+C20, "") -> 0.01189604236 | F6: Inverse log | G6: =IF(C15>0, 10^G7, "") -> 0.004867992659 | H6: =IF(C15>1,10^H7, "") -> 0.002112559791 | I6: =IF(C15>1, 10^I7, "") -> 0.01121736418
F7: Log | G7: =IF(C15>0, AVERAGE(G24:G68), "") -> -2.312650085 | H7: =IF(C15>1, G7-G20, "") -> -2.675190991 | I7: =IF(C15>1, G7+G20, "") -> -1.95010918
C9: Prediction Intervals
C10: Arithmetic | G10: Geometric (Log10)
C11: Mean | D11: Lower Limit | E11: Upper Limit | G11: Mean | H11: Lower Limit | I11: Upper Limit
C12: =IF(C15>0,AVERAGE(B24:B68), "") -> 0.006396073254 | D12: =IF(C15>1, C12-C21, "") -> -0.008155477214 | E12: =IF(C15>1, C12+C21, "") -> 0.02094762372 | F12: Inverse log | G12: =IF($C$15>0, 10^G13, "") -> 0.004867992659 | H12: =IF($C$15>0, 10^H13, "") -> 0.0005347574448 | I12: 0.04431420779
F13: Log | G13: =IF(C15>0, AVERAGE(G24:G68), "") -> -2.312650085 | H13: =IF(C15>1, G13-G21, "") -> -3.271843161 | I13: =IF(C15>1, G13+G21, "") -> -1.35345701 | L13: ='t-values'!A3 -> 95% Confidence Interval
B15: n: | C15: =COUNTA(B24:B68) -> 6 | L15: ='t-values'!A4 -> alpha = 0.025
B16: SSE: | C16: =IF(C15>0, SUM(C24:C68), "") -> 0.0001372895878 | D16: Check | F16: SSE: | G16: =IF(C15>0, SUM(H24:H68), "") -> 0.5965284085 | H16: Check | L16: ='t-values'!A5 -> n | M16: ='t-values'!B5 -> t-value
B17: Variance (s2): | C17: =IF(C15>1, C16/(C15-1), "") -> 2.745791757e-05 | D17: =IF(C15>1, VAR(B24:B68), "") -> 2.745791757e-05 | E17: =IF(C15>1, C17-D17, "") -> 6.776263578e-21 | F17: Variance (s2): | G17: =IF(C15>1, G16/(C15-1), "") -> 0.1193056817 | H17: =IF(C15>1, VAR(G24:G68), "") -> 0.1193056817 | I17: =IF(C15>1, G17-H17, "") -> -3.747002708e-16 | L17: ='t-values'!A6 -> 2 | M17: ='t-values'!B6 -> 12.706
B18: Std Dev (s): | C18: =IF(C15>1, C17^0.5, "") -> 0.005240030302 | D18: =IF(C15>1, STDEV(B24:B68), "") -> 0.005240030302 | E18: =IF(C15>1, C18-D18, "") -> 0 | F18: Std Dev (s): | G18: =IF(C15>1, G17^0.5, "") -> 0.3454065455 | H18: =IF(C15>1, STDEV(G24:G31), "") -> 0.3454065455 | I18: =IF(C15>1, G18-H18, "") -> -4.996003611e-16 | L18: ='t-values'!A7 -> 3 | M18: ='t-values'!B7 -> 4.303
B19: t-value: | C19: =IF(C15>1, IF(C15<31, OFFSET(M16, C15-1, 0), 1.96), "") -> 2.571 | F19: t-value: | G19: =C19 -> 2.571 | L19: ='t-values'!A8 -> 4 | M19: ='t-values'!B8 -> 3.182 | O19: Purple shading indicates no gloves were worn
B20: Conf. Interval Factor: | C20: =IF(C15>1, C19*C18/(C15^0.5), "") -> 0.005499969104 | D20: t x s / n0.5 | F20: Conf. Interval Factor: | G20: =IF(C15>1, G19*G18/(C15^0.5), "") -> 0.3625409052 | H20: t x s / n0.5 | L20: ='t-values'!A9 -> 5 | M20: ='t-values'!B9 -> 2.776
B21: Pred. Interal Factor: | C21: =IF(C15>1, C19*C18*(1+(1/C15))^0.5, "") -> 0.01455155047 | D21: t x s x (1+ 1/n)0.5 | F21: Pred. Interal Factor: | G21: =IF(C15>1, G19*G18*((1+(1/C15))^0.5), "") -> 0.9591930752 | H21: t x s x (1+ 1/n)0.5 | L21: ='t-values'!A10 -> 6 | M21: ='t-values'!B10 -> 2.571 | O21: Values below taken from Table 12 of SERA 2011c (triclopyr risk assessment),
A22: RAW DATA (only enter data under Identifier and Rate. Everything else is a link.) | L22: ='t-values'!A11 -> 7 | M22: ='t-values'!B11 -> 2.447 | O22: Worker | P22: Amount | Q22: BW | R22: Dose | S22: Rate
A23: Identifier | B23: Rate | C23: (x - xbar)2 | D23: n | G23: Log Rate | H23: (x - xbar)2 | L23: ='t-values'!A12 -> 8 | M23: ='t-values'!B12 -> 2.365 | O23: ID | P23: lb a.e | Q23: kg | R23: mg | S23: Rate
A24: =O24 -> H | B24: =S24 -> 0.0142837274 | C24: =IF(ISBLANK(B24)=FALSE, ($C$6-B24)^2, "") -> 6.221508791e-05 | D24: 1 | G24: =IF(ISBLANK(B24)=FALSE,LOG10(B24), "") -> -1.845158447 | H24: =IF(ISBLANK(B24)=FALSE, ($G$7-G24)^2, "") -> 0.2185484322 | L24: ='t-values'!A13 -> 9 | M24: ='t-values'!B13 -> 2.306 | O24: H | P24: 4 | Q24: 71.9 | R24: 4.108 | S24: =(R24/Q24)/P24 -> 0.0142837274
A25: I | B25: 0.01175940439 | C25: =IF(ISBLANK(B25)=FALSE, ($C$6-B25)^2, "") -> 2.876532086e-05 | D25: =D24+1 -> 2 | G25: =IF(ISBLANK(B25)=FALSE,LOG10(B25), "") -> -1.929614675 | H25: =IF(ISBLANK(B25)=FALSE, ($G$7-G25)^2, "") -> 0.1467161259 | L25: ='t-values'!A14 -> 10 | M25: ='t-values'!B14 -> 2.262 | O25: I | P25: 4 | Q25: 63.8 | R25: 3.001 | S25: 0.01175940439
A26: J | B26: 0.002441245593 | C26: 1.564066183e-05 | D26: =D25+1 -> 3 | G26: -2.612388528 | H26: 0.08984313375 | L26: ='t-values'!A15 -> 11 | M26: ='t-values'!B15 -> 2.228 | O26: J | P26: 4 | Q26: 85.1 | R26: 0.831 | S26: 0.002441245593
A27: K | B27: 0.003743902439 | C27: 7.034010034e-06 | D27: 4 | G27: -2.426675477 | H27: 0.01300178991 | L27: ='t-values'!A16 -> 12 | M27: ='t-values'!B16 -> 2.201 | O27: K | P27: 4 | Q27: 61.5 | R27: 0.921 | S27: 0.003743902439
A28: M | B28: 0.002189990803 | C28: 1.769112959e-05 | D28: 5 | G28: -2.659557709 | H28: 0.1203448993 | L28: ='t-values'!A17 -> 13 | M28: ='t-values'!B17 -> 2.179 | O28: M | P28: 5.6 | Q28: 93.2 | R28: 1.143 | S28: 0.002189990803
A29: N | B29: 0.003958168903 | C29: 5.943377627e-06 | D29: 6 | G29: -2.402505678 | H29: 0.008074027435 | L29: ='t-values'!A18 -> 14 | M29: ='t-values'!B18 -> 2.16 | O29: N | P29: 5.6 | Q29: 90.5 | R29: 2.006 | S29: 0.003958168903
D30: 7 | L30: ='t-values'!A19 -> 15 | M30: ='t-values'!B19 -> 2.145
D31: 8 | L31: ='t-values'!A20 -> 16 | M31: ='t-values'!B20 -> 2.131
D32: 9 | L32: ='t-values'!A21 -> 17 | M32: ='t-values'!B21 -> 2.12
D33: 10 | L33: ='t-values'!A22 -> 18 | M33: ='t-values'!B22 -> 2.11
D34: 11 | L34: ='t-values'!A23 -> 19 | M34: ='t-values'!B23 -> 2.101
D35: 12 | L35: ='t-values'!A24 -> 20 | M35: ='t-values'!B24 -> 2.093
D36: 13 | L36: ='t-values'!A25 -> 21 | M36: ='t-values'!B25 -> 2.086
D37: 14 | L37: ='t-values'!A26 -> 22 | M37: ='t-values'!B26 -> 2.08
D38: 15 | L38: ='t-values'!A27 -> 23 | M38: ='t-values'!B27 -> 2.074
D39: 16 | L39: ='t-values'!A28 -> 24 | M39: ='t-values'!B28 -> 2.069
D40: 17 | L40: ='t-values'!A29 -> 25 | M40: ='t-values'!B29 -> 2.064
D41: 18 | L41: ='t-values'!A30 -> 26 | M41: ='t-values'!B30 -> 2.06
D42: 19 | L42: ='t-values'!A31 -> 27 | M42: ='t-values'!B31 -> 2.056
D43: 20 | L43: ='t-values'!A32 -> 28 | M43: ='t-values'!B32 -> 2.052
D44: 21 | L44: ='t-values'!A33 -> 29 | M44: ='t-values'!B33 -> 2.048
D45: 22 | L45: ='t-values'!A34 -> 30 | M45: ='t-values'!B34 -> 2.045
D46: 23 | L46: ='t-values'!A35 -> ∞ | M46: ='t-values'!B35 -> 1.96
D47: 24
D48: 25
D49: 26
D50: 27
D51: 28
D52: 29
D53: 30
D54: 31
D55: 32
D56: 33
D57: 34
D58: 35
D59: 36
D60: 37
D61: 38
D62: 39
D63: 40
D64: 41
D65: 42
D66: 43
D67: 44
D68: 45
A69: NOTE: If there are more than 45 items, insert additional cellss in the middle of the data area. The formulae should update correctly but check.

Sheet Middendorf 1992a-4
B1: Middendorf 1992a
A2: Subgroup: | B2: Gloves vs No Gloves
B4: Below are links from the previous two worksheets
B5: Gloves | C5: No Gloves
B6: ='Middendorf 1992a-2'!B24 -> 0.0001484831871 | C6: ='Middendorf 1992a-3'!B24 -> 0.0142837274
B7: ='Middendorf 1992a-2'!B25 -> 0.0006477591036 | C7: ='Middendorf 1992a-3'!B25 -> 0.01175940439
B8: ='Middendorf 1992a-2'!B26 -> 0.001558029328 | C8: ='Middendorf 1992a-3'!B26 -> 0.002441245593
B9: ='Middendorf 1992a-2'!B27 -> 0.005060664112 | C9: ='Middendorf 1992a-3'!B27 -> 0.003743902439
B10: ='Middendorf 1992a-2'!B28 -> 0.001361650485 | C10: ='Middendorf 1992a-3'!B28 -> 0.002189990803
B11: ='Middendorf 1992a-2'!B29 -> 0.003881401617 | C11: ='Middendorf 1992a-3'!B29 -> 0.003958168903
B12: ='Middendorf 1992a-2'!B30 -> 0.002580468905
B13: ='Middendorf 1992a-2'!B31 -> 0.001850288099
B14: ='Middendorf 1992a-2'!B32 -> 0.001257189492
B15: ='Middendorf 1992a-2'!B33 -> 0.0003520408163
B17: t-Test: Two-Sample Assuming Unequal Variances
C19: Gloves | D19: No Gloves | F19: No Gloves/Gloves
B20: Mean | C20: 0.001869797515 | D20: 0.006396073254 | F20: =D20/C20 -> 3.420730429 | G20: reduction in exposure
B21: Variance | C21: 2.469355871e-06 | D21: 2.745791757e-05
B22: Observations | C22: 10 | D22: 6
B23: Hypothesized Mean Difference | C23: 0
B24: df | C24: 6
B25: t Stat | C25: -2.060966287
B26: P(T<=t) one-tail | C26: 0.04247138504
B27: t Critical one-tail | C27: 1.943180274
B28: P(T<=t) two-tail | C28: 0.08494277008
B29: t Critical two-tail | C29: 2.446911846

Sheet Middendorf 1992a-5
B1: Middendorf 1992a
A2: Subgroup: | B2: Compasion Basal Bark (with gloves) to Middendorf 1992b foliar study
B4: Untransformed. Below are links from the previous two worksheets | F4: Log transformed.
B5: Basal with Gloves | C5: Directed Foliar (Sites 1, 2, and 4) | F5: Basal with Gloves | G5: Directed Foliar (Sites 1, 2, and 4) | L5: Untransformed
B6: ='Middendorf 1992a-2'!B24 -> 0.0001484831871 | C6: ='Middendorf 1992b-1'!B24 -> 0.004246175004 | F6: =LOG10(B6) -> -3.828322719 | G6: =LOG10(C6) -> -2.372002111 | L6: t-Test: Two-Sample Assuming Unequal Variances
B7: ='Middendorf 1992a-2'!B25 -> 0.0006477591036 | C7: ='Middendorf 1992b-1'!B25 -> 0.002521345482 | F7: =LOG10(B7) -> -3.188586475 | G7: =LOG10(C7) -> -2.598367642
B8: ='Middendorf 1992a-2'!B26 -> 0.001558029328 | C8: ='Middendorf 1992b-1'!B26 -> 0.001048650507 | F8: -2.807424372 | G8: -2.979369229 | M8: Basal with Gloves | N8: Directed Foliar (Sites 1, 2, and 4) | Q8: Factor
B9: ='Middendorf 1992a-2'!B27 -> 0.005060664112 | C9: ='Middendorf 1992b-1'!B27 -> 0.003873703513 | F9: -2.295792487 | G9: -2.411873623 | L9: Mean | M9: 0.001869797515 | N9: 0.01477699911 | Q9: =N9/M9 -> 7.902994306
B10: ='Middendorf 1992a-2'!B28 -> 0.001361650485 | C10: ='Middendorf 1992b-1'!B28 -> 0.008360552404 | F10: -2.865934355 | G10: -2.077765027 | L10: Variance | M10: 2.469355871e-06 | N10: 0.0003329826815
B11: ='Middendorf 1992a-2'!B29 -> 0.003881401617 | C11: ='Middendorf 1992b-1'!B29 -> 0.004441527185 | F11: -2.411011418 | G11: -2.352467675 | L11: Observations | M11: 10 | N11: 22
B12: ='Middendorf 1992a-2'!B30 -> 0.002580468905 | C12: ='Middendorf 1992b-1'!B30 -> 0.00487911607 | F12: -2.58830137 | G12: -2.31165885 | L12: Hypothesized Mean Difference | M12: 0
B13: ='Middendorf 1992a-2'!B31 -> 0.001850288099 | C13: ='Middendorf 1992b-1'!B31 -> 0.004255551909 | F13: -2.732760645 | G13: -2.371044108 | L13: df | M13: 22
B14: ='Middendorf 1992a-2'!B32 -> 0.001257189492 | C14: ='Middendorf 1992b-1'!B32 -> 0.03660978011 | F14: -2.900599258 | G14: -1.43640288 | L14: t Stat | M14: -3.290928614
B15: ='Middendorf 1992a-2'!B33 -> 0.0003520408163 | C15: ='Middendorf 1992b-1'!B33 -> 0.002045728039 | F15: -3.453406981 | G15: -2.689152102 | L15: P(T<=t) one-tail | M15: 0.001666504297
C16: ='Middendorf 1992b-1'!B34 -> 0.0115195274 | G16: -1.938565338 | L16: t Critical one-tail | M16: 1.717144335
C17: ='Middendorf 1992b-1'!B35 -> 0.06609936393 | G17: -1.17980272 | L17: P(T<=t) two-tail | M17: 0.003333008595
C18: ='Middendorf 1992b-1'!B36 -> 0.02304452467 | G18: -1.637432245 | L18: t Critical two-tail | M18: 2.073873058
C19: ='Middendorf 1992b-1'!B37 -> 0.01037476362 | G19: -1.984021789
C20: ='Middendorf 1992b-1'!B38 -> 0.007735946364 | G20: -2.11148655
C21: ='Middendorf 1992b-1'!B39 -> 0.05933470861 | G21: -1.226691186 | L21: Transformed
C22: ='Middendorf 1992b-1'!B40 -> 0.006046931408 | G22: -2.218464958 | L22: t-Test: Two-Sample Assuming Unequal Variances
C23: ='Middendorf 1992b-1'!B41 -> 0.01380755003 | G23: -1.859883375
C24: ='Middendorf 1992b-1'!B42 -> 0.01724829523 | G24: -1.763253823 | M24: Basal with Gloves | N24: Directed Foliar (Sites 1, 2, and 4)
C25: ='Middendorf 1992b-1'!B43 -> 0.00218571183 | G25: -2.660407097 | L25: Mean | M25: -2.907214008 | N25: -2.096806685
C26: ='Middendorf 1992b-1'!B44 -> 0.003520969827 | G26: -2.453337697 | L26: Variance | M26: 0.2210929729 | N26: 0.2387685556
C27: ='Middendorf 1992b-1'!B45 -> 0.03189355728 | G27: -1.496297039 | L27: Observations | M27: 10 | N27: 22
L28: Hypothesized Mean Difference | M28: 0
L29: df | M29: 18
L30: t Stat | M30: -4.463688253
L31: P(T<=t) one-tail | M31: 0.0001500545866
L32: t Critical one-tail | M32: 1.734063592
L33: P(T<=t) two-tail | M33: 0.0003001091731
L34: t Critical two-tail | M34: 2.100922037

Sheet Middendorf 1992b-1
B1: Middendorf 1992b
A2: Subgroup: | B2: All workers, all sites
C3: Confidence Intervals
C4: Arithmetic | G4: Geometric (Log10)
C5: Mean | D5: Lower Limit | E5: Upper Limit | G5: Mean | H5: Lower Limit | I5: Upper Limit
C6: =IF(C15>0,AVERAGE(B24:B68), "") -> 0.01477699911 | D6: =IF(C15>1, C6-C20, "") -> 0.006684869732 | E6: =IF(C15>1, C6+C20, "") -> 0.02286912849 | F6: Inverse log | G6: =IF(C15>0, 10^G7, "") -> 0.008001903606 | H6: =IF(C15>1,10^H7, "") -> 0.00485850296 | I6: =IF(C15>1, 10^I7, "") -> 0.01317905162
F7: Log | G7: =IF(C15>0, AVERAGE(G24:G68), "") -> -2.096806685 | H7: =IF(C15>1, G7-G20, "") -> -2.313497528 | I7: =IF(C15>1, G7+G20, "") -> -1.880115841
C9: Prediction Intervals
C10: Arithmetic | G10: Geometric (Log10) | R10: For ANOVA
C11: Mean | D11: Lower Limit | E11: Upper Limit | G11: Mean | H11: Lower Limit | I11: Upper Limit | Q11: =$O$35 -> Site 3 | R11: =$O$24 -> Site 1 | S11: =$O$29 -> Site 2 | T11: =$O$40 -> Site 4
C12: =IF(C15>0,AVERAGE(B24:B68), "") -> 0.01477699911 | D12: =IF(C15>1, C12-C21, "") -> -0.02403149005 | E12: =IF(C15>1, C12+C21, "") -> 0.05358548827 | F12: Inverse log | G12: =IF($C$15>0, 10^G13, "") -> 0.008001903606 | H12: =IF($C$15>0, 10^H13, "") -> 0.0007311063165 | I12: 0.08758023268 | Q12: =U35 -> 0.06609936393 | R12: =U24 -> 0.004246175004 | S12: =U29 -> 0.004441527185 | T12: =U40 -> 0.006046931408 | W12: Anova: Single Factor for all four group.
F13: Log | G13: =IF(C15>0, AVERAGE(G24:G68), "") -> -2.096806685 | H13: =IF(C15>1, G13-G21, "") -> -3.136019464 | I13: =IF(C15>1, G13+G21, "") -> -1.057593905 | L13: ='t-values'!A3 -> 95% Confidence Interval | Q13: =U36 -> 0.02304452467 | R13: =U25 -> 0.002521345482 | S13: 0.00487911607 | T13: 0.01380755003
Q14: =U37 -> 0.01037476362 | R14: =U26 -> 0.001048650507 | S14: 0.004255551909 | T14: 0.01724829523 | W14: SUMMARY
B15: n: | C15: =COUNTA(B24:B68) -> 22 | L15: ='t-values'!A4 -> alpha = 0.025 | Q15: =U38 -> 0.007735946364 | R15: =U27 -> 0.003873703513 | S15: 0.03660978011 | T15: 0.00218571183 | W15: Groups | X15: Count | Y15: Sum | Z15: Average | AA15: Variance
B16: SSE: | C16: =IF(C15>0, SUM(C24:C68), "") -> 0.006992636311 | D16: Check | F16: SSE: | G16: =IF(C15>0, SUM(H24:H68), "") -> 5.014139667 | H16: Check | L16: ='t-values'!A5 -> n | M16: ='t-values'!B5 -> t-value | Q16: =U39 -> 0.05933470861 | R16: =U28 -> 0.008360552404 | S16: 0.002045728039 | T16: 0.003520969827 | W16: Site 1 | X16: 5 | Y16: 0.02005042691 | Z16: 0.004010085382 | AA16: 7.49683616e-06
B17: Variance (s2): | C17: =IF(C15>1, C16/(C15-1), "") -> 0.0003329826815 | D17: =IF(C15>1, VAR(B24:B68), "") -> 0.0003329826815 | E17: =IF(C15>1, C17-D17, "") -> -5.421010862e-20 | F17: Variance (s2): | G17: =IF(C15>1, G16/(C15-1), "") -> 0.2387685556 | H17: =IF(C15>1, VAR(G24:G68), "") -> 0.2387685556 | I17: =IF(C15>1, G17-H17, "") -> -8.326672685e-16 | L17: ='t-values'!A6 -> 2 | M17: ='t-values'!B6 -> 12.706 | S17: 0.0115195274 | T17: 0.03189355728 | W17: Site 2 | X17: 6 | Y17: 0.06375123072 | Z17: 0.01062520512 | AA17: 0.0001722866542
B18: Std Dev (s): | C18: =IF(C15>1, C17^0.5, "") -> 0.01824781306 | D18: =IF(C15>1, STDEV(B24:B68), "") -> 0.01824781306 | E18: =IF(C15>1, C18-D18, "") -> 0 | F18: Std Dev (s): | G18: =IF(C15>1, G17^0.5, "") -> 0.4886394945 | H18: =IF(C15>1, STDEV(G24:G31), "") -> 0.2622045271 | I18: =IF(C15>1, G18-H18, "") -> 0.2264349674 | L18: ='t-values'!A7 -> 3 | M18: ='t-values'!B7 -> 4.303 | W18: Site 3 | X18: 5 | Y18: 0.1665893072 | Z18: 0.03331786144 | AA18: 0.0007594662018
B19: t-value: | C19: =IF(C15>1, IF(C15<31, OFFSET(M16, C15-1, 0), 1.96), "") -> 2.08 | F19: t-value: | G19: =C19 -> 2.08 | L19: ='t-values'!A8 -> 4 | M19: ='t-values'!B8 -> 3.182 | W19: Site 4 | X19: 6 | Y19: 0.0747030156 | Z19: 0.0124505026 | AA19: 0.0001258001952
B20: Conf. Interval Factor: | C20: =IF(C15>1, C19*C18/(C15^0.5), "") -> 0.008092129378 | D20: t x s / n0.5 | F20: Conf. Interval Factor: | G20: =IF(C15>1, G19*G18/(C15^0.5), "") -> 0.2166908438 | H20: t x s / n0.5 | L20: ='t-values'!A9 -> 5 | M20: ='t-values'!B9 -> 2.776
B21: Pred. Interal Factor: | C21: =IF(C15>1, C19*C18*(1+(1/C15))^0.5, "") -> 0.03880848916 | D21: t x s x (1+ 1/n)0.5 | F21: Pred. Interal Factor: | G21: =IF(C15>1, G19*G18*((1+(1/C15))^0.5), "") -> 1.039212779 | H21: t x s x (1+ 1/n)0.5 | L21: ='t-values'!A10 -> 6 | M21: ='t-values'!B10 -> 2.571
A22: RAW DATA (only enter data under Identifier and Rate. Everything else is a link.) | L22: ='t-values'!A11 -> 7 | M22: ='t-values'!B11 -> 2.447 | O22: Site | P22: Worker | Q22: Dose | R22: Amount | S22: Assumed | T22: Dose | U22: Rate | W22: ANOVA
A23: Identifier | B23: Rate | C23: (x - xbar)2 | D23: n | G23: Log Rate | H23: (x - xbar)2 | L23: ='t-values'!A12 -> 8 | M23: ='t-values'!B12 -> 2.365 | O23: ID | P23: ID | Q23: Ug | R23: lb | S23: BW (kg) | T23: mg/kg bw | U23: mg/kg per lb | W23: Source of Variation | X23: SS | Y23: df | Z23: MS | AA23: F | AB23: P-value | AC23: F crit
A24: =P24 -> WT | B24: =U24 -> 0.004246175004 | C24: =IF(ISBLANK(B24)=FALSE, ($C$6-B24)^2, "") -> 0.0001108982564 | D24: 1 | G24: =IF(ISBLANK(B24)=FALSE,LOG10(B24), "") -> -2.372002111 | H24: =IF(ISBLANK(B24)=FALSE, ($G$7-G24)^2, "") -> 0.07573252245 | L24: ='t-values'!A13 -> 9 | M24: ='t-values'!B13 -> 2.306 | O24: Site 1 | P24: WT | Q24: 741 | R24: 2.1 | S24: 83.1 | T24: =(Q24/1000)/S24 -> 0.008916967509 | U24: =T24/R24 -> 0.004246175004 | W24: Between Groups | X24: 0.002434349912 | Y24: 3 | Z24: 0.0008114499707 | AA24: 3.204296131 | AB24: 0.04803932554 | AC24: 3.159907598
A25: MH | B25: 0.002521345482 | C25: =IF(ISBLANK(B25)=FALSE, ($C$6-B25)^2, "") -> 0.0001502010459 | D25: =D24+1 -> 2 | G25: =IF(ISBLANK(B25)=FALSE,LOG10(B25), "") -> -2.598367642 | H25: =IF(ISBLANK(B25)=FALSE, ($G$7-G25)^2, "") -> 0.251563394 | L25: ='t-values'!A14 -> 10 | M25: ='t-values'!B14 -> 2.262 | O25: Site 1 | P25: MH | Q25: 440 | R25: 2.1 | S25: 83.1 | T25: =(Q25/1000)/S25 -> 0.005294825511 | U25: =T25/R25 -> 0.002521345482 | W25: Within Groups | X25: 0.004558286399 | Y25: 18 | Z25: 0.0002532381333
A26: JF | B26: 0.001048650507 | C26: 0.0001884675554 | D26: =D25+1 -> 3 | G26: -2.979369229 | H26: 0.7789166444 | L26: ='t-values'!A15 -> 11 | M26: ='t-values'!B15 -> 2.228 | O26: Site 1 | P26: JF | Q26: 183 | R26: 2.1 | S26: 83.1 | T26: 0.002202166065 | U26: 0.001048650507
A27: JDA | B27: 0.003873703513 | C27: 0.0001188818549 | D27: 4 | G27: -2.411873623 | H27: 0.09926717539 | L27: ='t-values'!A16 -> 12 | M27: ='t-values'!B16 -> 2.201 | O27: Site 1 | P27: JDA | Q27: 676 | R27: 2.1 | S27: 83.1 | T27: 0.008134777377 | U27: 0.003873703513 | W27: Total | X27: 0.006992636311 | Y27: 21
A28: CWH | B28: 0.008360552404 | C28: 4.117078834e-05 | D28: 5 | G28: -2.077765027 | H28: 0.0003625847393 | L28: ='t-values'!A17 -> 13 | M28: ='t-values'!B17 -> 2.179 | O28: Site 1 | P28: CWH | Q28: 1459 | R28: 2.1 | S28: 83.1 | T28: 0.01755716005 | U28: 0.008360552404
A29: MEC | B29: 0.004441527185 | C29: 0.0001068219799 | D29: 6 | G29: -2.352467675 | H29: 0.06536254219 | L29: ='t-values'!A18 -> 14 | M29: ='t-values'!B18 -> 2.16 | O29: Site 2 | P29: MEC | Q29: 812 | R29: 2.2 | S29: 83.1 | T29: 0.009771359807 | U29: 0.004441527185 | W29: Anova: Single Factor - Groups 1, 2, and 4.
A30: TRH | B30: 0.00487911607 | C30: 9.796808867e-05 | D30: 7 | G30: -2.31165885 | H30: 0.04616145307 | L30: ='t-values'!A19 -> 15 | M30: ='t-values'!B19 -> 2.145 | O30: Site 2 | P30: TRH | Q30: 892 | R30: 2.2 | S30: 83.1 | T30: 0.01073405535 | U30: 0.00487911607
A31: RVA | B31: 0.004255551909 | C31: 0.0001107008512 | D31: 8 | G31: -2.371044108 | H31: 0.07520616417 | L31: ='t-values'!A20 -> 16 | M31: ='t-values'!B20 -> 2.131 | O31: Site 2 | P31: RVA | Q31: 778 | R31: 2.2 | S31: 83.1 | T31: 0.0093622142 | U31: 0.004255551909 | W31: SUMMARY
A32: LJK | B32: 0.03660978011 | C32: 0.0004766703262 | D32: 9 | G32: -1.43640288 | H32: 0.4361331857 | L32: ='t-values'!A21 -> 17 | M32: ='t-values'!B21 -> 2.12 | O32: Site 2 | P32: LJK | Q32: 6693 | R32: 2.2 | S32: 83.1 | T32: 0.08054151625 | U32: 0.03660978011 | W32: Groups | X32: Count | Y32: Sum | Z32: Average | AA32: Variance
A33: WHS | B33: 0.002045728039 | C33: 0.0001620852631 | D33: 10 | G33: -2.689152102 | H33: 0.350873094 | L33: ='t-values'!A22 -> 18 | M33: ='t-values'!B22 -> 2.11 | O33: Site 2 | P33: WHS | Q33: 374 | R33: 2.2 | S33: 83.1 | T33: 0.004500601685 | U33: 0.002045728039 | W33: Site 1 | X33: 5 | Y33: 0.02005042691 | Z33: 0.004010085382 | AA33: 7.49683616e-06
A34: SGG | B34: 0.0115195274 | C34: 1.061112192e-05 | D34: 11 | G34: -1.938565338 | H34: 0.02504032386 | L34: ='t-values'!A23 -> 19 | M34: ='t-values'!B23 -> 2.101 | O34: Site 2 | P34: SGG | Q34: 2106 | R34: 2.2 | S34: 83.1 | T34: 0.02534296029 | U34: 0.0115195274 | W34: Site 2 | X34: 6 | Y34: 0.06375123072 | Z34: 0.01062520512 | AA34: 0.0001722866542
A35: NM | B35: 0.06609936393 | C35: 0.002633985131 | D35: 12 | G35: -1.17980272 | H35: 0.8408962718 | L35: ='t-values'!A24 -> 20 | M35: ='t-values'!B24 -> 2.093 | O35: Site 3 | P35: NM | Q35: 7690 | R35: 1.4 | S35: 83.1 | T35: 0.09253910951 | U35: 0.06609936393 | W35: Site 4 | X35: 6 | Y35: 0.0747030156 | Z35: 0.0124505026 | AA35: 0.0001258001952
A36: RR | B36: 0.02304452467 | C36: 6.835197886e-05 | D36: 13 | G36: -1.637432245 | H36: 0.2110248753 | L36: ='t-values'!A25 -> 21 | M36: ='t-values'!B25 -> 2.086 | O36: Site 3 | P36: RR | Q36: 2681 | R36: 1.4 | S36: 83.1 | T36: 0.03226233454 | U36: 0.02304452467
A37: RH | B37: 0.01037476362 | C37: 1.937967728e-05 | D37: 14 | G37: -1.984021789 | H37: 0.0127204326 | L37: ='t-values'!A26 -> 22 | M37: ='t-values'!B26 -> 2.08 | O37: Site 3 | P37: RH | Q37: 1207 | R37: 1.4 | S37: 83.1 | T37: 0.01452466907 | U37: 0.01037476362
A38: MD | B38: 0.007735946364 | C38: 4.957642378e-05 | D38: 15 | G38: -2.11148655 | H38: 0.0002154984482 | L38: ='t-values'!A27 -> 23 | M38: ='t-values'!B27 -> 2.074 | O38: Site 3 | P38: MD | Q38: 900 | R38: 1.4 | S38: 83.1 | T38: 0.01083032491 | U38: 0.007735946364 | W38: ANOVA
A39: JJ | B39: 0.05933470861 | C39: 0.001985389476 | D39: 16 | G39: -1.226691186 | H39: 0.7571009808 | L39: ='t-values'!A28 -> 24 | M39: ='t-values'!B28 -> 2.069 | O39: Site 3 | P39: JJ | Q39: 6903 | R39: 1.4 | S39: 83.1 | T39: 0.08306859206 | U39: 0.05933470861 | W39: Source of Variation | X39: SS | Y39: df | Z39: MS | AA39: F | AB39: P-value | AC39: F crit
A40: G | B40: 0.006046931408 | C40: 7.621408209e-05 | D40: 17 | G40: -2.218464958 | H40: 0.01480073541 | L40: ='t-values'!A29 -> 25 | M40: ='t-values'!B29 -> 2.064 | O40: Site 4 | P40: G | Q40: 603 | R40: 1.2 | S40: 83.1 | T40: 0.00725631769 | U40: 0.006046931408 | W40: Between Groups | X40: 0.0002099973618 | Y40: 2 | Z40: 0.0001049986809 | AA40: 0.9668249521 | AB40: 0.4042866082 | AC40: 3.738891832
A41: H | B41: 0.01380755003 | C41: 9.398315217e-07 | D41: 18 | G41: -1.859883375 | H41: 0.05613265487 | L41: ='t-values'!A30 -> 26 | M41: ='t-values'!B30 -> 2.06 | O41: Site 4 | P41: H | Q41: 1549 | R41: 1.35 | S41: 83.1 | T41: 0.01864019254 | U41: 0.01380755003 | W41: Within Groups | X41: 0.001520421592 | Y41: 14 | Z41: 0.0001086015423
A42: I | B42: 0.01724829523 | C42: 6.107304494e-06 | D42: 19 | G42: -1.763253823 | H42: 0.1112575115 | L42: ='t-values'!A31 -> 27 | M42: ='t-values'!B31 -> 2.056 | O42: Site 4 | P42: I | Q42: 1720 | R42: 1.2 | S42: 83.1 | T42: 0.02069795427 | U42: 0.01724829523
A43: J | B43: 0.00218571183 | C43: 0.0001585405154 | D43: 20 | G43: -2.660407097 | H43: 0.317645425 | L43: ='t-values'!A32 -> 28 | M43: ='t-values'!B32 -> 2.052 | O43: Site 4 | P43: J | Q43: 267 | R43: 1.47 | S43: 83.1 | T43: 0.00321299639 | U43: 0.00218571183 | W43: Total | X43: 0.001730418954 | Y43: 16
A44: K | B44: 0.003520969827 | C44: 0.0001266981952 | D44: 21 | G44: -2.453337697 | H44: 0.1271143625 | L44: ='t-values'!A33 -> 29 | M44: ='t-values'!B33 -> 2.048 | O44: Site 4 | P44: K | Q44: 474 | R44: 1.62 | S44: 83.1 | T44: 0.005703971119 | U44: 0.003520969827
A45: L | B45: 0.03189355728 | C45: 0.0002929765636 | D45: 22 | G45: -1.496297039 | H45: 0.360611835 | L45: ='t-values'!A34 -> 30 | M45: ='t-values'!B34 -> 2.045 | O45: Site 4 | P45: L | Q45: 3737 | R45: 1.41 | S45: 83.1 | T45: 0.04496991576 | U45: 0.03189355728
D46: 23 | L46: ='t-values'!A35 -> ∞ | M46: ='t-values'!B35 -> 1.96
D47: 24
D48: 25
D49: 26
D50: 27
D51: 28
D52: 29
D53: 30
D54: 31
D55: 32
D56: 33
D57: 34
D58: 35
D59: 36
D60: 37
D61: 38
D62: 39
D63: 40
D64: 41
D65: 42
D66: 43
D67: 44
D68: 45
A69: NOTE: If there are more than 45 items, insert additional cellss in the middle of the data area. The formulae should update correctly but check.

Sheet Middendorf 1992b-2
B1: Middendorf 1992b
A2: Subgroup: | B2: Sites 1, 2, and 4 (medium to low brush height)
C3: Confidence Intervals
C4: Arithmetic | G4: Geometric (Log10)
C5: Mean | D5: Lower Limit | E5: Upper Limit | G5: Mean | H5: Lower Limit | I5: Upper Limit
C6: =IF(C15>0,AVERAGE(B24:B68), "") -> 0.01083969185 | D6: =IF(C15>1, C6-C20, "") -> 0.004889312674 | E6: =IF(C15>1, C6+C20, "") -> 0.01679007103 | F6: Inverse log | G6: =IF(C15>0, 10^G7, "") -> 0.006450998181 | H6: =IF(C15>1,10^H7, "") -> 0.003845137259 | I6: =IF(C15>1, 10^I7, "") -> 0.01082285877
F7: Log | G7: =IF(C15>0, AVERAGE(G24:G68), "") -> -2.190373081 | H7: =IF(C15>1, G7-G20, "") -> -2.415088153 | I7: =IF(C15>1, G7+G20, "") -> -1.965658009
C9: Prediction Intervals
C10: Arithmetic | G10: Geometric (Log10)
C11: Mean | D11: Lower Limit | E11: Upper Limit | G11: Mean | H11: Lower Limit | I11: Upper Limit
C12: =IF(C15>0,AVERAGE(B24:B68), "") -> 0.01083969185 | D12: =IF(C15>1, C12-C21, "") -> -0.01509740966 | E12: =IF(C15>1, C12+C21, "") -> 0.03677679337 | F12: Inverse log | G12: =IF($C$15>0, 10^G13, "") -> 0.006450998181 | H12: =IF($C$15>0, 10^H13, "") -> 0.000676264561 | I12: 0.06153712604
F13: Log | G13: =IF(C15>0, AVERAGE(G24:G68), "") -> -2.190373081 | H13: =IF(C15>1, G13-G21, "") -> -3.169883371 | I13: =IF(C15>1, G13+G21, "") -> -1.21086279 | L13: ='t-values'!A3 -> 95% Confidence Interval
B15: n: | C15: =COUNTA(B24:B68) -> 18 | L15: ='t-values'!A4 -> alpha = 0.025
B16: SSE: | C16: =IF(C15>0, SUM(C24:C68), "") -> 0.002433580958 | D16: Check | F16: SSE: | G16: =IF(C15>0, SUM(H24:H68), "") -> 3.470730726 | H16: Check | L16: ='t-values'!A5 -> n | M16: ='t-values'!B5 -> t-value
B17: Variance (s2): | C17: =IF(C15>1, C16/(C15-1), "") -> 0.0001431518211 | D17: =IF(C15>1, VAR(B24:B68), "") -> 0.0001431518211 | E17: =IF(C15>1, C17-D17, "") -> 5.421010862e-20 | F17: Variance (s2): | G17: =IF(C15>1, G16/(C15-1), "") -> 0.2041606309 | H17: =IF(C15>1, VAR(G24:G68), "") -> 0.2041606309 | I17: =IF(C15>1, G17-H17, "") -> -7.494005416e-16 | L17: ='t-values'!A6 -> 2 | M17: ='t-values'!B6 -> 12.706
B18: Std Dev (s): | C18: =IF(C15>1, C17^0.5, "") -> 0.01196460702 | D18: =IF(C15>1, STDEV(B24:B68), "") -> 0.01196460702 | E18: =IF(C15>1, C18-D18, "") -> 1.734723476e-18 | F18: Std Dev (s): | G18: =IF(C15>1, G17^0.5, "") -> 0.4518413781 | H18: =IF(C15>1, STDEV(G24:G31), "") -> 0.2622045271 | I18: =IF(C15>1, G18-H18, "") -> 0.189636851 | L18: ='t-values'!A7 -> 3 | M18: ='t-values'!B7 -> 4.303
B19: t-value: | C19: =IF(C15>1, IF(C15<31, OFFSET(M16, C15-1, 0), 1.96), "") -> 2.11 | F19: t-value: | G19: =C19 -> 2.11 | L19: ='t-values'!A8 -> 4 | M19: ='t-values'!B8 -> 3.182
B20: Conf. Interval Factor: | C20: =IF(C15>1, C19*C18/(C15^0.5), "") -> 0.005950379179 | D20: t x s / n0.5 | F20: Conf. Interval Factor: | G20: =IF(C15>1, G19*G18/(C15^0.5), "") -> 0.2247150721 | H20: t x s / n0.5 | L20: ='t-values'!A9 -> 5 | M20: ='t-values'!B9 -> 2.776
B21: Pred. Interal Factor: | C21: =IF(C15>1, C19*C18*(1+(1/C15))^0.5, "") -> 0.02593710152 | D21: t x s x (1+ 1/n)0.5 | F21: Pred. Interal Factor: | G21: =IF(C15>1, G19*G18*((1+(1/C15))^0.5), "") -> 0.9795102902 | H21: t x s x (1+ 1/n)0.5 | L21: ='t-values'!A10 -> 6 | M21: ='t-values'!B10 -> 2.571
A22: RAW DATA (only enter data under Identifier and Rate. Everything else is a link.) | L22: ='t-values'!A11 -> 7 | M22: ='t-values'!B11 -> 2.447 | O22: Site | P22: Worker | Q22: Dose | R22: Amount | S22: Assumed | T22: Dose | U22: Rate
A23: Identifier | B23: Rate | C23: (x - xbar)2 | D23: n | G23: Log Rate | H23: (x - xbar)2 | L23: ='t-values'!A12 -> 8 | M23: ='t-values'!B12 -> 2.365 | O23: ID | P23: ID | Q23: Ug | R23: lb | S23: BW (kg) | T23: mg/kg bw | U23: mg/kg per lb
A24: =P24 -> WT | B24: =U24 -> 0.004246175004 | C24: =IF(ISBLANK(B24)=FALSE, ($C$6-B24)^2, "") -> 4.347446442e-05 | D24: 1 | G24: =IF(ISBLANK(B24)=FALSE,LOG10(B24), "") -> -2.372002111 | H24: =IF(ISBLANK(B24)=FALSE, ($G$7-G24)^2, "") -> 0.03298910452 | L24: ='t-values'!A13 -> 9 | M24: ='t-values'!B13 -> 2.306 | O24: Site 1 | P24: WT | Q24: 741 | R24: 2.1 | S24: 83.1 | T24: =(Q24/1000)/S24 -> 0.008916967509 | U24: =T24/R24 -> 0.004246175004
A25: MH | B25: 0.002521345482 | C25: =IF(ISBLANK(B25)=FALSE, ($C$6-B25)^2, "") -> 6.919488634e-05 | D25: =D24+1 -> 2 | G25: =IF(ISBLANK(B25)=FALSE,LOG10(B25), "") -> -2.598367642 | H25: =IF(ISBLANK(B25)=FALSE, ($G$7-G25)^2, "") -> 0.1664595622 | L25: ='t-values'!A14 -> 10 | M25: ='t-values'!B14 -> 2.262 | O25: Site 1 | P25: MH | Q25: 440 | R25: 2.1 | S25: 83.1 | T25: =(Q25/1000)/S25 -> 0.005294825511 | U25: =T25/R25 -> 0.002521345482
A26: JF | B26: 0.001048650507 | C26: 9.586449062e-05 | D26: =D25+1 -> 3 | G26: -2.979369229 | H26: 0.6225149219 | L26: ='t-values'!A15 -> 11 | M26: ='t-values'!B15 -> 2.228 | O26: Site 1 | P26: JF | Q26: 183 | R26: 2.1 | S26: 83.1 | T26: 0.002202166065 | U26: 0.001048650507
A27: JDA | B27: 0.003873703513 | C27: 4.852499355e-05 | D27: 4 | G27: -2.411873623 | H27: 0.0490624901 | L27: ='t-values'!A16 -> 12 | M27: ='t-values'!B16 -> 2.201 | O27: Site 1 | P27: JDA | Q27: 676 | R27: 2.1 | S27: 83.1 | T27: 0.008134777377 | U27: 0.003873703513
A28: CWH | B28: 0.008360552404 | C28: 6.146132404e-06 | D28: 5 | G28: -2.077765027 | H28: 0.01268057382 | L28: ='t-values'!A17 -> 13 | M28: ='t-values'!B17 -> 2.179 | O28: Site 1 | P28: CWH | Q28: 1459 | R28: 2.1 | S28: 83.1 | T28: 0.01755716005 | U28: 0.008360552404
A29: MEC | B29: 0.004441527185 | C29: 4.093651111e-05 | D29: 6 | G29: -2.352467675 | H29: 0.02627465765 | L29: ='t-values'!A18 -> 14 | M29: ='t-values'!B18 -> 2.16 | O29: Site 2 | P29: MEC | Q29: 812 | R29: 2.2 | S29: 83.1 | T29: 0.009771359807 | U29: 0.004441527185
A30: TRH | B30: 0.00487911607 | C30: 3.552846365e-05 | D30: 7 | G30: -2.31165885 | H30: 0.01471023792 | L30: ='t-values'!A19 -> 15 | M30: ='t-values'!B19 -> 2.145 | O30: Site 2 | P30: TRH | Q30: 892 | R30: 2.2 | S30: 83.1 | T30: 0.01073405535 | U30: 0.00487911607
A31: RVA | B31: 0.004255551909 | C31: 4.335089879e-05 | D31: 8 | G31: -2.371044108 | H31: 0.03264202001 | L31: ='t-values'!A20 -> 16 | M31: ='t-values'!B20 -> 2.131 | O31: Site 2 | P31: RVA | Q31: 778 | R31: 2.2 | S31: 83.1 | T31: 0.0093622142 | U31: 0.004255551909
A32: LJK | B32: 0.03660978011 | C32: 0.0006640974489 | D32: 9 | G32: -1.43640288 | H32: 0.568471064 | L32: ='t-values'!A21 -> 17 | M32: ='t-values'!B21 -> 2.12 | O32: Site 2 | P32: LJK | Q32: 6693 | R32: 2.2 | S32: 83.1 | T32: 0.08054151625 | U32: 0.03660978011
A33: WHS | B33: 0.002045728039 | C33: 7.733379956e-05 | D33: 10 | G33: -2.689152102 | H33: 0.2487805126 | L33: ='t-values'!A22 -> 18 | M33: ='t-values'!B22 -> 2.11 | O33: Site 2 | P33: WHS | Q33: 374 | R33: 2.2 | S33: 83.1 | T33: 0.004500601685 | U33: 0.002045728039
A34: SGG | B34: 0.0115195274 | C34: 4.621763775e-07 | D34: 11 | G34: -1.938565338 | H34: 0.06340713935 | L34: ='t-values'!A23 -> 19 | M34: ='t-values'!B23 -> 2.101 | O34: Site 2 | P34: SGG | Q34: 2106 | R34: 2.2 | S34: 83.1 | T34: 0.02534296029 | U34: 0.0115195274
A35: G | B35: 0.006046931408 | C35: 2.297055268e-05 | D35: 12 | G35: -2.218464958 | H35: 0.0007891535589 | L35: ='t-values'!A24 -> 20 | M35: ='t-values'!B24 -> 2.093 | O35: Site 4 | P35: G | Q35: 603 | R35: 1.2 | S35: 83.1 | T35: 0.00725631769 | U35: 0.006046931408
A36: H | B36: 0.01380755003 | C36: 8.808182157e-06 | D36: 13 | G36: -1.859883375 | H36: 0.1092234458 | L36: ='t-values'!A25 -> 21 | M36: ='t-values'!B25 -> 2.086 | O36: Site 4 | P36: H | Q36: 1549 | R36: 1.35 | S36: 83.1 | T36: 0.01864019254 | U36: 0.01380755003
A37: I | B37: 0.01724829523 | C37: 4.107019721e-05 | D37: 14 | G37: -1.763253823 | H37: 0.1824308603 | L37: ='t-values'!A26 -> 22 | M37: ='t-values'!B26 -> 2.08 | O37: Site 4 | P37: I | Q37: 1720 | R37: 1.2 | S37: 83.1 | T37: 0.02069795427 | U37: 0.01724829523
A38: J | B38: 0.00218571183 | C38: 7.489137023e-05 | D38: 15 | G38: -2.660407097 | H38: 0.2209319767 | L38: ='t-values'!A27 -> 23 | M38: ='t-values'!B27 -> 2.074 | O38: Site 4 | P38: J | Q38: 267 | R38: 1.47 | S38: 83.1 | T38: 0.00321299639 | U38: 0.00218571183
A39: K | B39: 0.003520969827 | C39: 5.356369209e-05 | D39: 16 | G39: -2.453337697 | H39: 0.0691503893 | L39: ='t-values'!A28 -> 24 | M39: ='t-values'!B28 -> 2.069 | O39: Site 4 | P39: K | Q39: 474 | R39: 1.62 | S39: 83.1 | T39: 0.005703971119 | U39: 0.003520969827
A40: L | B40: 0.03189355728 | C40: 0.0004432652494 | D40: 17 | G40: -1.496297039 | H40: 0.4817415521 | L40: ='t-values'!A29 -> 25 | M40: ='t-values'!B29 -> 2.064 | O40: Site 4 | P40: L | Q40: 3737 | R40: 1.41 | S40: 83.1 | T40: 0.04496991576 | U40: 0.03189355728
B41: 0.03660978011 | C41: 0.0006640974489 | D41: 18 | G41: -1.43640288 | H41: 0.568471064 | L41: ='t-values'!A30 -> 26 | M41: ='t-values'!B30 -> 2.06 | T41: Max: | U41: =MAX(U24:U40) -> 0.03660978011
D42: 19 | L42: ='t-values'!A31 -> 27 | M42: ='t-values'!B31 -> 2.056
D43: 20 | L43: ='t-values'!A32 -> 28 | M43: ='t-values'!B32 -> 2.052
D44: 21 | L44: ='t-values'!A33 -> 29 | M44: ='t-values'!B33 -> 2.048
D45: 22 | L45: ='t-values'!A34 -> 30 | M45: ='t-values'!B34 -> 2.045
D46: 23 | L46: ='t-values'!A35 -> ∞ | M46: ='t-values'!B35 -> 1.96
D47: 24
D48: 25
D49: 26
D50: 27
D51: 28
D52: 29
D53: 30
D54: 31
D55: 32
D56: 33
D57: 34
D58: 35
D59: 36
D60: 37
D61: 38
D62: 39
D63: 40
D64: 41
D65: 42
D66: 43
D67: 44
D68: 45
A69: NOTE: If there are more than 45 items, insert additional cellss in the middle of the data area. The formulae should update correctly but check.

Sheet Middendorf 1992b-3
B1: Middendorf 1992b
A2: Subgroup: | B2: Site 3, high bush height and poor PPE
C3: Confidence Intervals
C4: Arithmetic | G4: Geometric (Log10)
C5: Mean | D5: Lower Limit | E5: Upper Limit | G5: Mean | H5: Lower Limit | I5: Upper Limit
C6: =IF(C15>0,AVERAGE(B24:B68), "") -> 0.03331786144 | D6: =IF(C15>1, C6-C20, "") -> -0.000894943815 | E6: =IF(C15>1, C6+C20, "") -> 0.0675306667 | F6: Inverse log | G6: =IF(C15>0, 10^G7, "") -> 0.02355662681 | H6: =IF(C15>1,10^H7, "") -> 0.006990042717 | I6: =IF(C15>1, 10^I7, "") -> 0.07938644861
F7: Log | G7: =IF(C15>0, AVERAGE(G24:G68), "") -> -1.627886898 | H7: =IF(C15>1, G7-G20, "") -> -2.15552017 | I7: =IF(C15>1, G7+G20, "") -> -1.100253626
C9: Prediction Intervals
C10: Arithmetic | G10: Geometric (Log10)
C11: Mean | D11: Lower Limit | E11: Upper Limit | G11: Mean | H11: Lower Limit | I11: Upper Limit
C12: =IF(C15>0,AVERAGE(B24:B68), "") -> 0.03331786144 | D12: =IF(C15>1, C12-C21, "") -> -0.0504860541 | E12: =IF(C15>1, C12+C21, "") -> 0.117121777 | F12: Inverse log | G12: =IF($C$15>0, 10^G13, "") -> 0.02355662681 | H12: =IF($C$15>0, 10^H13, "") -> 0.001201381151 | I12: 0.4618972641
F13: Log | G13: =IF(C15>0, AVERAGE(G24:G68), "") -> -1.627886898 | H13: =IF(C15>1, G13-G21, "") -> -2.920319186 | I13: =IF(C15>1, G13+G21, "") -> -0.3354546101 | L13: ='t-values'!A3 -> 95% Confidence Interval
B15: n: | C15: =COUNTA(B24:B68) -> 5 | L15: ='t-values'!A4 -> alpha = 0.025
B16: SSE: | C16: =IF(C15>0, SUM(C24:C68), "") -> 0.003037864807 | D16: Check | F16: SSE: | G16: =IF(C15>0, SUM(H24:H68), "") -> 0.7225292281 | H16: Check | L16: ='t-values'!A5 -> n | M16: ='t-values'!B5 -> t-value
B17: Variance (s2): | C17: =IF(C15>1, C16/(C15-1), "") -> 0.0007594662018 | D17: =IF(C15>1, VAR(B24:B68), "") -> 0.0007594662018 | E17: =IF(C15>1, C17-D17, "") -> -4.33680869e-19 | F17: Variance (s2): | G17: =IF(C15>1, G16/(C15-1), "") -> 0.180632307 | H17: =IF(C15>1, VAR(G24:G68), "") -> 0.180632307 | I17: =IF(C15>1, G17-H17, "") -> -1.665334537e-16 | L17: ='t-values'!A6 -> 2 | M17: ='t-values'!B6 -> 12.706
B18: Std Dev (s): | C18: =IF(C15>1, C17^0.5, "") -> 0.02755841436 | D18: =IF(C15>1, STDEV(B24:B68), "") -> 0.02755841436 | E18: =IF(C15>1, C18-D18, "") -> -6.938893904e-18 | F18: Std Dev (s): | G18: =IF(C15>1, G17^0.5, "") -> 0.4250085964 | H18: =IF(C15>1, STDEV(G24:G31), "") -> 0.4250085964 | I18: =IF(C15>1, G18-H18, "") -> -2.220446049e-16 | L18: ='t-values'!A7 -> 3 | M18: ='t-values'!B7 -> 4.303
B19: t-value: | C19: =IF(C15>1, IF(C15<31, OFFSET(M16, C15-1, 0), 1.96), "") -> 2.776 | F19: t-value: | G19: =C19 -> 2.776 | L19: ='t-values'!A8 -> 4 | M19: ='t-values'!B8 -> 3.182
B20: Conf. Interval Factor: | C20: =IF(C15>1, C19*C18/(C15^0.5), "") -> 0.03421280526 | D20: t x s / n0.5 | F20: Conf. Interval Factor: | G20: =IF(C15>1, G19*G18/(C15^0.5), "") -> 0.5276332721 | H20: t x s / n0.5 | L20: ='t-values'!A9 -> 5 | M20: ='t-values'!B9 -> 2.776
B21: Pred. Interal Factor: | C21: =IF(C15>1, C19*C18*(1+(1/C15))^0.5, "") -> 0.08380391555 | D21: t x s x (1+ 1/n)0.5 | F21: Pred. Interal Factor: | G21: =IF(C15>1, G19*G18*((1+(1/C15))^0.5), "") -> 1.292432288 | H21: t x s x (1+ 1/n)0.5 | L21: ='t-values'!A10 -> 6 | M21: ='t-values'!B10 -> 2.571
A22: RAW DATA (only enter data under Identifier and Rate. Everything else is a link.) | L22: ='t-values'!A11 -> 7 | M22: ='t-values'!B11 -> 2.447 | O22: Site | P22: Worker | Q22: Dose | R22: Amount | S22: Assumed | T22: Dose | U22: Rate
A23: Identifier | B23: Rate | C23: (x - xbar)2 | D23: n | G23: Log Rate | H23: (x - xbar)2 | L23: ='t-values'!A12 -> 8 | M23: ='t-values'!B12 -> 2.365 | O23: ID | P23: ID | Q23: Ug | R23: lb | S23: BW (kg) | T23: mg/kg bw | U23: mg/kg per lb
A24: =P24 -> NM | B24: =U24 -> 0.06609936393 | C24: =IF(ISBLANK(B24)=FALSE, ($C$6-B24)^2, "") -> 0.001074626906 | D24: 1 | G24: =IF(ISBLANK(B24)=FALSE,LOG10(B24), "") -> -1.17980272 | H24: =IF(ISBLANK(B24)=FALSE, ($G$7-G24)^2, "") -> 0.200779431 | L24: ='t-values'!A13 -> 9 | M24: ='t-values'!B13 -> 2.306 | O24: Site 3 | P24: NM | Q24: 7690 | R24: 1.4 | S24: 83.1 | T24: =(Q24/1000)/S24 -> 0.09253910951 | U24: =T24/R24 -> 0.06609936393
A25: RR | B25: 0.02304452467 | C25: =IF(ISBLANK(B25)=FALSE, ($C$6-B25)^2, "") -> 0.0001055414484 | D25: =D24+1 -> 2 | G25: =IF(ISBLANK(B25)=FALSE,LOG10(B25), "") -> -1.637432245 | H25: =IF(ISBLANK(B25)=FALSE, ($G$7-G25)^2, "") -> 9.11136562e-05 | L25: ='t-values'!A14 -> 10 | M25: ='t-values'!B14 -> 2.262 | O25: Site 3 | P25: RR | Q25: 2681 | R25: 1.4 | S25: 83.1 | T25: 0.03226233454 | U25: 0.02304452467
A26: RH | B26: 0.01037476362 | C26: 0.0005263857374 | D26: =D25+1 -> 3 | G26: -1.984021789 | H26: 0.1268320608 | L26: ='t-values'!A15 -> 11 | M26: ='t-values'!B15 -> 2.228 | O26: Site 3 | P26: RH | Q26: 1207 | R26: 1.4 | S26: 83.1 | T26: 0.01452466907 | U26: 0.01037476362
A27: MD | B27: 0.007735946364 | C27: 0.000654434379 | D27: 4 | G27: -2.11148655 | H27: 0.2338686233 | L27: ='t-values'!A16 -> 12 | M27: ='t-values'!B16 -> 2.201 | O27: Site 3 | P27: MD | Q27: 900 | R27: 1.4 | S27: 83.1 | T27: 0.01083032491 | U27: 0.007735946364
A28: JJ | B28: 0.05933470861 | C28: 0.0006768763368 | D28: 5 | G28: -1.226691186 | H28: 0.1609579994 | L28: ='t-values'!A17 -> 13 | M28: ='t-values'!B17 -> 2.179 | O28: Site 3 | P28: JJ | Q28: 6903 | R28: 1.4 | S28: 83.1 | T28: 0.08306859206 | U28: 0.05933470861
D29: 6 | L29: ='t-values'!A18 -> 14 | M29: ='t-values'!B18 -> 2.16
D30: 7 | L30: ='t-values'!A19 -> 15 | M30: ='t-values'!B19 -> 2.145
D31: 8 | L31: ='t-values'!A20 -> 16 | M31: ='t-values'!B20 -> 2.131
D32: 9 | L32: ='t-values'!A21 -> 17 | M32: ='t-values'!B21 -> 2.12
D33: 10 | L33: ='t-values'!A22 -> 18 | M33: ='t-values'!B22 -> 2.11
D34: 11 | L34: ='t-values'!A23 -> 19 | M34: ='t-values'!B23 -> 2.101
D35: 12 | L35: ='t-values'!A24 -> 20 | M35: ='t-values'!B24 -> 2.093
D36: 13 | L36: ='t-values'!A25 -> 21 | M36: ='t-values'!B25 -> 2.086
D37: 14 | L37: ='t-values'!A26 -> 22 | M37: ='t-values'!B26 -> 2.08
D38: 15 | L38: ='t-values'!A27 -> 23 | M38: ='t-values'!B27 -> 2.074
D39: 16 | L39: ='t-values'!A28 -> 24 | M39: ='t-values'!B28 -> 2.069
D40: 17 | L40: ='t-values'!A29 -> 25 | M40: ='t-values'!B29 -> 2.064
D41: 18 | L41: ='t-values'!A30 -> 26 | M41: ='t-values'!B30 -> 2.06
D42: 19 | L42: ='t-values'!A31 -> 27 | M42: ='t-values'!B31 -> 2.056
D43: 20 | L43: ='t-values'!A32 -> 28 | M43: ='t-values'!B32 -> 2.052
D44: 21 | L44: ='t-values'!A33 -> 29 | M44: ='t-values'!B33 -> 2.048
D45: 22 | L45: ='t-values'!A34 -> 30 | M45: ='t-values'!B34 -> 2.045
D46: 23 | L46: ='t-values'!A35 -> ∞ | M46: ='t-values'!B35 -> 1.96
D47: 24
D48: 25
D49: 26
D50: 27
D51: 28
D52: 29
D53: 30
D54: 31
D55: 32
D56: 33
D57: 34
D58: 35
D59: 36
D60: 37
D61: 38
D62: 39
D63: 40
D64: 41
D65: 42
D66: 43
D67: 44
D68: 45
A69: NOTE: If there are more than 45 items, insert additional cellss in the middle of the data area. The formulae should update correctly but check.

Sheet Middendorf 1992b-4
B1: Middendorf 1992b
A2: Subgroup: | B2: Site 1, low to medium bush, leather gloves
C3: Confidence Intervals
C4: Arithmetic | G4: Geometric (Log10)
C5: Mean | D5: Lower Limit | E5: Upper Limit | G5: Mean | H5: Lower Limit | I5: Upper Limit
C6: =IF(C15>0,AVERAGE(B24:B68), "") -> 0.004010085382 | D6: =IF(C15>1, C6-C20, "") -> 0.0006109108087 | E6: =IF(C15>1, C6+C20, "") -> 0.007409259955 | F6: Inverse log | G6: =IF(C15>0, 10^G7, "") -> 0.003251804846 | H6: =IF(C15>1,10^H7, "") -> 0.001258435427 | I6: =IF(C15>1, 10^I7, "") -> 0.008402683627
F7: Log | G7: =IF(C15>0, AVERAGE(G24:G68), "") -> -2.487875526 | H7: =IF(C15>1, G7-G20, "") -> -2.900169064 | I7: =IF(C15>1, G7+G20, "") -> -2.075581988
C9: Prediction Intervals
C10: Arithmetic | G10: Geometric (Log10)
C11: Mean | D11: Lower Limit | E11: Upper Limit | G11: Mean | H11: Lower Limit | I11: Upper Limit
C12: =IF(C15>0,AVERAGE(B24:B68), "") -> 0.004010085382 | D12: =IF(C15>1, C12-C21, "") -> -0.004316157869 | E12: =IF(C15>1, C12+C21, "") -> 0.01233632863 | F12: Inverse log | G12: =IF($C$15>0, 10^G13, "") -> 0.003251804846 | H12: =IF($C$15>0, 10^H13, "") -> 0.0003178452175 | I12: =IF($C$15>0, 10^I13, "") -> 0.03326850358
F13: Log | G13: =IF(C15>0, AVERAGE(G24:G68), "") -> -2.487875526 | H13: =IF(C15>1, G13-G21, "") -> -3.497784319 | I13: =IF(C15>1, G13+G21, "") -> -1.477966733 | L13: ='t-values'!A3 -> 95% Confidence Interval
B15: n: | C15: =COUNTA(B24:B68) -> 5 | L15: ='t-values'!A4 -> alpha = 0.025
B16: SSE: | C16: =IF(C15>0, SUM(C24:C68), "") -> 2.998734464e-05 | D16: Check | F16: SSE: | G16: =IF(C15>0, SUM(H24:H68), "") -> 0.441168127 | H16: Check | L16: ='t-values'!A5 -> n | M16: ='t-values'!B5 -> t-value
B17: Variance (s2): | C17: =IF(C15>1, C16/(C15-1), "") -> 7.49683616e-06 | D17: =IF(C15>1, VAR(B24:B68), "") -> 7.49683616e-06 | E17: =IF(C15>1, C17-D17, "") -> -3.388131789e-21 | F17: Variance (s2): | G17: =IF(C15>1, G16/(C15-1), "") -> 0.1102920318 | H17: =IF(C15>1, VAR(G24:G68), "") -> 0.1102920318 | I17: =IF(C15>1, G17-H17, "") -> 4.996003611e-16 | L17: ='t-values'!A6 -> 2 | M17: ='t-values'!B6 -> 12.706
B18: Std Dev (s): | C18: =IF(C15>1, C17^0.5, "") -> 0.002738035091 | D18: =IF(C15>1, STDEV(B24:B68), "") -> 0.002738035091 | E18: =IF(C15>1, C18-D18, "") -> -8.67361738e-19 | F18: Std Dev (s): | G18: =IF(C15>1, G17^0.5, "") -> 0.3321024417 | H18: =IF(C15>1, STDEV(G24:G31), "") -> 0.3321024417 | I18: =IF(C15>1, G18-H18, "") -> 7.21644966e-16 | L18: ='t-values'!A7 -> 3 | M18: ='t-values'!B7 -> 4.303
B19: t-value: | C19: =IF(C15>1, IF(C15<31, OFFSET(M16, C15-1, 0), 1.96), "") -> 2.776 | F19: t-value: | G19: =C19 -> 2.776 | L19: ='t-values'!A8 -> 4 | M19: ='t-values'!B8 -> 3.182
B20: Conf. Interval Factor: | C20: =IF(C15>1, C19*C18/(C15^0.5), "") -> 0.003399174573 | D20: t x s / n0.5 | F20: Conf. Interval Factor: | G20: =IF(C15>1, G19*G18/(C15^0.5), "") -> 0.4122935382 | H20: t x s / n0.5 | L20: ='t-values'!A9 -> 5 | M20: ='t-values'!B9 -> 2.776
B21: Pred. Interal Factor: | C21: =IF(C15>1, C19*C18*(1+(1/C15))^0.5, "") -> 0.008326243251 | D21: t x s x (1+ 1/n)0.5 | F21: Pred. Interal Factor: | G21: =IF(C15>1, G19*G18*((1+(1/C15))^0.5), "") -> 1.009908793 | H21: t x s x (1+ 1/n)0.5 | L21: ='t-values'!A10 -> 6 | M21: ='t-values'!B10 -> 2.571
A22: RAW DATA (only enter data under Identifier and Rate. Everything else is a link.) | L22: ='t-values'!A11 -> 7 | M22: ='t-values'!B11 -> 2.447 | O22: Site | P22: Worker | Q22: Dose | R22: Amount | S22: Assumed | T22: Dose | U22: Rate
A23: Identifier | B23: Rate | C23: (x - xbar)2 | D23: n | G23: Log Rate | H23: (x - xbar)2 | L23: ='t-values'!A12 -> 8 | M23: ='t-values'!B12 -> 2.365 | O23: ID | P23: ID | Q23: Ug | R23: lb | S23: BW (kg) | T23: mg/kg bw | U23: mg/kg per lb
A24: =P24 -> WT | B24: =U24 -> 0.004246175004 | C24: =IF(ISBLANK(B24)=FALSE, ($C$6-B24)^2, "") -> 5.573830979e-08 | D24: 1 | G24: =IF(ISBLANK(B24)=FALSE,LOG10(B24), "") -> -2.372002111 | H24: =IF(ISBLANK(B24)=FALSE, ($G$7-G24)^2, "") -> 0.01342664844 | L24: ='t-values'!A13 -> 9 | M24: ='t-values'!B13 -> 2.306 | O24: Site 1 | P24: WT | Q24: 741 | R24: 2.1 | S24: 83.1 | T24: =(Q24/1000)/S24 -> 0.008916967509 | U24: =T24/R24 -> 0.004246175004
A25: MH | B25: 0.002521345482 | C25: =IF(ISBLANK(B25)=FALSE, ($C$6-B25)^2, "") -> 2.216346491e-06 | D25: =D24+1 -> 2 | G25: =IF(ISBLANK(B25)=FALSE,LOG10(B25), "") -> -2.598367642 | H25: =IF(ISBLANK(B25)=FALSE, ($G$7-G25)^2, "") -> 0.01220850768 | L25: ='t-values'!A14 -> 10 | M25: ='t-values'!B14 -> 2.262 | O25: Site 1 | P25: MH | Q25: 440 | R25: 2.1 | S25: 83.1 | T25: =(Q25/1000)/S25 -> 0.005294825511 | U25: =T25/R25 -> 0.002521345482
A26: JF | B26: 0.001048650507 | C26: 8.770096518e-06 | D26: =D25+1 -> 3 | G26: -2.979369229 | H26: 0.2415660598 | L26: ='t-values'!A15 -> 11 | M26: ='t-values'!B15 -> 2.228 | O26: Site 1 | P26: JF | Q26: 183 | R26: 2.1 | S26: 83.1 | T26: 0.002202166065 | U26: 0.001048650507
A27: JDA | B27: 0.003873703513 | C27: 1.860001426e-08 | D27: 4 | G27: -2.411873623 | H27: 0.005776289341 | L27: ='t-values'!A16 -> 12 | M27: ='t-values'!B16 -> 2.201 | O27: Site 1 | P27: JDA | Q27: 676 | R27: 2.1 | S27: 83.1 | T27: 0.008134777377 | U27: 0.003873703513
A28: CWH | B28: 0.008360552404 | C28: 1.892656331e-05 | D28: 5 | G28: -2.077765027 | H28: 0.1681906218 | L28: ='t-values'!A17 -> 13 | M28: ='t-values'!B17 -> 2.179 | O28: Site 1 | P28: CWH | Q28: 1459 | R28: 2.1 | S28: 83.1 | T28: 0.01755716005 | U28: 0.008360552404
